Workbook

Sheet XA1KIM (hidden)
A1: NO | B1: NISN | C1: NAMA | D1: L/P | E1: TTL | F1: KELAS | G1: P5 | H1: P6 | I1: P7 | J1: P8 | K1: P11 | L1: P12 | M1: P14
A2: 1 | B2: 49722638 | C2: Ajeng Septiani | D2: P | E2: Tasikmalaya,09 September 2004 | F2: Kelas X-KELAS 10 MIPA 1 | G2: 78 | H2: 78 | I2: 49 | J2: 100 | K2: 75 | O2: H+1 | P2: 96-100 | Q2: Jumat
A3: 2 | B3: 44978477 | C3: AJRIL SIDIK ALBAR | D3: L | E3: Tasikmalaya,09 September 2004 | F3: Kelas X-KELAS 10 MIPA 1 | G3: 0 | H3: 0 | I3: 0 | J3: 0 | O3: H+2 | P3: 91-95 | Q3: Sabtu
A4: 3 | B4: 45016734 | C4: Alvin Iqbal Rifa'i | D4: L | E4: Tasikmalaya,27 September 2004 | F4: Kelas X-KELAS 10 MIPA 1 | G4: 0 | H4: 0 | I4: 0 | J4: 0 | O4: H+3 | P4: 86-90 | Q4: Senin
A5: 4 | B5: 51056613 | C5: Ari Hamdani Muslim | D5: L | E5: Tasikmalaya,29 Juli 2005 | F5: Kelas X-KELAS 10 MIPA 1 | G5: 0 | H5: 0 | I5: 0 | J5: 0 | O5: H+4 | P5: 81-85 | Q5: Selasa
A6: 5 | B6: 51096729 | C6: Bentar Rio Salasa | D6: L | E6: TASIKMALAYA,01 Februari 2005 | F6: Kelas X-KELAS 10 MIPA 1 | G6: 0 | H6: 0 | I6: 0 | J6: 0 | O6: H+5 | P6: 76-80 | Q6: Rabu
A7: 6 | B7: 45016728 | C7: Evan Maslul H | D7: L | E7: Tasikmalaya,10 Juli 2004 | F7: Kelas X-KELAS 10 MIPA 1 | G7: 0 | H7: 0 | I7: 0 | J7: 0
A8: 7 | B8: 56869160 | C8: Hani Amalia | D8: P | E8: Tasikmalaya,03 Mei 2005 | F8: Kelas X-KELAS 10 MIPA 1 | G8: 0 | H8: 100 | I8: 98 | J8: 100 | O8: P5 | P8: Soal biloks dan persamaan redoks
A9: 8 | B9: 45422166 | C9: Icha | D9: P | E9: Tasikmalaya,30 Maret 2004 | F9: Kelas X-KELAS 10 MIPA 1 | G9: 0 | H9: 0 | I9: 0 | J9: 0 | O9: P6 | P9: Soal reaksi redoks (4.9)
A10: 9 | B10: 45016720 | C10: Jeni Alviansyah | D10: L | E10: Tasikmalaya,22 April 2004 | F10: Kelas X-KELAS 10 MIPA 1 | G10: 0 | H10: 0 | I10: 0 | J10: 0 | O10: P7 | P10: Soal tatanama
A11: 10 | B11: 57530716 | C11: LatifatuL Musyarafah | D11: P | E11: TASIKMALAYA,18 Oktober 2005 | F11: Kelas X-KELAS 10 MIPA 1 | G11: 0 | H11: 100 | I11: 97 | J11: 100 | O11: P8 | P11: Soal hukum dasar
A12: 11 | B12: 51227962 | C12: Mufti Ridwan | D12: L | E12: Tasikmalaya,07 Januari 2005 | F12: Kelas X-KELAS 10 MIPA 1 | G12: 0 | H12: 0 | I12: 0 | J12: 0 | O12: P9 | P12: Soal konsep mol
A13: 12 | B13: 45016716 | C13: Muhamad Imam Nur Waham | D13: L | E13: TASIKMALAYA,07 Februari 2004 | F13: Kelas X-KELAS 10 MIPA 1 | G13: 0 | H13: 0 | I13: 0 | J13: 0 | O13: P12 | P13: Soal stoikiometri persamaan reaksi
A14: 13 | B14: 51977588 | C14: Nayna Nur Azizah | D14: P | E14: Bandung,15 Februari 2005 | F14: Kelas X-KELAS 10 MIPA 1 | G14: 0 | H14: 0 | I14: 0 | J14: 0 | O14: P14 | P14: Soal pereaksi pembatas
A15: 14 | B15: 48170027 | C15: Putri Ambarwati | D15: P | E15: Tasikmalaya,15 September 2005 | F15: Kelas X-KELAS 10 MIPA 1 | G15: 78 | H15: 90 | I15: 98 | J15: 95 | K15: 100 | L15: 95
A16: 15 | B16: 45016787 | C16: Saepul Hakim Mubarok | D16: L | E16: Tasikmalaya,10 Mei 2004 | F16: Kelas X-KELAS 10 MIPA 1 | G16: 0 | H16: 0 | I16: 0 | J16: 0 | O16: Jml siswa x jml tugas | R16: : | S16: =COUNT(G2:K24) -> 95
A17: 16 | B17: 51096762 | C17: Sarah Tri Apriliani | D17: P | E17: Tasikmalaya,01 April 2005 | F17: Kelas X-KELAS 10 MIPA 1 | G17: 0 | H17: 85 | I17: 97 | J17: 95 | O17: Jml siswa mengumpulkan | R17: : | S17: =S16-S18 -> 38
A18: 17 | B18: 56558314 | C18: Sena Tianti | D18: P | E18: Tasikmalaya,05 Juli 2005 | F18: Kelas X-KELAS 10 MIPA 1 | G18: 0 | H18: 85 | I18: 98 | J18: 100 | O18: Jml siswa belum mengumpulkan | R18: : | S18: =COUNTIF(G2:K24,0) -> 57
A19: 18 | B19: 45016804 | C19: Shen Shen Nurulaini | D19: P | E19: Tasikmalaya,29 Maret 2004 | F19: Kelas X-KELAS 10 MIPA 1 | G19: 79 | H19: 100 | I19: 98 | J19: 100 | L19: 100 | O19: % siswa mengumpulkan | R19: : | S19: =(S17/S16)*100% -> 0.4
A20: 19 | B20: 41525058 | C20: Tariska Desri Wahyuni | D20: P | E20: Tasikmalaya,15 Desember 2004 | F20: Kelas X-KELAS 10 MIPA 1 | G20: 78 | H20: 80 | I20: 98 | J20: 90 | K20: 100 | L20: 95 | M20: 100 | O20: Jml siswa | R20: : | S20: =COUNT(A2:A24) -> 23
A21: 20 | B21: 45439866 | C21: Tendi Fortuna Arijwan | D21: L | E21: Tasikmalaya,08 Juli 2004 | F21: Kelas X-KELAS 10 MIPA 1 | G21: 0 | H21: 0 | I21: 0 | J21: 0 | O21: L | R21: : | S21: =COUNTIF(D2:D24,"L") -> 11
A22: 21 | B22: 45016812 | C22: Tuti Zakiah | D22: P | E22: Tasikmalaya,10 Juli 2004 | F22: Kelas X-KELAS 10 MIPA 1 | G22: 0 | H22: 90 | I22: 90 | J22: 95 | O22: P | R22: : | S22: =S20-S21 -> 12
A23: 22 | B23: 38470439 | C23: Yasir Mukhlis | D23: L | E23: Tasikmalaya,23 Desember 2003 | F23: Kelas X-KELAS 10 MIPA 1 | G23: 0 | H23: 0 | I23: 0 | J23: 0
A24: 23 | B24: 51096775 | C24: Zia Amallia Khusnul Aini | D24: P | E24: TASIKMALAYA,12 Mei 2005 | F24: Kelas X-KELAS 10 MIPA 1 | G24: 80 | H24: 100 | I24: 98 | J24: 100

Sheet XIA1 (hidden)
A1: NO | B1: NISN | C1: NAMA | D1: L/P | E1: TTL | F1: KELAS | G1: P5 | H1: P6 | I1: P7 | J1: P8
A2: 1 | B2: 35232165 | C2: AHMAD JAMALUDIN | D2: L | E2: Tasikmalaya,19 September 2003 | F2: Kelas XI-KELAS 11 MIPA 1 | G2: 0 | H2: 0 | I2: 0 | J2: 0 | L2: H+1 | M2: 96-100 | N2: Jumat
A3: 2 | B3: 34567713 | C3: ALVINA DAMAYANTI | D3: P | E3: Tasikmalaya,03 Desember 2003 | F3: Kelas XI-KELAS 11 MIPA 1 | G3: 90 | H3: 100 | I3: 90 | J3: 90 | L3: H+2 | M3: 91-95 | N3: Sabtu
A4: 3 | B4: 35232115 | C4: AYU NURAENI | D4: P | E4: Tasikmalaya,15 Mei 2003 | F4: Kelas XI-KELAS 11 MIPA 1 | G4: 85 | H4: 90 | I4: 81 | J4: 75 | L4: H+3 | M4: 86-90 | N4: Senin
A5: 4 | B5: 28331746 | C5: BUDI RAHAYU SETIAWAN | D5: L | E5: Tasikmalaya,08 April 2002 | F5: Kelas XI-KELAS 11 MIPA 1 | G5: 0 | H5: 0 | I5: 0 | J5: 0 | L5: H+4 | M5: 81-85 | N5: Selasa
A6: 5 | B6: 35231622 | C6: CUCU LIDIANA AGUSTIN | D6: P | E6: Tasikmalaya,02 Agustus 2003 | F6: Kelas XI-KELAS 11 MIPA 1 | G6: 0 | H6: 0 | I6: 0 | J6: 30 | L6: H+5 | M6: 76-80 | N6: Rabu
A7: 6 | B7: 42510428 | C7: EUIS WARDATUL APRIANI | D7: P | E7: Tasikmalaya,01 April 2004 | F7: Kelas XI-KELAS 11 MIPA 1 | G7: 0 | H7: 0 | I7: 0 | J7: 0
A8: 7 | B8: 35232506 | C8: LENI LILIANI | D8: P | E8: Tasikmalaya,19 April 2003 | F8: Kelas XI-KELAS 11 MIPA 1 | G8: 75 | H8: 100 | I8: 88 | J8: 100 | L8: P5 | M8: Soal kekuatan asam basa
A9: 8 | B9: 35232811 | C9: LILIK SUCI ASIH | D9: P | E9: Tasikmalaya,04 Mei 2003 | F9: Kelas XI-KELAS 11 MIPA 1 | G9: 88 | H9: 85 | I9: 0 | J9: 60 | L9: P6 | M9: Soal pH
A10: 9 | B10: 36355200 | C10: MOH. DZIKRI ZAELANI | D10: L | E10: Tasikmalaya,08 September 2003 | F10: Kelas XI-KELAS 11 MIPA 1 | G10: 0 | H10: 0 | I10: 90 | J10: 75 | L10: P7 | M10: Soal indikator asam basa + praktik selfie
A11: 10 | B11: 37553766 | C11: NESVI KANIZA RAHMA | D11: P | E11: Tasikmalaya,06 September 2003 | F11: Kelas XI-KELAS 11 MIPA 1 | G11: 65 | H11: 90 | I11: 81 | J11: 85 | L11: P8 | M11: UH
A12: 11 | B12: 35231329 | C12: NURKILAH OKTAVIANI | D12: P | E12: Tasikmalaya,04 Oktober 2003 | F12: Kelas XI-KELAS 11 MIPA 1 | G12: 95 | H12: 95 | I12: 81 | J12: 40
A13: 12 | B13: 35231814 | C13: NURUL ISNEN | D13: L | E13: Tasikmalaya,05 Mei 2003 | F13: Kelas XI-KELAS 11 MIPA 1 | G13: 0 | H13: 0 | I13: 90 | J13: 0 | L13: Jml siswa x jml tugas | O13: : | P13: =COUNT(G2:J24) -> 92
A14: 13 | B14: 40979233 | C14: PIPIN NURUL PAIDAH | D14: P | E14: Tasikmalaya,21 Februari 2004 | F14: Kelas XI-KELAS 11 MIPA 1 | G14: 82 | H14: 90 | I14: 90 | J14: 65 | L14: Jml siswa mengumpulkan | O14: : | P14: =P13-P15 -> 55
A15: 14 | B15: 48477106 | C15: RIFQI FEBRIANSYAH | D15: L | E15: Tasikmalaya,18 November 2004 | F15: Kelas XI-KELAS 11 MIPA 1 | G15: 0 | H15: 0 | I15: 0 | J15: 0 | L15: Jml siswa belum mengumpulkan | O15: : | P15: =COUNTIF(G2:J24,0) -> 37
A16: 15 | B16: 35232513 | C16: SAHRUL GUNAWAN | D16: L | E16: Tasikmalaya,03 Juni 2003 | F16: Kelas XI-KELAS 11 MIPA 1 | G16: 0 | H16: 0 | I16: 90 | J16: 0 | L16: % siswa mengumpulkan | O16: : | P16: =(P14/P13)*100% -> 0.597826087
A17: 16 | B17: 28331884 | C17: SAHRUL MUBAROK | D17: L | E17: Tasikmalaya,25 November 2002 | F17: Kelas XI-KELAS 11 MIPA 1 | G17: 0 | H17: 0 | I17: 0 | J17: 35 | L17: Jml siswa | O17: : | P17: =COUNT(A2:A24) -> 23
A18: 17 | B18: 35231160 | C18: SILVI | D18: P | E18: Tasikmalaya,08 Desember 2003 | F18: Kelas XI-KELAS 11 MIPA 1 | G18: 0 | H18: 0 | I18: 0 | J18: 0 | L18: L | O18: : | P18: =COUNTIF(D2:D24,"L") -> 8
A19: 18 | B19: 30220914 | C19: SIPA MUTMAINAH | D19: P | E19: Tasikmalaya,20 Mei 2003 | F19: Kelas XI-KELAS 11 MIPA 1 | G19: 85 | H19: 100 | I19: 100 | J19: 95 | L19: P | O19: : | P19: =P17-P18 -> 15
A20: 19 | B20: 40978671 | C20: TRIFANNY KHOERUN NISA | D20: P | E20: Tasikmalaya,14 April 2004 | F20: Kelas XI-KELAS 11 MIPA 1 | G20: 70 | H20: 100 | I20: 88 | J20: 95
A21: 20 | B21: 35317079 | C21: VIA NURAPIPAH | D21: P | E21: Tasikmalaya,24 April 2003 | F21: Kelas XI-KELAS 11 MIPA 1 | G21: 90 | H21: 100 | I21: 81 | J21: 95
A22: 21 | B22: 35232482 | C22: VIRNA FIANARITA RAHMAWATI | D22: P | E22: Tasikmalaya,12 Oktober 2003 | F22: Kelas XI-KELAS 11 MIPA 1 | G22: 75 | H22: 100 | I22: 90 | J22: 90
A23: 22 | B23: 3039285869 | C23: YUDA NUGRAHA | D23: L | E23: Tasikmalaya,23 Mei 2003 | F23: Kelas XI-KELAS 11 MIPA 1 | G23: 95 | H23: 0 | I23: 0 | J23: 80
A24: 23 | B24: 35231377 | C24: YULIA NURFATWA | D24: P | E24: Tasikmalaya,01 Desember 2003 | F24: Kelas XI-KELAS 11 MIPA 1 | G24: 82 | H24: 90 | I24: 80 | J24: 25

Sheet XIA2 (hidden)
A1: NO | B1: NISN | C1: NAMA | D1: L/P | E1: TTL | F1: KELAS | G1: P5 | H1: P6 | I1: P7 | J1: P8 | K1: P9
A2: 1 | B2: 34449777 | C2: ADE IRNA SITI NURROHMAH | D2: P | E2: Tasikmalaya,25 Agustus 2003 | F2: Kelas XI-KELAS 11 MIPA 2 | G2: 0 | H2: 0 | I2: 0 | J2: 0 | M2: H+1 | N2: 96-100 | O2: Jumat
A3: 2 | B3: 40977973 | C3: ALYA AULIA ANISSA | D3: P | E3: Tasikmalaya,13 Januari 2005 | F3: Kelas XI-KELAS 11 MIPA 2 | G3: 93 | H3: 75 | I3: 0 | J3: 0 | M3: H+2 | N3: 91-95 | O3: Sabtu
A4: 3 | B4: 35232114 | C4: ANISA RAHMAN | D4: P | E4: Tasikmalaya,09 April 2003 | F4: Kelas XI-KELAS 11 MIPA 2 | G4: 0 | H4: 0 | I4: 0 | J4: 15 | M4: H+3 | N4: 86-90 | O4: Senin
A5: 4 | B5: 40977792 | C5: ANISA USSALAMAH | D5: P | E5: Tasikmalaya,25 Juni 2004 | F5: Kelas XI-KELAS 11 MIPA 2 | G5: 90 | H5: 100 | I5: 0 | J5: 40 | M5: H+4 | N5: 81-85 | O5: Selasa
A6: 5 | B6: 226505005 | C6: DIAN AULIA HAYATI | D6: P | E6: Tasikmalaya,14 April 2006 | F6: Kelas XI-KELAS 11 MIPA 2 | G6: 0 | H6: 0 | I6: 0 | J6: 0 | M6: H+5 | N6: 76-80 | O6: Rabu
A7: 6 | B7: 40978375 | C7: DINA NURAISYAH | D7: P | E7: Tasikmalaya,26 Maret 2004 | F7: Kelas XI-KELAS 11 MIPA 2 | G7: 0 | H7: 0 | I7: 0 | J7: 0
A8: 7 | B8: 40977997 | C8: HALI HUSNI MUBAROK | D8: L | E8: Tasikmalaya,06 Februari 2004 | F8: Kelas XI-KELAS 11 MIPA 2 | G8: 0 | H8: 0 | I8: 0 | J8: 0 | M8: P5 | N8: Soal kekuatan asam basa
A9: 8 | B9: 40977823 | C9: ILA SULPIANA | D9: P | E9: Tasikmalaya,09 Februari 2004 | F9: Kelas XI-KELAS 11 MIPA 2 | G9: 0 | H9: 0 | I9: 0 | J9: 0 | M9: P6 | N9: Soal pH
A10: 9 | B10: 42510518 | C10: IRMA FATHUL BARIYAH | D10: P | E10: Tasikmalaya,21 Januari 2004 | F10: Kelas XI-KELAS 11 MIPA 2 | G10: 0 | H10: 0 | I10: 0 | J10: 0 | M10: P7 | N10: Soal indikator asam basa + praktik selfie
A11: 10 | B11: 28715374 | C11: JAEN | D11: L | E11: Tasikmalaya,09 September 2002 | F11: Kelas XI-KELAS 11 MIPA 2 | G11: 0 | H11: 0 | I11: 0 | J11: 0 | M11: P8 | N11: UH
A12: 11 | B12: 35231365 | C12: MAHMUDIN | D12: L | E12: Tasikmalaya,13 Januari 2003 | F12: Kelas XI-KELAS 11 MIPA 2 | G12: 0 | H12: 0 | I12: 0 | J12: 0 | M12: P9 | N12: Soal hidrolisis garam
A13: 12 | B13: 35231150 | C13: MIFTAH PARID | D13: L | E13: Tasikmalaya,26 Februari 2003 | F13: Kelas XI-KELAS 11 MIPA 2 | G13: 0 | H13: 0 | I13: 0 | J13: 15
A14: 13 | B14: 28331885 | C14: MUHAEMIN | D14: L | E14: Tasikmalaya,28 November 2002 | F14: Kelas XI-KELAS 11 MIPA 2 | G14: 0 | H14: 0 | I14: 0 | J14: 0 | M14: Jml siswa x jml tugas | P14: : | Q14: =COUNT(G2:K25) -> 96
A15: 14 | B15: 50438820 | C15: NAILA NURILMI | D15: P | E15: Tasikmalaya,13 Januari 2005 | F15: Kelas XI-KELAS 11 MIPA 2 | G15: 0 | H15: 0 | I15: 0 | J15: 0 | M15: Jml siswa mengumpulkan | P15: : | Q15: =Q14-Q16 -> 27
A16: 15 | B16: 35232168 | C16: PIA MARSELA | D16: P | E16: Tasikmalaya,07 November 2003 | F16: Kelas XI-KELAS 11 MIPA 2 | G16: 95 | H16: 90 | I16: 81 | J16: 65 | M16: Jml siswa belum mengumpulkan | P16: : | Q16: =COUNTIF(G2:K25,0) -> 69
A17: 16 | B17: 35741857 | C17: RIDA NURDIANA | D17: P | E17: Tasikmalaya,20 Januari 2004 | F17: Kelas XI-KELAS 11 MIPA 2 | G17: 0 | H17: 0 | I17: 0 | J17: 55 | M17: % siswa mengumpulkan | P17: : | Q17: =(Q15/Q14)*100% -> 0.28125
A18: 17 | B18: 32107831 | C18: RIFAN ARDIANSYAH | D18: L | E18: Tasikmalaya,26 Oktober 2003 | F18: Kelas XI-KELAS 11 MIPA 2 | G18: 0 | H18: 0 | I18: 0 | J18: 0 | M18: Jml siswa | P18: : | Q18: =COUNT(A2:A25) -> 24
A19: 18 | B19: 40978078 | C19: SANDI ALPARIZI | D19: L | E19: Tasikmalaya,02 Februari 2004 | F19: Kelas XI-KELAS 11 MIPA 2 | G19: 0 | H19: 0 | I19: 0 | J19: 0 | M19: L | P19: : | Q19: =COUNTIF(D2:D24,"L") -> 9
A20: 19 | B20: 35317512 | C20: SUSAN SUSANTI | D20: P | E20: Tasikmalaya,23 Desember 2003 | F20: Kelas XI-KELAS 11 MIPA 2 | G20: 90 | H20: 95 | I20: 81 | J20: 60 | M20: P | P20: : | Q20: =Q18-Q19 -> 15
A21: 20 | B21: 47404973 | C21: WIDI ALFIANDI | D21: L | E21: Tasikmalaya,24 Agustus 2003 | F21: Kelas XI-KELAS 11 MIPA 2 | G21: 0 | H21: 0 | I21: 0 | J21: 0
A22: 21 | B22: 40978728 | C22: WINA WIDIANSYAH | D22: P | E22: Tasikmalaya,27 Maret 2004 | F22: Kelas XI-KELAS 11 MIPA 2 | G22: 75 | H22: 100 | I22: 85 | J22: 95
A23: 22 | B23: 21242093 | C23: YESINTA | D23: P | E23: Tasikmalaya,29 Desember 2002 | F23: Kelas XI-KELAS 11 MIPA 2 | G23: 100 | H23: 80 | I23: 0 | J23: 30
A24: 23 | B24: 36355412 | C24: YUDA AGUSTIAN | D24: L | E24: TASIKMALAYA,28 Agustus 2003 | F24: Kelas XI-KELAS 11 MIPA 2 | G24: 85 | H24: 95 | I24: 90 | J24: 95
A25: 24 | B25: 35231753 | C25: YUSUP HAMDANI | D25: L | E25: Tasikmalaya,25 Juni 2003 | F25: Kelas XI-KELAS 11 MIPA 2 | G25: 0 | H25: 0 | I25: 0 | J25: 0

Sheet XIIA1 (hidden)
A1: NO | B1: NISN | C1: NAMA | D1: L/P | E1: TTL | F1: KELAS | G1: P1 | H1: P2 | I1: P3 | J1: P4 | K1: P5 | L1: P6 | M1: P7 | N1: P8 | O1: UMBK | P1: TOOL
A2: 1 | B2: 26598132 | C2: AI NURAENI | D2: P | E2: Tasikmalaya,14 Juli 2002 | F2: Kelas XII-KELAS 12 MIPA 1 | G2: 0 | H2: 0 | I2: 0 | J2: 0 | K2: 78 | L2: 75 | M2: 88 | N2: 100 | O2: 30 | P2: 82.5 | R2: H+1 | S2: 96-100 | T2: Jumat
A3: 2 | B3: 33155403 | C3: ANGGA | D3: L | E3: Tasikmalaya,01 April 2003 | F3: Kelas XII-KELAS 12 MIPA 1 | G3: 0 | H3: 0 | I3: 0 | J3: 0 | K3: 0 | L3: 0 | M3: 0 | N3: 0 | O3: 15 | P3: 77.5 | R3: H+2 | S3: 91-95 | T3: Sabtu
A4: 3 | B4: 26598326 | C4: DANIATUR ROHMAT | D4: L | E4: Tasikmalaya,11 Oktober 2002 | F4: Kelas XII-KELAS 12 MIPA 1 | G4: 0 | H4: 0 | I4: 0 | J4: 0 | K4: 0 | L4: 0 | M4: 0 | N4: 0 | O4: 20 | P4: 80 | R4: H+3 | S4: 86-90 | T4: Senin
A5: 4 | B5: 36355267 | C5: DEDE SYIFA SITI KAROMAH | D5: P | E5: Tasikmalaya,23 Januari 2003 | F5: Kelas XII-KELAS 12 MIPA 1 | G5: 0 | H5: 0 | I5: 0 | J5: 0 | K5: 75 | L5: 75 | M5: 75 | N5: 80 | O5: 20 | P5: 80 | R5: H+4 | S5: 81-85 | T5: Selasa
A6: 5 | B6: 26711797 | C6: DIMAS RANGGA ZULFIQIH | D6: L | E6: Tasikmalaya,05 Maret 2003 | F6: Kelas XII-KELAS 12 MIPA 1 | G6: 0 | H6: 0 | I6: 0 | J6: 0 | K6: 84 | L6: 76 | M6: 89 | N6: 95 | O6: 32.5 | P6: 82.5 | R6: H+5 | S6: 76-80 | T6: Rabu
A7: 6 | B7: 33154854 | C7: EDIS ADELA | D7: P | E7: Tasikmalaya,05 Maret 2003 | F7: Kelas XII-KELAS 12 MIPA 1 | G7: 87 | H7: 86 | I7: 87 | J7: 0 | K7: 80 | L7: 75 | M7: 99 | N7: 95 | O7: 37.5 | P7: 85
A8: 7 | B8: 33154771 | C8: ELA SUSILAWATI | D8: P | E8: Tasikmalaya,15 Oktober 2003 | F8: Kelas XII-KELAS 12 MIPA 1 | G8: 89 | H8: 0 | I8: 0 | J8: 0 | K8: 79 | L8: 77 | M8: 99 | N8: 100 | O8: 22.5 | P8: 80 | R8: P5 | S8: Soal Tatanama Asam Karboksilat dan Ester
A9: 8 | B9: 37917257 | C9: IKSA RURIDHA | D9: P | E9: Pekalongan,24 Desember 2003 | F9: Kelas XII-KELAS 12 MIPA 1 | G9: 0 | H9: 0 | I9: 0 | J9: 0 | K9: 77 | L9: 75 | M9: 80 | N9: 75 | O9: 27.5 | P9: 80 | R9: P6 | S9: Soal Asam Karboksilat dan Ester
A10: 9 | B10: 33154982 | C10: LUSIANA KARMILA | D10: P | E10: Tasikmalaya,31 Maret 2003 | F10: Kelas XII-KELAS 12 MIPA 1 | G10: 90 | H10: 92 | I10: 90 | J10: 0 | K10: 80 | L10: 75 | M10: 100 | N10: 100 | O10: 55 | P10: 90 | R10: P7 | S10: Soal Benzena
A11: 10 | B11: 33154197 | C11: NABILA | D11: P | E11: Tasikmalaya,01 April 2004 | F11: Kelas XII-KELAS 12 MIPA 1 | G11: 88 | H11: 0 | I11: 86 | J11: 0 | K11: 81 | L11: 76 | M11: 99 | N11: 100 | O11: 35 | P11: 82.5 | R11: P8 | S11: Soal Polimer
A12: 11 | B12: 26598997 | C12: NENG FAJRIN ANDINY | D12: P | E12: Tasikmalaya,17 Oktober 2002 | F12: Kelas XII-KELAS 12 MIPA 1 | G12: 0 | H12: 0 | I12: 0 | J12: 0 | K12: 80 | L12: 50 | M12: 99 | N12: 99 | O12: 45 | P12: 87.5
A13: 12 | B13: 33155458 | C13: NISRINA MAIMANAH | D13: P | E13: Tasikmalaya,02 April 2003 | F13: Kelas XII-KELAS 12 MIPA 1 | G13: 0 | H13: 0 | I13: 0 | J13: 0 | K13: 75 | L13: 50 | M13: 87 | N13: 95 | O13: 47.5 | P13: 87.5 | R13: Jml siswa x jml tugas | U13: : | V13: =COUNT(G2:N30) -> 232
A14: 13 | B14: 26597573 | C14: NURYADIN | D14: L | E14: Tasikmalaya,07 September 2002 | F14: Kelas XII-KELAS 12 MIPA 1 | G14: 87 | H14: 0 | I14: 0 | J14: 0 | K14: 75 | L14: 75 | M14: 75 | N14: 0 | O14: 40 | P14: 85 | R14: Jml siswa mengumpulkan | U14: : | V14: =V13-V15 -> 130
A15: 14 | B15: 22565454 | C15: RANI SILVIANI | D15: P | E15: Tasikmalaya,19 Februari 2002 | F15: Kelas XII-KELAS 12 MIPA 1 | G15: 88 | H15: 87 | I15: 86 | J15: 0 | K15: 75 | L15: 76 | M15: 89 | N15: 95 | O15: 35 | P15: 82.5 | R15: Jml siswa belum mengumpulkan | U15: : | V15: =COUNTIF(G2:N30,0) -> 102
A16: 15 | B16: 28474206 | C16: RAYHAN OKTASANDI | D16: L | E16: Tasikmalaya,17 Oktober 2002 | F16: Kelas XII-KELAS 12 MIPA 1 | G16: 0 | H16: 0 | I16: 0 | J16: 0 | K16: 0 | L16: 0 | M16: 89 | N16: 0 | O16: 30 | P16: 82.5 | R16: % siswa mengumpulkan | U16: : | V16: =(V14/V13)*100% -> 0.5603448276
A17: 16 | B17: 33154201 | C17: RIAN SAHRUL MAULANA | D17: L | E17: Tasikmalaya,12 Maret 2003 | F17: Kelas XII-KELAS 12 MIPA 1 | G17: 0 | H17: 0 | I17: 0 | J17: 0 | K17: 0 | L17: 0 | M17: 0 | N17: 0 | O17: 35 | P17: 82.5 | R17: Jml siswa | U17: : | V17: =COUNT(A2:A30) -> 29
A18: 17 | B18: 19635205 | C18: RIFAN FAUZI | D18: L | E18: Tasikmalaya,15 Juli 2001 | F18: Kelas XII-KELAS 12 MIPA 1 | G18: 0 | H18: 0 | I18: 0 | J18: 0 | K18: 75 | L18: 75 | M18: 75 | N18: 75 | O18: 27.5 | P18: 80 | R18: L | U18: : | V18: =COUNTIF(D2:D24,"L") -> 9
A19: 18 | B19: 26598906 | C19: RIJA SYAHRUL AZMI | D19: L | E19: Tasikmalaya,25 Juni 2002 | F19: Kelas XII-KELAS 12 MIPA 1 | G19: 85 | H19: 85 | I19: 86 | J19: 0 | K19: 84 | L19: 76 | M19: 86 | N19: 0 | O19: 32.5 | P19: 82.5 | R19: P | U19: : | V19: =V17-V18 -> 20
A20: 19 | B20: 26599016 | C20: RIPA NUR AULIA | D20: P | E20: Tasikmalaya,14 Desember 2002 | F20: Kelas XII-KELAS 12 MIPA 1 | G20: 87 | H20: 86 | I20: 85 | J20: 0 | K20: 80 | L20: 78 | M20: 98 | N20: 100 | O20: 42.5 | P20: 85
A21: 20 | B21: 26598991 | C21: RIZLAN GUSYANA | D21: L | E21: Tasikmalaya,17 Agustus 2002 | F21: Kelas XII-KELAS 12 MIPA 1 | G21: 85 | H21: 86 | I21: 85 | J21: 0 | K21: 75 | L21: 75 | M21: 89 | N21: 99 | O21: 40 | P21: 85 | R21: Nilai max | V21: =MAX(O2:O30) -> 55
A22: 21 | B22: 26598316 | C22: SHELMY KURNIAWATI PERTIWI | D22: P | E22: Tasikmalaya,09 Mei 2002 | F22: Kelas XII-KELAS 12 MIPA 1 | G22: 87 | H22: 87 | I22: 88 | J22: 0 | K22: 78 | L22: 75 | M22: 82 | N22: 95 | O22: 52.5 | P22: 90 | R22: Nilai min | V22: =MIN(O2:O30) -> 15
A23: 22 | B23: 38547467 | C23: SILVI | D23: P | E23: Tasikmalaya,04 Agustus 2003 | F23: Kelas XII-KELAS 12 MIPA 1 | G23: 89 | H23: 88 | I23: 90 | J23: 0 | K23: 80 | L23: 78 | M23: 99 | N23: 95 | O23: 55 | P23: 90 | R23: Nilai Rata-rata | V23: =AVERAGE(O2:O30) -> 36.81034483
A24: 23 | B24: 26598416 | C24: SIPA NURMALA | D24: P | E24: Tasikmalaya,10 Agustus 2002 | F24: Kelas XII-KELAS 12 MIPA 1 | G24: 90 | H24: 0 | I24: 0 | J24: 0 | K24: 79 | L24: 77 | M24: 98 | N24: 85 | O24: 42.5 | P24: 85
A25: 24 | B25: 28134619 | C25: SRI ATI SUMIATI | D25: P | E25: Tasikmalaya,07 September 2002 | F25: Kelas XII-KELAS 12 MIPA 1 | G25: 86 | H25: 87 | I25: 85 | J25: 0 | K25: 75 | L25: 75 | M25: 84 | N25: 95 | O25: 37.5 | P25: 85
A26: 25 | B26: 26711796 | C26: WIDI KRIS STYARANI | D26: P | E26: Tasikmalaya,25 April 2002 | F26: Kelas XII-KELAS 12 MIPA 1 | G26: 85 | H26: 86 | I26: 0 | J26: 0 | K26: 0 | L26: 0 | M26: 0 | N26: 0 | O26: 35 | P26: 82.5
A27: 26 | B27: 26598418 | C27: WILDA NURHASANAH | D27: P | E27: Tasikmalaya,11 Oktober 2003 | F27: Kelas XII-KELAS 12 MIPA 1 | G27: 0 | H27: 0 | I27: 0 | J27: 0 | K27: 83 | L27: 76 | M27: 99 | N27: 75 | O27: 50 | P27: 87.5
A28: 27 | B28: 20801969 | C28: WIWIN NURSAFITRI | D28: P | E28: Tasikmalaya,20 Agustus 2002 | F28: Kelas XII-KELAS 12 MIPA 1 | G28: 90 | H28: 92 | I28: 90 | J28: 0 | K28: 80 | L28: 78 | M28: 99 | N28: 100 | O28: 50 | P28: 87.5
A29: 28 | B29: 18993363 | C29: WULAN PURNAMA SARI | D29: P | E29: Tasikmalaya,25 Juli 2001 | F29: Kelas XII-KELAS 12 MIPA 1 | G29: 0 | H29: 87 | I29: 88 | J29: 0 | K29: 78 | L29: 78 | M29: 86 | N29: 100 | O29: 47.5 | P29: 87.5
A30: 29 | B30: 25524884 | C30: ZIAN REGI ASPAHANI | D30: L | E30: Tasikmalaya,01 Juli 2002 | F30: Kelas XII-KELAS 12 MIPA 1 | G30: 0 | H30: 0 | I30: 0 | J30: 0 | K30: 0 | L30: 0 | M30: 0 | N30: 0 | O30: 27.5 | P30: 80

Sheet XIIA2 (hidden)
A1: NO | B1: NISN | C1: NAMA | D1: L/P | E1: TTL | F1: KELAS | G1: P1 | H1: P2 | I1: P3 | J1: P4 | K1: P5 | L1: P6 | M1: P7 | N1: P8 | O1: UMBK | P1: TOOL
A2: 1 | B2: 23102779 | C2: ANDRA SAPUTRA | D2: L | E2: Tasikmalaya,03 Januari 2002 | F2: Kelas XII-KELAS 12 MIPA 2 | G2: 0 | H2: 0 | I2: 0 | J2: 0 | K2: 75 | L2: 0 | M2: 88 | N2: 95 | O2: 7.5 | P2: 77.5 | R2: H+1 | S2: 96-100 | T2: Jumat
A3: 2 | B3: 26598114 | C3: ANJIAN | D3: L | E3: Tasikmalaya,19 September 2002 | F3: Kelas XII-KELAS 12 MIPA 2 | G3: 0 | H3: 0 | I3: 0 | J3: 0 | K3: 75 | L3: 75 | M3: 75 | N3: 75 | O3: 37.5 | P3: 85 | R3: H+2 | S3: 91-95 | T3: Sabtu
A4: 3 | B4: 40216088 | C4: AULIA ANANTA | D4: P | E4: Tasikmalaya,21 April 2004 | F4: Kelas XII-KELAS 12 MIPA 2 | G4: 0 | H4: 0 | I4: 0 | J4: 0 | K4: 0 | L4: 0 | M4: 0 | N4: 0 | O4: 45 | P4: 87.5 | R4: H+3 | S4: 86-90 | T4: Senin
A5: 4 | B5: 28134618 | C5: AZIS AGUSTIN | D5: L | E5: Tasikmalaya,22 Agustus 2002 | F5: Kelas XII-KELAS 12 MIPA 2 | G5: 85 | H5: 86 | I5: 87 | J5: 0 | K5: 85 | L5: 75 | M5: 98 | N5: 90 | O5: 37.5 | P5: 85 | R5: H+4 | S5: 81-85 | T5: Selasa
A6: 5 | B6: 29088957 | C6: DENI MULYANA | D6: L | E6: Tasikmalaya,08 Agustus 2002 | F6: Kelas XII-KELAS 12 MIPA 2 | G6: 86 | H6: 85 | I6: 87 | J6: 0 | K6: 85 | L6: 78 | M6: 98 | N6: 95 | O6: 37.5 | P6: 85 | R6: H+5 | S6: 76-80 | T6: Rabu
A7: 6 | B7: 26598101 | C7: ELMA ELVIANA | D7: P | E7: Tasikmalaya,23 November 2002 | F7: Kelas XII-KELAS 12 MIPA 2 | G7: 0 | H7: 0 | I7: 0 | J7: 0 | K7: 75 | L7: 75 | M7: 75 | N7: 75 | O7: 30 | P7: 82.5
A8: 7 | B8: 40216136 | C8: ERNA NURYANTI | D8: P | E8: Tasikmalaya,29 Februari 2004 | F8: Kelas XII-KELAS 12 MIPA 2 | G8: 86 | H8: 88 | I8: 0 | J8: 0 | K8: 75 | L8: 75 | M8: 93 | N8: 75 | O8: 27.5 | P8: 82.5 | R8: P5 | S8: Soal Tatanama Asam Karboksilat dan Ester
A9: 8 | B9: 26598517 | C9: FITRI SRI MULYANI | D9: P | E9: Tasikmalaya,18 Oktober 2002 | F9: Kelas XII-KELAS 12 MIPA 2 | G9: 0 | H9: 0 | I9: 0 | J9: 0 | K9: 75 | L9: 75 | M9: 90 | N9: 80 | O9: 25 | P9: 82.5 | R9: P6 | S9: Soal Asam Karboksilat dan Ester
A10: 9 | B10: 33154840 | C10: HILMA NUR PASIAM | D10: P | E10: Tasikmalaya,14 Desember 2003 | F10: Kelas XII-KELAS 12 MIPA 2 | G10: 0 | H10: 0 | I10: 0 | J10: 0 | K10: 75 | L10: 75 | M10: 97 | N10: 85 | O10: 22.5 | P10: 80 | R10: P7 | S10: Soal Benzena
A11: 10 | B11: 26598194 | C11: IRMA AGUSTINA | D11: P | E11: Tasikmalaya,22 Agustus 2002 | F11: Kelas XII-KELAS 12 MIPA 2 | G11: 88 | H11: 89 | I11: 90 | J11: 0 | K11: 82 | L11: 80 | M11: 96 | N11: 95 | O11: 37.5 | P11: 85 | R11: P8 | S11: Soal Polimer
A12: 11 | B12: 36355221 | C12: ISEP NURHADI | D12: L | E12: Tasikmalaya,02 April 2002 | F12: Kelas XII-KELAS 12 MIPA 2 | G12: 86 | H12: 0 | I12: 0 | J12: 0 | K12: 0 | L12: 0 | M12: 0 | N12: 0 | O12: 32.5 | P12: 85
A13: 12 | B13: 36355210 | C13: KHAERUNNISA PUTRI DAWAMI | D13: P | E13: Bekasi,03 Mei 2003 | F13: Kelas XII-KELAS 12 MIPA 2 | G13: 86 | H13: 86 | I13: 85 | J13: 0 | K13: 0 | L13: 75 | M13: 0 | N13: 0 | O13: 17.5 | P13: 80 | R13: Jml siswa x jml tugas | U13: : | V13: =COUNT(G2:N30) -> 232
A14: 13 | B14: 3024920797 | C14: MOHAMAD ARIF SALEH | D14: L | E14: Tasikmalaya,01 Oktober 2002 | F14: Kelas XII-KELAS 12 MIPA 2 | G14: 0 | H14: 0 | I14: 0 | J14: 0 | K14: 75 | L14: 0 | M14: 0 | N14: 0 | O14: 12.5 | P14: 77.5 | R14: Jml siswa mengumpulkan | U14: : | V14: =V13-V15 -> 120
A15: 14 | B15: 26598757 | C15: NALA | D15: P | E15: Tasikmalaya,16 Juni 2002 | F15: Kelas XII-KELAS 12 MIPA 2 | G15: 86 | H15: 85 | I15: 84 | J15: 0 | K15: 80 | L15: 77 | M15: 99 | N15: 90 | O15: 30 | P15: 82.5 | R15: Jml siswa belum mengumpulkan | U15: : | V15: =COUNTIF(G2:N30,0) -> 112
A16: 15 | B16: 36355196 | C16: NINDIA HADIATUL MAULA | D16: P | E16: Tasikmalaya,06 Maret 2002 | F16: Kelas XII-KELAS 12 MIPA 2 | G16: 0 | H16: 0 | I16: 0 | J16: 0 | K16: 81 | L16: 75 | M16: 100 | N16: 90 | O16: 37.5 | P16: 85 | R16: % siswa mengumpulkan | U16: : | V16: =(V14/V13)*100% -> 0.5172413793
A17: 16 | B17: 33155482 | C17: NURLAELA | D17: P | E17: Tasikmalaya,20 Januari 2003 | F17: Kelas XII-KELAS 12 MIPA 2 | G17: 88 | H17: 87 | I17: 0 | J17: 0 | K17: 75 | L17: 75 | M17: 95 | N17: 75 | O17: 47.5 | P17: 87.5 | R17: Jml siswa | U17: : | V17: =COUNT(A2:A30) -> 29
A18: 17 | B18: 33265139 | C18: PINA KHOERUNISA | D18: P | E18: Tasikmalaya,19 Agustus 2003 | F18: Kelas XII-KELAS 12 MIPA 2 | G18: 0 | H18: 0 | I18: 0 | J18: 0 | K18: 0 | L18: 0 | M18: 0 | N18: 0 | O18: 25 | P18: 82.5 | R18: L | U18: : | V18: =COUNTIF(D2:D24,"L") -> 7
A19: 18 | B19: 33155056 | C19: RANI PUSPITASARI | D19: P | E19: Tasikmalaya,07 Mei 2003 | F19: Kelas XII-KELAS 12 MIPA 2 | G19: 0 | H19: 0 | I19: 0 | J19: 0 | K19: 76 | L19: 75 | M19: 90 | N19: 85 | O19: 37.5 | P19: 85 | R19: P | U19: : | V19: =V17-V18 -> 22
A20: 19 | B20: 22192049 | C20: REZA REGINA ASTIANA | D20: P | E20: Tasikmalaya,27 Januari 2002 | F20: Kelas XII-KELAS 12 MIPA 2 | G20: 0 | H20: 0 | I20: 0 | J20: 0 | K20: 75 | L20: 75 | M20: 94 | N20: 75 | O20: 30 | P20: 82.5
A21: 20 | B21: 28134288 | C21: RIMA FAUZIAH | D21: P | E21: Tasikmalaya,23 Agustus 2002 | F21: Kelas XII-KELAS 12 MIPA 2 | G21: 0 | H21: 0 | I21: 0 | J21: 0 | K21: 77 | L21: 75 | M21: 88 | N21: 95 | O21: 32.5 | P21: 85 | R21: Nilai max | V21: =MAX(O2:O30) -> 52.5
A22: 21 | B22: 30207724 | C22: RINI SUSANTI | D22: P | E22: Tasikmalaya,24 April 2003 | F22: Kelas XII-KELAS 12 MIPA 2 | G22: 0 | H22: 0 | I22: 0 | J22: 0 | K22: 75 | L22: 75 | M22: 75 | N22: 75 | O22: 35 | P22: 85 | R22: Nilai min | V22: =MIN(O2:O30) -> 0
A23: 22 | B23: 26598321 | C23: RISKA NURLAILA | D23: P | E23: Tasikmalaya,10 September 2002 | F23: Kelas XII-KELAS 12 MIPA 2 | G23: 86 | H23: 85 | I23: 86 | J23: 0 | K23: 80 | L23: 75 | M23: 97 | N23: 95 | O23: 52.5 | P23: 90 | R23: Nilai Rata-rata | V23: =AVERAGE(O2:O30) -> 28.96551724
A24: 23 | B24: 26598401 | C24: RULLY ASKHOLANI | D24: L | E24: Tasikmalaya,15 Maret 2002 | F24: Kelas XII-KELAS 12 MIPA 2 | G24: 0 | H24: 0 | I24: 0 | J24: 0 | K24: 0 | L24: 0 | M24: 0 | N24: 0 | O24: 27.5 | P24: 82.5
A25: 24 | B25: 28715398 | C25: SIFFA LUTFATUL QOLBI | D25: P | E25: Tasikmalaya,20 Desember 2002 | F25: Kelas XII-KELAS 12 MIPA 2 | G25: 88 | H25: 90 | I25: 0 | J25: 0 | K25: 80 | L25: 78 | M25: 96 | N25: 95 | O25: 30 | P25: 82.5
A26: 25 | B26: 28134293 | C26: SINTA ANISA | D26: P | E26: Tasikmalaya,24 September 2002 | F26: Kelas XII-KELAS 12 MIPA 2 | G26: 86 | H26: 86 | I26: 85 | J26: 0 | K26: 75 | L26: 75 | M26: 75 | N26: 75 | O26: 20 | P26: 80
A27: 26 | B27: 33155477 | C27: SOFI NUR SHOFIAH | D27: P | E27: Tasikmalaya,10 Juni 2003 | F27: Kelas XII-KELAS 12 MIPA 2 | G27: 0 | H27: 0 | I27: 0 | J27: 0 | K27: 75 | L27: 75 | M27: 75 | N27: 75 | O27: 17.5 | P27: 80
A28: 27 | C28: WIDA HERDIYANI | D28: P | F28: Kelas XII-KELAS 12 MIPA 2 | G28: 0 | H28: 0 | I28: 0 | J28: 0 | K28: 0 | L28: 0 | M28: 0 | N28: 0 | O28: 0 | P28: 0
A29: 28 | B29: 33154851 | C29: WINI AINUN NINDA | D29: P | E29: Tasikmalaya,27 Februari 2003 | F29: Kelas XII-KELAS 12 MIPA 2 | G29: 0 | H29: 0 | I29: 0 | J29: 0 | K29: 75 | L29: 75 | M29: 90 | N29: 80 | O29: 20 | P29: 80
A30: 29 | B30: 36808963 | C30: YATI OCTAVIA | D30: P | E30: Tasikmalaya,01 April 2003 | F30: Kelas XII-KELAS 12 MIPA 2 | G30: 89 | H30: 92 | I30: 90 | J30: 0 | K30: 88 | L30: 85 | M30: 99 | N30: 95 | O30: 27.5 | P30: 82.5

Sheet XIIA1 (2) (hidden)
A1: NO | B1: NISN | C1: NAMA | D1: L/P | E1: TTL | F1: KELAS | G1: P1 | H1: P2 | I1: P3 | J1: P4 | K1: P5 | L1: P6 | M1: P7 | N1: P8 | O1: UMBK | P1: TOOL | X1: S1_P | Y1: S2_P | Z1: SELISIH | AA1: FIX | AB1: S1_K | AC1: S2_K | AD1: SELISIH | AE1: FIX
A2: 1 | B2: 26598132 | C2: AI NURAENI | D2: P | E2: Tasikmalaya,14 Juli 2002 | F2: Kelas XII-KELAS 12 MIPA 1 | G2: 75 | H2: 75 | I2: 75 | J2: 75 | K2: 78 | L2: 75 | M2: 88 | N2: 100 | O2: 30 | P2: 82.5 | R2: H+1 | S2: 96-100 | T2: Jumat | X2: 89 | Y2: 86 | Z2: =X2-Y2 -> 3 | AA2: 86 | AB2: 89 | AC2: 90 | AD2: =AB2-AC2 -> -1 | AE2: 90
A3: 2 | B3: 33155403 | C3: ANGGA | D3: L | E3: Tasikmalaya,01 April 2003 | F3: Kelas XII-KELAS 12 MIPA 1 | G3: 75 | H3: 75 | I3: 75 | J3: 75 | K3: 75 | L3: 75 | M3: 75 | N3: 75 | O3: 15 | P3: 77.5 | R3: H+2 | S3: 91-95 | T3: Sabtu | X3: 87 | Y3: 85 | Z3: =X3-Y3 -> 2 | AA3: 85 | AB3: 87 | AC3: 85 | AD3: =AB3-AC3 -> 2 | AE3: 85
A4: 3 | B4: 26598326 | C4: DANIATUR ROHMAT | D4: L | E4: Tasikmalaya,11 Oktober 2002 | F4: Kelas XII-KELAS 12 MIPA 1 | G4: 75 | H4: 75 | I4: 75 | J4: 75 | K4: 75 | L4: 75 | M4: 75 | N4: 75 | O4: 20 | P4: 80 | R4: H+3 | S4: 86-90 | T4: Senin | X4: 88 | Y4: 86 | Z4: 2 | AA4: 86 | AB4: 87 | AC4: 85 | AD4: 2 | AE4: 85
A5: 4 | B5: 36355267 | C5: DEDE SYIFA SITI KAROMAH | D5: P | E5: Tasikmalaya,23 Januari 2003 | F5: Kelas XII-KELAS 12 MIPA 1 | G5: 75 | H5: 75 | I5: 75 | J5: 75 | K5: 75 | L5: 75 | M5: 75 | N5: 80 | O5: 20 | P5: 80 | R5: H+4 | S5: 81-85 | T5: Selasa | X5: 88 | Y5: 86 | Z5: 2 | AA5: 86 | AB5: 87 | AC5: 85 | AD5: 2 | AE5: 85
A6: 5 | B6: 26711797 | C6: DIMAS RANGGA ZULFIQIH | D6: L | E6: Tasikmalaya,05 Maret 2003 | F6: Kelas XII-KELAS 12 MIPA 1 | G6: 75 | H6: 75 | I6: 75 | J6: 75 | K6: 84 | L6: 76 | M6: 89 | N6: 95 | O6: 32.5 | P6: 82.5 | R6: H+5 | S6: 76-80 | T6: Rabu | X6: 89 | Y6: 86 | Z6: 3 | AA6: 86 | AB6: 88 | AC6: 92 | AD6: -4 | AE6: 92
A7: 6 | B7: 33154854 | C7: EDIS ADELA | D7: P | E7: Tasikmalaya,05 Maret 2003 | F7: Kelas XII-KELAS 12 MIPA 1 | G7: 87 | H7: 86 | I7: 87 | J7: 75 | K7: 80 | L7: 75 | M7: 99 | N7: 95 | O7: 37.5 | P7: 85 | X7: 90 | Y7: 91 | Z7: -1 | AA7: 91 | AB7: 90 | AC7: 93 | AD7: -3 | AE7: 93
A8: 7 | B8: 33154771 | C8: ELA SUSILAWATI | D8: P | E8: Tasikmalaya,15 Oktober 2003 | F8: Kelas XII-KELAS 12 MIPA 1 | G8: 89 | H8: 75 | I8: 75 | J8: 75 | K8: 79 | L8: 77 | M8: 99 | N8: 100 | O8: 22.5 | P8: 80 | R8: P5 | S8: Soal Tatanama Asam Karboksilat dan Ester | X8: 90 | Y8: 87 | Z8: 3 | AA8: 87 | AB8: 89 | AC8: 93 | AD8: -4 | AE8: 93
A9: 8 | B9: 37917257 | C9: IKSA RURIDHA | D9: P | E9: Pekalongan,24 Desember 2003 | F9: Kelas XII-KELAS 12 MIPA 1 | G9: 75 | H9: 75 | I9: 75 | J9: 75 | K9: 77 | L9: 75 | M9: 80 | N9: 75 | O9: 27.5 | P9: 80 | R9: P6 | S9: Soal Asam Karboksilat dan Ester | X9: 90 | Y9: 86 | Z9: 4 | AA9: 86 | AB9: 90 | AC9: 87 | AD9: 3 | AE9: 87
A10: 9 | B10: 33154982 | C10: LUSIANA KARMILA | D10: P | E10: Tasikmalaya,31 Maret 2003 | F10: Kelas XII-KELAS 12 MIPA 1 | G10: 90 | H10: 92 | I10: 90 | J10: 75 | K10: 80 | L10: 75 | M10: 100 | N10: 100 | O10: 55 | P10: 90 | R10: P7 | S10: Soal Benzena | X10: 94 | Y10: 94 | Z10: 0 | AA10: 94 | AB10: 94 | AC10: 94 | AD10: 0 | AE10: 94
A11: 10 | B11: 33154197 | C11: NABILA | D11: P | E11: Tasikmalaya,01 April 2004 | F11: Kelas XII-KELAS 12 MIPA 1 | G11: 88 | H11: 75 | I11: 86 | J11: 75 | K11: 81 | L11: 76 | M11: 99 | N11: 100 | O11: 35 | P11: 82.5 | R11: P8 | S11: Soal Polimer | X11: 89 | Y11: 89 | Z11: 0 | AA11: 89 | AB11: 89 | AC11: 94 | AD11: -5 | AE11: 94
A12: 11 | B12: 26598997 | C12: NENG FAJRIN ANDINY | D12: P | E12: Tasikmalaya,17 Oktober 2002 | F12: Kelas XII-KELAS 12 MIPA 1 | G12: 75 | H12: 75 | I12: 75 | J12: 75 | K12: 80 | L12: 50 | M12: 99 | N12: 99 | O12: 45 | P12: 87.5 | X12: 91 | Y12: 88 | Z12: 3 | AA12: 88 | AB12: 91 | AC12: 91 | AD12: 0 | AE12: 91
A13: 12 | B13: 33155458 | C13: NISRINA MAIMANAH | D13: P | E13: Tasikmalaya,02 April 2003 | F13: Kelas XII-KELAS 12 MIPA 1 | G13: 75 | H13: 75 | I13: 75 | J13: 75 | K13: 75 | L13: 50 | M13: 87 | N13: 95 | O13: 47.5 | P13: 87.5 | R13: Jml siswa x jml tugas | U13: : | V13: =COUNT(G2:N30) -> 232 | X13: 89 | Y13: 88 | Z13: 1 | AA13: 88 | AB13: 89 | AC13: 87 | AD13: 2 | AE13: 87
A14: 13 | B14: 26597573 | C14: NURYADIN | D14: L | E14: Tasikmalaya,07 September 2002 | F14: Kelas XII-KELAS 12 MIPA 1 | G14: 87 | H14: 75 | I14: 75 | J14: 75 | K14: 75 | L14: 75 | M14: 75 | N14: 75 | O14: 40 | P14: 85 | R14: Jml siswa mengumpulkan | U14: : | V14: =V13-V15 -> 232 | X14: 89 | Y14: 89 | Z14: 0 | AA14: 89 | AB14: 89 | AC14: 85 | AD14: 4 | AE14: 85
A15: 14 | B15: 22565454 | C15: RANI SILVIANI | D15: P | E15: Tasikmalaya,19 Februari 2002 | F15: Kelas XII-KELAS 12 MIPA 1 | G15: 88 | H15: 87 | I15: 86 | J15: 75 | K15: 75 | L15: 76 | M15: 89 | N15: 95 | O15: 35 | P15: 82.5 | R15: Jml siswa belum mengumpulkan | U15: : | V15: =COUNTIF(G2:N30,0) -> 0 | X15: 89 | Y15: 90 | Z15: -1 | AA15: 90 | AB15: 88 | AC15: 89 | AD15: -1 | AE15: 89
A16: 15 | B16: 28474206 | C16: RAYHAN OKTASANDI | D16: L | E16: Tasikmalaya,17 Oktober 2002 | F16: Kelas XII-KELAS 12 MIPA 1 | G16: 75 | H16: 75 | I16: 75 | J16: 75 | K16: 75 | L16: 75 | M16: 89 | N16: 75 | O16: 30 | P16: 82.5 | R16: % siswa mengumpulkan | U16: : | V16: =(V14/V13)*100% -> 1 | X16: 88 | Y16: 86 | Z16: 2 | AA16: 86 | AB16: 88 | AC16: 88 | AD16: 0 | AE16: 88
A17: 16 | B17: 33154201 | C17: RIAN SAHRUL MAULANA | D17: L | E17: Tasikmalaya,12 Maret 2003 | F17: Kelas XII-KELAS 12 MIPA 1 | G17: 75 | H17: 75 | I17: 75 | J17: 75 | K17: 75 | L17: 75 | M17: 75 | N17: 75 | O17: 35 | P17: 82.5 | R17: Jml siswa | U17: : | V17: =COUNT(A2:A30) -> 29 | X17: 87 | Y17: 86 | Z17: 1 | AA17: 86 | AB17: 87 | AC17: 85 | AD17: 2 | AE17: 85
A18: 17 | B18: 19635205 | C18: RIFAN FAUZI | D18: L | E18: Tasikmalaya,15 Juli 2001 | F18: Kelas XII-KELAS 12 MIPA 1 | G18: 75 | H18: 75 | I18: 75 | J18: 75 | K18: 75 | L18: 75 | M18: 75 | N18: 75 | O18: 27.5 | P18: 80 | R18: L | U18: : | V18: =COUNTIF(D2:D24,"L") -> 9 | X18: 88 | Y18: 86 | Z18: 2 | AA18: 86 | AB18: 88 | AC18: 85 | AD18: 3 | AE18: 85
A19: 18 | B19: 26598906 | C19: RIJA SYAHRUL AZMI | D19: L | E19: Tasikmalaya,25 Juni 2002 | F19: Kelas XII-KELAS 12 MIPA 1 | G19: 85 | H19: 85 | I19: 86 | J19: 75 | K19: 84 | L19: 76 | M19: 86 | N19: 75 | O19: 32.5 | P19: 82.5 | R19: P | U19: : | V19: =V17-V18 -> 20 | X19: 89 | Y19: 89 | Z19: 0 | AA19: 89 | AB19: 88 | AC19: 90 | AD19: -2 | AE19: 90
A20: 19 | B20: 26599016 | C20: RIPA NUR AULIA | D20: P | E20: Tasikmalaya,14 Desember 2002 | F20: Kelas XII-KELAS 12 MIPA 1 | G20: 87 | H20: 86 | I20: 85 | J20: 75 | K20: 80 | L20: 78 | M20: 98 | N20: 100 | O20: 42.5 | P20: 85 | X20: 90 | Y20: 91 | Z20: -1 | AA20: 91 | AB20: 89 | AC20: 93 | AD20: -4 | AE20: 93
A21: 20 | B21: 26598991 | C21: RIZLAN GUSYANA | D21: L | E21: Tasikmalaya,17 Agustus 2002 | F21: Kelas XII-KELAS 12 MIPA 1 | G21: 85 | H21: 86 | I21: 85 | J21: 75 | K21: 75 | L21: 75 | M21: 89 | N21: 99 | O21: 40 | P21: 85 | R21: Nilai max | V21: =MAX(O2:O30) -> 55 | X21: 88 | Y21: 90 | Z21: -2 | AA21: 90 | AB21: 88 | AC21: 89 | AD21: -1 | AE21: 89
A22: 21 | B22: 26598316 | C22: SHELMY KURNIAWATI PERTIWI | D22: P | E22: Tasikmalaya,09 Mei 2002 | F22: Kelas XII-KELAS 12 MIPA 1 | G22: 87 | H22: 87 | I22: 88 | J22: 75 | K22: 78 | L22: 75 | M22: 82 | N22: 95 | O22: 52.5 | P22: 90 | R22: Nilai min | V22: =MIN(O2:O30) -> 15 | X22: 90 | Y22: 92 | Z22: -2 | AA22: 92 | AB22: 89 | AC22: 88 | AD22: 1 | AE22: 88
A23: 22 | B23: 38547467 | C23: SILVI | D23: P | E23: Tasikmalaya,04 Agustus 2003 | F23: Kelas XII-KELAS 12 MIPA 1 | G23: 89 | H23: 88 | I23: 90 | J23: 75 | K23: 80 | L23: 78 | M23: 99 | N23: 95 | O23: 55 | P23: 90 | R23: Nilai Rata-rata | V23: =AVERAGE(O2:O30) -> 36.81034483 | X23: 90 | Y23: 93 | Z23: -3 | AA23: 93 | AB23: 89 | AC23: 93 | AD23: -4 | AE23: 93
A24: 23 | B24: 26598416 | C24: SIPA NURMALA | D24: P | E24: Tasikmalaya,10 Agustus 2002 | F24: Kelas XII-KELAS 12 MIPA 1 | G24: 90 | H24: 75 | I24: 75 | J24: 75 | K24: 79 | L24: 77 | M24: 98 | N24: 85 | O24: 42.5 | P24: 85 | X24: 90 | Y24: 89 | Z24: 1 | AA24: 89 | AB24: 88 | AC24: 92 | AD24: -4 | AE24: 92
A25: 24 | B25: 28134619 | C25: SRI ATI SUMIATI | D25: P | E25: Tasikmalaya,07 September 2002 | F25: Kelas XII-KELAS 12 MIPA 1 | G25: 86 | H25: 87 | I25: 85 | J25: 75 | K25: 75 | L25: 75 | M25: 84 | N25: 95 | O25: 37.5 | P25: 85 | X25: 89 | Y25: 91 | Z25: -2 | AA25: 91 | AB25: 89 | AC25: 88 | AD25: 1 | AE25: 88
A26: 25 | B26: 26711796 | C26: WIDI KRIS STYARANI | D26: P | E26: Tasikmalaya,25 April 2002 | F26: Kelas XII-KELAS 12 MIPA 1 | G26: 85 | H26: 86 | I26: 75 | J26: 75 | K26: 75 | L26: 75 | M26: 75 | N26: 75 | O26: 35 | P26: 82.5 | X26: 89 | Y26: 88 | Z26: 1 | AA26: 88 | AB26: 89 | AC26: 85 | AD26: 4 | AE26: 85
A27: 26 | B27: 26598418 | C27: WILDA NURHASANAH | D27: P | E27: Tasikmalaya,11 Oktober 2003 | F27: Kelas XII-KELAS 12 MIPA 1 | G27: 75 | H27: 75 | I27: 75 | J27: 75 | K27: 83 | L27: 76 | M27: 99 | N27: 75 | O27: 50 | P27: 87.5 | X27: 90 | Y27: 88 | Z27: 2 | AA27: 88 | AB27: 90 | AC27: 93 | AD27: -3 | AE27: 93
A28: 27 | B28: 20801969 | C28: WIWIN NURSAFITRI | D28: P | E28: Tasikmalaya,20 Agustus 2002 | F28: Kelas XII-KELAS 12 MIPA 1 | G28: 90 | H28: 92 | I28: 90 | J28: 75 | K28: 80 | L28: 78 | M28: 99 | N28: 100 | O28: 50 | P28: 87.5 | X28: 94 | Y28: 93 | Z28: 1 | AA28: 93 | AB28: 94 | AC28: 94 | AD28: 0 | AE28: 94
A29: 28 | B29: 18993363 | C29: WULAN PURNAMA SARI | D29: P | E29: Tasikmalaya,25 Juli 2001 | F29: Kelas XII-KELAS 12 MIPA 1 | G29: 75 | H29: 87 | I29: 88 | J29: 75 | K29: 78 | L29: 78 | M29: 86 | N29: 100 | O29: 47.5 | P29: 87.5 | X29: 91 | Y29: 90 | Z29: 1 | AA29: 90 | AB29: 91 | AC29: 90 | AD29: 1 | AE29: 90
A30: 29 | B30: 25524884 | C30: ZIAN REGI ASPAHANI | D30: L | E30: Tasikmalaya,01 Juli 2002 | F30: Kelas XII-KELAS 12 MIPA 1 | G30: 75 | H30: 75 | I30: 75 | J30: 75 | K30: 75 | L30: 75 | M30: 75 | N30: 75 | O30: 27.5 | P30: 80 | X30: 87 | Y30: 86 | Z30: 1 | AA30: 86 | AB30: 87 | AC30: 85 | AD30: 2 | AE30: 85

Sheet XIIA2 (2) (hidden)
A1: NO | B1: NISN | C1: NAMA | D1: L/P | E1: TTL | F1: KELAS | G1: P1 | H1: P2 | I1: P3 | J1: P4 | K1: P5 | L1: P6 | M1: P7 | N1: P8 | O1: UMBK | P1: TOOL | Y1: S1_P | Z1: S2_P | AA1: SELISIH | AB1: FIX | AC1: S1_K | AD1: S2_K | AE1: SELISIH | AF1: FIX
A2: 1 | B2: 23102779 | C2: ANDRA SAPUTRA | D2: L | E2: Tasikmalaya,03 Januari 2002 | F2: Kelas XII-KELAS 12 MIPA 2 | G2: 75 | H2: 75 | I2: 75 | J2: 75 | K2: 75 | L2: 75 | M2: 88 | N2: 95 | O2: 7.5 | P2: 77.5 | R2: H+1 | S2: 96-100 | T2: Jumat | Y2: 90 | Z2: 84 | AA2: =Y2-Z2 -> 6 | AC2: 89 | AD2: 88 | AE2: =AC2-AD2 -> 1
A3: 2 | B3: 26598114 | C3: ANJIAN | D3: L | E3: Tasikmalaya,19 September 2002 | F3: Kelas XII-KELAS 12 MIPA 2 | G3: 75 | H3: 75 | I3: 75 | J3: 75 | K3: 75 | L3: 75 | M3: 75 | N3: 75 | O3: 37.5 | P3: 85 | R3: H+2 | S3: 91-95 | T3: Sabtu | Y3: 89 | Z3: 86 | AA3: =Y3-Z3 -> 3 | AC3: 89 | AD3: 86 | AE3: =AC3-AD3 -> 3
A4: 3 | B4: 40216088 | C4: AULIA ANANTA | D4: P | E4: Tasikmalaya,21 April 2004 | F4: Kelas XII-KELAS 12 MIPA 2 | G4: 75 | H4: 75 | I4: 75 | J4: 75 | K4: 75 | L4: 75 | M4: 75 | N4: 75 | O4: 45 | P4: 87.5 | R4: H+3 | S4: 86-90 | T4: Senin | Y4: 88 | Z4: 86 | AA4: 2 | AC4: 87 | AD4: 86 | AE4: 1
A5: 4 | B5: 28134618 | C5: AZIS AGUSTIN | D5: L | E5: Tasikmalaya,22 Agustus 2002 | F5: Kelas XII-KELAS 12 MIPA 2 | G5: 85 | H5: 86 | I5: 87 | J5: 75 | K5: 85 | L5: 75 | M5: 98 | N5: 90 | O5: 37.5 | P5: 85 | R5: H+4 | S5: 81-85 | T5: Selasa | Y5: 89 | Z5: 88 | AA5: 1 | AC5: 89 | AD5: 91 | AE5: -2
A6: 5 | B6: 29088957 | C6: DENI MULYANA | D6: L | E6: Tasikmalaya,08 Agustus 2002 | F6: Kelas XII-KELAS 12 MIPA 2 | G6: 86 | H6: 85 | I6: 87 | J6: 75 | K6: 85 | L6: 78 | M6: 98 | N6: 95 | O6: 37.5 | P6: 85 | R6: H+5 | S6: 76-80 | T6: Rabu | Y6: 89 | Z6: 89 | AA6: 0 | AC6: 89 | AD6: 92 | AE6: -3
A7: 6 | B7: 26598101 | C7: ELMA ELVIANA | D7: P | E7: Tasikmalaya,23 November 2002 | F7: Kelas XII-KELAS 12 MIPA 2 | G7: 75 | H7: 75 | I7: 75 | J7: 75 | K7: 75 | L7: 75 | M7: 75 | N7: 75 | O7: 30 | P7: 82.5 | Y7: 89 | Z7: 85 | AA7: 4 | AC7: 88 | AD7: 86 | AE7: 2
A8: 7 | B8: 40216136 | C8: ERNA NURYANTI | D8: P | E8: Tasikmalaya,29 Februari 2004 | F8: Kelas XII-KELAS 12 MIPA 2 | G8: 86 | H8: 88 | I8: 75 | J8: 75 | K8: 75 | L8: 75 | M8: 93 | N8: 75 | O8: 27.5 | P8: 82.5 | R8: P5 | S8: Soal Tatanama Asam Karboksilat dan Ester | Y8: 90 | Z8: 88 | AA8: 2 | AC8: 89 | AD8: 88 | AE8: 1
A9: 8 | B9: 26598517 | C9: FITRI SRI MULYANI | D9: P | E9: Tasikmalaya,18 Oktober 2002 | F9: Kelas XII-KELAS 12 MIPA 2 | G9: 75 | H9: 75 | I9: 75 | J9: 75 | K9: 75 | L9: 75 | M9: 90 | N9: 80 | O9: 25 | P9: 82.5 | R9: P6 | S9: Soal Asam Karboksilat dan Ester | Y9: 88 | Z9: 85 | AA9: 3 | AC9: 88 | AD9: 87 | AE9: 1
A10: 9 | B10: 33154840 | C10: HILMA NUR PASIAM | D10: P | E10: Tasikmalaya,14 Desember 2003 | F10: Kelas XII-KELAS 12 MIPA 2 | G10: 75 | H10: 75 | I10: 75 | J10: 75 | K10: 75 | L10: 75 | M10: 97 | N10: 85 | O10: 22.5 | P10: 80 | R10: P7 | S10: Soal Benzena | Y10: 89 | Z10: 85 | AA10: 4 | AC10: 89 | AD10: 89 | AE10: 0
A11: 10 | B11: 26598194 | C11: IRMA AGUSTINA | D11: P | E11: Tasikmalaya,22 Agustus 2002 | F11: Kelas XII-KELAS 12 MIPA 2 | G11: 88 | H11: 89 | I11: 90 | J11: 75 | K11: 82 | L11: 80 | M11: 96 | N11: 95 | O11: 37.5 | P11: 85 | R11: P8 | S11: Soal Polimer | Y11: 91 | Z11: 89 | AA11: 2 | AC11: 91 | AD11: 91 | AE11: 0
A12: 11 | B12: 36355221 | C12: ISEP NURHADI | D12: L | E12: Tasikmalaya,02 April 2002 | F12: Kelas XII-KELAS 12 MIPA 2 | G12: 86 | H12: 75 | I12: 75 | J12: 75 | K12: 75 | L12: 75 | M12: 75 | N12: 75 | O12: 32.5 | P12: 85 | Y12: 88 | Z12: 88 | AA12: 0 | AC12: 88 | AD12: 86 | AE12: 2
A13: 12 | B13: 36355210 | C13: KHAERUNNISA PUTRI DAWAMI | D13: P | E13: Bekasi,03 Mei 2003 | F13: Kelas XII-KELAS 12 MIPA 2 | G13: 86 | H13: 86 | I13: 85 | J13: 75 | K13: 75 | L13: 75 | M13: 75 | N13: 75 | O13: 17.5 | P13: 80 | R13: Jml siswa x jml tugas | U13: : | V13: =COUNT(G2:N30) -> 232 | Y13: 89 | Z13: 87 | AA13: 2 | AC13: 88 | AD13: 86 | AE13: 2
A14: 13 | B14: 3024920797 | C14: MOHAMAD ARIF SALEH | D14: L | E14: Tasikmalaya,01 Oktober 2002 | F14: Kelas XII-KELAS 12 MIPA 2 | G14: 75 | H14: 75 | I14: 75 | J14: 75 | K14: 75 | L14: 75 | M14: 75 | N14: 75 | O14: 12.5 | P14: 77.5 | R14: Jml siswa mengumpulkan | U14: : | V14: =V13-V15 -> 232 | Y14: 89 | Z14: 83 | AA14: 6 | AC14: 89 | AD14: 86 | AE14: 3
A15: 14 | B15: 26598757 | C15: NALA | D15: P | E15: Tasikmalaya,16 Juni 2002 | F15: Kelas XII-KELAS 12 MIPA 2 | G15: 86 | H15: 85 | I15: 84 | J15: 75 | K15: 80 | L15: 77 | M15: 99 | N15: 90 | O15: 30 | P15: 82.5 | R15: Jml siswa belum mengumpulkan | U15: : | V15: =COUNTIF(G2:N30,0) -> 0 | Y15: 90 | Z15: 88 | AA15: 2 | AC15: 89 | AD15: 91 | AE15: -2
A16: 15 | B16: 36355196 | C16: NINDIA HADIATUL MAULA | D16: P | E16: Tasikmalaya,06 Maret 2002 | F16: Kelas XII-KELAS 12 MIPA 2 | G16: 75 | H16: 75 | I16: 75 | J16: 75 | K16: 81 | L16: 75 | M16: 100 | N16: 90 | O16: 37.5 | P16: 85 | R16: % siswa mengumpulkan | U16: : | V16: =(V14/V13)*100% -> 1 | Y16: 91 | Z16: 86 | AA16: 5 | AC16: 90 | AD16: 91 | AE16: -1
A17: 16 | B17: 33155482 | C17: NURLAELA | D17: P | E17: Tasikmalaya,20 Januari 2003 | F17: Kelas XII-KELAS 12 MIPA 2 | G17: 88 | H17: 87 | I17: 75 | J17: 75 | K17: 75 | L17: 75 | M17: 95 | N17: 75 | O17: 47.5 | P17: 87.5 | R17: Jml siswa | U17: : | V17: =COUNT(A2:A30) -> 29 | Y17: 89 | Z17: 89 | AA17: 0 | AC17: 88 | AD17: 88 | AE17: 0
A18: 17 | B18: 33265139 | C18: PINA KHOERUNISA | D18: P | E18: Tasikmalaya,19 Agustus 2003 | F18: Kelas XII-KELAS 12 MIPA 2 | G18: 75 | H18: 75 | I18: 75 | J18: 75 | K18: 75 | L18: 75 | M18: 75 | N18: 75 | O18: 25 | P18: 82.5 | R18: L | U18: : | V18: =COUNTIF(D2:D24,"L") -> 7 | Y18: 88 | Z18: 85 | AA18: 3 | AC18: 88 | AD18: 86 | AE18: 2
A19: 18 | B19: 33155056 | C19: RANI PUSPITASARI | D19: P | E19: Tasikmalaya,07 Mei 2003 | F19: Kelas XII-KELAS 12 MIPA 2 | G19: 75 | H19: 75 | I19: 75 | J19: 75 | K19: 76 | L19: 75 | M19: 90 | N19: 85 | O19: 37.5 | P19: 85 | R19: P | U19: : | V19: =V17-V18 -> 22 | Y19: 89 | Z19: 86 | AA19: 3 | AC19: 89 | AD19: 88 | AE19: 1
A20: 19 | B20: 22192049 | C20: REZA REGINA ASTIANA | D20: P | E20: Tasikmalaya,27 Januari 2002 | F20: Kelas XII-KELAS 12 MIPA 2 | G20: 75 | H20: 75 | I20: 75 | J20: 75 | K20: 75 | L20: 75 | M20: 94 | N20: 75 | O20: 30 | P20: 82.5 | Y20: 89 | Z20: 86 | AA20: 3 | AC20: 89 | AD20: 88 | AE20: 1
A21: 20 | B21: 28134288 | C21: RIMA FAUZIAH | D21: P | E21: Tasikmalaya,23 Agustus 2002 | F21: Kelas XII-KELAS 12 MIPA 2 | G21: 75 | H21: 75 | I21: 75 | J21: 75 | K21: 77 | L21: 75 | M21: 88 | N21: 95 | O21: 32.5 | P21: 85 | R21: Nilai max | V21: =MAX(O2:O30) -> 52.5 | Y21: 89 | Z21: 86 | AA21: 3 | AC21: 89 | AD21: 88 | AE21: 1
A22: 21 | B22: 30207724 | C22: RINI SUSANTI | D22: P | E22: Tasikmalaya,24 April 2003 | F22: Kelas XII-KELAS 12 MIPA 2 | G22: 75 | H22: 75 | I22: 75 | J22: 75 | K22: 75 | L22: 75 | M22: 75 | N22: 75 | O22: 35 | P22: 85 | R22: Nilai min | V22: =MIN(O2:O30) -> 0 | Y22: 88 | Z22: 86 | AA22: 2 | AC22: 88 | AD22: 86 | AE22: 2
A23: 22 | B23: 26598321 | C23: RISKA NURLAILA | D23: P | E23: Tasikmalaya,10 September 2002 | F23: Kelas XII-KELAS 12 MIPA 2 | G23: 86 | H23: 85 | I23: 86 | J23: 75 | K23: 80 | L23: 75 | M23: 97 | N23: 95 | O23: 52.5 | P23: 90 | R23: Nilai Rata-rata | V23: =AVERAGE(O2:O30) -> 28.96551724 | Y23: 88 | Z23: 90 | AA23: -2 | AC23: 88 | AD23: 91 | AE23: -3
A24: 23 | B24: 26598401 | C24: RULLY ASKHOLANI | D24: L | E24: Tasikmalaya,15 Maret 2002 | F24: Kelas XII-KELAS 12 MIPA 2 | G24: 75 | H24: 75 | I24: 75 | J24: 75 | K24: 75 | L24: 75 | M24: 75 | N24: 75 | O24: 27.5 | P24: 82.5 | Y24: 88 | Z24: 85 | AA24: 3 | AC24: 88 | AD24: 86 | AE24: 2
A25: 24 | B25: 28715398 | C25: SIFFA LUTFATUL QOLBI | D25: P | E25: Tasikmalaya,20 Desember 2002 | F25: Kelas XII-KELAS 12 MIPA 2 | G25: 88 | H25: 90 | I25: 75 | J25: 75 | K25: 80 | L25: 78 | M25: 96 | N25: 95 | O25: 30 | P25: 82.5 | Y25: 91 | Z25: 88 | AA25: 3 | AC25: 91 | AD25: 91 | AE25: 0
A26: 25 | B26: 28134293 | C26: SINTA ANISA | D26: P | E26: Tasikmalaya,24 September 2002 | F26: Kelas XII-KELAS 12 MIPA 2 | G26: 86 | H26: 86 | I26: 85 | J26: 75 | K26: 75 | L26: 75 | M26: 75 | N26: 75 | O26: 20 | P26: 80 | Y26: 89 | Z26: 86 | AA26: 3 | AC26: 89 | AD26: 86 | AE26: 3
A27: 26 | B27: 33155477 | C27: SOFI NUR SHOFIAH | D27: P | E27: Tasikmalaya,10 Juni 2003 | F27: Kelas XII-KELAS 12 MIPA 2 | G27: 75 | H27: 75 | I27: 75 | J27: 75 | K27: 75 | L27: 75 | M27: 75 | N27: 75 | O27: 17.5 | P27: 80 | Y27: 93 | Z27: 84 | AA27: 9 | AC27: 91 | AD27: 86 | AE27: 5
A28: 27 | C28: WIDA HERDIYANI | D28: P | F28: Kelas XII-KELAS 12 MIPA 2 | G28: 75 | H28: 75 | I28: 75 | J28: 75 | K28: 75 | L28: 75 | M28: 75 | N28: 75 | O28: 0 | P28: 0 | Y28: 0 | Z28: 0 | AA28: 0 | AC28: 0 | AD28: 0 | AE28: 0
A29: 28 | B29: 33154851 | C29: WINI AINUN NINDA | D29: P | E29: Tasikmalaya,27 Februari 2003 | F29: Kelas XII-KELAS 12 MIPA 2 | G29: 75 | H29: 75 | I29: 75 | J29: 75 | K29: 75 | L29: 75 | M29: 90 | N29: 80 | O29: 20 | P29: 80 | Y29: 88 | Z29: 85 | AA29: 3 | AC29: 88 | AD29: 87 | AE29: 1
A30: 29 | B30: 36808963 | C30: YATI OCTAVIA | D30: P | E30: Tasikmalaya,01 April 2003 | F30: Kelas XII-KELAS 12 MIPA 2 | G30: 89 | H30: 92 | I30: 90 | J30: 75 | K30: 88 | L30: 85 | M30: 99 | N30: 95 | O30: 27.5 | P30: 82.5 | Y30: 92 | Z30: 88 | AA30: 4 | AC30: 90 | AD30: 93 | AE30: -3

Sheet masternilai_10.06.22 (hidden)
A1: IDENTITAS GURU PENGAJAR | G1: PENULISAN KOMPETENSI DASAR (KD) PENGETAHUAN | Z1: PENULISAN KOMPETENSI DASAR (KD) KETERAMPILAN | BC1: TOOLS UNTUK OLAH NILAI | BF1: KARAKTER KD
A2: Nama Guru | C2: Arief Pribadi, S.Si | G2: Ranah | I2: No. KD | K2: Uraian singkat (mak. 60 char) | U2: Sisa char | Z2: Ranah | AD2: No. KD | AG2: Uraian singkat (mak. 60 char) | BA2: Sisa char | BF2: CHAR_P | BG2: CHAR_K
A3: NIP | C3: 198603112020121005 | G3: Pengetahuan | U3: =60-BF3 -> 60 | Z3: Keterampilan | BA3: =60-BG3 -> 60 | BF3: =LEN(K3) -> 0 | BG3: =LEN(AG3) -> 0
A4: Mata Pelajaran | C4: Kimia | U4: =60-BF4 -> 60 | BA4: 60 | BF4: =LEN(K4) -> 0 | BG4: =LEN(AG4) -> 0
A5: Semester | C5: 2 (Genap) | U5: 60 | BA5: 60 | BF5: 0 | BG5: 0
A6: Tahun Pelajaran | C6: 2021/2022 | U6: 60 | BA6: 60 | BF6: 0 | BG6: 0
A7: Kelas | U7: 60 | BA7: 60 | BF7: 0 | BG7: 0
C8: by ariefp_11 v13.3-622 | U8: 60 | BA8: 60 | BF8: 0 | BG8: 0
U9: 60 | BA9: 60 | BF9: 0 | BG9: 0
U10: 60 | BA10: 60 | BC10: N_MIN | BD10: 77 | BF10: 0 | BG10: 0
H11: =IF(COUNT(H15:H46)>0,1,"") ->  | I11: =IF(COUNT(I15:I46)>0,1,"") ->  | P11: =SUM(H11:O11) -> 0 | U11: =IF(COUNT(U15:U44)>0,1,"") ->  | BA11: =SUM(U11:AY11) -> 0 | BC11: N_MAX | BD11: 83
A12: NO | B12: NISN | C12: NAMA (Silahkan ambil dari salah satu template RDM) | D12: L/P | F12: KELAS | G12: NP_S1 | H12: PENGETAHUAN | P12: RPH | Q12: PAS / PAT / UMBK | R12: NP_S2 | S12: SELISIH | T12: NPR S1 S2 | U12: KETERAMPILAN (UK = UNJUK KERJA, PR = PROYEK, PO = PORTOFOLIO) | BA12: NK | BC12: MIN | BD12: =MIN(BC15:BC44) -> 10
E13: TTL | H13: PH1 | I13: PH2 | J13: PH3 | K13: PH4 | L13: PH5 | M13: PH6 | N13: PH7 | O13: PH8 | P13: 70 | Q13: 30 | U13: PH1 | X13: NR | Y13: PH2 | AB13: NR | AC13: PH3 | AF13: NR | AG13: PH4 | AJ13: NR | AK13: PH5 | AN13: NR | AO13: PH6 | AR13: NR | AS13: PH7 | AV13: NR | AW13: PH8 | AZ13: NR | BC13: MAX | BD13: =MAX(BC15:BC44) -> 50 | BF13: PH1 | BI13: PH2 | BL13: PH3 | BO13: PH4 | BR13: PH5 | BU13: PH6 | BX13: PH7 | CA13: PH8 | CE13: PH1 | CF13: PH2 | CG13: PH3 | CH13: PH4 | CI13: PH5 | CJ13: PH6 | CK13: PH7 | CL13: PH8
BF14: UK | BG14: PR | BH14: PO | BI14: UK | BJ14: PR | BK14: PO | BL14: UK | BM14: PR | BN14: PO | BO14: UK | BP14: PR | BQ14: PO | BR14: UK | BS14: PR | BT14: PO | BU14: UK | BV14: PR | BW14: PO | BX14: UK | BY14: PR | BZ14: PO | CA14: UK | CB14: PR | CC14: PO
A15: 1 | E15: Tasikmalaya,09 September 2004 | F15: =$C$7 -> 0 | P15: =IF(COUNT(H15:O15)<1,"",ROUND(SUM(H15:O15)/$P$11,0)) ->  | R15: =IFERROR(P15*$P$13/100+Q15*$Q$13/100,0) -> 0 | S15: =R15-G15 -> 0 | T15: =AVERAGE(G15,R15) -> 0 | AZ15: =IFERROR(AVERAGE(AW15:AY15),0) -> 0 | BA15: =IFERROR(IF(COUNT(BF15:CC15)<1,"",ROUND(SUM(BF15:CC15)/$BA$11,0)),0) -> 0 | BC15: 26.66666667 | BD15: =IFERROR($BD$10+((BC15-$BD$12)/($BD$13-$BD$12)*($BD$11-$BD$10)),0) -> 79.5 | BF15: =U15 -> 0 | BG15: =V15 -> 0 | BH15: 0 | BI15: =Y15 -> 0 | BJ15: =Z15 -> 0 | BK15: 0 | BL15: =AC15 -> 0 | BM15: =AD15 -> 0 | BN15: 0 | BO15: =AG15 -> 0 | BP15: =AH15 -> 0 | BQ15: 0 | BR15: =AK15 -> 0 | BS15: =AL15 -> 0 | BT15: 0 | BU15: =AO15 -> 0 | BV15: =AP15 -> 0 | BW15: 0 | BX15: =AS15 -> 0 | BY15: =AT15 -> 0 | BZ15: 0 | CA15: =AW15 -> 0 | CB15: =AX15 -> 0 | CC15: 0 | CE15: =(H15*$P$13/100)+(Q15*$Q$13/100) -> 0 | CF15: =(I15*$P$13/100)+(Q15*$Q$13/100) -> 0 | CG15: =(J15*$P$13/100)+(Q15*$Q$13/100) -> 0 | CH15: =(K15*$P$13/100)+(Q15*$Q$13/100) -> 0 | CI15: =(L15*$P$13/100)+(Q15*$Q$13/100) -> 0 | CJ15: =(M15*$P$13/100)+(Q15*$Q$13/100) -> 0 | CK15: =(N15*$P$13/100)+(Q15*$Q$13/100) -> 0 | CL15: =(O15*$P$13/100)+(Q15*$Q$13/100) -> 0
A16: 2 | E16: Tasikmalaya,09 September 2004 | F16: =$C$7 -> 0 | P16: =IF(COUNT(H16:O16)<1,"",ROUND(SUM(H16:O16)/$P$11,0)) ->  | R16: =IFERROR(P16*$P$13/100+Q16*$Q$13/100,0) -> 0 | S16: =R16-G16 -> 0 | T16: =AVERAGE(G16,R16) -> 0 | AZ16: =IFERROR(AVERAGE(AW16:AY16),0) -> 0 | BA16: =IFERROR(IF(COUNT(BF16:CC16)<1,"",ROUND(SUM(BF16:CC16)/$BA$11,0)),0) -> 0 | BC16: 20 | BD16: =IFERROR($BD$10+((BC16-$BD$12)/($BD$13-$BD$12)*($BD$11-$BD$10)),0) -> 78.5 | BF16: =U16 -> 0 | BG16: =V16 -> 0 | BH16: =W16 -> 0 | BI16: =Y16 -> 0 | BJ16: =Z16 -> 0 | BK16: =AA16 -> 0 | BL16: =AC16 -> 0 | BM16: =AD16 -> 0 | BN16: =AE16 -> 0 | BO16: =AG16 -> 0 | BP16: =AH16 -> 0 | BQ16: =AI16 -> 0 | BR16: =AK16 -> 0 | BS16: =AL16 -> 0 | BT16: =AM16 -> 0 | BU16: =AO16 -> 0 | BV16: =AP16 -> 0 | BW16: =AQ16 -> 0 | BX16: =AS16 -> 0 | BY16: =AT16 -> 0 | BZ16: =AU16 -> 0 | CA16: =AW16 -> 0 | CB16: =AX16 -> 0 | CC16: =AY16 -> 0 | CE16: =(H16*$P$13/100)+(Q16*$Q$13/100) -> 0 | CF16: =(I16*$P$13/100)+(Q16*$Q$13/100) -> 0 | CG16: =(J16*$P$13/100)+(Q16*$Q$13/100) -> 0 | CH16: =(K16*$P$13/100)+(Q16*$Q$13/100) -> 0 | CI16: =(L16*$P$13/100)+(Q16*$Q$13/100) -> 0 | CJ16: =(M16*$P$13/100)+(Q16*$Q$13/100) -> 0 | CK16: =(N16*$P$13/100)+(Q16*$Q$13/100) -> 0 | CL16: =(O16*$P$13/100)+(Q16*$Q$13/100) -> 0
A17: 3 | E17: Tasikmalaya,27 September 2004 | F17: 0 | R17: 0 | S17: 0 | T17: 0 | AZ17: 0 | BA17: 0 | BC17: 13.33333333 | BD17: 77.5 | BF17: 0 | BG17: 0 | BH17: 0 | BI17: 0 | BJ17: 0 | BK17: 0 | BL17: 0 | BM17: 0 | BN17: 0 | BO17: 0 | BP17: 0 | BQ17: 0 | BR17: 0 | BS17: 0 | BT17: 0 | BU17: 0 | BV17: 0 | BW17: 0 | BX17: 0 | BY17: 0 | BZ17: 0 | CA17: 0 | CB17: 0 | CC17: 0 | CE17: 0 | CF17: 0 | CG17: 0 | CH17: 0 | CI17: 0 | CJ17: 0 | CK17: 0 | CL17: 0
A18: 4 | E18: Tasikmalaya,29 Juli 2005 | F18: 0 | R18: 0 | S18: 0 | T18: 0 | AZ18: 0 | BA18: 0 | BC18: 23.33333333 | BD18: 79 | BF18: 0 | BG18: 0 | BH18: 0 | BI18: 0 | BJ18: 0 | BK18: 0 | BL18: 0 | BM18: 0 | BN18: 0 | BO18: 0 | BP18: 0 | BQ18: 0 | BR18: 0 | BS18: 0 | BT18: 0 | BU18: 0 | BV18: 0 | BW18: 0 | BX18: 0 | BY18: 0 | BZ18: 0 | CA18: 0 | CB18: 0 | CC18: 0 | CE18: 0 | CF18: 0 | CG18: 0 | CH18: 0 | CI18: 0 | CJ18: 0 | CK18: 0 | CL18: 0
A19: 5 | E19: TASIKMALAYA,01 Februari 2005 | F19: 0 | R19: 0 | S19: 0 | T19: 0 | AZ19: 0 | BA19: 0 | BC19: 50 | BD19: 83 | BF19: 0 | BG19: 0 | BH19: 0 | BI19: 0 | BJ19: 0 | BK19: 0 | BL19: 0 | BM19: 0 | BN19: 0 | BO19: 0 | BP19: 0 | BQ19: 0 | BR19: 0 | BS19: 0 | BT19: 0 | BU19: 0 | BV19: 0 | BW19: 0 | BX19: 0 | BY19: 0 | BZ19: 0 | CA19: 0 | CB19: 0 | CC19: 0 | CE19: 0 | CF19: 0 | CG19: 0 | CH19: 0 | CI19: 0 | CJ19: 0 | CK19: 0 | CL19: 0
A20: 6 | E20: Tasikmalaya,10 Juli 2004 | F20: 0 | R20: 0 | S20: 0 | T20: 0 | AZ20: 0 | BA20: 0 | BC20: 40 | BD20: 81.5 | BF20: 0 | BG20: 0 | BH20: 0 | BI20: 0 | BJ20: 0 | BK20: 0 | BL20: 0 | BM20: 0 | BN20: 0 | BO20: 0 | BP20: 0 | BQ20: 0 | BR20: 0 | BS20: 0 | BT20: 0 | BU20: 0 | BV20: 0 | BW20: 0 | BX20: 0 | BY20: 0 | BZ20: 0 | CA20: 0 | CB20: 0 | CC20: 0 | CE20: 0 | CF20: 0 | CG20: 0 | CH20: 0 | CI20: 0 | CJ20: 0 | CK20: 0 | CL20: 0
A21: 7 | E21: Tasikmalaya,03 Mei 2005 | F21: 0 | R21: 0 | S21: 0 | T21: 0 | AZ21: 0 | BA21: 0 | BC21: 50 | BD21: 83 | BF21: 0 | BG21: 0 | BH21: 0 | BI21: 0 | BJ21: 0 | BK21: 0 | BL21: 0 | BM21: 0 | BN21: 0 | BO21: 0 | BP21: 0 | BQ21: 0 | BR21: 0 | BS21: 0 | BT21: 0 | BU21: 0 | BV21: 0 | BW21: 0 | BX21: 0 | BY21: 0 | BZ21: 0 | CA21: 0 | CB21: 0 | CC21: 0 | CE21: 0 | CF21: 0 | CG21: 0 | CH21: 0 | CI21: 0 | CJ21: 0 | CK21: 0 | CL21: 0
A22: 8 | E22: Tasikmalaya,30 Maret 2004 | F22: 0 | R22: 0 | S22: 0 | T22: 0 | AZ22: 0 | BA22: 0 | BC22: 43.33333333 | BD22: 82 | BF22: 0 | BG22: 0 | BH22: 0 | BI22: 0 | BJ22: 0 | BK22: 0 | BL22: 0 | BM22: 0 | BN22: 0 | BO22: 0 | BP22: 0 | BQ22: 0 | BR22: 0 | BS22: 0 | BT22: 0 | BU22: 0 | BV22: 0 | BW22: 0 | BX22: 0 | BY22: 0 | BZ22: 0 | CA22: 0 | CB22: 0 | CC22: 0 | CE22: 0 | CF22: 0 | CG22: 0 | CH22: 0 | CI22: 0 | CJ22: 0 | CK22: 0 | CL22: 0
A23: 9 | E23: Tasikmalaya,22 April 2004 | F23: 0 | R23: 0 | S23: 0 | T23: 0 | AZ23: 0 | BA23: 0 | BC23: 43.33333333 | BD23: 82 | BF23: 0 | BG23: 0 | BH23: 0 | BI23: 0 | BJ23: 0 | BK23: 0 | BL23: 0 | BM23: 0 | BN23: 0 | BO23: 0 | BP23: 0 | BQ23: 0 | BR23: 0 | BS23: 0 | BT23: 0 | BU23: 0 | BV23: 0 | BW23: 0 | BX23: 0 | BY23: 0 | BZ23: 0 | CA23: 0 | CB23: 0 | CC23: 0 | CE23: 0 | CF23: 0 | CG23: 0 | CH23: 0 | CI23: 0 | CJ23: 0 | CK23: 0 | CL23: 0
A24: 10 | E24: TASIKMALAYA,18 Oktober 2005 | F24: 0 | R24: 0 | S24: 0 | T24: 0 | AZ24: 0 | BA24: 0 | BC24: 33.33333333 | BD24: 80.5 | BF24: 0 | BG24: 0 | BH24: 0 | BI24: 0 | BJ24: 0 | BK24: 0 | BL24: 0 | BM24: 0 | BN24: 0 | BO24: 0 | BP24: 0 | BQ24: 0 | BR24: 0 | BS24: 0 | BT24: 0 | BU24: 0 | BV24: 0 | BW24: 0 | BX24: 0 | BY24: 0 | BZ24: 0 | CA24: 0 | CB24: 0 | CC24: 0 | CE24: 0 | CF24: 0 | CG24: 0 | CH24: 0 | CI24: 0 | CJ24: 0 | CK24: 0 | CL24: 0
A25: 11 | E25: Tasikmalaya,07 Januari 2005 | F25: 0 | R25: 0 | S25: 0 | T25: 0 | AZ25: 0 | BA25: 0 | BC25: 43.33333333 | BD25: 82 | BF25: 0 | BG25: 0 | BH25: 0 | BI25: 0 | BJ25: 0 | BK25: 0 | BL25: 0 | BM25: 0 | BN25: 0 | BO25: 0 | BP25: 0 | BQ25: 0 | BR25: 0 | BS25: 0 | BT25: 0 | BU25: 0 | BV25: 0 | BW25: 0 | BX25: 0 | BY25: 0 | BZ25: 0 | CA25: 0 | CB25: 0 | CC25: 0 | CE25: 0 | CF25: 0 | CG25: 0 | CH25: 0 | CI25: 0 | CJ25: 0 | CK25: 0 | CL25: 0
A26: 12 | E26: TASIKMALAYA,07 Februari 2004 | F26: 0 | R26: 0 | S26: 0 | T26: 0 | AZ26: 0 | BA26: 0 | BC26: 13.33333333 | BD26: 77.5 | BF26: 0 | BG26: 0 | BH26: 0 | BI26: 0 | BJ26: 0 | BK26: 0 | BL26: 0 | BM26: 0 | BN26: 0 | BO26: 0 | BP26: 0 | BQ26: 0 | BR26: 0 | BS26: 0 | BT26: 0 | BU26: 0 | BV26: 0 | BW26: 0 | BX26: 0 | BY26: 0 | BZ26: 0 | CA26: 0 | CB26: 0 | CC26: 0 | CE26: 0 | CF26: 0 | CG26: 0 | CH26: 0 | CI26: 0 | CJ26: 0 | CK26: 0 | CL26: 0
A27: 13 | E27: Bandung,15 Februari 2005 | F27: 0 | R27: 0 | S27: 0 | T27: 0 | AZ27: 0 | BA27: 0 | BC27: 16.66666667 | BD27: 78 | BF27: 0 | BG27: 0 | BH27: 0 | BI27: 0 | BJ27: 0 | BK27: 0 | BL27: 0 | BM27: 0 | BN27: 0 | BO27: 0 | BP27: 0 | BQ27: 0 | BR27: 0 | BS27: 0 | BT27: 0 | BU27: 0 | BV27: 0 | BW27: 0 | BX27: 0 | BY27: 0 | BZ27: 0 | CA27: 0 | CB27: 0 | CC27: 0 | CE27: 0 | CF27: 0 | CG27: 0 | CH27: 0 | CI27: 0 | CJ27: 0 | CK27: 0 | CL27: 0
A28: 14 | E28: Tasikmalaya,15 September 2005 | F28: 0 | R28: 0 | S28: 0 | T28: 0 | AZ28: 0 | BA28: 0 | BC28: 46.66666667 | BD28: 82.5 | BF28: =U28 -> 0 | BG28: =V28 -> 0 | BH28: =W28 -> 0 | BI28: =Y28 -> 0 | BJ28: =Z28 -> 0 | BK28: =AA28 -> 0 | BL28: =AC28 -> 0 | BM28: =AD28 -> 0 | BN28: =AE28 -> 0 | BO28: =AG28 -> 0 | BP28: =AH28 -> 0 | BQ28: =AI28 -> 0 | BR28: =AK28 -> 0 | BS28: =AL28 -> 0 | BT28: =AM28 -> 0 | BU28: =AO28 -> 0 | BV28: =AP28 -> 0 | BW28: =AQ28 -> 0 | BX28: =AS28 -> 0 | BY28: =AT28 -> 0 | BZ28: =AU28 -> 0 | CA28: =AW28 -> 0 | CB28: =AX28 -> 0 | CC28: =AY28 -> 0 | CE28: 0 | CF28: 0 | CG28: 0 | CH28: 0 | CI28: 0 | CJ28: 0 | CK28: 0 | CL28: 0
A29: 15 | E29: Tasikmalaya,10 Mei 2004 | F29: 0 | R29: 0 | S29: 0 | T29: 0 | AZ29: 0 | BA29: 0 | BC29: 30 | BD29: 80 | BF29: 0 | BG29: 0 | BH29: 0 | BI29: 0 | BJ29: 0 | BK29: 0 | BL29: 0 | BM29: 0 | BN29: 0 | BO29: 0 | BP29: 0 | BQ29: 0 | BR29: 0 | BS29: 0 | BT29: 0 | BU29: 0 | BV29: 0 | BW29: 0 | BX29: 0 | BY29: 0 | BZ29: 0 | CA29: 0 | CB29: 0 | CC29: 0 | CE29: 0 | CF29: 0 | CG29: 0 | CH29: 0 | CI29: 0 | CJ29: 0 | CK29: 0 | CL29: 0
A30: 16 | E30: Tasikmalaya,01 April 2005 | F30: 0 | R30: 0 | S30: 0 | T30: 0 | AZ30: 0 | BA30: 0 | BC30: 20 | BD30: 78.5 | BF30: 0 | BG30: 0 | BH30: 0 | BI30: 0 | BJ30: 0 | BK30: 0 | BL30: 0 | BM30: 0 | BN30: 0 | BO30: 0 | BP30: 0 | BQ30: 0 | BR30: 0 | BS30: 0 | BT30: 0 | BU30: 0 | BV30: 0 | BW30: 0 | BX30: 0 | BY30: 0 | BZ30: 0 | CA30: 0 | CB30: 0 | CC30: 0 | CE30: 0 | CF30: 0 | CG30: 0 | CH30: 0 | CI30: 0 | CJ30: 0 | CK30: 0 | CL30: 0
A31: 17 | E31: Tasikmalaya,05 Juli 2005 | F31: 0 | R31: 0 | S31: 0 | T31: 0 | AZ31: 0 | BA31: 0 | BC31: 40 | BD31: 81.5 | BF31: 0 | BG31: 0 | BH31: 0 | BI31: 0 | BJ31: 0 | BK31: 0 | BL31: 0 | BM31: 0 | BN31: 0 | BO31: 0 | BP31: 0 | BQ31: 0 | BR31: 0 | BS31: 0 | BT31: 0 | BU31: 0 | BV31: 0 | BW31: 0 | BX31: 0 | BY31: 0 | BZ31: 0 | CA31: 0 | CB31: 0 | CC31: 0 | CE31: 0 | CF31: 0 | CG31: 0 | CH31: 0 | CI31: 0 | CJ31: 0 | CK31: 0 | CL31: 0
A32: 18 | E32: Tasikmalaya,29 Maret 2004 | F32: 0 | R32: 0 | S32: 0 | T32: 0 | AZ32: 0 | BA32: 0 | BC32: 10 | BD32: 77 | BF32: 0 | BG32: 0 | BH32: 0 | BI32: 0 | BJ32: 0 | BK32: 0 | BL32: 0 | BM32: 0 | BN32: 0 | BO32: 0 | BP32: 0 | BQ32: 0 | BR32: 0 | BS32: 0 | BT32: 0 | BU32: 0 | BV32: 0 | BW32: 0 | BX32: 0 | BY32: 0 | BZ32: 0 | CA32: 0 | CB32: 0 | CC32: 0 | CE32: 0 | CF32: 0 | CG32: 0 | CH32: 0 | CI32: 0 | CJ32: 0 | CK32: 0 | CL32: 0
A33: 19 | E33: Tasikmalaya,15 Desember 2004 | F33: 0 | R33: 0 | S33: 0 | T33: 0 | AZ33: 0 | BA33: 0 | BC33: 30 | BD33: 80 | BF33: 0 | BG33: 0 | BH33: 0 | BI33: 0 | BJ33: 0 | BK33: 0 | BL33: 0 | BM33: 0 | BN33: 0 | BO33: 0 | BP33: 0 | BQ33: 0 | BR33: 0 | BS33: 0 | BT33: 0 | BU33: 0 | BV33: 0 | BW33: 0 | BX33: 0 | BY33: 0 | BZ33: 0 | CA33: 0 | CB33: 0 | CC33: 0 | CE33: 0 | CF33: 0 | CG33: 0 | CH33: 0 | CI33: 0 | CJ33: 0 | CK33: 0 | CL33: 0
A34: 20 | E34: Tasikmalaya,08 Juli 2004 | F34: 0 | R34: 0 | S34: 0 | T34: 0 | AZ34: 0 | BA34: 0 | BC34: 46.66666667 | BD34: 82.5 | BF34: 0 | BG34: 0 | BH34: 0 | BI34: 0 | BJ34: 0 | BK34: 0 | BL34: 0 | BM34: 0 | BN34: 0 | BO34: 0 | BP34: 0 | BQ34: 0 | BR34: 0 | BS34: 0 | BT34: 0 | BU34: 0 | BV34: 0 | BW34: 0 | BX34: 0 | BY34: 0 | BZ34: 0 | CA34: 0 | CB34: 0 | CC34: 0 | CE34: 0 | CF34: 0 | CG34: 0 | CH34: 0 | CI34: 0 | CJ34: 0 | CK34: 0 | CL34: 0
A35: 21 | E35: Tasikmalaya,10 Juli 2004 | F35: 0 | R35: 0 | S35: 0 | T35: 0 | AZ35: 0 | BA35: 0 | BC35: 43.33333333 | BD35: 82 | BF35: 0 | BG35: 0 | BH35: 0 | BI35: 0 | BJ35: 0 | BK35: 0 | BL35: 0 | BM35: 0 | BN35: 0 | BO35: 0 | BP35: 0 | BQ35: 0 | BR35: 0 | BS35: 0 | BT35: 0 | BU35: 0 | BV35: 0 | BW35: 0 | BX35: 0 | BY35: 0 | BZ35: 0 | CA35: 0 | CB35: 0 | CC35: 0 | CE35: 0 | CF35: 0 | CG35: 0 | CH35: 0 | CI35: 0 | CJ35: 0 | CK35: 0 | CL35: 0
A36: 22 | E36: Tasikmalaya,23 Desember 2003 | F36: 0 | R36: 0 | S36: 0 | T36: 0 | AZ36: 0 | BA36: 0 | BC36: 30 | BD36: 80 | BF36: 0 | BG36: 0 | BH36: 0 | BI36: 0 | BJ36: 0 | BK36: 0 | BL36: 0 | BM36: 0 | BN36: 0 | BO36: 0 | BP36: 0 | BQ36: 0 | BR36: 0 | BS36: 0 | BT36: 0 | BU36: 0 | BV36: 0 | BW36: 0 | BX36: 0 | BY36: 0 | BZ36: 0 | CA36: 0 | CB36: 0 | CC36: 0 | CE36: 0 | CF36: 0 | CG36: 0 | CH36: 0 | CI36: 0 | CJ36: 0 | CK36: 0 | CL36: 0
A37: 23 | E37: TASIKMALAYA,12 Mei 2005 | F37: 0 | R37: 0 | S37: 0 | T37: 0 | AZ37: 0 | BA37: 0 | BC37: 30 | BD37: 80 | BF37: 0 | BG37: 0 | BH37: 0 | BI37: 0 | BJ37: 0 | BK37: 0 | BL37: 0 | BM37: 0 | BN37: 0 | BO37: 0 | BP37: 0 | BQ37: 0 | BR37: 0 | BS37: 0 | BT37: 0 | BU37: 0 | BV37: 0 | BW37: 0 | BX37: 0 | BY37: 0 | BZ37: 0 | CA37: 0 | CB37: 0 | CC37: 0 | CE37: 0 | CF37: 0 | CG37: 0 | CH37: 0 | CI37: 0 | CJ37: 0 | CK37: 0 | CL37: 0
A38: 24 | F38: 0 | R38: 0 | S38: 0 | T38: 0 | AZ38: 0 | BA38: 0 | BC38: 30 | BD38: 80 | BF38: 0 | BG38: 0 | BH38: 0 | BI38: 0 | BJ38: 0 | BK38: 0 | BL38: 0 | BM38: 0 | BN38: 0 | BO38: 0 | BP38: 0 | BQ38: 0 | BR38: 0 | BS38: 0 | BT38: 0 | BU38: 0 | BV38: 0 | BW38: 0 | BX38: 0 | BY38: 0 | BZ38: 0 | CA38: 0 | CB38: 0 | CC38: 0 | CE38: 0 | CF38: 0 | CG38: 0 | CH38: 0 | CI38: 0 | CJ38: 0 | CK38: 0 | CL38: 0
A39: 25 | F39: 0 | R39: 0 | S39: 0 | T39: 0 | AZ39: 0 | BA39: 0 | BC39: 43.33333333 | BD39: 82 | BF39: 0 | BG39: 0 | BH39: 0 | BI39: 0 | BJ39: 0 | BK39: 0 | BL39: 0 | BM39: 0 | BN39: 0 | BO39: 0 | BP39: 0 | BQ39: 0 | BR39: 0 | BS39: 0 | BT39: 0 | BU39: 0 | BV39: 0 | BW39: 0 | BX39: 0 | BY39: 0 | BZ39: 0 | CA39: 0 | CB39: 0 | CC39: 0 | CE39: 0 | CF39: 0 | CG39: 0 | CH39: 0 | CI39: 0 | CJ39: 0 | CK39: 0 | CL39: 0
A40: 26 | F40: 0 | R40: 0 | S40: 0 | T40: 0 | AZ40: 0 | BA40: 0 | BD40: 75.5 | BF40: 0 | BG40: 0 | BH40: 0 | BI40: 0 | BJ40: 0 | BK40: 0 | BL40: 0 | BM40: 0 | BN40: 0 | BO40: 0 | BP40: 0 | BQ40: 0 | BR40: 0 | BS40: 0 | BT40: 0 | BU40: 0 | BV40: 0 | BW40: 0 | BX40: 0 | BY40: 0 | BZ40: 0 | CA40: 0 | CB40: 0 | CC40: 0 | CE40: 0 | CF40: 0 | CG40: 0 | CH40: 0 | CI40: 0 | CJ40: 0 | CK40: 0 | CL40: 0
A41: 27 | F41: 0 | R41: 0 | S41: 0 | T41: 0 | AZ41: 0 | BA41: 0 | BD41: 75.5 | BF41: 0 | BG41: 0 | BH41: 0 | BI41: 0 | BJ41: 0 | BK41: 0 | BL41: 0 | BM41: 0 | BN41: 0 | BO41: 0 | BP41: 0 | BQ41: 0 | BR41: 0 | BS41: 0 | BT41: 0 | BU41: 0 | BV41: 0 | BW41: 0 | BX41: 0 | BY41: 0 | BZ41: 0 | CA41: 0 | CB41: 0 | CC41: 0 | CE41: 0 | CF41: 0 | CG41: 0 | CH41: 0 | CI41: 0 | CJ41: 0 | CK41: 0 | CL41: 0
A42: 28 | F42: 0 | R42: 0 | S42: 0 | T42: 0 | AZ42: 0 | BA42: 0 | BD42: 75.5 | BF42: =U42 -> 0 | BG42: 0 | BH42: 0 | BI42: =Y42 -> 0 | BJ42: 0 | BK42: 0 | BL42: =AC42 -> 0 | BM42: 0 | BN42: 0 | BO42: =AG42 -> 0 | BP42: 0 | BQ42: 0 | BR42: =AK42 -> 0 | BS42: 0 | BT42: 0 | BU42: =AO42 -> 0 | BV42: 0 | BW42: 0 | BX42: =AS42 -> 0 | BY42: 0 | BZ42: 0 | CA42: =AW42 -> 0 | CB42: 0 | CC42: 0 | CE42: 0 | CF42: 0 | CG42: 0 | CH42: 0 | CI42: 0 | CJ42: 0 | CK42: 0 | CL42: 0
A43: 29 | F43: 0 | R43: 0 | S43: 0 | T43: 0 | AZ43: 0 | BA43: 0 | BD43: 75.5 | BF43: =U43 -> 0 | BG43: 0 | BH43: 0 | BI43: =Y43 -> 0 | BJ43: 0 | BK43: 0 | BL43: =AC43 -> 0 | BM43: 0 | BN43: 0 | BO43: =AG43 -> 0 | BP43: 0 | BQ43: 0 | BR43: =AK43 -> 0 | BS43: 0 | BT43: 0 | BU43: =AO43 -> 0 | BV43: 0 | BW43: 0 | BX43: =AS43 -> 0 | BY43: 0 | BZ43: 0 | CA43: =AW43 -> 0 | CB43: 0 | CC43: 0 | CE43: 0 | CF43: 0 | CG43: 0 | CH43: 0 | CI43: 0 | CJ43: 0 | CK43: 0 | CL43: 0
A44: 30 | F44: 0 | R44: 0 | S44: 0 | T44: 0 | AZ44: 0 | BA44: 0 | BD44: 75.5 | BF44: 0 | BG44: 0 | BH44: 0 | BI44: 0 | BJ44: 0 | BK44: 0 | BL44: 0 | BM44: 0 | BN44: 0 | BO44: 0 | BP44: 0 | BQ44: 0 | BR44: 0 | BS44: 0 | BT44: 0 | BU44: 0 | BV44: 0 | BW44: 0 | BX44: 0 | BY44: 0 | BZ44: 0 | CA44: 0 | CB44: 0 | CC44: 0 | CE44: 0 | CF44: 0 | CG44: 0 | CH44: 0 | CI44: 0 | CJ44: 0 | CK44: 0 | CL44: 0
A45: 31 | F45: 0 | R45: =IFERROR(P45*$P$13/100+Q45*$Q$13/100,0) -> 0 | S45: 0 | T45: =AVERAGE(G45,R45) -> 0 | AZ45: 0 | BA45: 0 | BD45: 75.5 | BF45: 0 | BG45: 0 | BH45: 0 | BI45: 0 | BJ45: 0 | BK45: 0 | BL45: 0 | BM45: 0 | BN45: 0 | BO45: 0 | BP45: 0 | BQ45: 0 | BR45: 0 | BS45: 0 | BT45: 0 | BU45: 0 | BV45: 0 | BW45: 0 | BX45: 0 | BY45: 0 | BZ45: 0 | CA45: 0 | CB45: 0 | CC45: 0 | CE45: 0 | CF45: 0 | CG45: 0 | CH45: 0 | CI45: 0 | CJ45: 0 | CK45: 0 | CL45: 0
A46: 32 | F46: 0 | R46: =IFERROR(P46*$P$13/100+Q46*$Q$13/100,0) -> 0 | S46: 0 | T46: =AVERAGE(G46,R46) -> 0 | AZ46: 0 | BA46: 0 | BD46: 75.5 | BF46: 0 | BG46: 0 | BH46: 0 | BI46: 0 | BJ46: 0 | BK46: 0 | BL46: 0 | BM46: 0 | BN46: 0 | BO46: 0 | BP46: 0 | BQ46: 0 | BR46: 0 | BS46: 0 | BT46: 0 | BU46: 0 | BV46: 0 | BW46: 0 | BX46: 0 | BY46: 0 | BZ46: 0 | CA46: 0 | CB46: 0 | CC46: 0 | CE46: 0 | CF46: 0 | CG46: 0 | CH46: 0 | CI46: 0 | CJ46: 0 | CK46: 0 | CL46: 0
BD47: =$C$8 -> by ariefp_11 v13.3-622

Sheet dataumum
B2: KEMENTERIAN AGAMA REPUBLIK INDONESIA | G2: MASTER NILAI KURIKULUM MERDEKA
B3: KANTOR KEMENTERIAN AGAMA KABUPATEN TASIKMALAYA
B4: MAN 4 TASIKMALAYA
B5: Jalan Sindanghurip Ds. Cikalong Kec. Cikalong Kab. Tasikmalaya 46195
F6: Nama Guru | G6: Arief Pribadi, S.Si
B7: No Abs | C7: NISN | D7: NAMA SISWA | F7: NIP | G7: 198603112020121005
F8: Mata Pelajaran | G8: Kimia
B9: 1 | C9: 0095527100 | D9: AHMAD JAMIL MUNAWAR | F9: Semester | G9: 2 (Genap)
B10: 2 | C10: 0108689880 | D10: AKBAR NUGRAHA | F10: Tahun Pelajaran | G10: 2025/2026
B11: 3 | C11: 0101457073 | D11: ALSA NAPILA ABALIA | F11: Kelas | G11: X-D
B12: 4 | C12: 3098669460 | D12: ALWAN FAJRUL HAKIM | F12: KKTP | G12: 75
B13: 5 | C13: 0097476054 | D13: ANDIKA | F13: Bobot Kehadiran | G13: 30
B14: 6 | C14: 0107479079 | D14: CHINTIA NUR AZIZAH | F14: Bobot Sumatif | G14: =100-G13 -> 70
B15: 7 | C15: 0095178395 | D15: DEDE AULIA | F15: Jenis Asesmen Sumatif | G15: ASAT
B16: 8 | C16: 0097071532 | D16: DIRLI PIRMANSAH REZA | F16: Bobot Nilai Rerata Sumatif | G16: 70
B17: 9 | C17: 0085525399 | D17: EKSEL | F17: Bobot Nilai ASAS/ASAT | G17: =100-G16 -> 30
B18: 10 | C18: 0099271082 | D18: FADLAN APANDI | F18: Tanggal Rapor
B19: 11 | C19: 3109814391 | D19: HAYA MADIHATUL ISMAH | F19: Nama File | G19: X-D
B20: 12 | C20: 3094762585 | D20: HIKAYATUL JABAL | H20: versi 07.01.26 by AP_11
B21: 13 | C21: 0105251526 | D21: IHSAN NURSALAM | H21: HP. 082140206782
B22: 14 | C22: 3095547483 | D22: IZAD NOOR JAMAN
B23: 15 | C23: 0093659815 | D23: JIHAN NURROHMAH SEPTIRA
B24: 16 | C24: 3090540244 | D24: KAKA SEPTIAN
B25: 17 | C25: 0088283383 | D25: LUTPI
B26: 18 | C26: 3096008382 | D26: M SUGIH MIWAHA
B27: 19 | C27: 0093656626 | D27: MUHLIS
B28: 20 | C28: 0097902846 | D28: NURAFIFAH FAUZIAH
B29: 21 | C29: 0088756415 | D29: REPAN
B30: 22 | C30: 0095868392 | D30: REZA NURUL WILDAN
B31: 23 | C31: 3095334952 | D31: SYIFA NURJANAH
B32: 24 | C32: 0093189091 | D32: WINDI PUJIA SAFITRI
B33: 25 | C33: 0096749734 | D33: WULAN RESPIANI
B34: 26 | C34: 0099314795 | D34: YESI DESTRIYANI
B35: 27
B36: 28
B37: 29
B38: 30
B39: 31
B40: 32
B41: 33
B42: 34
B43: 35
B44: 36
B45: 37
B46: 38
B47: 39
B48: 40
D49: =COUNTA(D9:D48) -> 26
B50: 1 | C50: Al Qur'an Hadis | D50: X-A | F50: ASAS
B51: 2 | C51: Akidah Akhlak | D51: X-B | F51: ASAT
B52: 3 | C52: Fikih | D52: X-C
B53: 4 | C53: Sejarah Kebudayaan Islam | D53: X-D
B54: 5 | C54: Bahasa Arab | D54: X-E
B55: 6 | C55: Pendidikan Pancasila | D55: X-F
B56: 7 | C56: Bahasa Indonesia | D56: XI-A
B57: 8 | C57: Matematika | D57: XI-B
B58: 9 | C58: IPA-Biologi | D58: XI-C
B59: 10 | C59: IPA-Fisika | D59: XI-D
B60: 11 | C60: IPA-Kimia | D60: XI-E
B61: 12 | C61: IPS-Ekonomi | D61: XI-F
B62: 13 | C62: IPS-Geografi | D62: XII-A
B63: 14 | C63: IPS-Sosiologi | D63: XII-B
B64: 15 | C64: Bahasa Inggris | D64: XII-C
B65: 16 | C65: Penjaskes | D65: XII-D
B66: 17 | C66: Sejarah | D66: XII-E
B67: 18 | C67: Informatika | D67: XII-F
B68: 19 | C68: Seni Budaya
B69: 20 | C69: Muatan Lokal
B70: 21 | C70: Biologi
B71: 22 | C71: Fisika
B72: 23 | C72: Kimia
B73: 24 | C73: Matematika Tingkat Lanjut
B74: 25 | C74: Sejarah Tingkat Lanjut
B75: 26 | C75: Ekonomi
B76: 27 | C76: Geografi
B77: 28 | C77: Sosiologi

Sheet post
B2: POST PELAKSANAAN PEMBELAJARAN | J2: Data Semester 1 | L2: Data Semester 2
J3: Jumlah Hari Efektif | L3: Jumlah Hari Efektif
B4: Nama Mata Pelajaran | E4: : | F4: =dataumum!G8 -> Kimia | J4: Jumlah Hari Fakultatif | L4: Jumlah Hari Fakultatif
B5: Guru Pengampu | E5: : | F5: =dataumum!G6 -> Arief Pribadi, S.Si | J5: Jumlah Jam Efektif | L5: Jumlah Jam Efektif
B6: Kelas | E6: : | F6: =dataumum!G11 -> X-D | J6: Jumlah Jam Fakultatif | L6: Jumlah Jam Fakultatif | X6: ASAS | Y6: PAS1 | Z6: asesmen sumatif akhir semester
B7: Semester | E7: : | F7: =dataumum!G9 -> 2 (Genap) | X7: ASAT | Y7: PAT 1 | Z7: asesmen sumatif akhir tahun
B8: Tahun Ajaran | E8: : | F8: =dataumum!G10 -> 2025/2026 | J8: =dataumum!G15 -> ASAT | K8: =VLOOKUP(J8,X6:Y7,2,0) -> PAT 1 | L8: =VLOOKUP(K8,Y6:Z7,2,0) -> asesmen sumatif akhir tahun
B9: Bahan dan Sumber Belajar | E9: : | F9: Buku paket fase E kelas X, modul, internet, LKPD (Lembar Kerja Peserta Didik)
M12: =dataumum!H20 -> versi 07.01.26 by AP_11
B13: No. | C13: Tujuan Pembelajaran | E13: Materi Esensial/Kata Kunci | G13: Penilaian | H13: Materi di RDM (max. 60 char) | I13: KKTP | J13: Profil Pelajar Pancasila | K13: SMT | L13: Bahan dan Sumber Belajar | M13: Alokasi | Q13: Char
A14: =COUNT(C14) -> 1 | B14: 1 | C14: 1 | D14: Menganalisis hubungan antara konfigurasi elektron dengan letak unsur dalam tabel periodik dan sifat keperiodikan unsur | E14: Sistem Periodik Unsur | G14: SUM 1 | H14: menganalisis hubungan letak unsur & sifat keperiodikan | I14: =dataumum!$G$12 -> 75 | J14: Beriman, bertakwa kepada Tuhan Yang Maha Esa dan berakhlak mulia, berkebhinekaan global, bergotong royong, mandiri, bernalar kritis dan kreatif | K14: =dataumum!$G$9 -> 2 (Genap) | L14: =$F$9 -> Buku paket fase E kelas X, modul, internet, LKPD (Lembar Kerja Peserta Didik) | M14: =VLOOKUP(L14,$D$25:$E$27,2,0) -> 2 | N14: JP | P14: =LEN(H14) -> 54 | Q14: =60-P14 -> 6
A15: =COUNT(C15) -> 1 | B15: 2 | C15: 2 | D15: Menerapkan konsep stoikiometri dalam berbagai aspek kuantitatif reaksi kimia; | E15: Rumus Kimia dan Persamaan Reaksi | G15: SUM 2 | H15: menyusun dan menyetarakan persamaan reaksi sederhana | I15: =dataumum!$G$12 -> 75 | J15: Beriman, bertakwa kepada Tuhan Yang Maha Esa dan berakhlak mulia, berkebhinekaan global, bergotong royong, mandiri, bernalar kritis dan kreatif | K15: =dataumum!$G$9 -> 2 (Genap) | L15: =$F$9 -> Buku paket fase E kelas X, modul, internet, LKPD (Lembar Kerja Peserta Didik) | M15: =$M$14 -> 2 | N15: JP | P15: =LEN(H15) -> 52 | Q15: =60-P15 -> 8
A16: 1 | B16: 3 | C16: 3 | D16: Menerapkan konsep stoikiometri dalam berbagai aspek kuantitatif reaksi kimia; | E16: Hukum Dasar Kimia | G16: SUM 3 | H16: menjelaskan hukum-hukum dasar kimia | I16: =dataumum!$G$12 -> 75 | J16: Beriman, bertakwa kepada Tuhan Yang Maha Esa dan berakhlak mulia, berkebhinekaan global, bergotong royong, mandiri, bernalar kritis dan kreatif | K16: =dataumum!$G$9 -> 2 (Genap) | L16: Buku paket fase E kelas X, modul, internet, LKPD (Lembar Kerja Peserta Didik) | M16: =$M$14 -> 2 | N16: JP | P16: =LEN(H16) -> 35 | Q16: =60-P16 -> 25
A17: 1 | B17: 4 | C17: 4 | D17: Menerapkan konsep IPA untuk mengatasi permasalahan berkaitan dengan perubahan iklim | E17: Kimia Hijau | G17: SUM 4 | H17: menganalisis penerapan kimia hijau dalam kehidupan nyata | I17: =dataumum!$G$12 -> 75 | J17: Beriman, bertakwa kepada Tuhan Yang Maha Esa dan berakhlak mulia, berkebhinekaan global, bergotong royong, mandiri, bernalar kritis dan kreatif | K17: =dataumum!$G$9 -> 2 (Genap) | L17: Buku paket fase E kelas X, modul, internet, LKPD (Lembar Kerja Peserta Didik) | M17: 2 | N17: JP | P17: 56 | Q17: 4
A18: 0 | B18: 5 | G18: SUM 5 | I18: =dataumum!$G$12 -> 75 | J18: Beriman, bertakwa kepada Tuhan Yang Maha Esa dan berakhlak mulia, berkebhinekaan global, bergotong royong, mandiri, bernalar kritis dan kreatif | K18: =dataumum!$G$9 -> 2 (Genap) | L18: Buku paket fase E kelas X, modul, internet, LKPD (Lembar Kerja Peserta Didik) | M18: 2 | N18: JP | P18: 0 | Q18: 60
A19: 0 | B19: 6 | G19: SUM 6 | I19: =dataumum!$G$12 -> 75 | J19: Beriman, bertakwa kepada Tuhan Yang Maha Esa dan berakhlak mulia, berkebhinekaan global, bergotong royong, mandiri, bernalar kritis dan kreatif | K19: =dataumum!$G$9 -> 2 (Genap) | L19: Buku paket fase E kelas X, modul, internet, LKPD (Lembar Kerja Peserta Didik) | M19: 2 | N19: JP | P19: 0 | Q19: 60
A20: 0 | B20: 7 | G20: SUM 7 | I20: =dataumum!$G$12 -> 75 | J20: Beriman, bertakwa kepada Tuhan Yang Maha Esa dan berakhlak mulia, berkebhinekaan global, bergotong royong, mandiri, bernalar kritis dan kreatif | K20: =dataumum!$G$9 -> 2 (Genap) | L20: Buku paket fase E kelas X, modul, internet, LKPD (Lembar Kerja Peserta Didik) | M20: 2 | N20: JP | P20: 0 | Q20: 60
A21: 0 | B21: 8 | G21: SUM 8 | I21: =dataumum!$G$12 -> 75 | J21: Beriman, bertakwa kepada Tuhan Yang Maha Esa dan berakhlak mulia, berkebhinekaan global, bergotong royong, mandiri, bernalar kritis dan kreatif | K21: =dataumum!$G$9 -> 2 (Genap) | L21: Buku paket fase E kelas X, modul, internet, LKPD (Lembar Kerja Peserta Didik) | M21: 2 | N21: JP | P21: 0 | Q21: 60
A22: 0 | B22: 9 | G22: SUM 9 | I22: =dataumum!$G$12 -> 75 | J22: Beriman, bertakwa kepada Tuhan Yang Maha Esa dan berakhlak mulia, berkebhinekaan global, bergotong royong, mandiri, bernalar kritis dan kreatif | K22: =dataumum!$G$9 -> 2 (Genap) | L22: Buku paket fase E kelas X, modul, internet, LKPD (Lembar Kerja Peserta Didik) | M22: 2 | N22: JP | P22: 0 | Q22: 60
A23: 0 | B23: 10 | G23: SUM 10 | I23: =dataumum!$G$12 -> 75 | J23: Beriman, bertakwa kepada Tuhan Yang Maha Esa dan berakhlak mulia, berkebhinekaan global, bergotong royong, mandiri, bernalar kritis dan kreatif | K23: =dataumum!$G$9 -> 2 (Genap) | L23: Buku paket fase E kelas X, modul, internet, LKPD (Lembar Kerja Peserta Didik) | M23: 2 | N23: JP | P23: 0 | Q23: 60
D25: Buku paket fase E kelas X, modul, internet, LKPD (Lembar Kerja Peserta Didik) | E25: 2
D26: Buku paket fase F kelas XI, modul, internet, LKPD (Lembar Kerja Peserta Didik) | E26: 5
D27: Buku paket fase F kelas XII, modul, internet, LKPD (Lembar Kerja Peserta Didik) | E27: 5

Sheet semester
B3: DATA CAPAIAN HASIL BELAJAR | J3: : | W3: APLIKASI NILAI KURMER 2025 | BO3: =K7/100 -> 0.3 | BQ3: =N7/100 -> 0.7
B5: Nama Mata Pelajaran | D5: : | E5: =dataumum!G8 -> Kimia
B6: Kelas | D6: : | E6: =dataumum!G11 -> X-D | K6: BOBOT NILAI
B7: Semester | D7: : | E7: =dataumum!G9 -> 2 (Genap) | K7: =dataumum!G13 -> 30 | N7: =dataumum!G14 -> 70
B8: Tahun Ajaran | D8: : | E8: =dataumum!G10 -> 2025/2026 | K8: Kehadiran | N8: Sumatif | Q8: X | U8: X | Y8: X | AC8: X | AG8: X | AK8: X | AO8: X | AP8: X | AT8: X
B9: Nama Guru Pengampu | D9: : | E9: =dataumum!G6 -> Arief Pribadi, S.Si | Q9: V | U9: V | Y9: V | AC9: V | AG9: V | AK9: V | AO9: V | AP9: V
H10: =IF(COUNT(H17:H56)>0,1,0) -> 1 | I10: =IF(COUNT(I17:I56)>0,1,0) -> 0 | K10: =SUM(H10:I10) -> 1 | L10: =IF(COUNT(L17:L56)>0,1,0) -> 1 | M10: =IF(COUNT(M17:M56)>0,1,0) -> 0 | O10: =SUM(L10:M10) -> 1 | P10: =IF(COUNT(P17:P56)>0,1,0) -> 1 | Q10: =IF(COUNT(Q17:Q56)>0,1,0) -> 0 | S10: =SUM(P10:Q10) -> 1 | T10: =IF(COUNT(T17:T56)>0,1,0) -> 1 | U10: =IF(COUNT(U17:U56)>0,1,0) -> 0 | W10: =SUM(T10:U10) -> 1 | X10: =IF(COUNT(X17:X56)>0,1,0) -> 1 | Y10: =IF(COUNT(Y17:Y56)>0,1,0) -> 0 | AA10: =SUM(X10:Y10) -> 1 | AB10: =IF(COUNT(AB17:AB56)>0,1,0) -> 1 | AC10: =IF(COUNT(AC17:AC56)>0,1,0) -> 0 | AE10: =SUM(AB10:AC10) -> 1 | AF10: =IF(COUNT(AF17:AF56)>0,1,0) -> 1 | AG10: =IF(COUNT(AG17:AG56)>0,1,0) -> 0 | AI10: =SUM(AF10:AG10) -> 1 | AJ10: =IF(COUNT(AJ17:AJ56)>0,1,0) -> 1 | AK10: =IF(COUNT(AK17:AK56)>0,1,0) -> 0 | AM10: =SUM(AJ10:AK10) -> 1 | AN10: =IF(COUNT(AN17:AN56)>0,1,0) -> 1 | AO10: =IF(COUNT(AO17:AO56)>0,1,0) -> 0 | AQ10: =SUM(AN10:AO10) -> 1 | AR10: =IF(COUNT(AR17:AR56)>0,1,0) -> 1 | AS10: =IF(COUNT(AS17:AS56)>0,1,0) -> 0 | AU10: =SUM(AR10:AS10) -> 1 | AZ10: =dataumum!H20 -> versi 07.01.26 by AP_11
B11: No | C11: Nama Peserta Didik | D11: NISN | F11: Gender (L/P) | G11: Inklusi (Y/T) | H11: NILAI SUMATIF | AV11: NILAI RATA-RATA SUMATIF | AW11: N_AS | AY11: NILAI RATA-RATA ASESMEN SUMATIF | AZ11: NILAI RAPOR
H12: No. TP | J12: =post!C14 -> 1 | L12: No. TP | N12: =post!C15 -> 2 | P12: No. TP | R12: =post!C16 -> 3 | T12: No. TP | V12: =post!C17 -> 4 | X12: No. TP | Z12: =post!C18 -> 0 | AB12: No. TP | AD12: =post!C19 -> 0 | AF12: No. TP | AH12: =post!C20 -> 0 | AJ12: No. TP | AL12: =post!C21 -> 0 | AN12: No. TP | AP12: =post!C22 -> 0 | AR12: No. TP | AT12: =post!C23 -> 0 | AW12: =dataumum!G15 -> ASAT
H13: KKTP | J13: =post!I14 -> 75 | L13: KKTP | N13: =post!I15 -> 75 | P13: KKTP | R13: =post!I16 -> 75 | T13: KKTP | V13: =post!I17 -> 75 | X13: KKTP | Z13: =post!I18 -> 75 | AB13: KKTP | AD13: =post!I19 -> 75 | AF13: KKTP | AH13: =post!I20 -> 75 | AJ13: KKTP | AL13: =post!I21 -> 75 | AN13: KKTP | AP13: =post!I22 -> 75 | AR13: KKTP | AT13: =post!I23 -> 75 | BB13: =IF(COUNT(BB17:BB56)>0,1,0) -> 1 | BC13: =IF(COUNT(BC17:BC56)>0,1,0) -> 1 | BD13: 1 | BE13: 1 | BF13: 1 | BG13: 1 | BH13: 1 | BI13: 1 | BJ13: 1 | BK13: 1 | BL13: =SUM(BB13:BK13) -> 10 | BQ13: 1 | BR13: 2 | BS13: 3 | BT13: 4 | BU13: 5 | BV13: 6 | BW13: 7 | BX13: 8 | BY13: 9 | BZ13: 10
H15: =IFERROR(post!D14,"") -> Menganalisis hubungan antara konfigurasi elektron dengan letak unsur dalam tabel periodik dan sifat keperiodikan unsur | L15: =IFERROR(post!D15,"") -> Menerapkan konsep stoikiometri dalam berbagai aspek kuantitatif reaksi kimia; | P15: =IFERROR(post!D16,"") -> Menerapkan konsep stoikiometri dalam berbagai aspek kuantitatif reaksi kimia; | T15: =IFERROR(post!D17,"") -> Menerapkan konsep IPA untuk mengatasi permasalahan berkaitan dengan perubahan iklim | X15: =IFERROR(post!D18,"") -> 0 | AB15: =IFERROR(post!D19,"") -> 0 | AF15: =IFERROR(post!D20,"") -> 0 | AJ15: =IFERROR(post!D21,"") -> 0 | AN15: =IFERROR(post!D22,"") -> 0 | AR15: =IFERROR(post!D23,"") -> 0 | AW15: Pilihan Ganda dan/atau Esai | BJ15: X | BK15: Y | BL15: =dataumum!G12-0.5 -> 74.5 | BM15: =dataumum!G16/100 -> 0.7 | BN15: =dataumum!G17/100 -> 0.3
H16: Kehadiran | I16: Sumatif | J16: Remedial | K16: Nilai | L16: Kehadiran | M16: Sumatif | N16: Remedial | O16: Nilai | P16: Kehadiran | Q16: Sumatif | R16: Remedial | S16: Nilai | T16: Kehadiran | U16: Sumatif | V16: Remedial | W16: Nilai | X16: Kehadiran | Y16: Sumatif | Z16: Remedial | AA16: Nilai | AB16: Kehadiran | AC16: Sumatif | AD16: Remedial | AE16: Nilai | AF16: Kehadiran | AG16: Sumatif | AH16: Remedial | AI16: Nilai | AJ16: Kehadiran | AK16: Sumatif | AL16: Remedial | AM16: Nilai | AN16: Kehadiran | AO16: Sumatif | AP16: Remedial | AQ16: Nilai | AR16: Kehadiran | AS16: Sumatif | AT16: Remedial | AU16: Nilai | AW16: Nilai 1 | AX16: Nilai 2 | BB16: TP1 | BC16: TP2 | BD16: TP3 | BE16: TP4 | BF16: TP5 | BG16: TP6 | BH16: TP7 | BI16: TP8 | BJ16: TP9 | BK16: TP10 | BL16: RTP | BM16: N1 | BN16: N2 | BQ16: RTP1 | BR16: RTP2 | BS16: RTP3 | BT16: RTP4 | BU16: RTP5 | BV16: RTP6 | BW16: RTP7 | BX16: RTP8 | BY16: RTP9 | BZ16: RTP10 | CA16: =COUNTA(post!C14:C23) -> 4 | CB16: RTP
A17: =COUNT(D17) -> 0 | B17: 1 | C17: =dataumum!D9 -> AHMAD JAMIL MUNAWAR | D17: =dataumum!C9 -> 0095527100 | F17: L | G17: T | H17: =absen!AQ12 -> 100 | J17: =IFERROR(IF(K17<$BL$15,$BK$15,$BJ$15),"") -> Y | K17: =IFERROR(ROUNDUP((H17*$BO$3)+(I17*$BQ$3),0),"") -> 30 | L17: =H17 -> 100 | N17: =IFERROR(IF(O17<$BL$15,$BK$15,$BJ$15),"") -> Y | O17: =IFERROR(ROUNDUP((L17*$BO$3)+(M17*$BQ$3),0),"") -> 30 | P17: =L17 -> 100 | R17: =IFERROR(IF(S17<$BL$15,$BK$15,$BJ$15),"") -> Y | S17: =IFERROR(ROUNDUP((P17*$BO$3)+(Q17*$BQ$3),0),"") -> 30 | T17: =P17 -> 100 | V17: =IFERROR(IF(W17<$BL$15,$BK$15,$BJ$15),"") -> Y | W17: =IFERROR(ROUNDUP((T17*$BO$3)+(U17*$BQ$3),0),"") -> 30 | X17: =T17 -> 100 | Z17: =IFERROR(IF(AA17<$BL$15,$BK$15,$BJ$15),"") -> Y | AA17: =IFERROR(ROUNDUP((X17*$BO$3)+(Y17*$BQ$3),0),"") -> 30 | AB17: =X17 -> 100 | AD17: =IFERROR(IF(AE17<$BL$15,$BK$15,$BJ$15),"") -> Y | AE17: =IFERROR(ROUNDUP((AB17*$BO$3)+(AC17*$BQ$3),0),"") -> 30 | AF17: =AB17 -> 100 | AH17: =IFERROR(IF(AI17<$BL$15,$BK$15,$BJ$15),"") -> Y | AI17: =IFERROR(ROUNDUP((AF17*$BO$3)+(AG17*$BQ$3),0),"") -> 30 | AJ17: =AF17 -> 100 | AL17: =IFERROR(IF(AM17<$BL$15,$BK$15,$BJ$15),"") -> Y | AM17: =IFERROR(ROUNDUP((AJ17*$BO$3)+(AK17*$BQ$3),0),"") -> 30 | AN17: =AJ17 -> 100 | AP17: =IFERROR(IF(AQ17<$BL$15,$BK$15,$BJ$15),"") -> Y | AQ17: =IFERROR(ROUNDUP((AN17*$BO$3)+(AO17*$BQ$3),0),"") -> 30 | AR17: =AN17 -> 100 | AT17: =IFERROR(IF(AU17<$BL$15,$BK$15,$BJ$15),"") -> Y | AU17: =IFERROR(ROUNDUP((AR17*$BO$3)+(AS17*$BQ$3),0),"") -> 30 | AV17: =BL17 -> 30 | AW17: 90 | AY17: =IFERROR(AVERAGEIF(AW17:AX17,"<>0"),"") -> 90 | AZ17: =IFERROR((AV17*$BM$15)+(AY17*$BN$15),"") -> 48 | BB17: =K17 -> 30 | BC17: =O17 -> 30 | BD17: =S17 -> 30 | BE17: =W17 -> 30 | BF17: =AA17 -> 30 | BG17: =AE17 -> 30 | BH17: =AI17 -> 30 | BI17: =AM17 -> 30 | BJ17: =AQ17 -> 30 | BK17: =AU17 -> 30 | BL17: =CB17 -> 30 | BM17: =AW17 -> 90 | BN17: =AX17 -> 0 | BP17: =CA17 -> 5 | BQ17: =BB17 -> 30 | BR17: =IFERROR(IF(COUNT(BB17:BC17)<1,"",ROUND(SUM(BB17:BC17)/$BR$13,0)),0) -> 30 | BS17: =IFERROR(IF(COUNT(BB17:BD17)<1,"",ROUND(SUM(BB17:BD17)/$BS$13,0)),0) -> 30 | BT17: =IFERROR(IF(COUNT(BB17:BE17)<1,"",ROUND(SUM(BB17:BE17)/$BT$13,0)),0) -> 30 | BU17: =IFERROR(IF(COUNT(BB17:BF17)<1,"",ROUND(SUM(BB17:BF17)/$BU$13,0)),0) -> 30 | BV17: =IFERROR(IF(COUNT(BB17:BG17)<1,"",ROUND(SUM(BB17:BG17)/$BV$13,0)),0) -> 30 | BW17: =IFERROR(IF(COUNT(BB17:BH17)<1,"",ROUND(SUM(BB17:BH17)/$BW$13,0)),0) -> 30 | BX17: =IFERROR(IF(COUNT(BB17:BI17)<1,"",ROUND(SUM(BB17:BI17)/$BX$13,0)),0) -> 30 | BY17: =IFERROR(IF(COUNT(BB17:BJ17)<1,"",ROUND(SUM(BB17:BJ17)/$BY$13,0)),0) -> 30 | BZ17: =IFERROR(IF(COUNT(BB17:BK17)<1,"",ROUND(SUM(BB17:BK17)/$BZ$13,0)),0) -> 30 | CA17: =$CA$16+1 -> 5 | CB17: =VLOOKUP(CA17,BP17:BZ17,CA17,TRUE) -> 30
A18: =COUNT(D18) -> 0 | B18: 2 | C18: =dataumum!D10 -> AKBAR NUGRAHA | D18: =dataumum!C10 -> 0108689880 | F18: L | G18: T | H18: =absen!AQ13 ->  | J18: X | K18: =IFERROR(ROUNDUP((H18*$BO$3)+(I18*$BQ$3),0),"") ->  | L18: =H18 ->  | N18: X | O18: =IFERROR(ROUNDUP((L18*$BO$3)+(M18*$BQ$3),0),"") ->  | P18: =L18 ->  | R18: X | S18: =IFERROR(ROUNDUP((P18*$BO$3)+(Q18*$BQ$3),0),"") ->  | T18: =P18 ->  | V18: X | W18: =IFERROR(ROUNDUP((T18*$BO$3)+(U18*$BQ$3),0),"") ->  | X18: =T18 ->  | Z18: X | AA18: =IFERROR(ROUNDUP((X18*$BO$3)+(Y18*$BQ$3),0),"") ->  | AB18: =X18 ->  | AD18: X | AE18: =IFERROR(ROUNDUP((AB18*$BO$3)+(AC18*$BQ$3),0),"") ->  | AF18: =AB18 ->  | AH18: X | AI18: =IFERROR(ROUNDUP((AF18*$BO$3)+(AG18*$BQ$3),0),"") ->  | AJ18: =AF18 ->  | AL18: X | AM18: =IFERROR(ROUNDUP((AJ18*$BO$3)+(AK18*$BQ$3),0),"") ->  | AN18: =AJ18 ->  | AP18: X | AQ18: =IFERROR(ROUNDUP((AN18*$BO$3)+(AO18*$BQ$3),0),"") ->  | AR18: =AN18 ->  | AT18: X | AU18: =IFERROR(ROUNDUP((AR18*$BO$3)+(AS18*$BQ$3),0),"") ->  | AV18: =BL18 ->  | AW18: 85 | AY18: 85 | AZ18: =IFERROR((AV18*$BM$15)+(AY18*$BN$15),"") ->  | BL18: =CB18 ->  | BM18: 85 | BN18: 0 | BP18: =CA18 -> 5 | BQ18: =BB18 ->  | BR18: =IFERROR(IF(COUNT(BB18:BC18)<1,"",ROUND(SUM(BB18:BC18)/$BR$13,0)),0) ->  | BS18: =IFERROR(IF(COUNT(BB18:BD18)<1,"",ROUND(SUM(BB18:BD18)/$BS$13,0)),0) ->  | BT18: =IFERROR(IF(COUNT(BB18:BE18)<1,"",ROUND(SUM(BB18:BE18)/$BT$13,0)),0) ->  | BU18: =IFERROR(IF(COUNT(BB18:BF18)<1,"",ROUND(SUM(BB18:BF18)/$BU$13,0)),0) ->  | BV18: =IFERROR(IF(COUNT(BB18:BG18)<1,"",ROUND(SUM(BB18:BG18)/$BV$13,0)),0) ->  | BW18: =IFERROR(IF(COUNT(BB18:BH18)<1,"",ROUND(SUM(BB18:BH18)/$BW$13,0)),0) ->  | BX18: =IFERROR(IF(COUNT(BB18:BI18)<1,"",ROUND(SUM(BB18:BI18)/$BX$13,0)),0) ->  | BY18: =IFERROR(IF(COUNT(BB18:BJ18)<1,"",ROUND(SUM(BB18:BJ18)/$BY$13,0)),0) ->  | BZ18: =IFERROR(IF(COUNT(BB18:BK18)<1,"",ROUND(SUM(BB18:BK18)/$BZ$13,0)),0) ->  | CA18: =$CA$16+1 -> 5 | CB18: =VLOOKUP(CA18,BP18:BZ18,CA18,TRUE) -> 
A19: 0 | B19: 3 | C19: =dataumum!D11 -> ALSA NAPILA ABALIA | D19: =dataumum!C11 -> 0101457073 | F19: P | G19: T | H19: =absen!AQ14 -> 100 | J19: Y | K19: 30 | L19: 100 | N19: Y | O19: 30 | P19: 100 | R19: Y | S19: 30 | T19: 100 | V19: Y | W19: 30 | X19: 100 | Z19: Y | AA19: 30 | AB19: 100 | AD19: Y | AE19: 30 | AF19: 100 | AH19: Y | AI19: 30 | AJ19: 100 | AL19: Y | AM19: 30 | AN19: 100 | AP19: Y | AQ19: 30 | AR19: 100 | AT19: Y | AU19: 30 | AV19: 30 | AW19: 80 | AY19: 80 | AZ19: 45 | BB19: 30 | BC19: 30 | BD19: 30 | BE19: 30 | BF19: 30 | BG19: 30 | BH19: 30 | BI19: 30 | BJ19: 30 | BK19: 30 | BL19: 30 | BM19: 80 | BN19: 0 | BP19: 5 | BQ19: 30 | BR19: 30 | BS19: 30 | BT19: 30 | BU19: 30 | BV19: 30 | BW19: 30 | BX19: 30 | BY19: 30 | BZ19: 30 | CA19: 5 | CB19: 30
A20: 0 | B20: 4 | C20: =dataumum!D12 -> ALWAN FAJRUL HAKIM | D20: =dataumum!C12 -> 3098669460 | F20: L | G20: T | H20: =absen!AQ15 -> 100 | J20: Y | K20: 30 | L20: 100 | N20: Y | O20: 30 | P20: 100 | R20: Y | S20: 30 | T20: 100 | V20: Y | W20: 30 | X20: 100 | Z20: Y | AA20: 30 | AB20: 100 | AD20: Y | AE20: 30 | AF20: 100 | AH20: Y | AI20: 30 | AJ20: 100 | AL20: Y | AM20: 30 | AN20: 100 | AP20: Y | AQ20: 30 | AR20: 100 | AT20: Y | AU20: 30 | AV20: 30 | BB20: 30 | BC20: 30 | BD20: 30 | BE20: 30 | BF20: 30 | BG20: 30 | BH20: 30 | BI20: 30 | BJ20: 30 | BK20: 30 | BL20: 30 | BM20: 0 | BN20: 0 | BP20: 5 | BQ20: 30 | BR20: 30 | BS20: 30 | BT20: 30 | BU20: 30 | BV20: 30 | BW20: 30 | BX20: 30 | BY20: 30 | BZ20: 30 | CA20: 5 | CB20: 30
A21: 0 | B21: 5 | C21: =dataumum!D13 -> ANDIKA | D21: =dataumum!C13 -> 0097476054 | F21: L | G21: T | H21: =absen!AQ16 -> 100 | J21: Y | K21: 30 | L21: 100 | N21: Y | O21: 30 | P21: 100 | R21: Y | S21: 30 | T21: 100 | V21: Y | W21: 30 | X21: 100 | Z21: Y | AA21: 30 | AB21: 100 | AD21: Y | AE21: 30 | AF21: 100 | AH21: Y | AI21: 30 | AJ21: 100 | AL21: Y | AM21: 30 | AN21: 100 | AP21: Y | AQ21: 30 | AR21: 100 | AT21: Y | AU21: 30 | AV21: 30 | BB21: 30 | BC21: 30 | BD21: 30 | BE21: 30 | BF21: 30 | BG21: 30 | BH21: 30 | BI21: 30 | BJ21: 30 | BK21: 30 | BL21: 30 | BM21: 0 | BN21: 0 | BP21: 5 | BQ21: 30 | BR21: 30 | BS21: 30 | BT21: 30 | BU21: 30 | BV21: 30 | BW21: 30 | BX21: 30 | BY21: 30 | BZ21: 30 | CA21: 5 | CB21: 30
A22: 0 | B22: 6 | C22: =dataumum!D14 -> CHINTIA NUR AZIZAH | D22: =dataumum!C14 -> 0107479079 | F22: P | G22: T | H22: =absen!AQ17 ->  | J22: X | N22: X | R22: X | V22: X | Z22: X | AD22: X | AH22: X | AL22: X | AP22: X | AT22: X | BM22: 0 | BN22: 0 | BP22: 5 | CA22: 5
A23: 0 | B23: 7 | C23: =dataumum!D15 -> DEDE AULIA | D23: =dataumum!C15 -> 0095178395 | F23: P | G23: T | H23: =absen!AQ18 -> 100 | J23: Y | K23: 30 | L23: 100 | N23: Y | O23: 30 | P23: 100 | R23: Y | S23: 30 | T23: 100 | V23: Y | W23: 30 | X23: 100 | Z23: Y | AA23: 30 | AB23: 100 | AD23: Y | AE23: 30 | AF23: 100 | AH23: Y | AI23: 30 | AJ23: 100 | AL23: Y | AM23: 30 | AN23: 100 | AP23: Y | AQ23: 30 | AR23: 100 | AT23: Y | AU23: 30 | AV23: 30 | BB23: 30 | BC23: 30 | BD23: 30 | BE23: 30 | BF23: 30 | BG23: 30 | BH23: 30 | BI23: 30 | BJ23: 30 | BK23: 30 | BL23: 30 | BM23: 0 | BN23: 0 | BP23: 5 | BQ23: 30 | BR23: 30 | BS23: 30 | BT23: 30 | BU23: 30 | BV23: 30 | BW23: 30 | BX23: 30 | BY23: 30 | BZ23: 30 | CA23: 5 | CB23: 30
A24: 0 | B24: 8 | C24: =dataumum!D16 -> DIRLI PIRMANSAH REZA | D24: =dataumum!C16 -> 0097071532 | F24: L | G24: T | H24: =absen!AQ19 ->  | J24: X | N24: X | R24: X | V24: X | Z24: X | AD24: X | AH24: X | AL24: X | AP24: X | AT24: X | BM24: 0 | BN24: 0 | BP24: 5 | CA24: 5
A25: 0 | B25: 9 | C25: =dataumum!D17 -> EKSEL | D25: =dataumum!C17 -> 0085525399 | F25: L | G25: T | H25: =absen!AQ20 ->  | J25: X | N25: X | R25: X | V25: X | Z25: X | AD25: X | AH25: X | AL25: X | AP25: X | AT25: X | BM25: 0 | BN25: 0 | BP25: 5 | CA25: 5
A26: 0 | B26: 10 | C26: =dataumum!D18 -> FADLAN APANDI | D26: =dataumum!C18 -> 0099271082 | F26: L | G26: T | H26: =absen!AQ21 -> 100 | J26: Y | K26: 30 | L26: 100 | N26: Y | O26: 30 | P26: 100 | R26: Y | S26: 30 | T26: 100 | V26: Y | W26: 30 | X26: 100 | Z26: Y | AA26: 30 | AB26: 100 | AD26: Y | AE26: 30 | AF26: 100 | AH26: Y | AI26: 30 | AJ26: 100 | AL26: Y | AM26: 30 | AN26: 100 | AP26: Y | AQ26: 30 | AR26: 100 | AT26: Y | AU26: 30 | AV26: 30 | BB26: 30 | BC26: 30 | BD26: 30 | BE26: 30 | BF26: 30 | BG26: 30 | BH26: 30 | BI26: 30 | BJ26: 30 | BK26: 30 | BL26: 30 | BM26: 0 | BN26: 0 | BP26: 5 | BQ26: 30 | BR26: 30 | BS26: 30 | BT26: 30 | BU26: 30 | BV26: 30 | BW26: 30 | BX26: 30 | BY26: 30 | BZ26: 30 | CA26: 5 | CB26: 30
A27: 0 | B27: 11 | C27: =dataumum!D19 -> HAYA MADIHATUL ISMAH | D27: =dataumum!C19 -> 3109814391 | F27: P | G27: T | H27: =absen!AQ22 -> 100 | J27: Y | K27: 30 | L27: 100 | N27: Y | O27: 30 | P27: 100 | R27: Y | S27: 30 | T27: 100 | V27: Y | W27: 30 | X27: 100 | Z27: Y | AA27: 30 | AB27: 100 | AD27: Y | AE27: 30 | AF27: 100 | AH27: Y | AI27: 30 | AJ27: 100 | AL27: Y | AM27: 30 | AN27: 100 | AP27: Y | AQ27: 30 | AR27: 100 | AT27: Y | AU27: 30 | AV27: 30 | BB27: 30 | BC27: 30 | BD27: 30 | BE27: 30 | BF27: 30 | BG27: 30 | BH27: 30 | BI27: 30 | BJ27: 30 | BK27: 30 | BL27: 30 | BM27: 0 | BN27: 0 | BP27: 5 | BQ27: 30 | BR27: 30 | BS27: 30 | BT27: 30 | BU27: 30 | BV27: 30 | BW27: 30 | BX27: 30 | BY27: 30 | BZ27: 30 | CA27: 5 | CB27: 30
A28: 0 | B28: 12 | C28: =dataumum!D20 -> HIKAYATUL JABAL | D28: =dataumum!C20 -> 3094762585 | F28: L | G28: T | H28: =absen!AQ23 ->  | J28: X | N28: X | R28: X | V28: X | Z28: X | AD28: X | AH28: X | AL28: X | AP28: X | AT28: X | BM28: 0 | BN28: 0 | BP28: 5 | CA28: 5
A29: 0 | B29: 13 | C29: =dataumum!D21 -> IHSAN NURSALAM | D29: =dataumum!C21 -> 0105251526 | F29: L | G29: T | H29: =absen!AQ24 ->  | J29: X | N29: X | R29: X | V29: X | Z29: X | AD29: X | AH29: X | AL29: X | AP29: X | AT29: X | BM29: 0 | BN29: 0 | BP29: 5 | CA29: 5
A30: 0 | B30: 14 | C30: =dataumum!D22 -> IZAD NOOR JAMAN | D30: =dataumum!C22 -> 3095547483 | F30: L | G30: T | H30: =absen!AQ25 -> 100 | J30: Y | K30: 30 | L30: 100 | N30: Y | O30: 30 | P30: 100 | R30: Y | S30: 30 | T30: 100 | V30: Y | W30: 30 | X30: 100 | Z30: Y | AA30: 30 | AB30: 100 | AD30: Y | AE30: 30 | AF30: 100 | AH30: Y | AI30: 30 | AJ30: 100 | AL30: Y | AM30: 30 | AN30: 100 | AP30: Y | AQ30: 30 | AR30: 100 | AT30: Y | AU30: 30 | AV30: 30 | BB30: 30 | BC30: 30 | BD30: 30 | BE30: 30 | BF30: 30 | BG30: 30 | BH30: 30 | BI30: 30 | BJ30: 30 | BK30: 30 | BL30: 30 | BM30: 0 | BN30: 0 | BP30: 5 | BQ30: 30 | BR30: 30 | BS30: 30 | BT30: 30 | BU30: 30 | BV30: 30 | BW30: 30 | BX30: 30 | BY30: 30 | BZ30: 30 | CA30: 5 | CB30: 30
A31: 0 | B31: 15 | C31: =dataumum!D23 -> JIHAN NURROHMAH SEPTIRA | D31: =dataumum!C23 -> 0093659815 | F31: P | G31: T | H31: =absen!AQ26 -> 100 | J31: Y | K31: 30 | L31: 100 | N31: Y | O31: 30 | P31: 100 | R31: Y | S31: 30 | T31: 100 | V31: Y | W31: 30 | X31: 100 | Z31: Y | AA31: 30 | AB31: 100 | AD31: Y | AE31: 30 | AF31: 100 | AH31: Y | AI31: 30 | AJ31: 100 | AL31: Y | AM31: 30 | AN31: 100 | AP31: Y | AQ31: 30 | AR31: 100 | AT31: Y | AU31: 30 | AV31: 30 | BB31: 30 | BC31: 30 | BD31: 30 | BE31: 30 | BF31: 30 | BG31: 30 | BH31: 30 | BI31: 30 | BJ31: 30 | BK31: 30 | BL31: 30 | BM31: 0 | BN31: 0 | BP31: 5 | BQ31: 30 | BR31: 30 | BS31: 30 | BT31: 30 | BU31: 30 | BV31: 30 | BW31: 30 | BX31: 30 | BY31: 30 | BZ31: 30 | CA31: 5 | CB31: 30
A32: 0 | B32: 16 | C32: =dataumum!D24 -> KAKA SEPTIAN | D32: =dataumum!C24 -> 3090540244 | F32: L | G32: T | H32: =absen!AQ27 ->  | J32: X | N32: X | R32: X | V32: X | Z32: X | AD32: X | AH32: X | AL32: X | AP32: X | AT32: X | BM32: 0 | BN32: 0 | BP32: 5 | CA32: 5
A33: 0 | B33: 17 | C33: =dataumum!D25 -> LUTPI | D33: =dataumum!C25 -> 0088283383 | F33: L | G33: T | H33: =absen!AQ28 ->  | J33: X | N33: X | R33: X | V33: X | Z33: X | AD33: X | AH33: X | AL33: X | AP33: X | AT33: X | BM33: 0 | BN33: 0 | BP33: 5 | CA33: 5
A34: 0 | B34: 18 | C34: =dataumum!D26 -> M SUGIH MIWAHA | D34: =dataumum!C26 -> 3096008382 | F34: L | G34: T | H34: =absen!AQ29 -> 100 | J34: Y | K34: 30 | L34: 100 | N34: Y | O34: 30 | P34: 100 | R34: Y | S34: 30 | T34: 100 | V34: Y | W34: 30 | X34: 100 | Z34: Y | AA34: 30 | AB34: 100 | AD34: Y | AE34: 30 | AF34: 100 | AH34: Y | AI34: 30 | AJ34: 100 | AL34: Y | AM34: 30 | AN34: 100 | AP34: Y | AQ34: 30 | AR34: 100 | AT34: Y | AU34: 30 | AV34: 30 | BB34: 30 | BC34: 30 | BD34: 30 | BE34: 30 | BF34: 30 | BG34: 30 | BH34: 30 | BI34: 30 | BJ34: 30 | BK34: 30 | BL34: 30 | BM34: 0 | BN34: 0 | BP34: 5 | BQ34: 30 | BR34: 30 | BS34: 30 | BT34: 30 | BU34: 30 | BV34: 30 | BW34: 30 | BX34: 30 | BY34: 30 | BZ34: 30 | CA34: 5 | CB34: 30
A35: 0 | B35: 19 | C35: =dataumum!D27 -> MUHLIS | D35: =dataumum!C27 -> 0093656626 | F35: L | G35: T | H35: =absen!AQ30 ->  | J35: X | N35: X | R35: X | V35: X | Z35: X | AD35: X | AH35: X | AL35: X | AP35: X | AT35: X | BM35: 0 | BN35: 0 | BP35: 5 | CA35: 5
A36: 0 | B36: 20 | C36: =dataumum!D28 -> NURAFIFAH FAUZIAH | D36: =dataumum!C28 -> 0097902846 | F36: P | G36: T | H36: =absen!AQ31 -> 100 | J36: Y | K36: 30 | L36: 100 | N36: Y | O36: 30 | P36: 100 | R36: Y | S36: 30 | T36: 100 | V36: Y | W36: 30 | X36: 100 | Z36: Y | AA36: 30 | AB36: 100 | AD36: Y | AE36: 30 | AF36: 100 | AH36: Y | AI36: 30 | AJ36: 100 | AL36: Y | AM36: 30 | AN36: 100 | AP36: Y | AQ36: 30 | AR36: 100 | AT36: Y | AU36: 30 | AV36: 30 | BB36: 30 | BC36: 30 | BD36: 30 | BE36: 30 | BF36: 30 | BG36: 30 | BH36: 30 | BI36: 30 | BJ36: 30 | BK36: 30 | BL36: 30 | BM36: 0 | BN36: 0 | BP36: 5 | BQ36: 30 | BR36: 30 | BS36: 30 | BT36: 30 | BU36: 30 | BV36: 30 | BW36: 30 | BX36: 30 | BY36: 30 | BZ36: 30 | CA36: 5 | CB36: 30
A37: 0 | B37: 21 | C37: =dataumum!D29 -> REPAN | D37: =dataumum!C29 -> 0088756415 | F37: L | G37: T | H37: =absen!AQ32 ->  | J37: X | N37: X | R37: X | V37: X | Z37: X | AD37: X | AH37: X | AL37: X | AP37: X | AT37: X | BM37: 0 | BN37: 0 | BP37: 5 | CA37: 5
A38: 0 | B38: 22 | C38: =dataumum!D30 -> REZA NURUL WILDAN | D38: =dataumum!C30 -> 0095868392 | F38: L | G38: T | H38: =absen!AQ33 -> 100 | J38: Y | K38: 30 | L38: 100 | N38: Y | O38: 30 | P38: 100 | R38: Y | S38: 30 | T38: 100 | V38: Y | W38: 30 | X38: 100 | Z38: Y | AA38: 30 | AB38: 100 | AD38: Y | AE38: 30 | AF38: 100 | AH38: Y | AI38: 30 | AJ38: 100 | AL38: Y | AM38: 30 | AN38: 100 | AP38: Y | AQ38: 30 | AR38: 100 | AT38: Y | AU38: 30 | AV38: 30 | BB38: 30 | BC38: 30 | BD38: 30 | BE38: 30 | BF38: 30 | BG38: 30 | BH38: 30 | BI38: 30 | BJ38: 30 | BK38: 30 | BL38: 30 | BM38: 0 | BN38: 0 | BP38: 5 | BQ38: 30 | BR38: 30 | BS38: 30 | BT38: 30 | BU38: 30 | BV38: 30 | BW38: 30 | BX38: 30 | BY38: 30 | BZ38: 30 | CA38: 5 | CB38: 30
A39: 0 | B39: 23 | C39: =dataumum!D31 -> SYIFA NURJANAH | D39: =dataumum!C31 -> 3095334952 | F39: P | G39: T | H39: =absen!AQ34 -> 100 | J39: Y | K39: 30 | L39: 100 | N39: Y | O39: 30 | P39: 100 | R39: Y | S39: 30 | T39: 100 | V39: Y | W39: 30 | X39: 100 | Z39: Y | AA39: 30 | AB39: 100 | AD39: Y | AE39: 30 | AF39: 100 | AH39: Y | AI39: 30 | AJ39: 100 | AL39: Y | AM39: 30 | AN39: 100 | AP39: Y | AQ39: 30 | AR39: 100 | AT39: Y | AU39: 30 | AV39: 30 | BB39: 30 | BC39: 30 | BD39: 30 | BE39: 30 | BF39: 30 | BG39: 30 | BH39: 30 | BI39: 30 | BJ39: 30 | BK39: 30 | BL39: 30 | BM39: 0 | BN39: 0 | BP39: 5 | BQ39: 30 | BR39: 30 | BS39: 30 | BT39: 30 | BU39: 30 | BV39: 30 | BW39: 30 | BX39: 30 | BY39: 30 | BZ39: 30 | CA39: 5 | CB39: 30
A40: 0 | B40: 24 | C40: =dataumum!D32 -> WINDI PUJIA SAFITRI | D40: =dataumum!C32 -> 0093189091 | F40: P | G40: T | H40: =absen!AQ35 -> 100 | J40: Y | K40: 30 | L40: 100 | N40: Y | O40: 30 | P40: 100 | R40: Y | S40: 30 | T40: 100 | V40: Y | W40: 30 | X40: 100 | Z40: Y | AA40: 30 | AB40: 100 | AD40: Y | AE40: 30 | AF40: 100 | AH40: Y | AI40: 30 | AJ40: 100 | AL40: Y | AM40: 30 | AN40: 100 | AP40: Y | AQ40: 30 | AR40: 100 | AT40: Y | AU40: 30 | AV40: 30 | BB40: 30 | BC40: 30 | BD40: 30 | BE40: 30 | BF40: 30 | BG40: 30 | BH40: 30 | BI40: 30 | BJ40: 30 | BK40: 30 | BL40: 30 | BM40: 0 | BN40: 0 | BP40: 5 | BQ40: 30 | BR40: 30 | BS40: 30 | BT40: 30 | BU40: 30 | BV40: 30 | BW40: 30 | BX40: 30 | BY40: 30 | BZ40: 30 | CA40: 5 | CB40: 30
A41: 0 | B41: 25 | C41: =dataumum!D33 -> WULAN RESPIANI | D41: =dataumum!C33 -> 0096749734 | F41: P | G41: T | H41: =absen!AQ36 -> 100 | J41: Y | K41: 30 | L41: 100 | N41: Y | O41: 30 | P41: 100 | R41: Y | S41: 30 | T41: 100 | V41: Y | W41: 30 | X41: 100 | Z41: Y | AA41: 30 | AB41: 100 | AD41: Y | AE41: 30 | AF41: 100 | AH41: Y | AI41: 30 | AJ41: 100 | AL41: Y | AM41: 30 | AN41: 100 | AP41: Y | AQ41: 30 | AR41: 100 | AT41: Y | AU41: 30 | AV41: 30 | BB41: 30 | BC41: 30 | BD41: 30 | BE41: 30 | BF41: 30 | BG41: 30 | BH41: 30 | BI41: 30 | BJ41: 30 | BK41: 30 | BL41: 30 | BM41: 0 | BN41: 0 | BP41: 5 | BQ41: 30 | BR41: 30 | BS41: 30 | BT41: 30 | BU41: 30 | BV41: 30 | BW41: 30 | BX41: 30 | BY41: 30 | BZ41: 30 | CA41: 5 | CB41: 30
A42: 0 | B42: 26 | C42: =dataumum!D34 -> YESI DESTRIYANI | D42: =dataumum!C34 -> 0099314795 | F42: P | G42: T | H42: =absen!AQ37 -> 100 | J42: Y | K42: 30 | L42: 100 | N42: Y | O42: 30 | P42: 100 | R42: Y | S42: 30 | T42: 100 | V42: Y | W42: 30 | X42: 100 | Z42: Y | AA42: 30 | AB42: 100 | AD42: Y | AE42: 30 | AF42: 100 | AH42: Y | AI42: 30 | AJ42: 100 | AL42: Y | AM42: 30 | AN42: 100 | AP42: Y | AQ42: 30 | AR42: 100 | AT42: Y | AU42: 30 | AV42: 30 | BB42: 30 | BC42: 30 | BD42: 30 | BE42: 30 | BF42: 30 | BG42: 30 | BH42: 30 | BI42: 30 | BJ42: 30 | BK42: 30 | BL42: 30 | BM42: 0 | BN42: 0 | BP42: 5 | BQ42: 30 | BR42: 30 | BS42: 30 | BT42: 30 | BU42: 30 | BV42: 30 | BW42: 30 | BX42: 30 | BY42: 30 | BZ42: 30 | CA42: 5 | CB42: 30
A43: 1 | B43: 27 | C43: =dataumum!D35 -> 0 | D43: =dataumum!C35 -> 0 | H43: =absen!AQ38 ->  | J43: X | N43: X | R43: X | V43: X | Z43: X | AD43: X | AH43: X | AL43: X | AP43: X | AT43: X | BM43: 0 | BN43: 0 | BP43: 5 | CA43: 5
A44: 1 | B44: 28 | C44: =dataumum!D36 -> 0 | D44: =dataumum!C36 -> 0 | H44: =absen!AQ39 ->  | J44: X | N44: X | R44: X | V44: X | Z44: X | AD44: X | AH44: X | AL44: X | AP44: X | AT44: X | BM44: 0 | BN44: 0 | BP44: 5 | CA44: 5
A45: 1 | B45: 29 | C45: =dataumum!D37 -> 0 | D45: =dataumum!C37 -> 0 | H45: =absen!AQ40 ->  | J45: X | N45: X | R45: X | V45: X | Z45: X | AD45: X | AH45: X | AL45: X | AP45: X | AT45: X | BM45: 0 | BN45: 0 | BP45: 5 | CA45: 5
A46: 1 | B46: 30 | C46: =dataumum!D38 -> 0 | D46: =dataumum!C38 -> 0 | H46: =absen!AQ41 ->  | J46: X | N46: X | R46: X | V46: X | Z46: X | AD46: X | AH46: X | AL46: X | AP46: X | AT46: X | BM46: 0 | BN46: 0 | BP46: 5 | CA46: 5
A47: 1 | B47: 31 | C47: =dataumum!D39 -> 0 | D47: =dataumum!C39 -> 0 | H47: =absen!AQ42 ->  | J47: X | N47: X | R47: X | V47: X | Z47: X | AD47: X | AH47: X | AL47: X | AP47: X | AT47: X | BM47: 0 | BN47: 0 | BP47: 5 | CA47: 5
A48: 1 | B48: 32 | C48: =dataumum!D40 -> 0 | D48: =dataumum!C40 -> 0 | H48: =absen!AQ43 ->  | J48: X | N48: X | R48: X | V48: X | Z48: X | AD48: X | AH48: X | AL48: X | AP48: X | AT48: X | BM48: 0 | BN48: 0 | BP48: 5 | CA48: 5
A49: 1 | B49: 33 | C49: =dataumum!D41 -> 0 | D49: =dataumum!C41 -> 0 | H49: =absen!AQ44 ->  | J49: X | N49: X | R49: X | V49: X | Z49: X | AD49: X | AH49: X | AL49: X | AP49: X | AT49: X | BM49: 0 | BN49: 0 | BP49: 5 | CA49: 5
A50: 1 | B50: 34 | C50: =dataumum!D42 -> 0 | D50: =dataumum!C42 -> 0 | H50: =absen!AQ45 ->  | J50: X | N50: X | R50: X | V50: X | Z50: X | AD50: X | AH50: X | AL50: X | AP50: X | AT50: X | BM50: 0 | BN50: 0 | BP50: 5 | CA50: 5
A51: 1 | B51: 35 | C51: =dataumum!D43 -> 0 | D51: =dataumum!C43 -> 0 | H51: =absen!AQ46 ->  | J51: X | N51: X | R51: X | V51: X | Z51: X | AD51: X | AH51: X | AL51: X | AP51: X | AT51: X | BM51: 0 | BN51: 0 | BP51: 5 | CA51: 5
A52: 1 | B52: 36 | C52: =dataumum!D44 -> 0 | D52: =dataumum!C44 -> 0 | H52: =absen!AQ47 ->  | J52: X | N52: X | R52: X | V52: X | Z52: X | AD52: X | AH52: X | AL52: X | AP52: X | AT52: X | BM52: 0 | BN52: 0 | BP52: 5 | CA52: 5
A53: 1 | B53: 37 | C53: =dataumum!D45 -> 0 | D53: =dataumum!C45 -> 0 | H53: =absen!AQ48 ->  | J53: X | N53: X | R53: X | V53: X | Z53: X | AD53: X | AH53: X | AL53: X | AP53: X | AT53: X | BM53: 0 | BN53: 0 | BP53: 5 | CA53: 5
A54: 1 | B54: 38 | C54: =dataumum!D46 -> 0 | D54: =dataumum!C46 -> 0 | H54: =absen!AQ49 ->  | J54: X | N54: X | R54: X | V54: X | Z54: X | AD54: X | AH54: X | AL54: X | AP54: X | AT54: X | BM54: 0 | BN54: 0 | BP54: 5 | CA54: 5
A55: 1 | B55: 39 | C55: =dataumum!D47 -> 0 | D55: =dataumum!C47 -> 0 | H55: =absen!AQ50 ->  | J55: X | N55: X | R55: X | V55: X | Z55: X | AD55: X | AH55: X | AL55: X | AP55: X | AT55: X | BM55: 0 | BN55: 0 | BP55: 5 | CA55: 5
A56: 1 | B56: 40 | C56: =dataumum!D48 -> 0 | D56: =dataumum!C48 -> 0 | H56: =absen!AQ51 ->  | J56: X | N56: X | R56: X | V56: X | Z56: X | AD56: X | AH56: X | AL56: X | AP56: X | AT56: X | BM56: 0 | BN56: 0 | BP56: 5 | CA56: 5
B57: Rata-rata Kelas | H57: =IFERROR(AVERAGEIF(H17:H56,"<>0"),"") -> 100 | I57: =IFERROR(AVERAGEIF(I17:I56,"<>0"),"") ->  | J57: =IFERROR(IF(K57<$BL$15,$BK$15,$BJ$15),"") -> Y | K57: =ROUNDUP(IFERROR(AVERAGEIF(K17:K56,"<>0"),""),0) -> 30 | L57: =IFERROR(AVERAGEIF(L17:L56,"<>0"),"") -> 100 | M57: =IFERROR(AVERAGEIF(M17:M56,"<>0"),"") ->  | N57: =IFERROR(IF(O57<$BL$15,$BK$15,$BJ$15),"") -> Y | O57: =ROUNDUP(IFERROR(AVERAGEIF(O17:O56,"<>0"),""),0) -> 30 | P57: =IFERROR(AVERAGEIF(P17:P56,"<>0"),"") -> 100 | Q57: =IFERROR(AVERAGEIF(Q17:Q56,"<>0"),"") ->  | R57: =IFERROR(IF(S57<$BL$15,$BK$15,$BJ$15),"") -> Y | S57: =ROUNDUP(IFERROR(AVERAGEIF(S17:S56,"<>0"),""),0) -> 30 | T57: =IFERROR(AVERAGEIF(T17:T56,"<>0"),"") -> 100 | U57: =IFERROR(AVERAGEIF(U17:U56,"<>0"),"") ->  | V57: =IFERROR(IF(W57<$BL$15,$BK$15,$BJ$15),"") -> Y | W57: =ROUNDUP(IFERROR(AVERAGEIF(W17:W56,"<>0"),""),0) -> 30 | X57: =IFERROR(AVERAGEIF(X17:X56,"<>0"),"") -> 100 | Y57: =IFERROR(AVERAGEIF(Y17:Y56,"<>0"),"") ->  | Z57: =IFERROR(IF(AA57<$BL$15,$BK$15,$BJ$15),"") -> Y | AA57: =ROUNDUP(IFERROR(AVERAGEIF(AA17:AA56,"<>0"),""),0) -> 30 | AB57: =IFERROR(AVERAGEIF(AB17:AB56,"<>0"),"") -> 100 | AC57: =IFERROR(AVERAGEIF(AC17:AC56,"<>0"),"") ->  | AD57: =IFERROR(IF(AE57<$BL$15,$BK$15,$BJ$15),"") -> Y | AE57: =ROUNDUP(IFERROR(AVERAGEIF(AE17:AE56,"<>0"),""),0) -> 30 | AF57: =IFERROR(AVERAGEIF(AF17:AF56,"<>0"),"") -> 100 | AG57: =IFERROR(AVERAGEIF(AG17:AG56,"<>0"),"") ->  | AH57: =IFERROR(IF(AI57<$BL$15,$BK$15,$BJ$15),"") -> Y | AI57: =ROUNDUP(IFERROR(AVERAGEIF(AI17:AI56,"<>0"),""),0) -> 30 | AJ57: =IFERROR(AVERAGEIF(AJ17:AJ56,"<>0"),"") -> 100 | AK57: =IFERROR(AVERAGEIF(AK17:AK56,"<>0"),"") ->  | AL57: =IFERROR(IF(AM57<$BL$15,$BK$15,$BJ$15),"") -> Y | AM57: =ROUNDUP(IFERROR(AVERAGEIF(AM17:AM56,"<>0"),""),0) -> 30 | AN57: =IFERROR(AVERAGEIF(AN17:AN56,"<>0"),"") -> 100 | AO57: =IFERROR(AVERAGEIF(AO17:AO56,"<>0"),"") ->  | AP57: =IFERROR(IF(AQ57<$BL$15,$BK$15,$BJ$15),"") -> Y | AQ57: =ROUNDUP(IFERROR(AVERAGEIF(AQ17:AQ56,"<>0"),""),0) -> 30 | AR57: =IFERROR(AVERAGEIF(AR17:AR56,"<>0"),"") -> 100 | AS57: =IFERROR(AVERAGEIF(AS17:AS56,"<>0"),"") ->  | AT57: =IFERROR(IF(AU57<$BL$15,$BK$15,$BJ$15),"") -> Y | AU57: =ROUNDUP(IFERROR(AVERAGEIF(AU17:AU56,"<>0"),""),0) -> 30 | AV57: =ROUNDUP(IFERROR(AVERAGEIF(AV17:AV56,"<>0"),""),0) -> 30 | AW57: =IFERROR(AVERAGEIF(AW17:AW56,"<>0"),"") -> 85 | AX57: =IFERROR(AVERAGEIF(AX17:AX56,"<>0"),"") ->  | AY57: =IFERROR(AVERAGEIF(AY17:AY56,"<>0"),"") -> 85 | AZ57: =IFERROR(AVERAGEIF(AZ17:AZ56,"<>0"),"") -> 46.5
B58: Tanggal Pelaksanaan Sumatif

Sheet absen
B2: DAFTAR KEHADIRAN PESERTA DIDIK
B4: Nama Mata Pelajaran | D4: : | E4: =dataumum!G8 -> Kimia | AL4: Keterangan :
B5: Kelas | D5: : | E5: =dataumum!G11 -> X-D | AL5: Masuk | AN5: : 1
B6: Semester | D6: : | E6: =dataumum!G9 -> 2 (Genap) | AL6: Sakit | AN6: : 2
B7: Tahun Ajaran | D7: : | E7: =dataumum!G10 -> 2025/2026 | AL7: Izin | AN7: : 3
B8: Nama Guru Pengampu | D8: : | E8: =dataumum!G6 -> Arief Pribadi, S.Si | AL8: Alpa | AN8: : 4
AN9: =dataumum!H20 -> versi 07.01.26 by AP_11
B10: No | C10: Nama Peserta Didik | D10: NISN | F10: Gender (L/P) | G10: Inklusi (Y/T) | H10: Tanggal / Bulan / Tahun | AL10: Rekap per Semester
H11: 2026-01-05 | AL11: Masuk | AM11: Sakit | AN11: Izin | AO11: Alpa | AP11: Jumlah Pertemuan | AQ11: % Kehadiran
A12: =COUNT(D12) -> 0 | B12: 1 | C12: =dataumum!D9 -> AHMAD JAMIL MUNAWAR | D12: =dataumum!C9 -> 0095527100 | F12: =semester!F17 -> L | G12: =semester!G17 -> T | H12: 1 | AL12: =IF(COUNTIF(H12:AK12,"1")=0," ",COUNTIF(H12:AK12,"1")) -> 1 | AM12: =IF(COUNTIF(H12:AK12,"2")=0," ",COUNTIF(H12:AK12,"2")) ->  | AN12: =IF(COUNTIF(H12:AK12,"3")=0," ",COUNTIF(H12:AK12,"3")) ->  | AO12: =IF(COUNTIF(H12:AK12,"4")=0," ",COUNTIF(H12:AK12,"4")) ->  | AP12: =IF(COUNT(H12:AK12)=0,"",COUNT(H12:AK12)) -> 1 | AQ12: =IF(IFERROR(ROUNDUP(((AL12/AP12)*100),0),"")=0,"",IFERROR(ROUNDUP(((AL12/AP12)*100),0),"")) -> 100
A13: =COUNT(D13) -> 0 | B13: 2 | C13: =dataumum!D10 -> AKBAR NUGRAHA | D13: =dataumum!C10 -> 0108689880 | F13: =semester!F18 -> L | G13: =semester!G18 -> T | H13: 4 | AL13: =IF(COUNTIF(H13:AK13,"1")=0," ",COUNTIF(H13:AK13,"1")) ->  | AM13: =IF(COUNTIF(H13:AK13,"2")=0," ",COUNTIF(H13:AK13,"2")) ->  | AN13: =IF(COUNTIF(H13:AK13,"3")=0," ",COUNTIF(H13:AK13,"3")) ->  | AO13: =IF(COUNTIF(H13:AK13,"4")=0," ",COUNTIF(H13:AK13,"4")) -> 1 | AP13: =IF(COUNT(H13:AK13)=0,"",COUNT(H13:AK13)) -> 1 | AQ13: =IF(IFERROR(ROUNDUP(((AL13/AP13)*100),0),"")=0,"",IFERROR(ROUNDUP(((AL13/AP13)*100),0),"")) -> 
A14: 0 | B14: 3 | C14: =dataumum!D11 -> ALSA NAPILA ABALIA | D14: =dataumum!C11 -> 0101457073 | F14: =semester!F19 -> P | G14: =semester!G19 -> T | H14: 1 | AL14: 1 | AP14: 1 | AQ14: 100
A15: 0 | B15: 4 | C15: =dataumum!D12 -> ALWAN FAJRUL HAKIM | D15: =dataumum!C12 -> 3098669460 | F15: =semester!F20 -> L | G15: =semester!G20 -> T | H15: 1 | AL15: 1 | AP15: 1 | AQ15: 100
A16: 0 | B16: 5 | C16: =dataumum!D13 -> ANDIKA | D16: =dataumum!C13 -> 0097476054 | F16: =semester!F21 -> L | G16: =semester!G21 -> T | H16: 1 | AL16: 1 | AP16: 1 | AQ16: 100
A17: 0 | B17: 6 | C17: =dataumum!D14 -> CHINTIA NUR AZIZAH | D17: =dataumum!C14 -> 0107479079 | F17: =semester!F22 -> P | G17: =semester!G22 -> T | H17: 4 | AO17: 1 | AP17: 1
A18: 0 | B18: 7 | C18: =dataumum!D15 -> DEDE AULIA | D18: =dataumum!C15 -> 0095178395 | F18: =semester!F23 -> P | G18: =semester!G23 -> T | H18: 1 | AL18: 1 | AP18: 1 | AQ18: 100
A19: 0 | B19: 8 | C19: =dataumum!D16 -> DIRLI PIRMANSAH REZA | D19: =dataumum!C16 -> 0097071532 | F19: =semester!F24 -> L | G19: =semester!G24 -> T | H19: 4 | AO19: 1 | AP19: 1
A20: 0 | B20: 9 | C20: =dataumum!D17 -> EKSEL | D20: =dataumum!C17 -> 0085525399 | F20: =semester!F25 -> L | G20: =semester!G25 -> T | H20: 4 | AO20: 1 | AP20: 1
A21: 0 | B21: 10 | C21: =dataumum!D18 -> FADLAN APANDI | D21: =dataumum!C18 -> 0099271082 | F21: =semester!F26 -> L | G21: =semester!G26 -> T | H21: 1 | AL21: 1 | AP21: 1 | AQ21: 100
A22: 0 | B22: 11 | C22: =dataumum!D19 -> HAYA MADIHATUL ISMAH | D22: =dataumum!C19 -> 3109814391 | F22: =semester!F27 -> P | G22: =semester!G27 -> T | H22: 1 | AL22: 1 | AP22: 1 | AQ22: 100
A23: 0 | B23: 12 | C23: =dataumum!D20 -> HIKAYATUL JABAL | D23: =dataumum!C20 -> 3094762585 | F23: =semester!F28 -> L | G23: =semester!G28 -> T | H23: 4 | AO23: 1 | AP23: 1
A24: 0 | B24: 13 | C24: =dataumum!D21 -> IHSAN NURSALAM | D24: =dataumum!C21 -> 0105251526 | F24: =semester!F29 -> L | G24: =semester!G29 -> T | H24: 4 | AO24: 1 | AP24: 1
A25: 0 | B25: 14 | C25: =dataumum!D22 -> IZAD NOOR JAMAN | D25: =dataumum!C22 -> 3095547483 | F25: =semester!F30 -> L | G25: =semester!G30 -> T | H25: 1 | AL25: 1 | AP25: 1 | AQ25: 100
A26: 0 | B26: 15 | C26: =dataumum!D23 -> JIHAN NURROHMAH SEPTIRA | D26: =dataumum!C23 -> 0093659815 | F26: =semester!F31 -> P | G26: =semester!G31 -> T | H26: 1 | AL26: 1 | AP26: 1 | AQ26: 100
A27: 0 | B27: 16 | C27: =dataumum!D24 -> KAKA SEPTIAN | D27: =dataumum!C24 -> 3090540244 | F27: =semester!F32 -> L | G27: =semester!G32 -> T | H27: 4 | AO27: 1 | AP27: 1
A28: 0 | B28: 17 | C28: =dataumum!D25 -> LUTPI | D28: =dataumum!C25 -> 0088283383 | F28: =semester!F33 -> L | G28: =semester!G33 -> T | H28: 4 | AO28: 1 | AP28: 1
A29: 0 | B29: 18 | C29: =dataumum!D26 -> M SUGIH MIWAHA | D29: =dataumum!C26 -> 3096008382 | F29: =semester!F34 -> L | G29: =semester!G34 -> T | H29: 1 | AL29: 1 | AP29: 1 | AQ29: 100
A30: 0 | B30: 19 | C30: =dataumum!D27 -> MUHLIS | D30: =dataumum!C27 -> 0093656626 | F30: =semester!F35 -> L | G30: =semester!G35 -> T | H30: 4 | AO30: 1 | AP30: 1
A31: 0 | B31: 20 | C31: =dataumum!D28 -> NURAFIFAH FAUZIAH | D31: =dataumum!C28 -> 0097902846 | F31: =semester!F36 -> P | G31: =semester!G36 -> T | H31: 1 | AL31: 1 | AP31: 1 | AQ31: 100
A32: 0 | B32: 21 | C32: =dataumum!D29 -> REPAN | D32: =dataumum!C29 -> 0088756415 | F32: =semester!F37 -> L | G32: =semester!G37 -> T | H32: 4 | AO32: 1 | AP32: 1
A33: 0 | B33: 22 | C33: =dataumum!D30 -> REZA NURUL WILDAN | D33: =dataumum!C30 -> 0095868392 | F33: =semester!F38 -> L | G33: =semester!G38 -> T | H33: 1 | AL33: 1 | AP33: 1 | AQ33: 100
A34: 0 | B34: 23 | C34: =dataumum!D31 -> SYIFA NURJANAH | D34: =dataumum!C31 -> 3095334952 | F34: =semester!F39 -> P | G34: =semester!G39 -> T | H34: 1 | AL34: 1 | AP34: 1 | AQ34: 100
A35: 0 | B35: 24 | C35: =dataumum!D32 -> WINDI PUJIA SAFITRI | D35: =dataumum!C32 -> 0093189091 | F35: =semester!F40 -> P | G35: =semester!G40 -> T | H35: 1 | AL35: 1 | AP35: 1 | AQ35: 100
A36: 0 | B36: 25 | C36: =dataumum!D33 -> WULAN RESPIANI | D36: =dataumum!C33 -> 0096749734 | F36: =semester!F41 -> P | G36: =semester!G41 -> T | H36: 1 | AL36: 1 | AP36: 1 | AQ36: 100
A37: 0 | B37: 26 | C37: =dataumum!D34 -> YESI DESTRIYANI | D37: =dataumum!C34 -> 0099314795 | F37: =semester!F42 -> P | G37: =semester!G42 -> T | H37: 1 | AL37: 1 | AP37: 1 | AQ37: 100
A38: 1 | B38: 27 | C38: =dataumum!D35 -> 0 | D38: =dataumum!C35 -> 0 | F38: =semester!F43 -> 0 | G38: =semester!G43 -> 0
A39: 1 | B39: 28 | C39: =dataumum!D36 -> 0 | D39: =dataumum!C36 -> 0 | F39: =semester!F44 -> 0 | G39: =semester!G44 -> 0
A40: 1 | B40: 29 | C40: =dataumum!D37 -> 0 | D40: =dataumum!C37 -> 0 | F40: =semester!F45 -> 0 | G40: =semester!G45 -> 0
A41: 1 | B41: 30 | C41: =dataumum!D38 -> 0 | D41: =dataumum!C38 -> 0 | F41: =semester!F46 -> 0 | G41: =semester!G46 -> 0
A42: 1 | B42: 31 | C42: =dataumum!D39 -> 0 | D42: =dataumum!C39 -> 0 | F42: =semester!F47 -> 0 | G42: =semester!G47 -> 0
A43: 1 | B43: 32 | C43: =dataumum!D40 -> 0 | D43: =dataumum!C40 -> 0 | F43: =semester!F48 -> 0 | G43: =semester!G48 -> 0
A44: 1 | B44: 33 | C44: =dataumum!D41 -> 0 | D44: =dataumum!C41 -> 0 | F44: =semester!F49 -> 0 | G44: =semester!G49 -> 0
A45: 1 | B45: 34 | C45: =dataumum!D42 -> 0 | D45: =dataumum!C42 -> 0 | F45: =semester!F50 -> 0 | G45: =semester!G50 -> 0
A46: 1 | B46: 35 | C46: =dataumum!D43 -> 0 | D46: =dataumum!C43 -> 0 | F46: =semester!F51 -> 0 | G46: =semester!G51 -> 0
A47: 1 | B47: 36 | C47: =dataumum!D44 -> 0 | D47: =dataumum!C44 -> 0 | F47: =semester!F52 -> 0 | G47: =semester!G52 -> 0
A48: 1 | B48: 37 | C48: =dataumum!D45 -> 0 | D48: =dataumum!C45 -> 0 | F48: =semester!F53 -> 0 | G48: =semester!G53 -> 0
A49: 1 | B49: 38 | C49: =dataumum!D46 -> 0 | D49: =dataumum!C46 -> 0 | F49: =semester!F54 -> 0 | G49: =semester!G54 -> 0
A50: 1 | B50: 39 | C50: =dataumum!D47 -> 0 | D50: =dataumum!C47 -> 0 | F50: =semester!F55 -> 0 | G50: =semester!G55 -> 0
A51: 1 | B51: 40 | C51: =dataumum!D48 -> 0 | D51: =dataumum!C48 -> 0 | F51: =semester!F56 -> 0 | G51: =semester!G56 -> 0
C52: Jumlah siswa yang hadir | H52: =COUNTIF(H12:H51,"1") -> 16 | I52: =COUNTIF(I12:I51,"1") -> 0 | J52: 0 | K52: 0 | L52: 0 | M52: 0 | N52: 0 | O52: 0 | P52: 0 | Q52: 0 | R52: 0 | S52: 0 | T52: 0 | U52: 0 | V52: 0 | W52: 0 | X52: 0 | Y52: 0 | Z52: 0 | AA52: 0 | AB52: 0 | AC52: 0 | AD52: 0 | AE52: 0 | AF52: 0 | AG52: 0 | AH52: 0 | AI52: 0 | AJ52: 0 | AK52: 0 | AL52: Rata-rata Kehadiran Siswa | AQ52: =IFERROR(AVERAGEIF(AQ12:AQ51,"<>0"),"") -> 100
C53: Jumlah siswa yang tidak hadir | H53: =H54-H52 -> 10 | I53: =I54-I52 -> 26 | J53: 26 | K53: 26 | L53: 26 | M53: 26 | N53: 26 | O53: 26 | P53: 26 | Q53: 26 | R53: 26 | S53: 26 | T53: 26 | U53: 26 | V53: 26 | W53: 26 | X53: 26 | Y53: 26 | Z53: 26 | AA53: 26 | AB53: 26 | AC53: 26 | AD53: 26 | AE53: 26 | AF53: 26 | AG53: 26 | AH53: 26 | AI53: 26 | AJ53: 26 | AK53: 26
C54: Jumlah siswa keseluruhan | H54: =dataumum!$D$49 -> 26 | I54: =dataumum!$D$49 -> 26 | J54: =dataumum!$D$49 -> 26 | K54: =dataumum!$D$49 -> 26 | L54: =dataumum!$D$49 -> 26 | M54: =dataumum!$D$49 -> 26 | N54: =dataumum!$D$49 -> 26 | O54: =dataumum!$D$49 -> 26 | P54: =dataumum!$D$49 -> 26 | Q54: =dataumum!$D$49 -> 26 | R54: =dataumum!$D$49 -> 26 | S54: =dataumum!$D$49 -> 26 | T54: =dataumum!$D$49 -> 26 | U54: =dataumum!$D$49 -> 26 | V54: =dataumum!$D$49 -> 26 | W54: =dataumum!$D$49 -> 26 | X54: =dataumum!$D$49 -> 26 | Y54: =dataumum!$D$49 -> 26 | Z54: =dataumum!$D$49 -> 26 | AA54: =dataumum!$D$49 -> 26 | AB54: =dataumum!$D$49 -> 26 | AC54: =dataumum!$D$49 -> 26 | AD54: =dataumum!$D$49 -> 26 | AE54: =dataumum!$D$49 -> 26 | AF54: =dataumum!$D$49 -> 26 | AG54: =dataumum!$D$49 -> 26 | AH54: =dataumum!$D$49 -> 26 | AI54: =dataumum!$D$49 -> 26 | AJ54: =dataumum!$D$49 -> 26 | AK54: =dataumum!$D$49 -> 26
D57: Mengetahui, | AC57: =jurnalmengajar!$G$113 -> Tasikmalaya, 31 Januari 2026
D58: Kepala Madrasah | AC58: =jurnalmengajar!$G$114 -> Guru Kimia
D63: Enjang, S.Ag., M.Pd.I. | AC63: =jurnalmengajar!$G$118 -> Arief Pribadi, S.Si
D64: NIP. 197406152005011006 | AC64: =jurnalmengajar!$G$119 -> NIP. 198603112020121005
C67: Keterangan :
C68: 1 : Masuk
C69: 2 : Sakit
C70: 3 : Izin
C71: 4 : Alpa

Sheet sikap
B2: LAPORAN PENILAIAN SIKAP
B4: Nama Mata Pelajaran | D4: : | E4: =dataumum!G8 -> Kimia
B5: Kelas | D5: : | E5: =dataumum!G11 -> X-D
B6: Semester | D6: : | E6: =dataumum!G9 -> 2 (Genap)
B7: Tahun Ajaran | D7: : | E7: =dataumum!G10 -> 2025/2026
B8: Nama Guru Pengampu | D8: : | E8: =dataumum!G6 -> Arief Pribadi, S.Si
B10: No | C10: Nama Peserta Didik | D10: NISN | F10: Gender (L/P) | G10: Inklusi (Y/T) | H10: Observasi Pembelajaran | U10: Nilai | V10: Capaian Pembelajaran | W10: Catatan
H11: Kerja sama | I11: Disiplin | J11: Kepedulian | K11: Hidup bersih | L11: Perilaku jujur | M11: Kum. | N11: Penilaian Umum | O11: Beralar kritis | P11: Kreatif | Q11: Innovatif | R11: Ide & Gagasan | S11: Kum | T11: Penilaian Umum
H12: Sikap Sosial | O12: Sikap Ilmiah
A13: =COUNT(C13) -> 0 | B13: 1 | C13: =dataumum!D9 -> AHMAD JAMIL MUNAWAR | D13: =dataumum!C9 -> 0095527100 | F13: =semester!F17 -> L | G13: =semester!G17 -> T | H13: 3 | I13: 2 | J13: 4 | K13: 1 | L13: 4 | M13: =IFERROR(SUM(H13:L13)/5,0) -> 2.8 | N13: =IF(M13<=2.5,"C",IF(M13<=3.25,"B",IF(M13<=4,"A","E"))) -> B | O13: 2 | P13: 3 | Q13: 3 | R13: 4 | S13: =IFERROR(SUM(O13:R13)/4,0) -> 3 | T13: =IF(S13<=2.5,"C",IF(S13<=3.25,"B",IF(S13<=4,"A","E"))) -> B | U13: =semester!AZ17 -> 48
A14: =COUNT(C14) -> 0 | B14: 2 | C14: =dataumum!D10 -> AKBAR NUGRAHA | D14: =dataumum!C10 -> 0108689880 | F14: =semester!F18 -> L | G14: =semester!G18 -> T | H14: 4 | I14: 4 | J14: 4 | K14: 3 | L14: 2 | M14: =IFERROR(SUM(H14:L14)/5,0) -> 3.4 | N14: =IF(M14<=2.5,"C",IF(M14<=3.25,"B",IF(M14<=4,"A","E"))) -> A | O14: 2 | P14: 2 | Q14: 3 | R14: 4 | S14: =IFERROR(SUM(O14:R14)/4,0) -> 2.75 | T14: =IF(S14<=2.5,"C",IF(S14<=3.25,"B",IF(S14<=4,"A","E"))) -> B | U14: =semester!AZ18 -> 
A15: 0 | B15: 3 | C15: =dataumum!D11 -> ALSA NAPILA ABALIA | D15: =dataumum!C11 -> 0101457073 | F15: =semester!F19 -> P | G15: =semester!G19 -> T | M15: 0 | N15: C | S15: 0 | T15: C | U15: =semester!AZ19 -> 45
A16: 0 | B16: 4 | C16: =dataumum!D12 -> ALWAN FAJRUL HAKIM | D16: =dataumum!C12 -> 3098669460 | F16: =semester!F20 -> L | G16: =semester!G20 -> T | M16: 0 | N16: C | S16: 0 | T16: C | U16: =semester!AZ20 -> 
A17: 0 | B17: 5 | C17: =dataumum!D13 -> ANDIKA | D17: =dataumum!C13 -> 0097476054 | F17: =semester!F21 -> L | G17: =semester!G21 -> T | M17: 0 | N17: C | S17: 0 | T17: C | U17: =semester!AZ21 -> 
A18: 0 | B18: 6 | C18: =dataumum!D14 -> CHINTIA NUR AZIZAH | D18: =dataumum!C14 -> 0107479079 | F18: =semester!F22 -> P | G18: =semester!G22 -> T | M18: 0 | N18: C | S18: 0 | T18: C | U18: =semester!AZ22 -> 
A19: 0 | B19: 7 | C19: =dataumum!D15 -> DEDE AULIA | D19: =dataumum!C15 -> 0095178395 | F19: =semester!F23 -> P | G19: =semester!G23 -> T | M19: 0 | N19: C | S19: 0 | T19: C | U19: =semester!AZ23 -> 
A20: 0 | B20: 8 | C20: =dataumum!D16 -> DIRLI PIRMANSAH REZA | D20: =dataumum!C16 -> 0097071532 | F20: =semester!F24 -> L | G20: =semester!G24 -> T | M20: 0 | N20: C | S20: 0 | T20: C | U20: =semester!AZ24 -> 
A21: 0 | B21: 9 | C21: =dataumum!D17 -> EKSEL | D21: =dataumum!C17 -> 0085525399 | F21: =semester!F25 -> L | G21: =semester!G25 -> T | M21: 0 | N21: C | S21: 0 | T21: C | U21: =semester!AZ25 -> 
A22: 0 | B22: 10 | C22: =dataumum!D18 -> FADLAN APANDI | D22: =dataumum!C18 -> 0099271082 | F22: =semester!F26 -> L | G22: =semester!G26 -> T | M22: 0 | N22: C | S22: 0 | T22: C | U22: =semester!AZ26 -> 
A23: 0 | B23: 11 | C23: =dataumum!D19 -> HAYA MADIHATUL ISMAH | D23: =dataumum!C19 -> 3109814391 | F23: =semester!F27 -> P | G23: =semester!G27 -> T | M23: 0 | N23: C | S23: 0 | T23: C | U23: =semester!AZ27 -> 
A24: 0 | B24: 12 | C24: =dataumum!D20 -> HIKAYATUL JABAL | D24: =dataumum!C20 -> 3094762585 | F24: =semester!F28 -> L | G24: =semester!G28 -> T | M24: 0 | N24: C | S24: 0 | T24: C | U24: =semester!AZ28 -> 
A25: 0 | B25: 13 | C25: =dataumum!D21 -> IHSAN NURSALAM | D25: =dataumum!C21 -> 0105251526 | F25: =semester!F29 -> L | G25: =semester!G29 -> T | M25: 0 | N25: C | S25: 0 | T25: C | U25: =semester!AZ29 -> 
A26: 0 | B26: 14 | C26: =dataumum!D22 -> IZAD NOOR JAMAN | D26: =dataumum!C22 -> 3095547483 | F26: =semester!F30 -> L | G26: =semester!G30 -> T | M26: 0 | N26: C | S26: 0 | T26: C | U26: =semester!AZ30 -> 
A27: 0 | B27: 15 | C27: =dataumum!D23 -> JIHAN NURROHMAH SEPTIRA | D27: =dataumum!C23 -> 0093659815 | F27: =semester!F31 -> P | G27: =semester!G31 -> T | M27: 0 | N27: C | S27: 0 | T27: C | U27: =semester!AZ31 -> 
A28: 0 | B28: 16 | C28: =dataumum!D24 -> KAKA SEPTIAN | D28: =dataumum!C24 -> 3090540244 | F28: =semester!F32 -> L | G28: =semester!G32 -> T | M28: 0 | N28: C | S28: 0 | T28: C | U28: =semester!AZ32 -> 
A29: 0 | B29: 17 | C29: =dataumum!D25 -> LUTPI | D29: =dataumum!C25 -> 0088283383 | F29: =semester!F33 -> L | G29: =semester!G33 -> T | M29: 0 | N29: C | S29: 0 | T29: C | U29: =semester!AZ33 -> 
A30: 0 | B30: 18 | C30: =dataumum!D26 -> M SUGIH MIWAHA | D30: =dataumum!C26 -> 3096008382 | F30: =semester!F34 -> L | G30: =semester!G34 -> T | M30: 0 | N30: C | S30: 0 | T30: C | U30: =semester!AZ34 -> 
A31: 0 | B31: 19 | C31: =dataumum!D27 -> MUHLIS | D31: =dataumum!C27 -> 0093656626 | F31: =semester!F35 -> L | G31: =semester!G35 -> T | M31: 0 | N31: C | S31: 0 | T31: C | U31: =semester!AZ35 -> 
A32: 0 | B32: 20 | C32: =dataumum!D28 -> NURAFIFAH FAUZIAH | D32: =dataumum!C28 -> 0097902846 | F32: =semester!F36 -> P | G32: =semester!G36 -> T | M32: 0 | N32: C | S32: 0 | T32: C | U32: =semester!AZ36 -> 
A33: 0 | B33: 21 | C33: =dataumum!D29 -> REPAN | D33: =dataumum!C29 -> 0088756415 | F33: =semester!F37 -> L | G33: =semester!G37 -> T | M33: 0 | N33: C | S33: 0 | T33: C | U33: =semester!AZ37 -> 
A34: 0 | B34: 22 | C34: =dataumum!D30 -> REZA NURUL WILDAN | D34: =dataumum!C30 -> 0095868392 | F34: =semester!F38 -> L | G34: =semester!G38 -> T | M34: 0 | N34: C | S34: 0 | T34: C | U34: =semester!AZ38 -> 
A35: 0 | B35: 23 | C35: =dataumum!D31 -> SYIFA NURJANAH | D35: =dataumum!C31 -> 3095334952 | F35: =semester!F39 -> P | G35: =semester!G39 -> T | M35: 0 | N35: C | S35: 0 | T35: C | U35: =semester!AZ39 -> 
A36: 0 | B36: 24 | C36: =dataumum!D32 -> WINDI PUJIA SAFITRI | D36: =dataumum!C32 -> 0093189091 | F36: =semester!F40 -> P | G36: =semester!G40 -> T | M36: 0 | N36: C | S36: 0 | T36: C | U36: =semester!AZ40 -> 
A37: 0 | B37: 25 | C37: =dataumum!D33 -> WULAN RESPIANI | D37: =dataumum!C33 -> 0096749734 | F37: =semester!F41 -> P | G37: =semester!G41 -> T | M37: 0 | N37: C | S37: 0 | T37: C | U37: =semester!AZ41 -> 
A38: 0 | B38: 26 | C38: =dataumum!D34 -> YESI DESTRIYANI | D38: =dataumum!C34 -> 0099314795 | F38: =semester!F42 -> P | G38: =semester!G42 -> T | M38: 0 | N38: C | S38: 0 | T38: C | U38: =semester!AZ42 -> 
A39: 1 | B39: 27 | C39: =dataumum!D35 -> 0 | D39: =dataumum!C35 -> 0 | F39: =semester!F43 -> 0 | G39: =semester!G43 -> 0 | M39: 0 | N39: C | S39: 0 | T39: C | U39: =semester!AZ43 -> 
A40: 1 | B40: 28 | C40: =dataumum!D36 -> 0 | D40: =dataumum!C36 -> 0 | F40: =semester!F44 -> 0 | G40: =semester!G44 -> 0 | M40: 0 | N40: C | S40: 0 | T40: C | U40: =semester!AZ44 -> 
A41: 1 | B41: 29 | C41: =dataumum!D37 -> 0 | D41: =dataumum!C37 -> 0 | F41: =semester!F45 -> 0 | G41: =semester!G45 -> 0 | M41: 0 | N41: C | S41: 0 | T41: C | U41: =semester!AZ45 -> 
A42: 1 | B42: 30 | C42: =dataumum!D38 -> 0 | D42: =dataumum!C38 -> 0 | F42: =semester!F46 -> 0 | G42: =semester!G46 -> 0 | M42: 0 | N42: C | S42: 0 | T42: C | U42: =semester!AZ46 -> 
A43: 1 | B43: 31 | C43: =dataumum!D39 -> 0 | D43: =dataumum!C39 -> 0 | F43: =semester!F47 -> 0 | G43: =semester!G47 -> 0 | M43: 0 | N43: C | S43: 0 | T43: C | U43: =semester!AZ47 -> 
A44: 1 | B44: 32 | C44: =dataumum!D40 -> 0 | D44: =dataumum!C40 -> 0 | F44: =semester!F48 -> 0 | G44: =semester!G48 -> 0 | M44: 0 | N44: C | S44: 0 | T44: C | U44: =semester!AZ48 -> 
A45: 1 | B45: 33 | C45: =dataumum!D41 -> 0 | D45: =dataumum!C41 -> 0 | F45: =semester!F49 -> 0 | G45: =semester!G49 -> 0 | M45: 0 | N45: C | S45: 0 | T45: C | U45: =semester!AZ49 -> 
A46: 1 | B46: 34 | C46: =dataumum!D42 -> 0 | D46: =dataumum!C42 -> 0 | F46: =semester!F50 -> 0 | G46: =semester!G50 -> 0 | M46: 0 | N46: C | S46: 0 | T46: C | U46: =semester!AZ50 -> 
A47: 1 | B47: 35 | C47: =dataumum!D43 -> 0 | D47: =dataumum!C43 -> 0 | F47: =semester!F51 -> 0 | G47: =semester!G51 -> 0 | M47: 0 | N47: C | S47: 0 | T47: C | U47: =semester!AZ51 -> 
A48: 1 | B48: 36 | C48: =dataumum!D44 -> 0 | D48: =dataumum!C44 -> 0 | F48: =semester!F52 -> 0 | G48: =semester!G52 -> 0 | M48: 0 | N48: C | S48: 0 | T48: C | U48: =semester!AZ52 -> 
A49: 1 | B49: 37 | C49: =dataumum!D45 -> 0 | D49: =dataumum!C45 -> 0 | F49: =semester!F53 -> 0 | G49: =semester!G53 -> 0 | M49: 0 | N49: C | S49: 0 | T49: C | U49: =semester!AZ53 -> 
A50: 1 | B50: 38 | C50: =dataumum!D46 -> 0 | D50: =dataumum!C46 -> 0 | F50: =semester!F54 -> 0 | G50: =semester!G54 -> 0 | M50: 0 | N50: C | S50: 0 | T50: C | U50: =semester!AZ54 -> 
A51: 1 | B51: 39 | C51: =dataumum!D47 -> 0 | D51: =dataumum!C47 -> 0 | F51: =semester!F55 -> 0 | G51: =semester!G55 -> 0 | M51: 0 | N51: C | S51: 0 | T51: C | U51: =semester!AZ55 -> 
A52: 1 | B52: 40 | C52: =dataumum!D48 -> 0 | D52: =dataumum!C48 -> 0 | F52: =semester!F56 -> 0 | G52: =semester!G56 -> 0 | M52: 0 | N52: C | S52: 0 | T52: C | U52: =semester!AZ56 -> 

Sheet laporan
B2: Ketikkan Nomor Urut Peserta Didik | E2: 1
B4: KEMENTERIAN AGAMA REPUBLIK INDONESIA
B5: KANTOR KEMENTERIAN AGAMA KABUPATEN TASIKMALAYA
B6: MAN 4 TASIKMALAYA
B7: Jl. Sindanghurip Ds. Cikalong Kec. Cikalong Kab. Tasikmalaya 46195
B8: Website : www.man4tasikmalaya.sch.id Email : mancikalong@gmail.com
B10: LAPORAN CAPAIAN HASIL BELAJAR PESERTA DIDIK
B12: Kepada
B13: Yth. Bapak/ Ibu/ Wali Siswa
B15: Assalamu'alaikum Wr. Wb
B16: Salam hormat kami kepada Bapak/ Ibu / Wali Siswa atas nama :
B18: Nama Peserta Didik | D18: : | E18: =IFERROR(VLOOKUP(E2,semester!B17:C56,2,0),0) -> AHMAD JAMIL MUNAWAR
B19: NISN | D19: : | E19: =VLOOKUP(E2,semester!B17:E56,3) -> 0095527100
B20: Kelas | D20: : | E20: =dataumum!G11 -> X-D
B21: Mata Pelajaran | D21: : | E21: =dataumum!G8 -> Kimia
B22: Semester | D22: : | E22: =dataumum!G9 -> 2 (Genap)
B23: Tahun Ajaran | D23: : | E23: =dataumum!G10 -> 2025/2026
B24: Guru Pengampu | D24: : | E24: =dataumum!G6 -> Arief Pribadi, S.Si
B26: Sebagai bentuk tanggungjawab kami dalam membimbing putra/putri Bapak/ Ibu, berikut ini kami sampaikan laporan hasil belajar khusus untuk Mata Pelajaran yang telah tersebut pada data sebelumnya. Kami terus memantau perkembangan Ananda agar memperoleh pengetahuan dan keterampilan yang bermakna untuk persiapan masa depannya. Terima kasih atas perhatiannya.
B30: No. TP | C30: Deskripsi Capaian Pembelajaran / Tujuan Pembelajaran | E30: Nilai Formatif / Harian | L30: PENGAMATAN SIKAP | O30: Keterangan: | P30: Nilai Rapor
E31: Nilai 1 | F31: Nilai 2 | G31: Remedial | H31: Nilai | I31: Rata-Rata Kelas | J31: Tanggal | O31: 1 : Kurang
J32: Nilai 1 | O32: 2 : Cukup | P32: =IFERROR(VLOOKUP(E2,semester!B17:AZ56,61,0),0) -> 0
J33: Nilai 2 | O33: 3 : Baik
B34: =semester!J12 -> 1 | C34: =semester!H15 -> Menganalisis hubungan antara konfigurasi elektron dengan letak unsur dalam tabel periodik dan sifat keperiodikan unsur | E34: =IFERROR(VLOOKUP(E2,semester!B17:H56,7,0),0) -> 100 | F34: =IFERROR(VLOOKUP(E2,semester!B17:I56,8,0),0) -> 0 | G34: =IFERROR(VLOOKUP(E2,semester!B17:J56,9,0),0) -> Y | H34: =IFERROR(VLOOKUP(E2,semester!B17:K56,10,0),0) -> 30 | I34: =semester!K57 -> 30 | J34: =semester!H58 -> 00:00:00 | O34: 4 : Sangat Baik
J35: =semester!I58 -> 00:00:00
B36: =semester!N12 -> 2 | C36: =semester!L15 -> Menerapkan konsep stoikiometri dalam berbagai aspek kuantitatif reaksi kimia; | E36: =IFERROR(VLOOKUP(E2,semester!B17:L56,11,0),0) -> 100 | F36: =IFERROR(VLOOKUP(E2,semester!B17:M56,12,0),0) -> 0 | G36: =IFERROR(VLOOKUP(E2,semester!B17:N56,13,0),0) -> Y | H36: =IFERROR(VLOOKUP(E2,semester!B17:O56,14,0),0) -> 30 | I36: =semester!O57 -> 30 | J36: =semester!L58 -> 00:00:00 | L36: Aspek Sikap Sosial | M36: Modus | O36: Aspek Sikap Ilmiah | P36: Modus
J37: =semester!M58 -> 00:00:00 | L37: =sikap!H11 -> Kerja sama | M37: =IFERROR(VLOOKUP(E2,sikap!B13:H52,7,0),0) -> 3 | O37: =sikap!O11 -> Beralar kritis | P37: =IFERROR(VLOOKUP(E2,sikap!B13:O52,14,0),0) -> 2
B38: =semester!R12 -> 3 | C38: =semester!P15 -> Menerapkan konsep stoikiometri dalam berbagai aspek kuantitatif reaksi kimia; | E38: =IFERROR(VLOOKUP(E2,semester!B17:P56,15,0),0) -> 100 | F38: =IFERROR(VLOOKUP(E2,semester!B17:Q56,16,0),0) -> 0 | G38: =IFERROR(VLOOKUP(E2,semester!B17:R56,17,0),0) -> Y | H38: =IFERROR(VLOOKUP(E2,semester!B17:S56,18,0),0) -> 30 | I38: =semester!S57 -> 30 | J38: =semester!P58 -> 00:00:00 | L38: =sikap!I11 -> Disiplin | M38: =IFERROR(VLOOKUP(E2,sikap!B13:I52,8,0),0) -> 2 | O38: =sikap!P11 -> Kreatif | P38: =IFERROR(VLOOKUP(E2,sikap!B13:P52,15,0),0) -> 3
J39: =semester!Q58 -> 00:00:00 | L39: =sikap!J11 -> Kepedulian | M39: =IFERROR(VLOOKUP(E2,sikap!B13:J52,9,0),0) -> 4 | O39: =sikap!Q11 -> Innovatif | P39: =IFERROR(VLOOKUP(E2,sikap!B13:Q52,16,0),0) -> 3
B40: =semester!V12 -> 4 | C40: =semester!T15 -> Menerapkan konsep IPA untuk mengatasi permasalahan berkaitan dengan perubahan iklim | E40: =IFERROR(VLOOKUP(E2,semester!B17:T56,19,0),0) -> 100 | F40: =IFERROR(VLOOKUP(E2,semester!B17:U56,20,0),0) -> 0 | G40: =IFERROR(VLOOKUP(E2,semester!B17:V56,21,0),0) -> Y | H40: =IFERROR(VLOOKUP(E2,semester!B17:W56,22,0),0) -> 30 | I40: =semester!W57 -> 30 | J40: =semester!T58 -> 00:00:00 | L40: =sikap!K11 -> Hidup bersih | M40: =IFERROR(VLOOKUP(E2,sikap!B13:K52,10,0),0) -> 1 | O40: =sikap!R11 -> Ide & Gagasan | P40: =IFERROR(VLOOKUP(E2,sikap!B13:R52,17,0),0) -> 4
J41: =semester!U58 -> 00:00:00 | L41: =sikap!L11 -> Perilaku jujur | M41: =IFERROR(VLOOKUP(E2,sikap!B13:L52,11,0),0) -> 4
B42: =semester!Z12 -> 0 | C42: =semester!X15 -> 0 | E42: =IFERROR(VLOOKUP(E2,semester!B17:X56,23,0),0) -> 100 | F42: =IFERROR(VLOOKUP(E2,semester!B17:Y56,24,0),0) -> 0 | G42: =IFERROR(VLOOKUP(E2,semester!B17:Z56,25,0),0) -> Y | H42: =IFERROR(VLOOKUP(E2,semester!B17:AA56,26,0),0) -> 30 | I42: =semester!AA57 -> 30 | J42: =semester!X58 -> 00:00:00 | L42: =semester!#REF! -> 
J43: =semester!Y58 -> 00:00:00 | L43: Catatan Orang tua | O43: Catatan Guru Pengampu
B44: =semester!AD12 -> 0 | C44: =semester!AB15 -> 0 | E44: =IFERROR(VLOOKUP(E2,semester!B17:AB56,27,0),0) -> 100 | F44: =IFERROR(VLOOKUP(E2,semester!B17:AC56,28,0),0) -> 0 | G44: =IFERROR(VLOOKUP(E2,semester!B17:AD56,29,0),0) -> Y | H44: =IFERROR(VLOOKUP(E2,semester!B17:AE56,30,0),0) -> 30 | I44: =semester!AE57 -> 30 | J44: =semester!AB58 -> 00:00:00
J45: =semester!AC58 -> 00:00:00
B46: =semester!AH12 -> 0 | C46: =semester!AF15 -> 0 | E46: =IFERROR(VLOOKUP(E2,semester!B17:AF56,31,0),0) -> 100 | F46: =IFERROR(VLOOKUP(E2,semester!B17:AG56,32,0),0) -> 0 | G46: =IFERROR(VLOOKUP(E2,semester!B17:AH56,33,0),0) -> Y | H46: =IFERROR(VLOOKUP(E2,semester!B17:AI56,34,0),0) -> 30 | I46: =semester!AI57 -> 30 | J46: =semester!AF58 -> 00:00:00
J47: =semester!AG58 -> 00:00:00
B48: =semester!AL12 -> 0 | C48: =semester!AJ15 -> 0 | E48: =IFERROR(VLOOKUP(E2,semester!B17:AJ56,35,0),0) -> 100 | F48: =IFERROR(VLOOKUP(E2,semester!B17:AK56,36,0),0) -> 0 | G48: =IFERROR(VLOOKUP(E2,semester!B17:AL56,37,0),0) -> Y | H48: =IFERROR(VLOOKUP(E2,semester!B17:AM56,38,0),0) -> 30 | I48: =semester!AM57 -> 30 | J48: =semester!AJ58 -> 00:00:00 | L48: Mengetahui, | O48: =CONCATENATE("Tasikmalaya,"," ",dataumum!G18) -> Tasikmalaya,
J49: =semester!AK58 -> 00:00:00 | L49: Orang Tua / Wali Siswa | O49: Guru Pengampu
B50: =semester!AP12 -> 0 | C50: =semester!AN15 -> 0 | E50: =IFERROR(VLOOKUP(E2,semester!B17:AN56,39,0),0) -> 100 | F50: =IFERROR(VLOOKUP(E2,semester!B17:AO56,40,0),0) -> 0 | G50: =IFERROR(VLOOKUP(E2,semester!B17:AP56,41,0),0) -> Y | H50: =IFERROR(VLOOKUP(E2,semester!B17:AQ56,42,0),0) -> 30 | I50: =semester!AQ57 -> 30 | J50: =semester!AN58 -> 00:00:00
J51: =semester!AO58 -> 00:00:00
B52: =semester!AT12 -> 0 | C52: =semester!AR15 -> 0 | E52: =IFERROR(VLOOKUP(E2,semester!B17:AR56,43,0),0) -> 100 | F52: =IFERROR(VLOOKUP(E2,semester!B17:AS56,44,0),0) -> 0 | G52: =IFERROR(VLOOKUP(E2,semester!B17:AT56,45,0),0) -> Y | H52: =IFERROR(VLOOKUP(E2,semester!B17:AU56,46,0),0) -> 30 | I52: =semester!AU57 -> 30 | J52: =semester!AR58 -> 00:00:00
J53: =semester!AS58 -> 00:00:00 | O53: =dataumum!G6 -> Arief Pribadi, S.Si
B54: Persen (%) Partisipasi Semester 1 (Berjalan) | J54: =VLOOKUP(E2,absen!B12:AQ51,42,0) -> 100 | O54: =CONCATENATE("NIP."," ",dataumum!G7) -> NIP. 198603112020121005
O55: =dataumum!G19 -> X-D

Sheet cover
B2: Ketikkan Nomor Urut Peserta Didik | E2: 1
B5: LAPORAN
B6: PORTOFOLIO PESERTA DIDIK
D12: Mata Pelajaran | F12: : | G12: =dataumum!G8 -> Kimia
D13: Guru Mata Pelajaran | F13: : | G13: =dataumum!G6 -> Arief Pribadi, S.Si
D14: Kelas | F14: : | G14: =dataumum!G11 -> X-D
D15: Semester | F15: : | G15: =dataumum!G9 -> 2 (Genap)
D16: Tahun Ajaran | F16: : | G16: =dataumum!G10 -> 2025/2026
D22: Nama Peserta Didik | F22: : | G22: =IFERROR(VLOOKUP(E2,dataumum!B9:D48,3,0),0) -> AHMAD JAMIL MUNAWAR
D24: NISN | F24: : | G24: =IFERROR(VLOOKUP(E2,dataumum!B9:C48,2,0),0) -> 0095527100
B44: KEMENTERIAN AGAMA REPUBLIK INDONESIA
B45: KANTOR KEMENTERIAN AGAMA KABUPATEN TASIKMALAYA
B46: MADRASAH ALIYAH NEGERI 4 TASIKMALAYA
B47: TAHUN AJARAN 2023/2024
J48: =dataumum!G19 -> X-D

Sheet rem
B2: PROGRAM REMEDIAL / ENRICHMENT MAN 4 TASIKMALAYA
B4: Nama Guru Mapel | G4: : | H4: =dataumum!G6 -> Arief Pribadi, S.Si
B5: Mata Pelajaran | G5: : | H5: =dataumum!G8 -> Kimia
B6: Kelas | G6: : | H6: =dataumum!G11 -> X-D
B7: Semester | G7: : | H7: =dataumum!G9 -> 2 (Genap)
B8: Tahun Ajaran | G8: : | H8: =dataumum!G10 -> 2025/2026
B10: REMEDIAL | O10: ENRICHMENT / PENGAYAAN
B11: No. | C11: Nama Peserta Didik | H11: Deskripsi Profile Siswa | I11: Tgl Pelaksanaan | J11: Target KD/ CP Materi Esensial | K11: Capaian / Nilai | L11: TTD Siswa | M11: TTD Guru | O11: No. | P11: Nama Peserta Didik | U11: Deskripsi Profile Siswa | V11: Tgl Pelaksanaan | W11: Target KD/ CP Materi Esensial | X11: Capaian / Nilai | Y11: TTD Siswa | Z11: TTD Guru
B12: 1 | O12: 1
B13: 2 | O13: 2
B14: 3 | O14: 3
B15: 4 | O15: 4
B16: 5 | O16: 5
B17: 6 | O17: 6
B18: 7 | O18: 7
B19: 8 | O19: 8
B20: 9 | O20: 9
B21: 10 | O21: 10
B22: 11 | O22: 11
B23: 12 | O23: 12
B24: 13 | O24: 13
B25: 14 | O25: 14
B26: 15 | O26: 15
B27: 16 | O27: 16
B28: 17 | O28: 17
B29: 18 | O29: 18
B30: 19 | O30: 19
B31: 20 | O31: 20
B32: 21 | O32: 21
B33: 22 | O33: 22
B34: 23 | O34: 23
B35: 24 | O35: 24
B36: 25 | O36: 25
B37: 26 | O37: 26
B38: 27 | O38: 27
B39: 28 | O39: 28
B40: 29 | O40: 29
B41: 30 | O41: 30
B42: 31 | O42: 31
B43: 32 | O43: 32
B44: 33 | O44: 33
B45: 34 | O45: 34
B46: 35 | O46: 35
B47: 36 | O47: 36
B48: 37 | O48: 37
B49: 38 | O49: 38
B50: 39 | O50: 39
B51: 40 | O51: 40

Sheet jurnalmengajar
B2: JURNAL MENGAJAR GURU
B4: Nama Guru Mapel | D4: =CONCATENATE(":"," ",dataumum!G6) -> : Arief Pribadi, S.Si
B5: Mata Pelajaran | D5: =CONCATENATE(":"," ",dataumum!G8) -> : Kimia
B6: Kelas | D6: =CONCATENATE(":"," ",dataumum!G11) -> : X-D
B7: Semester | D7: =CONCATENATE(":"," ",dataumum!G9) -> : 2 (Genap)
B8: Tahun Ajaran | D8: =CONCATENATE(":"," ",dataumum!G10) -> : 2025/2026
B10: No | C10: Tanggal | D10: Jam ke- | E10: Uraian Singkat Pembelajaran | F10: Capaian/Materi | G10: Refleksi/RTL | H10: Catatan Khusus/Kasus
A11: =COUNT(C11) -> 1 | B11: 1 | C11: 2026-01-05 | D11: 4-5 | E11: Evaluasi KBM semester ganjil | F11: - | G11: - | H11: - | K11: Tempat | L11: Tasikmalaya
A12: =COUNT(C12) -> 0 | K12: Tanggal | L12: 31 Januari 2026 | M12: DIISI MANUAL OLEH GURU UNTUK PROSES PENCETAKAN
A13: 0
A14: 0
A15: 0
A16: 0
A17: 0
A18: 0
A19: 0
A20: 0
A21: 0
A22: 0
A23: 0
A24: 0
A25: 0
A26: 0
A27: 0
A28: 0
A29: 0
A30: 0
A31: 0
A32: 0
A33: 0
A34: 0
A35: 0
A36: 0
A37: 0
A38: 0
A39: 0
A40: 0
A41: 0
A42: 0
A43: 0
A44: 0
A45: 0
A46: 0
A47: 0
A48: 0
A49: 0
A50: 0
A51: 0
A52: 0
A53: 0
A54: 0
A55: 0
A56: 0
A57: 0
A58: 0
A59: 0
A60: 0
A61: 0
A62: 0
A63: 0
A64: 0
A65: 0
A66: 0
A67: 0
A68: 0
A69: 0
A70: 0
A71: 0
A72: 0
A73: 0
A74: 0
A75: 0
A76: =COUNT(C76) -> 0
A77: 0
A78: 0
A79: 0
A80: 0
A81: 0
A82: 0
A83: 0
A84: 0
A85: 0
A86: 0
A87: 0
A88: 0
A89: 0
A90: 0
A91: 0
A92: 0
A93: 0
A94: 0
A95: 0
A96: 0
A97: 0
A98: 0
A99: 0
A100: 0
A101: 0
A102: 0
A103: 0
A104: 0
A105: 0
A106: 0
A107: 0
A108: 0
A109: 0
A110: 0
D113: Mengetahui, | G113: =CONCATENATE(L11,","," ",TEXT(L12,"DD MMMM YY")) -> Tasikmalaya, 31 Januari 2026
D114: Kepala Madrasah | G114: =CONCATENATE("Guru"," ",dataumum!G8) -> Guru Kimia
D118: Enjang, S.Ag., M.Pd.I. | G118: =dataumum!G6 -> Arief Pribadi, S.Si
D119: NIP. 197406152005011006 | G119: =CONCATENATE("NIP."," ",dataumum!G7) -> NIP. 198603112020121005

Sheet jurnalsikap
B2: JURNAL PENILAIAN SIKAP
B4: Nama Guru Mapel | D4: =CONCATENATE(":"," ",dataumum!G6) -> : Arief Pribadi, S.Si
B5: Mata Pelajaran | D5: =CONCATENATE(":"," ",dataumum!G8) -> : Kimia
B6: Kelas | D6: =CONCATENATE(":"," ",dataumum!G11) -> : X-D
B7: Semester | D7: =CONCATENATE(":"," ",dataumum!G9) -> : 2 (Genap)
B8: Tahun Ajaran | D8: =CONCATENATE(":"," ",dataumum!G10) -> : 2025/2026
B10: No | C10: Tanggal | D10: Nama Peserta Didik | E10: Catatan Perilaku | F10: Butir Sikap | G10: Tindak Lanjut | H10: Paraf Guru
A11: =COUNT(C11) -> 1 | B11: 1 | C11: 2026-01-05 | D11: - | E11: - | F11: - | G11: - | H11: - | J11: KI 1 - Sikap Spiritual
A12: =COUNT(C12) -> 0 | J12: Butir Sikap | K12: Indikator
A13: 0 | J13: Beriman kepada Tuhan Yang Maha Esa | K13: 1. Berdoa sebelum dan sesudah menjalan setiap perbuatan
A14: 0 | K14: 2. Menerima semua pemberian dan keputusan Tuhan Yang Maha Esa dengan ikhlas
A15: 0 | K15: 3. Berusaha semaksimal mungkin untuk meraih hasil atau prestasi yang diharapkan (ikhtiar)
A16: 0 | K16: 4. Berserah diri (tawakal) kepada Tuhan Yang Maha Esa setelah selesai melakukan usaha maksimal (ikhtiar)
A17: 0 | J17: Bertakwa kepada Tuhan Yang Maha Esa | K17: 1. Menjalankan ibadah sesuai dengan ajaran agama yang dianutnya
A18: 0 | K18: 2. Memberi salam pada saat awal dan akhir pembelajaran
A19: 0 | K19: 3. Menjaga lingkungan hidup di sekitar rumah tempat tinggal, sekolah dan masyarakat
A20: 0 | K20: 4. Memelihara hubungan baik dengan sesama makhluk ciptaan Tuhan Yang Maha Esa
A21: 0 | K21: 5. Menghormati orang lain dalam menjalankan ibadah sesuai dengan agamanya
A22: 0 | J22: Bersyukur kepada Tuhan Yang Maha Esa | K22: 1. Mengucapkan kalimat pujian kepada Tuhan Yang Maha Esa atas nikmat dan karunia-Nya
A23: 0 | K23: 2. Memanfaatkan kesempatan belajar dengan sebaik-baiknya untuk meraih kesuksesan dalam pendidikan
A24: 0 | K24: 3. Mensyukuri kekayaan alam Indonesia dengan memanfaatkannya semaksimal mungkin
A25: 0
A26: 0 | J26: KI 2 - Sikap Sosial
A27: 0 | J27: Butir Sikap | K27: Indikator
A28: 0 | J28: 1. Jujur | K28: 1. Tidak menyontek dalam ujian/ulangan
A29: 0 | K29: 2. Tidak mengambil/menyalin karya orang lain tanpa menyebutkan sumbernya
A30: 0 | K30: 3. Mengungkapkan perasaan apa adanya
A31: 0 | K31: 4. Menyerahkan barang yang ditemukan kepada yang berhak
A32: 0 | K32: 5. Membuat laporan berdasarkan data atau informasi apa adanya
A33: 0 | K33: 6. Mengakui setiap kesalahan yang diperbuat
A34: 0 | K34: 7. Mengakui kekurangan yang dimiliki
A35: 0 | K35: 8. Menyampaikan informasi sesuai dengan fakta yang ada
A36: 0 | J36: 2. Disiplin | K36: 1. Datang ke sekolah dan pulang dari sekolah tepat waktu
A37: 0 | K37: 2. Patuh pada tata tertib atau aturan sekolah
A38: 0 | K38: 3. Mengerjakan setiap tugas yang diberikan
A39: 0 | K39: 4. Mengumpulkan tugas tepat waktu
A40: 0 | K40: 5. Mengikuti kaidah berbahasa yang baik dan benar
A41: 0 | K41: 6. Memakai seragam sesuai dengan ketentuan yang berlaku
A42: 0 | K42: 7. Membawa perlengkapan belajar sesuai dengan mata pelajaran
A43: 0 | J43: 3. Tanggung Jawab | K43: 1. Melaksanakan setiap pekerjaan yang menjadi tanggung jawabnya.
A44: 0 | K44: 2. Melaksanakan tugas individu dengan baik
A45: 0 | K45: 3. Menerima resiko dari setiap tindakan yang dilakukan
A46: 0 | K46: 4. Tidak menyalahkan/menuduh orang lain tanpa bukti yang akurat
A47: 0 | K47: 5. Mengembalikan barang yang dipinjam
A48: 0 | K48: 6. Membayar semua barang yang dibeli
A49: 0 | K49: 7. Mengakui dan meminta maaf atas kesalahan yang dilakukan
A50: 0 | K50: 8. Menepati janji
A51: 0 | J51: 4. Peduli | K51: 1. Membantu orang yang membutuhkan
A52: 0 | K52: 2. Tidak melakukan aktivitas yang mengganggu dan merugikan orang lain
A53: 0 | K53: 3. Melakukan aktivitas sosial untuk membantu orang-orang yang membutuhkan
A54: 0 | K54: 4. Memelihara lingkungan sekolah
A55: 0 | K55: 5. Membuang sampah pada tempatnya
A56: 0 | K56: 6. Mematikan kran air yang mengucurkan air
A57: 0 | K57: 7. Mematikan lampu yang tidak digunakan
A58: 0 | K58: 8. Tidak merusak tanaman di lingkungan sekolah
A59: 0 | J59: 5. Toleransi | K59: 1. Tidak mengganggu teman yang berbeda pendapat
A60: 0 | K60: 2. Menerima kesepakatan meskipun berbeda dengan pendapatnya
A61: 0 | K61: 3. Dapat menerima kekurangan orang lain
A62: 0 | K62: 4. Dapat memaafkan kesalahan orang lain
A63: 0 | K63: 5. Mampu dan mau bekerja sama dengan siapa pun yang memiliki keberagaman latar belakang, pandangan, dan keyakinan
A64: 0 | K64: 6. Tidak memaksakan pendapat atau keyakinan pada orang lain
A65: 0 | K65: 7. Menerima perbedaan dengan orang lain dalam hal sikap, perilaku, tradisi, suku, bahasa, dan agama
A66: 0 | J66: 6. Gotong Royong | K66: 1. Terlibat aktif dalam bekerja bakti membersihkan kelas atau sekolah
A67: 0 | K67: 2. Bersedia melakukan tugas sesuai kesepakatan bersama
A68: 0 | K68: 3. Bersedia membantu orang lain tanpa mengharap imbalan
A69: 0 | K69: 4. Aktif dalam kerja kelompok
A70: 0 | K70: 5. Memusatkan perhatian pada tujuan kelompok
A71: 0 | K71: 6. Tidak mendahulukan kepentingan pribadi
A72: 0 | K72: 7. Mencari jalan untuk mengatasi perbedaan pendapat/pikiran antara diri sendiri dengan orang lain
A73: 0 | J73: 7. Sopan atau Santun | K73: 1. Menghormati orang yang lebih tua.
A74: 0 | K74: 2. Tidak berkata-kata kotor, kasar, dan tidak menyakitkan.
A75: 0 | K75: 3. Tidak meludah di sembarang tempat.
A76: =COUNT(C76) -> 0 | K76: 4. Tidak menyela pembicaraan orang lain pada waktu yang tidak tepat
A77: 0 | K77: 5. Mengucapkan terima kasih kepada orang yang membantunya
A78: 0 | K78: 6. Bersikap 3S (salam, senyum, sapa)
A79: 0 | K79: 7. Meminta ijin ketika akan memasuki ruangan orang lain atau menggunakan barang milik orang lain
A80: 0 | K80: 8. Memperlakukan orang lain sebagaimana memperlakukan dirinya sendiri
A81: 0 | J81: 8. Percaya Diri | K81: 1. Berpendapat atau melakukan tindakan tanpa ragu-ragu.
A82: 0 | K82: 2. Mampu membuat keputusan dengan cepat
A83: 0 | K83: 3. Berani presentasi di depan kelas
A84: 0 | K84: 4. Berani berpendapat, bertanya, atau menjawab pertanyaan di hadapan guru dan teman-temannya
A85: 0 | J85: 9. Rasa Ingin Tahu | K85: 1. Suka bertanya
A86: 0 | K86: 2. Suka mengamati sesuatu
A87: 0 | K87: 3. Tidak puas pada jawaban yang ada
A88: 0 | J88: 10. Kreatif | K88: 1. Menyusun gagasan baru
A89: 0 | K89: 2. Menciptakan karya baru
A90: 0 | K90: 3. Mampu memecahkan masalah
A91: 0 | J91: 11. Persatuan dan Kesatuan | K91: 1. Menyukai kebersamaan.
A92: 0 | K92: 2. Bergaul tanpa membeda-bedakan kepentingan, agama, atau yang lainnya.
A93: 0 | K93: 3. Tidak suka bertengkar.
A94: 0 | J94: 12. Demokratis | K94: 1. Melibatkan warga sekolah dalam setiap pengambilan keputusan.
A95: 0 | K95: 2. Menciptakan suasana sekolah yang menerima perbedaan.
A96: 0 | K96: 3. Mengambil keputusan secara bersama-sama
A97: 0 | J97: 13. Rendah Hati | K97: 1. Tidak sombong.
A98: 0 | K98: 2. Tidak suka pamer.
A99: 0 | K99: 3. Menghargai kelebihan orang lain.
A100: 0
A101: 0
A102: 0
A103: 0
A104: 0
A105: 0
A106: 0
A107: 0
A108: 0
A109: 0
A110: 0
D113: Mengetahui, | G113: =jurnalmengajar!G113 -> Tasikmalaya, 31 Januari 2026
D114: Kepala Madrasah | G114: =jurnalmengajar!G114 -> Guru Kimia
D118: Enjang, S.Ag., M.Pd.I. | G118: =jurnalmengajar!G118 -> Arief Pribadi, S.Si
D119: NIP. 197406152005011006 | G119: =jurnalmengajar!G119 -> NIP. 198603112020121005

Sheet pengetahuan (hidden)
B4: IDENTITAS GURU PENGAJAR | E4: =CONCATENATE("KD"," ",dataumum!#REF!) ->  | P4: =CONCATENATE("KD"," ",dataumum!#REF!) ->  | AA4: =CONCATENATE("KD"," ",dataumum!#REF!) ->  | AL4: =CONCATENATE("KD"," ",dataumum!#REF!) ->  | AW4: =CONCATENATE("KD"," ",dataumum!#REF!) ->  | BH4: =CONCATENATE("KD"," ",dataumum!#REF!) ->  | BS4: =CONCATENATE("KD"," ",dataumum!#REF!) ->  | CD4: =CONCATENATE("KD"," ",dataumum!#REF!) ->  | CO4: =CONCATENATE("KD"," ",dataumum!#REF!) ->  | CZ4: =CONCATENATE("KD"," ",dataumum!#REF!) ->  | DL4: APLIKASI PENILAIAN K.13 MAN 4 TASIKMALAYA | DW4: PENILAIAN PENGETAHUAN | DZ4: JENIS UJIAN
B5: Nama Guru | D5: =dataumum!G6 -> Arief Pribadi, S.Si | E5: Deskripsi | G5: =dataumum!#REF! ->  | P5: Deskripsi | R5: =dataumum!#REF! ->  | AA5: Deskripsi | AC5: =dataumum!#REF! ->  | AL5: Deskripsi | AN5: =dataumum!#REF! ->  | AW5: Deskripsi | AY5: =dataumum!#REF! ->  | BH5: Deskripsi | BJ5: =dataumum!#REF! ->  | BS5: Deskripsi | BU5: =dataumum!#REF! ->  | CD5: Deskripsi | CF5: =dataumum!#REF! ->  | CO5: Deskripsi | CQ5: =dataumum!#REF! ->  | CZ5: Deskripsi | DB5: =dataumum!#REF! ->  | DW5: TLS | DZ5: PAS
B6: NIP | D6: =dataumum!G7 -> 198603112020121005 | E6: Keterangan Tagihan | P6: Keterangan Tagihan | AA6: Keterangan Tagihan | AL6: Keterangan Tagihan | AW6: Keterangan Tagihan | BH6: Keterangan Tagihan | BS6: Keterangan Tagihan | CD6: Keterangan Tagihan | CO6: Keterangan Tagihan | CZ6: Keterangan Tagihan | DW6: LSN | DZ6: PAT
B7: Mata Pelajaran | D7: =dataumum!G8 -> Kimia | E7: PH1 | K7: PH6 | P7: PH1 | V7: PH6 | AA7: PH1 | AG7: PH6 | AL7: PH1 | AR7: PH6 | AW7: PH1 | BC7: PH6 | BH7: PH1 | BN7: PH6 | BS7: PH1 | BY7: PH6 | CD7: PH1 | CJ7: PH6 | CO7: PH1 | CU7: PH6 | CZ7: PH1 | DF7: PH6 | DW7: TGS | DZ7: UM
B8: Semester | D8: =dataumum!G9 -> 2 (Genap) | E8: PH2 | K8: PH7 | P8: PH2 | V8: PH7 | AA8: PH2 | AG8: PH7 | AL8: PH2 | AR8: PH7 | AW8: PH2 | BC8: PH7 | BH8: PH2 | BN8: PH7 | BS8: PH2 | BY8: PH7 | CD8: PH2 | CJ8: PH7 | CO8: PH2 | CU8: PH7 | CZ8: PH2 | DF8: PH7 | DQ8: MAN 4 TASIKMALAYA | DW8: PENILAIAN KETERAMPILAN
B9: Tahun Pelajaran | D9: =dataumum!G10 -> 2025/2026 | E9: PH3 | K9: PH8 | P9: PH3 | V9: PH8 | AA9: PH3 | AG9: PH8 | AL9: PH3 | AR9: PH8 | AW9: PH3 | BC9: PH8 | BH9: PH3 | BN9: PH8 | BS9: PH3 | BY9: PH8 | CD9: PH3 | CJ9: PH8 | CO9: PH3 | CU9: PH8 | CZ9: PH3 | DF9: PH8 | DL9: =dataumum!G19 -> X-D | DQ9: TOOLS UNTUK OLAH NILAI | DW9: UK
B10: Kelas | D10: =dataumum!G11 -> X-D | E10: PH4 | K10: PH9 | P10: PH4 | V10: PH9 | AA10: PH4 | AG10: PH9 | AL10: PH4 | AR10: PH9 | AW10: PH4 | BC10: PH9 | BH10: PH4 | BN10: PH9 | BS10: PH4 | BY10: PH9 | CD10: PH4 | CJ10: PH9 | CO10: PH4 | CU10: PH9 | CZ10: PH4 | DF10: PH9 | DL10: NILAI PENGETAHUAN | DW10: PR
B11: KKM | D11: =dataumum!G12 -> 75 | E11: PH5 | K11: PH10 | P11: PH5 | V11: PH10 | AA11: PH5 | AG11: PH10 | AL11: PH5 | AR11: PH10 | AW11: PH5 | BC11: PH10 | BH11: PH5 | BN11: PH10 | BS11: PH5 | BY11: PH10 | CD11: PH5 | CJ11: PH10 | CO11: PH5 | CU11: PH10 | CZ11: PH5 | DF11: PH10 | DW11: PF
D12: =dataumum!G19 -> X-D | DQ12: N_MIN | DR12: =MIN(DQ17:DQ56) -> 10
E13: =IF(COUNT(E17:E56)>0,1,0) -> 0 | F13: 0 | G13: 0 | H13: 0 | I13: 0 | J13: 0 | K13: 0 | L13: 0 | M13: 0 | N13: 0 | O13: =SUM(E13:N13) -> 0 | P13: =IF(COUNT(P17:P56)>0,1,0) -> 0 | Q13: 0 | R13: 0 | S13: 0 | T13: 0 | U13: 0 | V13: 0 | W13: 0 | X13: 0 | Y13: 0 | Z13: =SUM(P13:Y13) -> 0 | AA13: =IF(COUNT(AA17:AA56)>0,1,0) -> 0 | AB13: 0 | AC13: 0 | AD13: 0 | AE13: 0 | AF13: 0 | AG13: 0 | AH13: 0 | AI13: 0 | AJ13: 0 | AK13: =SUM(AA13:AJ13) -> 0 | AL13: =IF(COUNT(AL17:AL56)>0,1,0) -> 0 | AM13: 0 | AN13: 0 | AO13: 0 | AP13: 0 | AQ13: 0 | AR13: 0 | AS13: 0 | AT13: 0 | AU13: 0 | AV13: =SUM(AL13:AU13) -> 0 | AW13: =IF(COUNT(AW17:AW56)>0,1,0) -> 0 | AX13: 0 | AY13: 0 | AZ13: 0 | BA13: 0 | BB13: 0 | BC13: 0 | BD13: 0 | BE13: 0 | BF13: 0 | BG13: =SUM(AW13:BF13) -> 0 | BH13: =IF(COUNT(BH17:BH56)>0,1,0) -> 0 | BI13: 0 | BJ13: 0 | BK13: 0 | BL13: 0 | BM13: 0 | BN13: 0 | BO13: 0 | BP13: 0 | BQ13: 0 | BR13: =SUM(BH13:BQ13) -> 0 | BS13: =IF(COUNT(BS17:BS56)>0,1,0) -> 0 | BT13: 0 | BU13: 0 | BV13: 0 | BW13: 0 | BX13: 0 | BY13: 0 | BZ13: 0 | CA13: 0 | CB13: 0 | CC13: =SUM(BS13:CB13) -> 0 | CD13: =IF(COUNT(CD17:CD56)>0,1,0) -> 0 | CE13: 0 | CF13: 0 | CG13: 0 | CH13: 0 | CI13: 0 | CJ13: 0 | CK13: 0 | CL13: 0 | CM13: 0 | CN13: =SUM(CD13:CM13) -> 0 | CO13: =IF(COUNT(CO17:CO56)>0,1,0) -> 0 | CP13: 0 | CQ13: 0 | CR13: 0 | CS13: 0 | CT13: 0 | CU13: 0 | CV13: 0 | CW13: 0 | CX13: 0 | CY13: =SUM(CO13:CX13) -> 0 | CZ13: =IF(COUNT(CZ17:CZ56)>0,1,0) -> 0 | DA13: 0 | DB13: 0 | DC13: 0 | DD13: 0 | DE13: 0 | DF13: 0 | DG13: 0 | DH13: 0 | DI13: 0 | DJ13: =SUM(CZ13:DI13) -> 0 | DQ13: N_MAX | DR13: =MAX(DQ17:DQ56) -> 50
B14: NO | C14: NISN | D14: NAMA (Silahkan ambil dari salah satu template RDM) | E14: PENGETAHUAN | O14: =CONCATENATE("NILAI"," ",E4) ->  | P14: PENGETAHUAN | Z14: =CONCATENATE("NILAI"," ",P4) ->  | AA14: PENGETAHUAN | AK14: =CONCATENATE("NILAI"," ",AA4) ->  | AL14: PENGETAHUAN | AV14: =CONCATENATE("NILAI"," ",AL4) ->  | AW14: PENGETAHUAN | BG14: =CONCATENATE("NILAI"," ",AW4) ->  | BH14: PENGETAHUAN | BR14: =CONCATENATE("NILAI"," ",BH4) ->  | BS14: PENGETAHUAN | CC14: =CONCATENATE("NILAI"," ",BS4) ->  | CD14: PENGETAHUAN | CN14: =CONCATENATE("NILAI"," ",CD4) ->  | CO14: PENGETAHUAN | CY14: =CONCATENATE("NILAI"," ",CO4) ->  | CZ14: PENGETAHUAN | DJ14: =CONCATENATE("NILAI"," ",CZ4) ->  | DL14: RKD | DM14: PAS | DN14: NP | DO14: PREDIKAT | DQ14: NILAI YANG DIINGINKAN
E15: Teknik Penilaian | P15: Teknik Penilaian | AA15: Teknik Penilaian | AL15: Teknik Penilaian | AW15: Teknik Penilaian | BH15: Teknik Penilaian | BS15: Teknik Penilaian | CD15: Teknik Penilaian | CO15: Teknik Penilaian | CZ15: Teknik Penilaian | DQ15: MIN | DR15: 77 | DU15: =IF(COUNT(DU17:DU56)>0,1,0) -> 0 | DV15: =IF(COUNT(DV17:DV56)>0,1,0) -> 0 | DW15: 0 | DX15: 0 | DY15: 0 | DZ15: 0 | EA15: 0 | EB15: 0 | EC15: 0 | ED15: 0 | EE15: =SUM(DU15:ED15) -> 0
DQ16: MAX | DR16: 83 | DU16: =E4 ->  | DV16: =P4 ->  | DW16: =AA4 ->  | DX16: =AL4 ->  | DY16: =AW4 ->  | DZ16: =BH4 ->  | EA16: =BS4 ->  | EB16: =CD4 ->  | EC16: =CO4 ->  | ED16: =CZ4 ->  | EE16: RKD
B17: 1 | C17: =dataumum!C9 -> 0095527100 | D17: =dataumum!D9 -> AHMAD JAMIL MUNAWAR | O17: =IF(COUNT(E17:N17)<1,"",ROUND(SUM(E17:N17)/$O$13,0)) ->  | Z17: =IF(COUNT(P17:Y17)<1,"",ROUND(SUM(P17:Y17)/$Z$13,0)) ->  | AK17: =IF(COUNT(AA17:AJ17)<1,"",ROUND(SUM(AA17:AJ17)/$AK$13,0)) ->  | AV17: =IF(COUNT(AL17:AU17)<1,"",ROUND(SUM(AL17:AU17)/$AV$13,0)) ->  | BG17: =IF(COUNT(AW17:BF17)<1,"",ROUND(SUM(AW17:BF17)/$BG$13,0)) ->  | BR17: =IF(COUNT(BH17:BQ17)<1,"",ROUND(SUM(BH17:BQ17)/$BR$13,0)) ->  | CC17: =IF(COUNT(BS17:CB17)<1,"",ROUND(SUM(BS17:CB17)/$CC$13,0)) ->  | CN17: =IF(COUNT(CD17:CM17)<1,"",ROUND(SUM(CD17:CM17)/$CN$13,0)) ->  | CY17: =IF(COUNT(CO17:CX17)<1,"",ROUND(SUM(CO17:CX17)/$CY$13,0)) ->  | DJ17: =IF(COUNT(CZ17:DI17)<1,"",ROUND(SUM(CZ17:DI17)/$DJ$13,0)) ->  | DL17: =EE17 ->  | DM17: 80 | DN17: =IFERROR(DL17*dataumum!$G$13/100+DM17*dataumum!$G$14/100,0) -> 0 | DO17: =IFERROR(IF(DN17>=dataumum!#REF!,"A",IF(DN17>=dataumum!#REF!,"B",IF(DN17>=dataumum!#REF!,"C","D"))),0) -> 0 | DQ17: 26.66666667 | DR17: =IFERROR($DR$15+((DQ17-$DR$12)/($DR$13-$DR$12)*($DR$16-$DR$15)),0) -> 79.5 | DU17: =O17 ->  | DV17: =Z17 ->  | DW17: =AK17 ->  | DX17: =AV17 ->  | DY17: =BG17 ->  | DZ17: =BR17 ->  | EA17: =CC17 ->  | EB17: =CN17 ->  | EC17: =CY17 ->  | ED17: =DJ17 ->  | EE17: =IFERROR(IF(COUNT(DU17:ED17)<1,"",ROUND(SUM(DU17:ED17)/$EE$15,0)),0) -> 
B18: 2 | C18: =dataumum!C10 -> 0108689880 | D18: =dataumum!D10 -> AKBAR NUGRAHA | O18: =IF(COUNT(E18:N18)<1,"",ROUND(SUM(E18:N18)/$O$13,0)) ->  | Z18: =IF(COUNT(P18:Y18)<1,"",ROUND(SUM(P18:Y18)/$Z$13,0)) ->  | AK18: =IF(COUNT(AA18:AJ18)<1,"",ROUND(SUM(AA18:AJ18)/$AK$13,0)) ->  | AV18: =IF(COUNT(AL18:AU18)<1,"",ROUND(SUM(AL18:AU18)/$AV$13,0)) ->  | BG18: =IF(COUNT(AW18:BF18)<1,"",ROUND(SUM(AW18:BF18)/$BG$13,0)) ->  | BR18: =IF(COUNT(BH18:BQ18)<1,"",ROUND(SUM(BH18:BQ18)/$BR$13,0)) ->  | CC18: =IF(COUNT(BS18:CB18)<1,"",ROUND(SUM(BS18:CB18)/$CC$13,0)) ->  | CN18: =IF(COUNT(CD18:CM18)<1,"",ROUND(SUM(CD18:CM18)/$CN$13,0)) ->  | CY18: =IF(COUNT(CO18:CX18)<1,"",ROUND(SUM(CO18:CX18)/$CY$13,0)) ->  | DJ18: =IF(COUNT(CZ18:DI18)<1,"",ROUND(SUM(CZ18:DI18)/$DJ$13,0)) ->  | DL18: =EE18 ->  | DM18: 50 | DN18: =IFERROR(DL18*dataumum!$G$13/100+DM18*dataumum!$G$14/100,0) -> 0 | DO18: =IFERROR(IF(DN18>=dataumum!#REF!,"A",IF(DN18>=dataumum!#REF!,"B",IF(DN18>=dataumum!#REF!,"C","D"))),0) -> 0 | DQ18: 20 | DR18: =IFERROR($DR$15+((DQ18-$DR$12)/($DR$13-$DR$12)*($DR$16-$DR$15)),0) -> 78.5 | EE18: =IFERROR(IF(COUNT(DU18:ED18)<1,"",ROUND(SUM(DU18:ED18)/$EE$15,0)),0) -> 
B19: 3 | C19: =dataumum!C11 -> 0101457073 | D19: =dataumum!D11 -> ALSA NAPILA ABALIA | DN19: =IFERROR(DL19*dataumum!$G$13/100+DM19*dataumum!$G$14/100,0) -> 0 | DO19: =IFERROR(IF(DN19>=dataumum!#REF!,"A",IF(DN19>=dataumum!#REF!,"B",IF(DN19>=dataumum!#REF!,"C","D"))),0) -> 0 | DQ19: 13.33333333 | DR19: 77.5
B20: 4 | C20: =dataumum!C12 -> 3098669460 | D20: =dataumum!D12 -> ALWAN FAJRUL HAKIM | DN20: =IFERROR(DL20*dataumum!$G$13/100+DM20*dataumum!$G$14/100,0) -> 0 | DO20: =IFERROR(IF(DN20>=dataumum!#REF!,"A",IF(DN20>=dataumum!#REF!,"B",IF(DN20>=dataumum!#REF!,"C","D"))),0) -> 0 | DQ20: 23.33333333 | DR20: 79
B21: 5 | C21: =dataumum!C13 -> 0097476054 | D21: =dataumum!D13 -> ANDIKA | DN21: =IFERROR(DL21*dataumum!$G$13/100+DM21*dataumum!$G$14/100,0) -> 0 | DO21: =IFERROR(IF(DN21>=dataumum!#REF!,"A",IF(DN21>=dataumum!#REF!,"B",IF(DN21>=dataumum!#REF!,"C","D"))),0) -> 0 | DQ21: 50 | DR21: 83
B22: 6 | C22: =dataumum!C14 -> 0107479079 | D22: =dataumum!D14 -> CHINTIA NUR AZIZAH | DN22: =IFERROR(DL22*dataumum!$G$13/100+DM22*dataumum!$G$14/100,0) -> 0 | DO22: =IFERROR(IF(DN22>=dataumum!#REF!,"A",IF(DN22>=dataumum!#REF!,"B",IF(DN22>=dataumum!#REF!,"C","D"))),0) -> 0 | DQ22: 40 | DR22: 81.5
B23: 7 | C23: =dataumum!C15 -> 0095178395 | D23: =dataumum!D15 -> DEDE AULIA | DN23: =IFERROR(DL23*dataumum!$G$13/100+DM23*dataumum!$G$14/100,0) -> 0 | DO23: =IFERROR(IF(DN23>=dataumum!#REF!,"A",IF(DN23>=dataumum!#REF!,"B",IF(DN23>=dataumum!#REF!,"C","D"))),0) -> 0 | DQ23: 50 | DR23: 83
B24: 8 | C24: =dataumum!C16 -> 0097071532 | D24: =dataumum!D16 -> DIRLI PIRMANSAH REZA | DN24: =IFERROR(DL24*dataumum!$G$13/100+DM24*dataumum!$G$14/100,0) -> 0 | DO24: =IFERROR(IF(DN24>=dataumum!#REF!,"A",IF(DN24>=dataumum!#REF!,"B",IF(DN24>=dataumum!#REF!,"C","D"))),0) -> 0 | DQ24: 43.33333333 | DR24: 82
B25: 9 | C25: =dataumum!C17 -> 0085525399 | D25: =dataumum!D17 -> EKSEL | DN25: =IFERROR(DL25*dataumum!$G$13/100+DM25*dataumum!$G$14/100,0) -> 0 | DO25: =IFERROR(IF(DN25>=dataumum!#REF!,"A",IF(DN25>=dataumum!#REF!,"B",IF(DN25>=dataumum!#REF!,"C","D"))),0) -> 0 | DQ25: 43.33333333 | DR25: 82
B26: 10 | C26: =dataumum!C18 -> 0099271082 | D26: =dataumum!D18 -> FADLAN APANDI | DN26: =IFERROR(DL26*dataumum!$G$13/100+DM26*dataumum!$G$14/100,0) -> 0 | DO26: =IFERROR(IF(DN26>=dataumum!#REF!,"A",IF(DN26>=dataumum!#REF!,"B",IF(DN26>=dataumum!#REF!,"C","D"))),0) -> 0 | DQ26: 33.33333333 | DR26: 80.5
B27: 11 | C27: =dataumum!C19 -> 3109814391 | D27: =dataumum!D19 -> HAYA MADIHATUL ISMAH | DN27: =IFERROR(DL27*dataumum!$G$13/100+DM27*dataumum!$G$14/100,0) -> 0 | DO27: =IFERROR(IF(DN27>=dataumum!#REF!,"A",IF(DN27>=dataumum!#REF!,"B",IF(DN27>=dataumum!#REF!,"C","D"))),0) -> 0 | DQ27: 43.33333333 | DR27: 82
B28: 12 | C28: =dataumum!C20 -> 3094762585 | D28: =dataumum!D20 -> HIKAYATUL JABAL | DN28: =IFERROR(DL28*dataumum!$G$13/100+DM28*dataumum!$G$14/100,0) -> 0 | DO28: =IFERROR(IF(DN28>=dataumum!#REF!,"A",IF(DN28>=dataumum!#REF!,"B",IF(DN28>=dataumum!#REF!,"C","D"))),0) -> 0 | DQ28: 13.33333333 | DR28: 77.5
B29: 13 | C29: =dataumum!C21 -> 0105251526 | D29: =dataumum!D21 -> IHSAN NURSALAM | DN29: =IFERROR(DL29*dataumum!$G$13/100+DM29*dataumum!$G$14/100,0) -> 0 | DO29: =IFERROR(IF(DN29>=dataumum!#REF!,"A",IF(DN29>=dataumum!#REF!,"B",IF(DN29>=dataumum!#REF!,"C","D"))),0) -> 0 | DQ29: 16.66666667 | DR29: 78
B30: 14 | C30: =dataumum!C22 -> 3095547483 | D30: =dataumum!D22 -> IZAD NOOR JAMAN | DN30: =IFERROR(DL30*dataumum!$G$13/100+DM30*dataumum!$G$14/100,0) -> 0 | DO30: =IFERROR(IF(DN30>=dataumum!#REF!,"A",IF(DN30>=dataumum!#REF!,"B",IF(DN30>=dataumum!#REF!,"C","D"))),0) -> 0 | DQ30: 46.66666667 | DR30: 82.5
B31: 15 | C31: =dataumum!C23 -> 0093659815 | D31: =dataumum!D23 -> JIHAN NURROHMAH SEPTIRA | DN31: =IFERROR(DL31*dataumum!$G$13/100+DM31*dataumum!$G$14/100,0) -> 0 | DO31: =IFERROR(IF(DN31>=dataumum!#REF!,"A",IF(DN31>=dataumum!#REF!,"B",IF(DN31>=dataumum!#REF!,"C","D"))),0) -> 0 | DQ31: 30 | DR31: 80
B32: 16 | C32: =dataumum!C24 -> 3090540244 | D32: =dataumum!D24 -> KAKA SEPTIAN | DN32: =IFERROR(DL32*dataumum!$G$13/100+DM32*dataumum!$G$14/100,0) -> 0 | DO32: =IFERROR(IF(DN32>=dataumum!#REF!,"A",IF(DN32>=dataumum!#REF!,"B",IF(DN32>=dataumum!#REF!,"C","D"))),0) -> 0 | DQ32: 20 | DR32: 78.5
B33: 17 | C33: =dataumum!C25 -> 0088283383 | D33: =dataumum!D25 -> LUTPI | DN33: =IFERROR(DL33*dataumum!$G$13/100+DM33*dataumum!$G$14/100,0) -> 0 | DO33: =IFERROR(IF(DN33>=dataumum!#REF!,"A",IF(DN33>=dataumum!#REF!,"B",IF(DN33>=dataumum!#REF!,"C","D"))),0) -> 0 | DQ33: 40 | DR33: 81.5
B34: 18 | C34: =dataumum!C26 -> 3096008382 | D34: =dataumum!D26 -> M SUGIH MIWAHA | DN34: =IFERROR(DL34*dataumum!$G$13/100+DM34*dataumum!$G$14/100,0) -> 0 | DO34: =IFERROR(IF(DN34>=dataumum!#REF!,"A",IF(DN34>=dataumum!#REF!,"B",IF(DN34>=dataumum!#REF!,"C","D"))),0) -> 0 | DQ34: 10 | DR34: 77
B35: 19 | C35: =dataumum!C27 -> 0093656626 | D35: =dataumum!D27 -> MUHLIS | DN35: =IFERROR(DL35*dataumum!$G$13/100+DM35*dataumum!$G$14/100,0) -> 0 | DO35: =IFERROR(IF(DN35>=dataumum!#REF!,"A",IF(DN35>=dataumum!#REF!,"B",IF(DN35>=dataumum!#REF!,"C","D"))),0) -> 0 | DQ35: 30 | DR35: 80
B36: 20 | C36: =dataumum!C28 -> 0097902846 | D36: =dataumum!D28 -> NURAFIFAH FAUZIAH | DN36: =IFERROR(DL36*dataumum!$G$13/100+DM36*dataumum!$G$14/100,0) -> 0 | DO36: =IFERROR(IF(DN36>=dataumum!#REF!,"A",IF(DN36>=dataumum!#REF!,"B",IF(DN36>=dataumum!#REF!,"C","D"))),0) -> 0 | DQ36: 46.66666667 | DR36: 82.5
B37: 21 | C37: =dataumum!C29 -> 0088756415 | D37: =dataumum!D29 -> REPAN | DN37: =IFERROR(DL37*dataumum!$G$13/100+DM37*dataumum!$G$14/100,0) -> 0 | DO37: =IFERROR(IF(DN37>=dataumum!#REF!,"A",IF(DN37>=dataumum!#REF!,"B",IF(DN37>=dataumum!#REF!,"C","D"))),0) -> 0 | DQ37: 43.33333333 | DR37: 82
B38: 22 | C38: =dataumum!C30 -> 0095868392 | D38: =dataumum!D30 -> REZA NURUL WILDAN | DN38: =IFERROR(DL38*dataumum!$G$13/100+DM38*dataumum!$G$14/100,0) -> 0 | DO38: =IFERROR(IF(DN38>=dataumum!#REF!,"A",IF(DN38>=dataumum!#REF!,"B",IF(DN38>=dataumum!#REF!,"C","D"))),0) -> 0 | DQ38: 30 | DR38: 80
B39: 23 | C39: =dataumum!C31 -> 3095334952 | D39: =dataumum!D31 -> SYIFA NURJANAH | DN39: =IFERROR(DL39*dataumum!$G$13/100+DM39*dataumum!$G$14/100,0) -> 0 | DO39: =IFERROR(IF(DN39>=dataumum!#REF!,"A",IF(DN39>=dataumum!#REF!,"B",IF(DN39>=dataumum!#REF!,"C","D"))),0) -> 0 | DQ39: 30 | DR39: 80
B40: 24 | C40: =dataumum!C32 -> 0093189091 | D40: =dataumum!D32 -> WINDI PUJIA SAFITRI | DN40: =IFERROR(DL40*dataumum!$G$13/100+DM40*dataumum!$G$14/100,0) -> 0 | DO40: =IFERROR(IF(DN40>=dataumum!#REF!,"A",IF(DN40>=dataumum!#REF!,"B",IF(DN40>=dataumum!#REF!,"C","D"))),0) -> 0 | DQ40: 30 | DR40: 80
B41: 25 | C41: =dataumum!C33 -> 0096749734 | D41: =dataumum!D33 -> WULAN RESPIANI | DN41: =IFERROR(DL41*dataumum!$G$13/100+DM41*dataumum!$G$14/100,0) -> 0 | DO41: =IFERROR(IF(DN41>=dataumum!#REF!,"A",IF(DN41>=dataumum!#REF!,"B",IF(DN41>=dataumum!#REF!,"C","D"))),0) -> 0 | DQ41: 43.33333333 | DR41: 82
B42: 26 | C42: =dataumum!C34 -> 0099314795 | D42: =dataumum!D34 -> YESI DESTRIYANI | DN42: =IFERROR(DL42*dataumum!$G$13/100+DM42*dataumum!$G$14/100,0) -> 0 | DO42: =IFERROR(IF(DN42>=dataumum!#REF!,"A",IF(DN42>=dataumum!#REF!,"B",IF(DN42>=dataumum!#REF!,"C","D"))),0) -> 0 | DQ42: 34.63333333 | DR42: 80.695
B43: 27 | C43: =dataumum!C35 -> 0 | D43: =dataumum!D35 -> 0 | DN43: =IFERROR(DL43*dataumum!$G$13/100+DM43*dataumum!$G$14/100,0) -> 0 | DO43: =IFERROR(IF(DN43>=dataumum!#REF!,"A",IF(DN43>=dataumum!#REF!,"B",IF(DN43>=dataumum!#REF!,"C","D"))),0) -> 0 | DQ43: 34.78461538 | DR43: 80.71769231
B44: 28 | C44: =dataumum!C36 -> 0 | D44: =dataumum!D36 -> 0 | DN44: =IFERROR(DL44*dataumum!$G$13/100+DM44*dataumum!$G$14/100,0) -> 0 | DO44: =IFERROR(IF(DN44>=dataumum!#REF!,"A",IF(DN44>=dataumum!#REF!,"B",IF(DN44>=dataumum!#REF!,"C","D"))),0) -> 0 | DQ44: 34.93589744 | DR44: 80.74038462
B45: 29 | C45: =dataumum!C37 -> 0 | D45: =dataumum!D37 -> 0 | DN45: =IFERROR(DL45*dataumum!$G$13/100+DM45*dataumum!$G$14/100,0) -> 0 | DO45: =IFERROR(IF(DN45>=dataumum!#REF!,"A",IF(DN45>=dataumum!#REF!,"B",IF(DN45>=dataumum!#REF!,"C","D"))),0) -> 0 | DQ45: 35.08717949 | DR45: 80.76307692
B46: 30 | C46: =dataumum!C38 -> 0 | D46: =dataumum!D38 -> 0 | DN46: =IFERROR(DL46*dataumum!$G$13/100+DM46*dataumum!$G$14/100,0) -> 0 | DO46: =IFERROR(IF(DN46>=dataumum!#REF!,"A",IF(DN46>=dataumum!#REF!,"B",IF(DN46>=dataumum!#REF!,"C","D"))),0) -> 0 | DQ46: 35.23846154 | DR46: 80.78576923
B47: 31 | C47: =dataumum!C39 -> 0 | D47: =dataumum!D39 -> 0 | DN47: =IFERROR(DL47*dataumum!$G$13/100+DM47*dataumum!$G$14/100,0) -> 0 | DO47: =IFERROR(IF(DN47>=dataumum!#REF!,"A",IF(DN47>=dataumum!#REF!,"B",IF(DN47>=dataumum!#REF!,"C","D"))),0) -> 0 | DQ47: 35.38974359 | DR47: 80.80846154
B48: 32 | C48: =dataumum!C40 -> 0 | D48: =dataumum!D40 -> 0 | DN48: =IFERROR(DL48*dataumum!$G$13/100+DM48*dataumum!$G$14/100,0) -> 0 | DO48: =IFERROR(IF(DN48>=dataumum!#REF!,"A",IF(DN48>=dataumum!#REF!,"B",IF(DN48>=dataumum!#REF!,"C","D"))),0) -> 0 | DQ48: 35.54102564 | DR48: 80.83115385
B49: 33 | C49: =dataumum!C41 -> 0 | D49: =dataumum!D41 -> 0 | DN49: =IFERROR(DL49*dataumum!$G$13/100+DM49*dataumum!$G$14/100,0) -> 0 | DO49: =IFERROR(IF(DN49>=dataumum!#REF!,"A",IF(DN49>=dataumum!#REF!,"B",IF(DN49>=dataumum!#REF!,"C","D"))),0) -> 0 | DQ49: 35.69230769 | DR49: 80.85384615
B50: 34 | C50: =dataumum!C42 -> 0 | D50: =dataumum!D42 -> 0 | DN50: =IFERROR(DL50*dataumum!$G$13/100+DM50*dataumum!$G$14/100,0) -> 0 | DO50: =IFERROR(IF(DN50>=dataumum!#REF!,"A",IF(DN50>=dataumum!#REF!,"B",IF(DN50>=dataumum!#REF!,"C","D"))),0) -> 0 | DQ50: 35.84358974 | DR50: 80.87653846
B51: 35 | C51: =dataumum!C43 -> 0 | D51: =dataumum!D43 -> 0 | DN51: =IFERROR(DL51*dataumum!$G$13/100+DM51*dataumum!$G$14/100,0) -> 0 | DO51: =IFERROR(IF(DN51>=dataumum!#REF!,"A",IF(DN51>=dataumum!#REF!,"B",IF(DN51>=dataumum!#REF!,"C","D"))),0) -> 0 | DQ51: 35.99487179 | DR51: 80.89923077
B52: 36 | C52: =dataumum!C44 -> 0 | D52: =dataumum!D44 -> 0 | DN52: =IFERROR(DL52*dataumum!$G$13/100+DM52*dataumum!$G$14/100,0) -> 0 | DO52: =IFERROR(IF(DN52>=dataumum!#REF!,"A",IF(DN52>=dataumum!#REF!,"B",IF(DN52>=dataumum!#REF!,"C","D"))),0) -> 0 | DQ52: 36.14615385 | DR52: 80.92192308
B53: 37 | C53: =dataumum!C45 -> 0 | D53: =dataumum!D45 -> 0 | DN53: =IFERROR(DL53*dataumum!$G$13/100+DM53*dataumum!$G$14/100,0) -> 0 | DO53: =IFERROR(IF(DN53>=dataumum!#REF!,"A",IF(DN53>=dataumum!#REF!,"B",IF(DN53>=dataumum!#REF!,"C","D"))),0) -> 0 | DQ53: 36.2974359 | DR53: 80.94461538
B54: 38 | C54: =dataumum!C46 -> 0 | D54: =dataumum!D46 -> 0 | DN54: =IFERROR(DL54*dataumum!$G$13/100+DM54*dataumum!$G$14/100,0) -> 0 | DO54: =IFERROR(IF(DN54>=dataumum!#REF!,"A",IF(DN54>=dataumum!#REF!,"B",IF(DN54>=dataumum!#REF!,"C","D"))),0) -> 0 | DQ54: 36.44871795 | DR54: 80.96730769
B55: 39 | C55: =dataumum!C47 -> 0 | D55: =dataumum!D47 -> 0 | DN55: =IFERROR(DL55*dataumum!$G$13/100+DM55*dataumum!$G$14/100,0) -> 0 | DO55: =IFERROR(IF(DN55>=dataumum!#REF!,"A",IF(DN55>=dataumum!#REF!,"B",IF(DN55>=dataumum!#REF!,"C","D"))),0) -> 0 | DQ55: 36.6 | DR55: 80.99
B56: 40 | C56: =dataumum!C48 -> 0 | D56: =dataumum!D48 -> 0 | DN56: =IFERROR(DL56*dataumum!$G$13/100+DM56*dataumum!$G$14/100,0) -> 0 | DO56: =IFERROR(IF(DN56>=dataumum!#REF!,"A",IF(DN56>=dataumum!#REF!,"B",IF(DN56>=dataumum!#REF!,"C","D"))),0) -> 0 | DQ56: 36.75128205 | DR56: 81.01269231
B57: NILAI RERATA | E57: =IFERROR(AVERAGE(E17:E56),0) -> 0 | F57: =IFERROR(AVERAGE(F17:F56),0) -> 0 | G57: 0 | H57: 0 | I57: 0 | J57: 0 | K57: 0 | L57: 0 | M57: 0 | N57: 0 | O57: 0 | P57: 0 | Q57: =IFERROR(AVERAGE(Q17:Q56),0) -> 0 | R57: =IFERROR(AVERAGE(R17:R56),0) -> 0 | S57: =IFERROR(AVERAGE(S17:S56),0) -> 0 | T57: =IFERROR(AVERAGE(T17:T56),0) -> 0 | U57: =IFERROR(AVERAGE(U17:U56),0) -> 0 | V57: =IFERROR(AVERAGE(V17:V56),0) -> 0 | W57: =IFERROR(AVERAGE(W17:W56),0) -> 0 | X57: =IFERROR(AVERAGE(X17:X56),0) -> 0 | Y57: =IFERROR(AVERAGE(Y17:Y56),0) -> 0 | AA57: =IFERROR(AVERAGE(AA17:AA56),0) -> 0 | AB57: =IFERROR(AVERAGE(AB17:AB56),0) -> 0 | AC57: =IFERROR(AVERAGE(AC17:AC56),0) -> 0 | AD57: =IFERROR(AVERAGE(AD17:AD56),0) -> 0 | AE57: =IFERROR(AVERAGE(AE17:AE56),0) -> 0 | AF57: =IFERROR(AVERAGE(AF17:AF56),0) -> 0 | AG57: =IFERROR(AVERAGE(AG17:AG56),0) -> 0 | AH57: =IFERROR(AVERAGE(AH17:AH56),0) -> 0 | AI57: =IFERROR(AVERAGE(AI17:AI56),0) -> 0 | AJ57: =IFERROR(AVERAGE(AJ17:AJ56),0) -> 0 | AL57: =IFERROR(AVERAGE(AL17:AL56),0) -> 0 | AM57: =IFERROR(AVERAGE(AM17:AM56),0) -> 0 | AN57: =IFERROR(AVERAGE(AN17:AN56),0) -> 0 | AO57: =IFERROR(AVERAGE(AO17:AO56),0) -> 0 | AP57: =IFERROR(AVERAGE(AP17:AP56),0) -> 0 | AQ57: =IFERROR(AVERAGE(AQ17:AQ56),0) -> 0 | AR57: =IFERROR(AVERAGE(AR17:AR56),0) -> 0 | AS57: =IFERROR(AVERAGE(AS17:AS56),0) -> 0 | AT57: =IFERROR(AVERAGE(AT17:AT56),0) -> 0 | AU57: =IFERROR(AVERAGE(AU17:AU56),0) -> 0 | AW57: =IFERROR(AVERAGE(AW17:AW56),0) -> 0 | AX57: =IFERROR(AVERAGE(AX17:AX56),0) -> 0 | AY57: =IFERROR(AVERAGE(AY17:AY56),0) -> 0 | AZ57: =IFERROR(AVERAGE(AZ17:AZ56),0) -> 0 | BA57: =IFERROR(AVERAGE(BA17:BA56),0) -> 0 | BB57: =IFERROR(AVERAGE(BB17:BB56),0) -> 0 | BC57: =IFERROR(AVERAGE(BC17:BC56),0) -> 0 | BD57: =IFERROR(AVERAGE(BD17:BD56),0) -> 0 | BE57: =IFERROR(AVERAGE(BE17:BE56),0) -> 0 | BF57: =IFERROR(AVERAGE(BF17:BF56),0) -> 0 | BH57: =IFERROR(AVERAGE(BH17:BH56),0) -> 0 | BI57: =IFERROR(AVERAGE(BI17:BI56),0) -> 0 | BJ57: =IFERROR(AVERAGE(BJ17:BJ56),0) -> 0 | BK57: =IFERROR(AVERAGE(BK17:BK56),0) -> 0 | BL57: =IFERROR(AVERAGE(BL17:BL56),0) -> 0 | BM57: =IFERROR(AVERAGE(BM17:BM56),0) -> 0 | BN57: =IFERROR(AVERAGE(BN17:BN56),0) -> 0 | BO57: =IFERROR(AVERAGE(BO17:BO56),0) -> 0 | BP57: =IFERROR(AVERAGE(BP17:BP56),0) -> 0 | BQ57: =IFERROR(AVERAGE(BQ17:BQ56),0) -> 0 | BS57: =IFERROR(AVERAGE(BS17:BS56),0) -> 0 | BT57: =IFERROR(AVERAGE(BT17:BT56),0) -> 0 | BU57: =IFERROR(AVERAGE(BU17:BU56),0) -> 0 | BV57: =IFERROR(AVERAGE(BV17:BV56),0) -> 0 | BW57: =IFERROR(AVERAGE(BW17:BW56),0) -> 0 | BX57: =IFERROR(AVERAGE(BX17:BX56),0) -> 0 | BY57: =IFERROR(AVERAGE(BY17:BY56),0) -> 0 | BZ57: =IFERROR(AVERAGE(BZ17:BZ56),0) -> 0 | CA57: =IFERROR(AVERAGE(CA17:CA56),0) -> 0 | CB57: =IFERROR(AVERAGE(CB17:CB56),0) -> 0 | CD57: =IFERROR(AVERAGE(CD17:CD56),0) -> 0 | CE57: =IFERROR(AVERAGE(CE17:CE56),0) -> 0 | CF57: =IFERROR(AVERAGE(CF17:CF56),0) -> 0 | CG57: =IFERROR(AVERAGE(CG17:CG56),0) -> 0 | CH57: =IFERROR(AVERAGE(CH17:CH56),0) -> 0 | CI57: =IFERROR(AVERAGE(CI17:CI56),0) -> 0 | CJ57: =IFERROR(AVERAGE(CJ17:CJ56),0) -> 0 | CK57: =IFERROR(AVERAGE(CK17:CK56),0) -> 0 | CL57: =IFERROR(AVERAGE(CL17:CL56),0) -> 0 | CM57: =IFERROR(AVERAGE(CM17:CM56),0) -> 0 | CO57: =IFERROR(AVERAGE(CO17:CO56),0) -> 0 | CP57: =IFERROR(AVERAGE(CP17:CP56),0) -> 0 | CQ57: =IFERROR(AVERAGE(CQ17:CQ56),0) -> 0 | CR57: =IFERROR(AVERAGE(CR17:CR56),0) -> 0 | CS57: =IFERROR(AVERAGE(CS17:CS56),0) -> 0 | CT57: =IFERROR(AVERAGE(CT17:CT56),0) -> 0 | CU57: =IFERROR(AVERAGE(CU17:CU56),0) -> 0 | CV57: =IFERROR(AVERAGE(CV17:CV56),0) -> 0 | CW57: =IFERROR(AVERAGE(CW17:CW56),0) -> 0 | CX57: =IFERROR(AVERAGE(CX17:CX56),0) -> 0 | CZ57: =IFERROR(AVERAGE(CZ17:CZ56),0) -> 0 | DA57: =IFERROR(AVERAGE(DA17:DA56),0) -> 0 | DB57: =IFERROR(AVERAGE(DB17:DB56),0) -> 0 | DC57: =IFERROR(AVERAGE(DC17:DC56),0) -> 0 | DD57: =IFERROR(AVERAGE(DD17:DD56),0) -> 0 | DE57: =IFERROR(AVERAGE(DE17:DE56),0) -> 0 | DF57: =IFERROR(AVERAGE(DF17:DF56),0) -> 0 | DG57: =IFERROR(AVERAGE(DG17:DG56),0) -> 0 | DH57: =IFERROR(AVERAGE(DH17:DH56),0) -> 0 | DI57: =IFERROR(AVERAGE(DI17:DI56),0) -> 0 | DR57: =dataumum!G19 -> X-D

Sheet keterampilan (hidden)
B4: IDENTITAS GURU PENGAJAR | E4: =CONCATENATE("KD"," ",dataumum!#REF!) ->  | P4: =CONCATENATE("KD"," ",dataumum!#REF!) ->  | AA4: =CONCATENATE("KD"," ",dataumum!#REF!) ->  | AL4: =CONCATENATE("KD"," ",dataumum!#REF!) ->  | AW4: =CONCATENATE("KD"," ",dataumum!#REF!) ->  | BH4: =CONCATENATE("KD"," ",dataumum!#REF!) ->  | BS4: =CONCATENATE("KD"," ",dataumum!#REF!) ->  | CD4: =CONCATENATE("KD"," ",dataumum!#REF!) ->  | CO4: =CONCATENATE("KD"," ",dataumum!#REF!) ->  | CZ4: =CONCATENATE("KD"," ",dataumum!#REF!) ->  | DL4: APLIKASI PENILAIAN K.13 MAN 4 TASIKMALAYA | DV4: PENILAIAN PENGETAHUAN | DY4: JENIS UJIAN
B5: Nama Guru | D5: =dataumum!G6 -> Arief Pribadi, S.Si | E5: Deskripsi | G5: =dataumum!#REF! ->  | P5: Deskripsi | R5: =dataumum!#REF! ->  | AA5: Deskripsi | AC5: =dataumum!#REF! ->  | AL5: Deskripsi | AN5: =dataumum!#REF! ->  | AW5: Deskripsi | AY5: =dataumum!#REF! ->  | BH5: Deskripsi | BJ5: =dataumum!#REF! ->  | BS5: Deskripsi | BU5: =dataumum!#REF! ->  | CD5: Deskripsi | CF5: =dataumum!#REF! ->  | CO5: Deskripsi | CQ5: =dataumum!#REF! ->  | CZ5: Deskripsi | DB5: =dataumum!#REF! ->  | DV5: TLS | DY5: PAS
B6: NIP | D6: =dataumum!G7 -> 198603112020121005 | E6: Keterangan Tagihan | P6: Keterangan Tagihan | AA6: Keterangan Tagihan | AL6: Keterangan Tagihan | AW6: Keterangan Tagihan | BH6: Keterangan Tagihan | BS6: Keterangan Tagihan | CD6: Keterangan Tagihan | CO6: Keterangan Tagihan | CZ6: Keterangan Tagihan | DV6: LSN | DY6: PAT
B7: Mata Pelajaran | D7: =dataumum!G8 -> Kimia | E7: PH1 | K7: PH6 | P7: PH1 | V7: PH6 | AA7: PH1 | AG7: PH6 | AL7: PH1 | AR7: PH6 | AW7: PH1 | BC7: PH6 | BH7: PH1 | BN7: PH6 | BS7: PH1 | BY7: PH6 | CD7: PH1 | CJ7: PH6 | CO7: PH1 | CU7: PH6 | CZ7: PH1 | DF7: PH6 | DV7: TGS | DY7: UM
B8: Semester | D8: =dataumum!G9 -> 2 (Genap) | E8: PH2 | K8: PH7 | P8: PH2 | V8: PH7 | AA8: PH2 | AG8: PH7 | AL8: PH2 | AR8: PH7 | AW8: PH2 | BC8: PH7 | BH8: PH2 | BN8: PH7 | BS8: PH2 | BY8: PH7 | CD8: PH2 | CJ8: PH7 | CO8: PH2 | CU8: PH7 | CZ8: PH2 | DF8: PH7 | DP8: MAN 4 TASIKMALAYA | DV8: PENILAIAN KETERAMPILAN
B9: Tahun Pelajaran | D9: =dataumum!G10 -> 2025/2026 | E9: PH3 | K9: PH8 | P9: PH3 | V9: PH8 | AA9: PH3 | AG9: PH8 | AL9: PH3 | AR9: PH8 | AW9: PH3 | BC9: PH8 | BH9: PH3 | BN9: PH8 | BS9: PH3 | BY9: PH8 | CD9: PH3 | CJ9: PH8 | CO9: PH3 | CU9: PH8 | CZ9: PH3 | DF9: PH8 | DL9: =dataumum!G19 -> X-D | DP9: TOOLS UNTUK OLAH NILAI | DV9: UKJ
B10: Kelas | D10: =dataumum!G11 -> X-D | E10: PH4 | K10: PH9 | P10: PH4 | V10: PH9 | AA10: PH4 | AG10: PH9 | AL10: PH4 | AR10: PH9 | AW10: PH4 | BC10: PH9 | BH10: PH4 | BN10: PH9 | BS10: PH4 | BY10: PH9 | CD10: PH4 | CJ10: PH9 | CO10: PH4 | CU10: PH9 | CZ10: PH4 | DF10: PH9 | DL10: NILAI KETERAMPILAN | DV10: PRY
B11: KKM | D11: =dataumum!G12 -> 75 | E11: PH5 | K11: PH10 | P11: PH5 | V11: PH10 | AA11: PH5 | AG11: PH10 | AL11: PH5 | AR11: PH10 | AW11: PH5 | BC11: PH10 | BH11: PH5 | BN11: PH10 | BS11: PH5 | BY11: PH10 | CD11: PH5 | CJ11: PH10 | CO11: PH5 | CU11: PH10 | CZ11: PH5 | DF11: PH10 | DV11: PTF
D12: =dataumum!G19 -> X-D | DP12: N_MIN | DQ12: =MIN(DP17:DP56) -> 10
E13: =IF(COUNT(E17:E56)>0,1,0) -> 0 | F13: 0 | G13: 0 | H13: 0 | I13: 0 | J13: 0 | K13: 0 | L13: 0 | M13: 0 | N13: 0 | O13: =SUM(E13:N13) -> 0 | P13: =IF(COUNT(P17:P56)>0,1,0) -> 0 | Q13: 0 | R13: 0 | S13: 0 | T13: 0 | U13: 0 | V13: 0 | W13: 0 | X13: 0 | Y13: 0 | Z13: =SUM(P13:Y13) -> 0 | AA13: =IF(COUNT(AA17:AA56)>0,1,0) -> 0 | AB13: 0 | AC13: 0 | AD13: 0 | AE13: 0 | AF13: 0 | AG13: 0 | AH13: 0 | AI13: 0 | AJ13: 0 | AK13: =SUM(AA13:AJ13) -> 0 | AL13: =IF(COUNT(AL17:AL56)>0,1,0) -> 0 | AM13: 0 | AN13: 0 | AO13: 0 | AP13: 0 | AQ13: 0 | AR13: 0 | AS13: 0 | AT13: 0 | AU13: 0 | AV13: =SUM(AL13:AU13) -> 0 | AW13: =IF(COUNT(AW17:AW56)>0,1,0) -> 0 | AX13: 0 | AY13: 0 | AZ13: 0 | BA13: 0 | BB13: 0 | BC13: 0 | BD13: 0 | BE13: 0 | BF13: 0 | BG13: =SUM(AW13:BF13) -> 0 | BH13: =IF(COUNT(BH17:BH56)>0,1,0) -> 0 | BI13: 0 | BJ13: 0 | BK13: 0 | BL13: 0 | BM13: 0 | BN13: 0 | BO13: 0 | BP13: 0 | BQ13: 0 | BR13: =SUM(BH13:BQ13) -> 0 | BS13: =IF(COUNT(BS17:BS56)>0,1,0) -> 0 | BT13: 0 | BU13: 0 | BV13: 0 | BW13: 0 | BX13: 0 | BY13: 0 | BZ13: 0 | CA13: 0 | CB13: 0 | CC13: =SUM(BS13:CB13) -> 0 | CD13: =IF(COUNT(CD17:CD56)>0,1,0) -> 0 | CE13: 0 | CF13: 0 | CG13: 0 | CH13: 0 | CI13: 0 | CJ13: 0 | CK13: 0 | CL13: 0 | CM13: 0 | CN13: =SUM(CD13:CM13) -> 0 | CO13: =IF(COUNT(CO17:CO56)>0,1,0) -> 0 | CP13: 0 | CQ13: 0 | CR13: 0 | CS13: 0 | CT13: 0 | CU13: 0 | CV13: 0 | CW13: 0 | CX13: 0 | CY13: =SUM(CO13:CX13) -> 0 | CZ13: =IF(COUNT(CZ17:CZ56)>0,1,0) -> 0 | DA13: 0 | DB13: 0 | DC13: 0 | DD13: 0 | DE13: 0 | DF13: 0 | DG13: 0 | DH13: 0 | DI13: 0 | DJ13: =SUM(CZ13:DI13) -> 0 | DP13: N_MAX | DQ13: =MAX(DP17:DP56) -> 50
B14: NO | C14: NISN | D14: NAMA (Silahkan ambil dari salah satu template RDM) | E14: KETERAMPILAN | O14: =CONCATENATE("NILAI"," ",E4) ->  | P14: KETERAMPILAN | Z14: =CONCATENATE("NILAI"," ",P4) ->  | AA14: KETERAMPILAN | AK14: =CONCATENATE("NILAI"," ",AA4) ->  | AL14: KETERAMPILAN | AV14: =CONCATENATE("NILAI"," ",AL4) ->  | AW14: KETERAMPILAN | BG14: =CONCATENATE("NILAI"," ",AW4) ->  | BH14: KETERAMPILAN | BR14: =CONCATENATE("NILAI"," ",BH4) ->  | BS14: KETERAMPILAN | CC14: =CONCATENATE("NILAI"," ",BS4) ->  | CD14: KETERAMPILAN | CN14: =CONCATENATE("NILAI"," ",CD4) ->  | CO14: KETERAMPILAN | CY14: =CONCATENATE("NILAI"," ",CO4) ->  | CZ14: KETERAMPILAN | DJ14: =CONCATENATE("NILAI"," ",CZ4) ->  | DL14: NK | DN14: PREDIKAT | DP14: NILAI YANG DIINGINKAN
E15: Teknik Penilaian | P15: Teknik Penilaian | AA15: Teknik Penilaian | AL15: Teknik Penilaian | AW15: Teknik Penilaian | BH15: Teknik Penilaian | BS15: Teknik Penilaian | CD15: Teknik Penilaian | CO15: Teknik Penilaian | CZ15: Teknik Penilaian | DP15: MIN | DQ15: 77 | DT15: =IF(COUNT(DT17:DT56)>0,1,0) -> 0 | DU15: =IF(COUNT(DU17:DU56)>0,1,0) -> 0 | DV15: 0 | DW15: 0 | DX15: 0 | DY15: 0 | DZ15: 0 | EA15: 0 | EB15: 0 | EC15: 0 | ED15: =SUM(DT15:EC15) -> 0 | EE15: PREDIKAT
DP16: MAX | DQ16: 83 | DT16: =E4 ->  | DU16: =P4 ->  | DV16: =AA4 ->  | DW16: =AL4 ->  | DX16: =AW4 ->  | DY16: =BH4 ->  | DZ16: =BS4 ->  | EA16: =CD4 ->  | EB16: =CO4 ->  | EC16: =CZ4 ->  | ED16: RKD
B17: 1 | C17: =dataumum!C9 -> 0095527100 | D17: =dataumum!D9 -> AHMAD JAMIL MUNAWAR | O17: =IF(COUNT(E17:N17)<1,"",ROUND(SUM(E17:N17)/$O$13,0)) ->  | Z17: =IF(COUNT(P17:Y17)<1,"",ROUND(SUM(P17:Y17)/$Z$13,0)) ->  | AK17: =IF(COUNT(AA17:AJ17)<1,"",ROUND(SUM(AA17:AJ17)/$AK$13,0)) ->  | AV17: =IF(COUNT(AL17:AU17)<1,"",ROUND(SUM(AL17:AU17)/$AV$13,0)) ->  | BG17: =IF(COUNT(AW17:BF17)<1,"",ROUND(SUM(AW17:BF17)/$BG$13,0)) ->  | BR17: =IF(COUNT(BH17:BQ17)<1,"",ROUND(SUM(BH17:BQ17)/$BR$13,0)) ->  | CC17: =IF(COUNT(BS17:CB17)<1,"",ROUND(SUM(BS17:CB17)/$CC$13,0)) ->  | CN17: =IF(COUNT(CD17:CM17)<1,"",ROUND(SUM(CD17:CM17)/$CN$13,0)) ->  | CY17: =IF(COUNT(CO17:CX17)<1,"",ROUND(SUM(CO17:CX17)/$CY$13,0)) ->  | DJ17: =IF(COUNT(CZ17:DI17)<1,"",ROUND(SUM(CZ17:DI17)/$DJ$13,0)) ->  | DL17: =ED17 -> 0 | DN17: =IFERROR(IF(ED17>=dataumum!#REF!,"A",IF(ED17>=dataumum!#REF!,"B",IF(ED17>=dataumum!#REF!,"C","D"))),0) -> 0 | DP17: 26.66666667 | DQ17: =IFERROR($DQ$15+((DP17-$DQ$12)/($DQ$13-$DQ$12)*($DQ$16-$DQ$15)),0) -> 79.5 | DT17: =O17 ->  | DU17: =Z17 ->  | DV17: =AK17 ->  | DW17: =AV17 ->  | DX17: =BG17 ->  | DY17: =BR17 ->  | DZ17: =CC17 ->  | EA17: =CN17 ->  | EB17: =CY17 ->  | EC17: =DJ17 ->  | ED17: =IFERROR(AVERAGE(DT17:EC17),0) -> 0 | EE17: =IF(ED17>dataumum!#REF!,"A",IF(ED17>dataumum!#REF!,"B",IF(ED17>dataumum!#REF!,"C","D"))) -> 
B18: 2 | C18: =dataumum!C10 -> 0108689880 | D18: =dataumum!D10 -> AKBAR NUGRAHA | O18: =IF(COUNT(E18:N18)<1,"",ROUND(SUM(E18:N18)/$O$13,0)) ->  | Z18: =IF(COUNT(P18:Y18)<1,"",ROUND(SUM(P18:Y18)/$Z$13,0)) ->  | AK18: =IF(COUNT(AA18:AJ18)<1,"",ROUND(SUM(AA18:AJ18)/$AK$13,0)) ->  | AV18: =IF(COUNT(AL18:AU18)<1,"",ROUND(SUM(AL18:AU18)/$AV$13,0)) ->  | BG18: =IF(COUNT(AW18:BF18)<1,"",ROUND(SUM(AW18:BF18)/$BG$13,0)) ->  | BR18: =IF(COUNT(BH18:BQ18)<1,"",ROUND(SUM(BH18:BQ18)/$BR$13,0)) ->  | CC18: =IF(COUNT(BS18:CB18)<1,"",ROUND(SUM(BS18:CB18)/$CC$13,0)) ->  | CN18: =IF(COUNT(CD18:CM18)<1,"",ROUND(SUM(CD18:CM18)/$CN$13,0)) ->  | CY18: =IF(COUNT(CO18:CX18)<1,"",ROUND(SUM(CO18:CX18)/$CY$13,0)) ->  | DJ18: =IF(COUNT(CZ18:DI18)<1,"",ROUND(SUM(CZ18:DI18)/$DJ$13,0)) ->  | DL18: =ED18 -> 0 | DN18: =IFERROR(IF(ED18>=dataumum!#REF!,"A",IF(ED18>=dataumum!#REF!,"B",IF(ED18>=dataumum!#REF!,"C","D"))),0) -> 0 | DP18: 20 | DQ18: =IFERROR($DQ$15+((DP18-$DQ$12)/($DQ$13-$DQ$12)*($DQ$16-$DQ$15)),0) -> 78.5 | ED18: =IFERROR(AVERAGE(DT18:EC18),0) -> 0 | EE18: =IF(ED18>dataumum!#REF!,"A",IF(ED18>dataumum!#REF!,"B",IF(ED18>dataumum!#REF!,"C","D"))) -> 
B19: 3 | C19: =dataumum!C11 -> 0101457073 | D19: =dataumum!D11 -> ALSA NAPILA ABALIA | DL19: 0 | DN19: =IFERROR(IF(ED19>=dataumum!#REF!,"A",IF(ED19>=dataumum!#REF!,"B",IF(ED19>=dataumum!#REF!,"C","D"))),0) -> 0 | DP19: 13.33333333 | DQ19: 77.5 | ED19: 0 | EE19: =IF(ED19>dataumum!#REF!,"A",IF(ED19>dataumum!#REF!,"B",IF(ED19>dataumum!#REF!,"C","D"))) -> 
B20: 4 | C20: =dataumum!C12 -> 3098669460 | D20: =dataumum!D12 -> ALWAN FAJRUL HAKIM | DL20: 0 | DN20: =IFERROR(IF(ED20>=dataumum!#REF!,"A",IF(ED20>=dataumum!#REF!,"B",IF(ED20>=dataumum!#REF!,"C","D"))),0) -> 0 | DP20: 23.33333333 | DQ20: 79 | ED20: 0 | EE20: =IF(ED20>dataumum!#REF!,"A",IF(ED20>dataumum!#REF!,"B",IF(ED20>dataumum!#REF!,"C","D"))) -> 
B21: 5 | C21: =dataumum!C13 -> 0097476054 | D21: =dataumum!D13 -> ANDIKA | DL21: 0 | DN21: =IFERROR(IF(ED21>=dataumum!#REF!,"A",IF(ED21>=dataumum!#REF!,"B",IF(ED21>=dataumum!#REF!,"C","D"))),0) -> 0 | DP21: 50 | DQ21: 83 | ED21: 0 | EE21: =IF(ED21>dataumum!#REF!,"A",IF(ED21>dataumum!#REF!,"B",IF(ED21>dataumum!#REF!,"C","D"))) -> 
B22: 6 | C22: =dataumum!C14 -> 0107479079 | D22: =dataumum!D14 -> CHINTIA NUR AZIZAH | DL22: 0 | DN22: =IFERROR(IF(ED22>=dataumum!#REF!,"A",IF(ED22>=dataumum!#REF!,"B",IF(ED22>=dataumum!#REF!,"C","D"))),0) -> 0 | DP22: 40 | DQ22: 81.5 | ED22: 0 | EE22: =IF(ED22>dataumum!#REF!,"A",IF(ED22>dataumum!#REF!,"B",IF(ED22>dataumum!#REF!,"C","D"))) -> 
B23: 7 | C23: =dataumum!C15 -> 0095178395 | D23: =dataumum!D15 -> DEDE AULIA | DL23: 0 | DN23: =IFERROR(IF(ED23>=dataumum!#REF!,"A",IF(ED23>=dataumum!#REF!,"B",IF(ED23>=dataumum!#REF!,"C","D"))),0) -> 0 | DP23: 50 | DQ23: 83 | ED23: 0 | EE23: =IF(ED23>dataumum!#REF!,"A",IF(ED23>dataumum!#REF!,"B",IF(ED23>dataumum!#REF!,"C","D"))) -> 
B24: 8 | C24: =dataumum!C16 -> 0097071532 | D24: =dataumum!D16 -> DIRLI PIRMANSAH REZA | DL24: 0 | DN24: =IFERROR(IF(ED24>=dataumum!#REF!,"A",IF(ED24>=dataumum!#REF!,"B",IF(ED24>=dataumum!#REF!,"C","D"))),0) -> 0 | DP24: 43.33333333 | DQ24: 82 | ED24: 0 | EE24: =IF(ED24>dataumum!#REF!,"A",IF(ED24>dataumum!#REF!,"B",IF(ED24>dataumum!#REF!,"C","D"))) -> 
B25: 9 | C25: =dataumum!C17 -> 0085525399 | D25: =dataumum!D17 -> EKSEL | DL25: 0 | DN25: =IFERROR(IF(ED25>=dataumum!#REF!,"A",IF(ED25>=dataumum!#REF!,"B",IF(ED25>=dataumum!#REF!,"C","D"))),0) -> 0 | DP25: 43.33333333 | DQ25: 82 | ED25: 0 | EE25: =IF(ED25>dataumum!#REF!,"A",IF(ED25>dataumum!#REF!,"B",IF(ED25>dataumum!#REF!,"C","D"))) -> 
B26: 10 | C26: =dataumum!C18 -> 0099271082 | D26: =dataumum!D18 -> FADLAN APANDI | DL26: 0 | DN26: =IFERROR(IF(ED26>=dataumum!#REF!,"A",IF(ED26>=dataumum!#REF!,"B",IF(ED26>=dataumum!#REF!,"C","D"))),0) -> 0 | DP26: 33.33333333 | DQ26: 80.5 | ED26: 0 | EE26: =IF(ED26>dataumum!#REF!,"A",IF(ED26>dataumum!#REF!,"B",IF(ED26>dataumum!#REF!,"C","D"))) -> 
B27: 11 | C27: =dataumum!C19 -> 3109814391 | D27: =dataumum!D19 -> HAYA MADIHATUL ISMAH | DL27: 0 | DN27: =IFERROR(IF(ED27>=dataumum!#REF!,"A",IF(ED27>=dataumum!#REF!,"B",IF(ED27>=dataumum!#REF!,"C","D"))),0) -> 0 | DP27: 43.33333333 | DQ27: 82 | ED27: 0 | EE27: =IF(ED27>dataumum!#REF!,"A",IF(ED27>dataumum!#REF!,"B",IF(ED27>dataumum!#REF!,"C","D"))) -> 
B28: 12 | C28: =dataumum!C20 -> 3094762585 | D28: =dataumum!D20 -> HIKAYATUL JABAL | DL28: 0 | DN28: =IFERROR(IF(ED28>=dataumum!#REF!,"A",IF(ED28>=dataumum!#REF!,"B",IF(ED28>=dataumum!#REF!,"C","D"))),0) -> 0 | DP28: 13.33333333 | DQ28: 77.5 | ED28: 0 | EE28: =IF(ED28>dataumum!#REF!,"A",IF(ED28>dataumum!#REF!,"B",IF(ED28>dataumum!#REF!,"C","D"))) -> 
B29: 13 | C29: =dataumum!C21 -> 0105251526 | D29: =dataumum!D21 -> IHSAN NURSALAM | DL29: 0 | DN29: =IFERROR(IF(ED29>=dataumum!#REF!,"A",IF(ED29>=dataumum!#REF!,"B",IF(ED29>=dataumum!#REF!,"C","D"))),0) -> 0 | DP29: 16.66666667 | DQ29: 78 | ED29: 0 | EE29: =IF(ED29>dataumum!#REF!,"A",IF(ED29>dataumum!#REF!,"B",IF(ED29>dataumum!#REF!,"C","D"))) -> 
B30: 14 | C30: =dataumum!C22 -> 3095547483 | D30: =dataumum!D22 -> IZAD NOOR JAMAN | DL30: 0 | DN30: =IFERROR(IF(ED30>=dataumum!#REF!,"A",IF(ED30>=dataumum!#REF!,"B",IF(ED30>=dataumum!#REF!,"C","D"))),0) -> 0 | DP30: 46.66666667 | DQ30: 82.5 | ED30: 0 | EE30: =IF(ED30>dataumum!#REF!,"A",IF(ED30>dataumum!#REF!,"B",IF(ED30>dataumum!#REF!,"C","D"))) -> 
B31: 15 | C31: =dataumum!C23 -> 0093659815 | D31: =dataumum!D23 -> JIHAN NURROHMAH SEPTIRA | DL31: 0 | DN31: =IFERROR(IF(ED31>=dataumum!#REF!,"A",IF(ED31>=dataumum!#REF!,"B",IF(ED31>=dataumum!#REF!,"C","D"))),0) -> 0 | DP31: 30 | DQ31: 80 | ED31: 0 | EE31: =IF(ED31>dataumum!#REF!,"A",IF(ED31>dataumum!#REF!,"B",IF(ED31>dataumum!#REF!,"C","D"))) -> 
B32: 16 | C32: =dataumum!C24 -> 3090540244 | D32: =dataumum!D24 -> KAKA SEPTIAN | DL32: 0 | DN32: =IFERROR(IF(ED32>=dataumum!#REF!,"A",IF(ED32>=dataumum!#REF!,"B",IF(ED32>=dataumum!#REF!,"C","D"))),0) -> 0 | DP32: 20 | DQ32: 78.5 | ED32: 0 | EE32: =IF(ED32>dataumum!#REF!,"A",IF(ED32>dataumum!#REF!,"B",IF(ED32>dataumum!#REF!,"C","D"))) -> 
B33: 17 | C33: =dataumum!C25 -> 0088283383 | D33: =dataumum!D25 -> LUTPI | DL33: 0 | DN33: =IFERROR(IF(ED33>=dataumum!#REF!,"A",IF(ED33>=dataumum!#REF!,"B",IF(ED33>=dataumum!#REF!,"C","D"))),0) -> 0 | DP33: 40 | DQ33: 81.5 | ED33: 0 | EE33: =IF(ED33>dataumum!#REF!,"A",IF(ED33>dataumum!#REF!,"B",IF(ED33>dataumum!#REF!,"C","D"))) -> 
B34: 18 | C34: =dataumum!C26 -> 3096008382 | D34: =dataumum!D26 -> M SUGIH MIWAHA | DL34: 0 | DN34: =IFERROR(IF(ED34>=dataumum!#REF!,"A",IF(ED34>=dataumum!#REF!,"B",IF(ED34>=dataumum!#REF!,"C","D"))),0) -> 0 | DP34: 10 | DQ34: 77 | ED34: 0 | EE34: =IF(ED34>dataumum!#REF!,"A",IF(ED34>dataumum!#REF!,"B",IF(ED34>dataumum!#REF!,"C","D"))) -> 
B35: 19 | C35: =dataumum!C27 -> 0093656626 | D35: =dataumum!D27 -> MUHLIS | DL35: 0 | DN35: =IFERROR(IF(ED35>=dataumum!#REF!,"A",IF(ED35>=dataumum!#REF!,"B",IF(ED35>=dataumum!#REF!,"C","D"))),0) -> 0 | DP35: 30 | DQ35: 80 | ED35: 0 | EE35: =IF(ED35>dataumum!#REF!,"A",IF(ED35>dataumum!#REF!,"B",IF(ED35>dataumum!#REF!,"C","D"))) -> 
B36: 20 | C36: =dataumum!C28 -> 0097902846 | D36: =dataumum!D28 -> NURAFIFAH FAUZIAH | DL36: 0 | DN36: =IFERROR(IF(ED36>=dataumum!#REF!,"A",IF(ED36>=dataumum!#REF!,"B",IF(ED36>=dataumum!#REF!,"C","D"))),0) -> 0 | DP36: 46.66666667 | DQ36: 82.5 | ED36: 0 | EE36: =IF(ED36>dataumum!#REF!,"A",IF(ED36>dataumum!#REF!,"B",IF(ED36>dataumum!#REF!,"C","D"))) -> 
B37: 21 | C37: =dataumum!C29 -> 0088756415 | D37: =dataumum!D29 -> REPAN | DL37: 0 | DN37: =IFERROR(IF(ED37>=dataumum!#REF!,"A",IF(ED37>=dataumum!#REF!,"B",IF(ED37>=dataumum!#REF!,"C","D"))),0) -> 0 | DP37: 43.33333333 | DQ37: 82 | ED37: 0 | EE37: =IF(ED37>dataumum!#REF!,"A",IF(ED37>dataumum!#REF!,"B",IF(ED37>dataumum!#REF!,"C","D"))) -> 
B38: 22 | C38: =dataumum!C30 -> 0095868392 | D38: =dataumum!D30 -> REZA NURUL WILDAN | DL38: 0 | DN38: =IFERROR(IF(ED38>=dataumum!#REF!,"A",IF(ED38>=dataumum!#REF!,"B",IF(ED38>=dataumum!#REF!,"C","D"))),0) -> 0 | DP38: 30 | DQ38: 80 | ED38: 0 | EE38: =IF(ED38>dataumum!#REF!,"A",IF(ED38>dataumum!#REF!,"B",IF(ED38>dataumum!#REF!,"C","D"))) -> 
B39: 23 | C39: =dataumum!C31 -> 3095334952 | D39: =dataumum!D31 -> SYIFA NURJANAH | DL39: 0 | DN39: =IFERROR(IF(ED39>=dataumum!#REF!,"A",IF(ED39>=dataumum!#REF!,"B",IF(ED39>=dataumum!#REF!,"C","D"))),0) -> 0 | DP39: 30 | DQ39: 80 | ED39: 0 | EE39: =IF(ED39>dataumum!#REF!,"A",IF(ED39>dataumum!#REF!,"B",IF(ED39>dataumum!#REF!,"C","D"))) -> 
B40: 24 | C40: =dataumum!C32 -> 0093189091 | D40: =dataumum!D32 -> WINDI PUJIA SAFITRI | DL40: 0 | DN40: =IFERROR(IF(ED40>=dataumum!#REF!,"A",IF(ED40>=dataumum!#REF!,"B",IF(ED40>=dataumum!#REF!,"C","D"))),0) -> 0 | DP40: 30 | DQ40: 80 | ED40: 0 | EE40: =IF(ED40>dataumum!#REF!,"A",IF(ED40>dataumum!#REF!,"B",IF(ED40>dataumum!#REF!,"C","D"))) -> 
B41: 25 | C41: =dataumum!C33 -> 0096749734 | D41: =dataumum!D33 -> WULAN RESPIANI | DL41: 0 | DN41: =IFERROR(IF(ED41>=dataumum!#REF!,"A",IF(ED41>=dataumum!#REF!,"B",IF(ED41>=dataumum!#REF!,"C","D"))),0) -> 0 | DP41: 43.33333333 | DQ41: 82 | ED41: 0 | EE41: =IF(ED41>dataumum!#REF!,"A",IF(ED41>dataumum!#REF!,"B",IF(ED41>dataumum!#REF!,"C","D"))) -> 
B42: 26 | C42: =dataumum!C34 -> 0099314795 | D42: =dataumum!D34 -> YESI DESTRIYANI | DL42: 0 | DN42: =IFERROR(IF(ED42>=dataumum!#REF!,"A",IF(ED42>=dataumum!#REF!,"B",IF(ED42>=dataumum!#REF!,"C","D"))),0) -> 0 | DP42: 34.63333333 | DQ42: 80.695 | ED42: 0 | EE42: =IF(ED42>dataumum!#REF!,"A",IF(ED42>dataumum!#REF!,"B",IF(ED42>dataumum!#REF!,"C","D"))) -> 
B43: 27 | C43: =dataumum!C35 -> 0 | D43: =dataumum!D35 -> 0 | DL43: 0 | DN43: =IFERROR(IF(ED43>=dataumum!#REF!,"A",IF(ED43>=dataumum!#REF!,"B",IF(ED43>=dataumum!#REF!,"C","D"))),0) -> 0 | DP43: 34.78461538 | DQ43: 80.71769231 | ED43: 0 | EE43: =IF(ED43>dataumum!#REF!,"A",IF(ED43>dataumum!#REF!,"B",IF(ED43>dataumum!#REF!,"C","D"))) -> 
B44: 28 | C44: =dataumum!C36 -> 0 | D44: =dataumum!D36 -> 0 | DL44: 0 | DN44: =IFERROR(IF(ED44>=dataumum!#REF!,"A",IF(ED44>=dataumum!#REF!,"B",IF(ED44>=dataumum!#REF!,"C","D"))),0) -> 0 | DP44: 34.93589744 | DQ44: 80.74038462 | ED44: 0 | EE44: =IF(ED44>dataumum!#REF!,"A",IF(ED44>dataumum!#REF!,"B",IF(ED44>dataumum!#REF!,"C","D"))) -> 
B45: 29 | C45: =dataumum!C37 -> 0 | D45: =dataumum!D37 -> 0 | DL45: 0 | DN45: =IFERROR(IF(ED45>=dataumum!#REF!,"A",IF(ED45>=dataumum!#REF!,"B",IF(ED45>=dataumum!#REF!,"C","D"))),0) -> 0 | DP45: 35.08717949 | DQ45: 80.76307692 | ED45: 0 | EE45: =IF(ED45>dataumum!#REF!,"A",IF(ED45>dataumum!#REF!,"B",IF(ED45>dataumum!#REF!,"C","D"))) -> 
B46: 30 | C46: =dataumum!C38 -> 0 | D46: =dataumum!D38 -> 0 | DL46: 0 | DN46: =IFERROR(IF(ED46>=dataumum!#REF!,"A",IF(ED46>=dataumum!#REF!,"B",IF(ED46>=dataumum!#REF!,"C","D"))),0) -> 0 | DP46: 35.23846154 | DQ46: 80.78576923 | ED46: 0 | EE46: =IF(ED46>dataumum!#REF!,"A",IF(ED46>dataumum!#REF!,"B",IF(ED46>dataumum!#REF!,"C","D"))) -> 
B47: 31 | C47: =dataumum!C39 -> 0 | D47: =dataumum!D39 -> 0 | DL47: 0 | DN47: =IFERROR(IF(ED47>=dataumum!#REF!,"A",IF(ED47>=dataumum!#REF!,"B",IF(ED47>=dataumum!#REF!,"C","D"))),0) -> 0 | DP47: 35.38974359 | DQ47: 80.80846154 | ED47: 0 | EE47: =IF(ED47>dataumum!#REF!,"A",IF(ED47>dataumum!#REF!,"B",IF(ED47>dataumum!#REF!,"C","D"))) -> 
B48: 32 | C48: =dataumum!C40 -> 0 | D48: =dataumum!D40 -> 0 | DL48: 0 | DN48: =IFERROR(IF(ED48>=dataumum!#REF!,"A",IF(ED48>=dataumum!#REF!,"B",IF(ED48>=dataumum!#REF!,"C","D"))),0) -> 0 | DP48: 35.54102564 | DQ48: 80.83115385 | ED48: 0 | EE48: =IF(ED48>dataumum!#REF!,"A",IF(ED48>dataumum!#REF!,"B",IF(ED48>dataumum!#REF!,"C","D"))) -> 
B49: 33 | C49: =dataumum!C41 -> 0 | D49: =dataumum!D41 -> 0 | DL49: 0 | DN49: =IFERROR(IF(ED49>=dataumum!#REF!,"A",IF(ED49>=dataumum!#REF!,"B",IF(ED49>=dataumum!#REF!,"C","D"))),0) -> 0 | DP49: 35.69230769 | DQ49: 80.85384615 | ED49: 0 | EE49: =IF(ED49>dataumum!#REF!,"A",IF(ED49>dataumum!#REF!,"B",IF(ED49>dataumum!#REF!,"C","D"))) -> 
B50: 34 | C50: =dataumum!C42 -> 0 | D50: =dataumum!D42 -> 0 | DL50: 0 | DN50: =IFERROR(IF(ED50>=dataumum!#REF!,"A",IF(ED50>=dataumum!#REF!,"B",IF(ED50>=dataumum!#REF!,"C","D"))),0) -> 0 | DP50: 35.84358974 | DQ50: 80.87653846 | ED50: 0 | EE50: =IF(ED50>dataumum!#REF!,"A",IF(ED50>dataumum!#REF!,"B",IF(ED50>dataumum!#REF!,"C","D"))) -> 
B51: 35 | C51: =dataumum!C43 -> 0 | D51: =dataumum!D43 -> 0 | DL51: 0 | DN51: =IFERROR(IF(ED51>=dataumum!#REF!,"A",IF(ED51>=dataumum!#REF!,"B",IF(ED51>=dataumum!#REF!,"C","D"))),0) -> 0 | DP51: 35.99487179 | DQ51: 80.89923077 | ED51: 0 | EE51: =IF(ED51>dataumum!#REF!,"A",IF(ED51>dataumum!#REF!,"B",IF(ED51>dataumum!#REF!,"C","D"))) -> 
B52: 36 | C52: =dataumum!C44 -> 0 | D52: =dataumum!D44 -> 0 | DL52: 0 | DN52: =IFERROR(IF(ED52>=dataumum!#REF!,"A",IF(ED52>=dataumum!#REF!,"B",IF(ED52>=dataumum!#REF!,"C","D"))),0) -> 0 | DP52: 36.14615385 | DQ52: 80.92192308 | ED52: 0 | EE52: =IF(ED52>dataumum!#REF!,"A",IF(ED52>dataumum!#REF!,"B",IF(ED52>dataumum!#REF!,"C","D"))) -> 
B53: 37 | C53: =dataumum!C45 -> 0 | D53: =dataumum!D45 -> 0 | DL53: 0 | DN53: =IFERROR(IF(ED53>=dataumum!#REF!,"A",IF(ED53>=dataumum!#REF!,"B",IF(ED53>=dataumum!#REF!,"C","D"))),0) -> 0 | DP53: 36.2974359 | DQ53: 80.94461538 | ED53: 0 | EE53: =IF(ED53>dataumum!#REF!,"A",IF(ED53>dataumum!#REF!,"B",IF(ED53>dataumum!#REF!,"C","D"))) -> 
B54: 38 | C54: =dataumum!C46 -> 0 | D54: =dataumum!D46 -> 0 | DL54: 0 | DN54: =IFERROR(IF(ED54>=dataumum!#REF!,"A",IF(ED54>=dataumum!#REF!,"B",IF(ED54>=dataumum!#REF!,"C","D"))),0) -> 0 | DP54: 36.44871795 | DQ54: 80.96730769 | ED54: 0 | EE54: =IF(ED54>dataumum!#REF!,"A",IF(ED54>dataumum!#REF!,"B",IF(ED54>dataumum!#REF!,"C","D"))) -> 
B55: 39 | C55: =dataumum!C47 -> 0 | D55: =dataumum!D47 -> 0 | DL55: 0 | DN55: =IFERROR(IF(ED55>=dataumum!#REF!,"A",IF(ED55>=dataumum!#REF!,"B",IF(ED55>=dataumum!#REF!,"C","D"))),0) -> 0 | DP55: 36.6 | DQ55: 80.99 | ED55: 0 | EE55: =IF(ED55>dataumum!#REF!,"A",IF(ED55>dataumum!#REF!,"B",IF(ED55>dataumum!#REF!,"C","D"))) -> 
B56: 40 | C56: =dataumum!C48 -> 0 | D56: =dataumum!D48 -> 0 | DL56: 0 | DN56: =IFERROR(IF(ED56>=dataumum!#REF!,"A",IF(ED56>=dataumum!#REF!,"B",IF(ED56>=dataumum!#REF!,"C","D"))),0) -> 0 | DP56: 36.75128205 | DQ56: 81.01269231 | ED56: 0 | EE56: =IF(ED56>dataumum!#REF!,"A",IF(ED56>dataumum!#REF!,"B",IF(ED56>dataumum!#REF!,"C","D"))) -> 
B57: NILAI RERATA | E57: =IFERROR(AVERAGE(E17:E56),0) -> 0 | F57: =IFERROR(AVERAGE(F17:F56),0) -> 0 | G57: 0 | H57: 0 | I57: 0 | J57: 0 | K57: 0 | L57: 0 | M57: 0 | N57: 0 | O57: 0 | P57: 0 | Q57: 0 | R57: 0 | S57: 0 | T57: 0 | U57: 0 | V57: 0 | W57: 0 | X57: 0 | Y57: 0 | AA57: 0 | AB57: 0 | AC57: 0 | AD57: 0 | AE57: 0 | AF57: 0 | AG57: 0 | AH57: 0 | AI57: 0 | AJ57: 0 | AL57: 0 | AM57: 0 | AN57: 0 | AO57: 0 | AP57: 0 | AQ57: 0 | AR57: 0 | AS57: 0 | AT57: 0 | AU57: 0 | AW57: 0 | AX57: 0 | AY57: 0 | AZ57: 0 | BA57: 0 | BB57: 0 | BC57: 0 | BD57: 0 | BE57: 0 | BF57: 0 | BH57: 0 | BI57: 0 | BJ57: 0 | BK57: 0 | BL57: 0 | BM57: 0 | BN57: 0 | BO57: 0 | BP57: 0 | BQ57: 0 | BS57: =IFERROR(AVERAGE(BS17:BS56),0) -> 0 | BT57: 0 | BU57: 0 | BV57: 0 | BW57: 0 | BX57: 0 | BY57: 0 | BZ57: 0 | CA57: 0 | CB57: 0 | CD57: 0 | CE57: 0 | CF57: 0 | CG57: 0 | CH57: 0 | CI57: 0 | CJ57: 0 | CK57: 0 | CL57: 0 | CM57: 0 | CO57: 0 | CP57: 0 | CQ57: 0 | CR57: 0 | CS57: 0 | CT57: 0 | CU57: 0 | CV57: 0 | CW57: 0 | CX57: 0 | CZ57: 0 | DA57: 0 | DB57: 0 | DC57: 0 | DD57: 0 | DE57: 0 | DF57: 0 | DG57: 0 | DH57: 0 | DI57: 0 | DQ57: =dataumum!G19 -> X-D

Sheet rekap (hidden)
B1: KEMENTERIAN AGAMA REPUBLIK INDONESIA
B2: KANTOR KEMENTERIAN AGAMA KABUPATEN TASIKMALAYA
B3: MADRASAH ALIYAH NEGERI 4 TASIKMALAYA
B4: Jl. Sindanghurip Desa Cikalong Kec. Cikalong 46195
B5: Website : www.mancikalong.sch.id e-mail : mancikalong@gmail.com
B7: REKAPITULASI NILAI PENGETAHUAN DAN KETERAMPILAN
B8: Mata Pelajaran | D8: =CONCATENATE(":"," ",dataumum!G8) -> : Kimia | Y8: Semester | AB8: =CONCATENATE(":"," ",dataumum!G9) -> : 2 (Genap)
B9: Kelas | D9: =CONCATENATE(":"," ",dataumum!G11) -> : X-D | Y9: Tahun Pelajaran | AB9: =CONCATENATE(":"," ",dataumum!G10) -> : 2025/2026
B10: Pendidik | D10: =CONCATENATE(":"," ",dataumum!G6) -> : Arief Pribadi, S.Si | Y10: KKM | AB10: =CONCATENATE(":"," ",dataumum!G12) -> : 75
E12: =IF(COUNT(E15:E54)>0,1,0) -> 0 | F12: 0 | G12: 0 | H12: 0 | I12: 0 | J12: 0 | K12: 0 | L12: 0 | M12: 0 | N12: 0 | O12: =SUM(E12:N12) -> 0 | S12: =IF(COUNT(S15:S54)>0,1,0) -> 0 | T12: 0 | U12: 0 | V12: 0 | W12: 0 | X12: 0 | Y12: 0 | Z12: 0 | AA12: 0 | AB12: 0 | AC12: =SUM(S12:AB12) -> 0
B13: NO | C13: NISN | D13: NAMA (Silahkan ambil dari salah satu template RDM) | E13: PENGETAHUAN | O13: RPH | P13: =pengetahuan!DM14 -> PAS | Q13: NP | R13: PREDIKAT | S13: KETERAMPILAN (UK = UNJUK KERJA, PR = PROYEK, PF = PORTOFOLIO) | AC13: NK | AD13: PREDIKAT
E14: PH1 | F14: PH2 | G14: PH3 | H14: PH4 | I14: PH5 | J14: PH6 | K14: PH7 | L14: PH8 | M14: PH9 | N14: PH10 | S14: PH1 | T14: PH2 | U14: PH3 | V14: PH4 | W14: PH5 | X14: PH6 | Y14: PH7 | Z14: PH8 | AA14: PH9 | AB14: PH10
B15: 1 | C15: =dataumum!C9 -> 0095527100 | D15: =dataumum!D9 -> AHMAD JAMIL MUNAWAR | E15: =pengetahuan!DU17 ->  | F15: =pengetahuan!DV17 ->  | G15: =pengetahuan!DW17 ->  | H15: =pengetahuan!DX17 ->  | I15: =pengetahuan!DY17 ->  | J15: =pengetahuan!DZ17 ->  | K15: =pengetahuan!EA17 ->  | L15: =pengetahuan!EB17 ->  | M15: =pengetahuan!EC17 ->  | N15: =pengetahuan!ED17 ->  | O15: =pengetahuan!DL17 ->  | P15: =pengetahuan!DM17 -> 80 | Q15: =pengetahuan!DN17 -> 0 | R15: =pengetahuan!DO17 -> 0 | S15: =keterampilan!DT17 ->  | T15: =keterampilan!DU17 ->  | U15: =keterampilan!DV17 ->  | V15: =keterampilan!DW17 ->  | W15: =keterampilan!DX17 ->  | X15: =keterampilan!DY17 ->  | Y15: =keterampilan!DZ17 ->  | Z15: =keterampilan!EA17 ->  | AA15: =keterampilan!EB17 ->  | AB15: =keterampilan!EC17 ->  | AC15: =keterampilan!DL17 -> 0 | AD15: =keterampilan!DN17 -> 0
B16: 2 | C16: =dataumum!C10 -> 0108689880 | D16: =dataumum!D10 -> AKBAR NUGRAHA | E16: =pengetahuan!DU18 ->  | F16: =pengetahuan!DV18 ->  | G16: =pengetahuan!DW18 ->  | H16: =pengetahuan!DX18 ->  | I16: =pengetahuan!DY18 ->  | J16: =pengetahuan!DZ18 ->  | K16: =pengetahuan!EA18 ->  | L16: =pengetahuan!EB18 ->  | M16: =pengetahuan!EC18 ->  | N16: =pengetahuan!ED18 ->  | O16: =pengetahuan!DL18 ->  | P16: =pengetahuan!DM18 -> 50 | Q16: =pengetahuan!DN18 -> 0 | R16: =pengetahuan!DO18 -> 0 | S16: =keterampilan!DT18 ->  | T16: =keterampilan!DU18 ->  | U16: =keterampilan!DV18 ->  | V16: =keterampilan!DW18 ->  | W16: =keterampilan!DX18 ->  | X16: =keterampilan!DY18 ->  | Y16: =keterampilan!DZ18 ->  | Z16: =keterampilan!EA18 ->  | AA16: =keterampilan!EB18 ->  | AB16: =keterampilan!EC18 ->  | AC16: =keterampilan!DL18 -> 0 | AD16: =keterampilan!DN18 -> 0
B17: 3 | C17: =dataumum!C11 -> 0101457073 | D17: =dataumum!D11 -> ALSA NAPILA ABALIA | E17: =pengetahuan!DU19 ->  | F17: =pengetahuan!DV19 ->  | G17: =pengetahuan!DW19 ->  | H17: =pengetahuan!DX19 ->  | I17: =pengetahuan!DY19 ->  | J17: =pengetahuan!DZ19 ->  | K17: =pengetahuan!EA19 ->  | L17: =pengetahuan!EB19 ->  | M17: =pengetahuan!EC19 ->  | N17: =pengetahuan!ED19 ->  | O17: =pengetahuan!DL19 ->  | P17: =pengetahuan!DM19 -> 0 | Q17: =pengetahuan!DN19 -> 0 | R17: =pengetahuan!DO19 -> 0 | S17: =keterampilan!DT19 ->  | T17: =keterampilan!DU19 ->  | U17: =keterampilan!DV19 ->  | V17: =keterampilan!DW19 ->  | W17: =keterampilan!DX19 ->  | X17: =keterampilan!DY19 ->  | Y17: =keterampilan!DZ19 ->  | Z17: =keterampilan!EA19 ->  | AA17: =keterampilan!EB19 ->  | AB17: =keterampilan!EC19 ->  | AC17: =keterampilan!DL19 -> 0 | AD17: =keterampilan!DN19 -> 0
B18: 4 | C18: =dataumum!C12 -> 3098669460 | D18: =dataumum!D12 -> ALWAN FAJRUL HAKIM | E18: =pengetahuan!DU20 ->  | F18: =pengetahuan!DV20 ->  | G18: =pengetahuan!DW20 ->  | H18: =pengetahuan!DX20 ->  | I18: =pengetahuan!DY20 ->  | J18: =pengetahuan!DZ20 ->  | K18: =pengetahuan!EA20 ->  | L18: =pengetahuan!EB20 ->  | M18: =pengetahuan!EC20 ->  | N18: =pengetahuan!ED20 ->  | O18: =pengetahuan!DL20 ->  | P18: =pengetahuan!DM20 -> 0 | Q18: =pengetahuan!DN20 -> 0 | R18: =pengetahuan!DO20 -> 0 | S18: =keterampilan!DT20 ->  | T18: =keterampilan!DU20 ->  | U18: =keterampilan!DV20 ->  | V18: =keterampilan!DW20 ->  | W18: =keterampilan!DX20 ->  | X18: =keterampilan!DY20 ->  | Y18: =keterampilan!DZ20 ->  | Z18: =keterampilan!EA20 ->  | AA18: =keterampilan!EB20 ->  | AB18: =keterampilan!EC20 ->  | AC18: =keterampilan!DL20 -> 0 | AD18: =keterampilan!DN20 -> 0
B19: 5 | C19: =dataumum!C13 -> 0097476054 | D19: =dataumum!D13 -> ANDIKA | E19: =pengetahuan!DU21 ->  | F19: =pengetahuan!DV21 ->  | G19: =pengetahuan!DW21 ->  | H19: =pengetahuan!DX21 ->  | I19: =pengetahuan!DY21 ->  | J19: =pengetahuan!DZ21 ->  | K19: =pengetahuan!EA21 ->  | L19: =pengetahuan!EB21 ->  | M19: =pengetahuan!EC21 ->  | N19: =pengetahuan!ED21 ->  | O19: =pengetahuan!DL21 ->  | P19: =pengetahuan!DM21 -> 0 | Q19: =pengetahuan!DN21 -> 0 | R19: =pengetahuan!DO21 -> 0 | S19: =keterampilan!DT21 ->  | T19: =keterampilan!DU21 ->  | U19: =keterampilan!DV21 ->  | V19: =keterampilan!DW21 ->  | W19: =keterampilan!DX21 ->  | X19: =keterampilan!DY21 ->  | Y19: =keterampilan!DZ21 ->  | Z19: =keterampilan!EA21 ->  | AA19: =keterampilan!EB21 ->  | AB19: =keterampilan!EC21 ->  | AC19: =keterampilan!DL21 -> 0 | AD19: =keterampilan!DN21 -> 0
B20: 6 | C20: =dataumum!C14 -> 0107479079 | D20: =dataumum!D14 -> CHINTIA NUR AZIZAH | E20: =pengetahuan!DU22 ->  | F20: =pengetahuan!DV22 ->  | G20: =pengetahuan!DW22 ->  | H20: =pengetahuan!DX22 ->  | I20: =pengetahuan!DY22 ->  | J20: =pengetahuan!DZ22 ->  | K20: =pengetahuan!EA22 ->  | L20: =pengetahuan!EB22 ->  | M20: =pengetahuan!EC22 ->  | N20: =pengetahuan!ED22 ->  | O20: =pengetahuan!DL22 ->  | P20: =pengetahuan!DM22 -> 0 | Q20: =pengetahuan!DN22 -> 0 | R20: =pengetahuan!DO22 -> 0 | S20: =keterampilan!DT22 ->  | T20: =keterampilan!DU22 ->  | U20: =keterampilan!DV22 ->  | V20: =keterampilan!DW22 ->  | W20: =keterampilan!DX22 ->  | X20: =keterampilan!DY22 ->  | Y20: =keterampilan!DZ22 ->  | Z20: =keterampilan!EA22 ->  | AA20: =keterampilan!EB22 ->  | AB20: =keterampilan!EC22 ->  | AC20: =keterampilan!DL22 -> 0 | AD20: =keterampilan!DN22 -> 0
B21: 7 | C21: =dataumum!C15 -> 0095178395 | D21: =dataumum!D15 -> DEDE AULIA | E21: =pengetahuan!DU23 ->  | F21: =pengetahuan!DV23 ->  | G21: =pengetahuan!DW23 ->  | H21: =pengetahuan!DX23 ->  | I21: =pengetahuan!DY23 ->  | J21: =pengetahuan!DZ23 ->  | K21: =pengetahuan!EA23 ->  | L21: =pengetahuan!EB23 ->  | M21: =pengetahuan!EC23 ->  | N21: =pengetahuan!ED23 ->  | O21: =pengetahuan!DL23 ->  | P21: =pengetahuan!DM23 -> 0 | Q21: =pengetahuan!DN23 -> 0 | R21: =pengetahuan!DO23 -> 0 | S21: =keterampilan!DT23 ->  | T21: =keterampilan!DU23 ->  | U21: =keterampilan!DV23 ->  | V21: =keterampilan!DW23 ->  | W21: =keterampilan!DX23 ->  | X21: =keterampilan!DY23 ->  | Y21: =keterampilan!DZ23 ->  | Z21: =keterampilan!EA23 ->  | AA21: =keterampilan!EB23 ->  | AB21: =keterampilan!EC23 ->  | AC21: =keterampilan!DL23 -> 0 | AD21: =keterampilan!DN23 -> 0
B22: 8 | C22: =dataumum!C16 -> 0097071532 | D22: =dataumum!D16 -> DIRLI PIRMANSAH REZA | E22: =pengetahuan!DU24 ->  | F22: =pengetahuan!DV24 ->  | G22: =pengetahuan!DW24 ->  | H22: =pengetahuan!DX24 ->  | I22: =pengetahuan!DY24 ->  | J22: =pengetahuan!DZ24 ->  | K22: =pengetahuan!EA24 ->  | L22: =pengetahuan!EB24 ->  | M22: =pengetahuan!EC24 ->  | N22: =pengetahuan!ED24 ->  | O22: =pengetahuan!DL24 ->  | P22: =pengetahuan!DM24 -> 0 | Q22: =pengetahuan!DN24 -> 0 | R22: =pengetahuan!DO24 -> 0 | S22: =keterampilan!DT24 ->  | T22: =keterampilan!DU24 ->  | U22: =keterampilan!DV24 ->  | V22: =keterampilan!DW24 ->  | W22: =keterampilan!DX24 ->  | X22: =keterampilan!DY24 ->  | Y22: =keterampilan!DZ24 ->  | Z22: =keterampilan!EA24 ->  | AA22: =keterampilan!EB24 ->  | AB22: =keterampilan!EC24 ->  | AC22: =keterampilan!DL24 -> 0 | AD22: =keterampilan!DN24 -> 0
B23: 9 | C23: =dataumum!C17 -> 0085525399 | D23: =dataumum!D17 -> EKSEL | E23: =pengetahuan!DU25 ->  | F23: =pengetahuan!DV25 ->  | G23: =pengetahuan!DW25 ->  | H23: =pengetahuan!DX25 ->  | I23: =pengetahuan!DY25 ->  | J23: =pengetahuan!DZ25 ->  | K23: =pengetahuan!EA25 ->  | L23: =pengetahuan!EB25 ->  | M23: =pengetahuan!EC25 ->  | N23: =pengetahuan!ED25 ->  | O23: =pengetahuan!DL25 ->  | P23: =pengetahuan!DM25 -> 0 | Q23: =pengetahuan!DN25 -> 0 | R23: =pengetahuan!DO25 -> 0 | S23: =keterampilan!DT25 ->  | T23: =keterampilan!DU25 ->  | U23: =keterampilan!DV25 ->  | V23: =keterampilan!DW25 ->  | W23: =keterampilan!DX25 ->  | X23: =keterampilan!DY25 ->  | Y23: =keterampilan!DZ25 ->  | Z23: =keterampilan!EA25 ->  | AA23: =keterampilan!EB25 ->  | AB23: =keterampilan!EC25 ->  | AC23: =keterampilan!DL25 -> 0 | AD23: =keterampilan!DN25 -> 0
B24: 10 | C24: =dataumum!C18 -> 0099271082 | D24: =dataumum!D18 -> FADLAN APANDI | E24: =pengetahuan!DU26 ->  | F24: =pengetahuan!DV26 ->  | G24: =pengetahuan!DW26 ->  | H24: =pengetahuan!DX26 ->  | I24: =pengetahuan!DY26 ->  | J24: =pengetahuan!DZ26 ->  | K24: =pengetahuan!EA26 ->  | L24: =pengetahuan!EB26 ->  | M24: =pengetahuan!EC26 ->  | N24: =pengetahuan!ED26 ->  | O24: =pengetahuan!DL26 ->  | P24: =pengetahuan!DM26 -> 0 | Q24: =pengetahuan!DN26 -> 0 | R24: =pengetahuan!DO26 -> 0 | S24: =keterampilan!DT26 ->  | T24: =keterampilan!DU26 ->  | U24: =keterampilan!DV26 ->  | V24: =keterampilan!DW26 ->  | W24: =keterampilan!DX26 ->  | X24: =keterampilan!DY26 ->  | Y24: =keterampilan!DZ26 ->  | Z24: =keterampilan!EA26 ->  | AA24: =keterampilan!EB26 ->  | AB24: =keterampilan!EC26 ->  | AC24: =keterampilan!DL26 -> 0 | AD24: =keterampilan!DN26 -> 0
B25: 11 | C25: =dataumum!C19 -> 3109814391 | D25: =dataumum!D19 -> HAYA MADIHATUL ISMAH | E25: =pengetahuan!DU27 ->  | F25: =pengetahuan!DV27 ->  | G25: =pengetahuan!DW27 ->  | H25: =pengetahuan!DX27 ->  | I25: =pengetahuan!DY27 ->  | J25: =pengetahuan!DZ27 ->  | K25: =pengetahuan!EA27 ->  | L25: =pengetahuan!EB27 ->  | M25: =pengetahuan!EC27 ->  | N25: =pengetahuan!ED27 ->  | O25: =pengetahuan!DL27 ->  | P25: =pengetahuan!DM27 -> 0 | Q25: =pengetahuan!DN27 -> 0 | R25: =pengetahuan!DO27 -> 0 | S25: =keterampilan!DT27 ->  | T25: =keterampilan!DU27 ->  | U25: =keterampilan!DV27 ->  | V25: =keterampilan!DW27 ->  | W25: =keterampilan!DX27 ->  | X25: =keterampilan!DY27 ->  | Y25: =keterampilan!DZ27 ->  | Z25: =keterampilan!EA27 ->  | AA25: =keterampilan!EB27 ->  | AB25: =keterampilan!EC27 ->  | AC25: =keterampilan!DL27 -> 0 | AD25: =keterampilan!DN27 -> 0
B26: 12 | C26: =dataumum!C20 -> 3094762585 | D26: =dataumum!D20 -> HIKAYATUL JABAL | E26: =pengetahuan!DU28 ->  | F26: =pengetahuan!DV28 ->  | G26: =pengetahuan!DW28 ->  | H26: =pengetahuan!DX28 ->  | I26: =pengetahuan!DY28 ->  | J26: =pengetahuan!DZ28 ->  | K26: =pengetahuan!EA28 ->  | L26: =pengetahuan!EB28 ->  | M26: =pengetahuan!EC28 ->  | N26: =pengetahuan!ED28 ->  | O26: =pengetahuan!DL28 ->  | P26: =pengetahuan!DM28 -> 0 | Q26: =pengetahuan!DN28 -> 0 | R26: =pengetahuan!DO28 -> 0 | S26: =keterampilan!DT28 ->  | T26: =keterampilan!DU28 ->  | U26: =keterampilan!DV28 ->  | V26: =keterampilan!DW28 ->  | W26: =keterampilan!DX28 ->  | X26: =keterampilan!DY28 ->  | Y26: =keterampilan!DZ28 ->  | Z26: =keterampilan!EA28 ->  | AA26: =keterampilan!EB28 ->  | AB26: =keterampilan!EC28 ->  | AC26: =keterampilan!DL28 -> 0 | AD26: =keterampilan!DN28 -> 0
B27: 13 | C27: =dataumum!C21 -> 0105251526 | D27: =dataumum!D21 -> IHSAN NURSALAM | E27: =pengetahuan!DU29 ->  | F27: =pengetahuan!DV29 ->  | G27: =pengetahuan!DW29 ->  | H27: =pengetahuan!DX29 ->  | I27: =pengetahuan!DY29 ->  | J27: =pengetahuan!DZ29 ->  | K27: =pengetahuan!EA29 ->  | L27: =pengetahuan!EB29 ->  | M27: =pengetahuan!EC29 ->  | N27: =pengetahuan!ED29 ->  | O27: =pengetahuan!DL29 ->  | P27: =pengetahuan!DM29 -> 0 | Q27: =pengetahuan!DN29 -> 0 | R27: =pengetahuan!DO29 -> 0 | S27: =keterampilan!DT29 ->  | T27: =keterampilan!DU29 ->  | U27: =keterampilan!DV29 ->  | V27: =keterampilan!DW29 ->  | W27: =keterampilan!DX29 ->  | X27: =keterampilan!DY29 ->  | Y27: =keterampilan!DZ29 ->  | Z27: =keterampilan!EA29 ->  | AA27: =keterampilan!EB29 ->  | AB27: =keterampilan!EC29 ->  | AC27: =keterampilan!DL29 -> 0 | AD27: =keterampilan!DN29 -> 0
B28: 14 | C28: =dataumum!C22 -> 3095547483 | D28: =dataumum!D22 -> IZAD NOOR JAMAN | E28: =pengetahuan!DU30 ->  | F28: =pengetahuan!DV30 ->  | G28: =pengetahuan!DW30 ->  | H28: =pengetahuan!DX30 ->  | I28: =pengetahuan!DY30 ->  | J28: =pengetahuan!DZ30 ->  | K28: =pengetahuan!EA30 ->  | L28: =pengetahuan!EB30 ->  | M28: =pengetahuan!EC30 ->  | N28: =pengetahuan!ED30 ->  | O28: =pengetahuan!DL30 ->  | P28: =pengetahuan!DM30 -> 0 | Q28: =pengetahuan!DN30 -> 0 | R28: =pengetahuan!DO30 -> 0 | S28: =keterampilan!DT30 ->  | T28: =keterampilan!DU30 ->  | U28: =keterampilan!DV30 ->  | V28: =keterampilan!DW30 ->  | W28: =keterampilan!DX30 ->  | X28: =keterampilan!DY30 ->  | Y28: =keterampilan!DZ30 ->  | Z28: =keterampilan!EA30 ->  | AA28: =keterampilan!EB30 ->  | AB28: =keterampilan!EC30 ->  | AC28: =keterampilan!DL30 -> 0 | AD28: =keterampilan!DN30 -> 0
B29: 15 | C29: =dataumum!C23 -> 0093659815 | D29: =dataumum!D23 -> JIHAN NURROHMAH SEPTIRA | E29: =pengetahuan!DU31 ->  | F29: =pengetahuan!DV31 ->  | G29: =pengetahuan!DW31 ->  | H29: =pengetahuan!DX31 ->  | I29: =pengetahuan!DY31 ->  | J29: =pengetahuan!DZ31 ->  | K29: =pengetahuan!EA31 ->  | L29: =pengetahuan!EB31 ->  | M29: =pengetahuan!EC31 ->  | N29: =pengetahuan!ED31 ->  | O29: =pengetahuan!DL31 ->  | P29: =pengetahuan!DM31 -> 0 | Q29: =pengetahuan!DN31 -> 0 | R29: =pengetahuan!DO31 -> 0 | S29: =keterampilan!DT31 ->  | T29: =keterampilan!DU31 ->  | U29: =keterampilan!DV31 ->  | V29: =keterampilan!DW31 ->  | W29: =keterampilan!DX31 ->  | X29: =keterampilan!DY31 ->  | Y29: =keterampilan!DZ31 ->  | Z29: =keterampilan!EA31 ->  | AA29: =keterampilan!EB31 ->  | AB29: =keterampilan!EC31 ->  | AC29: =keterampilan!DL31 -> 0 | AD29: =keterampilan!DN31 -> 0
B30: 16 | C30: =dataumum!C24 -> 3090540244 | D30: =dataumum!D24 -> KAKA SEPTIAN | E30: =pengetahuan!DU32 ->  | F30: =pengetahuan!DV32 ->  | G30: =pengetahuan!DW32 ->  | H30: =pengetahuan!DX32 ->  | I30: =pengetahuan!DY32 ->  | J30: =pengetahuan!DZ32 ->  | K30: =pengetahuan!EA32 ->  | L30: =pengetahuan!EB32 ->  | M30: =pengetahuan!EC32 ->  | N30: =pengetahuan!ED32 ->  | O30: =pengetahuan!DL32 ->  | P30: =pengetahuan!DM32 -> 0 | Q30: =pengetahuan!DN32 -> 0 | R30: =pengetahuan!DO32 -> 0 | S30: =keterampilan!DT32 ->  | T30: =keterampilan!DU32 ->  | U30: =keterampilan!DV32 ->  | V30: =keterampilan!DW32 ->  | W30: =keterampilan!DX32 ->  | X30: =keterampilan!DY32 ->  | Y30: =keterampilan!DZ32 ->  | Z30: =keterampilan!EA32 ->  | AA30: =keterampilan!EB32 ->  | AB30: =keterampilan!EC32 ->  | AC30: =keterampilan!DL32 -> 0 | AD30: =keterampilan!DN32 -> 0
B31: 17 | C31: =dataumum!C25 -> 0088283383 | D31: =dataumum!D25 -> LUTPI | E31: =pengetahuan!DU33 ->  | F31: =pengetahuan!DV33 ->  | G31: =pengetahuan!DW33 ->  | H31: =pengetahuan!DX33 ->  | I31: =pengetahuan!DY33 ->  | J31: =pengetahuan!DZ33 ->  | K31: =pengetahuan!EA33 ->  | L31: =pengetahuan!EB33 ->  | M31: =pengetahuan!EC33 ->  | N31: =pengetahuan!ED33 ->  | O31: =pengetahuan!DL33 ->  | P31: =pengetahuan!DM33 -> 0 | Q31: =pengetahuan!DN33 -> 0 | R31: =pengetahuan!DO33 -> 0 | S31: =keterampilan!DT33 ->  | T31: =keterampilan!DU33 ->  | U31: =keterampilan!DV33 ->  | V31: =keterampilan!DW33 ->  | W31: =keterampilan!DX33 ->  | X31: =keterampilan!DY33 ->  | Y31: =keterampilan!DZ33 ->  | Z31: =keterampilan!EA33 ->  | AA31: =keterampilan!EB33 ->  | AB31: =keterampilan!EC33 ->  | AC31: =keterampilan!DL33 -> 0 | AD31: =keterampilan!DN33 -> 0
B32: 18 | C32: =dataumum!C26 -> 3096008382 | D32: =dataumum!D26 -> M SUGIH MIWAHA | E32: =pengetahuan!DU34 ->  | F32: =pengetahuan!DV34 ->  | G32: =pengetahuan!DW34 ->  | H32: =pengetahuan!DX34 ->  | I32: =pengetahuan!DY34 ->  | J32: =pengetahuan!DZ34 ->  | K32: =pengetahuan!EA34 ->  | L32: =pengetahuan!EB34 ->  | M32: =pengetahuan!EC34 ->  | N32: =pengetahuan!ED34 ->  | O32: =pengetahuan!DL34 ->  | P32: =pengetahuan!DM34 -> 0 | Q32: =pengetahuan!DN34 -> 0 | R32: =pengetahuan!DO34 -> 0 | S32: =keterampilan!DT34 ->  | T32: =keterampilan!DU34 ->  | U32: =keterampilan!DV34 ->  | V32: =keterampilan!DW34 ->  | W32: =keterampilan!DX34 ->  | X32: =keterampilan!DY34 ->  | Y32: =keterampilan!DZ34 ->  | Z32: =keterampilan!EA34 ->  | AA32: =keterampilan!EB34 ->  | AB32: =keterampilan!EC34 ->  | AC32: =keterampilan!DL34 -> 0 | AD32: =keterampilan!DN34 -> 0
B33: 19 | C33: =dataumum!C27 -> 0093656626 | D33: =dataumum!D27 -> MUHLIS | E33: =pengetahuan!DU35 ->  | F33: =pengetahuan!DV35 ->  | G33: =pengetahuan!DW35 ->  | H33: =pengetahuan!DX35 ->  | I33: =pengetahuan!DY35 ->  | J33: =pengetahuan!DZ35 ->  | K33: =pengetahuan!EA35 ->  | L33: =pengetahuan!EB35 ->  | M33: =pengetahuan!EC35 ->  | N33: =pengetahuan!ED35 ->  | O33: =pengetahuan!DL35 ->  | P33: =pengetahuan!DM35 -> 0 | Q33: =pengetahuan!DN35 -> 0 | R33: =pengetahuan!DO35 -> 0 | S33: =keterampilan!DT35 ->  | T33: =keterampilan!DU35 ->  | U33: =keterampilan!DV35 ->  | V33: =keterampilan!DW35 ->  | W33: =keterampilan!DX35 ->  | X33: =keterampilan!DY35 ->  | Y33: =keterampilan!DZ35 ->  | Z33: =keterampilan!EA35 ->  | AA33: =keterampilan!EB35 ->  | AB33: =keterampilan!EC35 ->  | AC33: =keterampilan!DL35 -> 0 | AD33: =keterampilan!DN35 -> 0
B34: 20 | C34: =dataumum!C28 -> 0097902846 | D34: =dataumum!D28 -> NURAFIFAH FAUZIAH | E34: =pengetahuan!DU36 ->  | F34: =pengetahuan!DV36 ->  | G34: =pengetahuan!DW36 ->  | H34: =pengetahuan!DX36 ->  | I34: =pengetahuan!DY36 ->  | J34: =pengetahuan!DZ36 ->  | K34: =pengetahuan!EA36 ->  | L34: =pengetahuan!EB36 ->  | M34: =pengetahuan!EC36 ->  | N34: =pengetahuan!ED36 ->  | O34: =pengetahuan!DL36 ->  | P34: =pengetahuan!DM36 -> 0 | Q34: =pengetahuan!DN36 -> 0 | R34: =pengetahuan!DO36 -> 0 | S34: =keterampilan!DT36 ->  | T34: =keterampilan!DU36 ->  | U34: =keterampilan!DV36 ->  | V34: =keterampilan!DW36 ->  | W34: =keterampilan!DX36 ->  | X34: =keterampilan!DY36 ->  | Y34: =keterampilan!DZ36 ->  | Z34: =keterampilan!EA36 ->  | AA34: =keterampilan!EB36 ->  | AB34: =keterampilan!EC36 ->  | AC34: =keterampilan!DL36 -> 0 | AD34: =keterampilan!DN36 -> 0
B35: 21 | C35: =dataumum!C29 -> 0088756415 | D35: =dataumum!D29 -> REPAN | E35: =pengetahuan!DU37 ->  | F35: =pengetahuan!DV37 ->  | G35: =pengetahuan!DW37 ->  | H35: =pengetahuan!DX37 ->  | I35: =pengetahuan!DY37 ->  | J35: =pengetahuan!DZ37 ->  | K35: =pengetahuan!EA37 ->  | L35: =pengetahuan!EB37 ->  | M35: =pengetahuan!EC37 ->  | N35: =pengetahuan!ED37 ->  | O35: =pengetahuan!DL37 ->  | P35: =pengetahuan!DM37 -> 0 | Q35: =pengetahuan!DN37 -> 0 | R35: =pengetahuan!DO37 -> 0 | S35: =keterampilan!DT37 ->  | T35: =keterampilan!DU37 ->  | U35: =keterampilan!DV37 ->  | V35: =keterampilan!DW37 ->  | W35: =keterampilan!DX37 ->  | X35: =keterampilan!DY37 ->  | Y35: =keterampilan!DZ37 ->  | Z35: =keterampilan!EA37 ->  | AA35: =keterampilan!EB37 ->  | AB35: =keterampilan!EC37 ->  | AC35: =keterampilan!DL37 -> 0 | AD35: =keterampilan!DN37 -> 0
B36: 22 | C36: =dataumum!C30 -> 0095868392 | D36: =dataumum!D30 -> REZA NURUL WILDAN | E36: =pengetahuan!DU38 ->  | F36: =pengetahuan!DV38 ->  | G36: =pengetahuan!DW38 ->  | H36: =pengetahuan!DX38 ->  | I36: =pengetahuan!DY38 ->  | J36: =pengetahuan!DZ38 ->  | K36: =pengetahuan!EA38 ->  | L36: =pengetahuan!EB38 ->  | M36: =pengetahuan!EC38 ->  | N36: =pengetahuan!ED38 ->  | O36: =pengetahuan!DL38 ->  | P36: =pengetahuan!DM38 -> 0 | Q36: =pengetahuan!DN38 -> 0 | R36: =pengetahuan!DO38 -> 0 | S36: =keterampilan!DT38 ->  | T36: =keterampilan!DU38 ->  | U36: =keterampilan!DV38 ->  | V36: =keterampilan!DW38 ->  | W36: =keterampilan!DX38 ->  | X36: =keterampilan!DY38 ->  | Y36: =keterampilan!DZ38 ->  | Z36: =keterampilan!EA38 ->  | AA36: =keterampilan!EB38 ->  | AB36: =keterampilan!EC38 ->  | AC36: =keterampilan!DL38 -> 0 | AD36: =keterampilan!DN38 -> 0
B37: 23 | C37: =dataumum!C31 -> 3095334952 | D37: =dataumum!D31 -> SYIFA NURJANAH | E37: =pengetahuan!DU39 ->  | F37: =pengetahuan!DV39 ->  | G37: =pengetahuan!DW39 ->  | H37: =pengetahuan!DX39 ->  | I37: =pengetahuan!DY39 ->  | J37: =pengetahuan!DZ39 ->  | K37: =pengetahuan!EA39 ->  | L37: =pengetahuan!EB39 ->  | M37: =pengetahuan!EC39 ->  | N37: =pengetahuan!ED39 ->  | O37: =pengetahuan!DL39 ->  | P37: =pengetahuan!DM39 -> 0 | Q37: =pengetahuan!DN39 -> 0 | R37: =pengetahuan!DO39 -> 0 | S37: =keterampilan!DT39 ->  | T37: =keterampilan!DU39 ->  | U37: =keterampilan!DV39 ->  | V37: =keterampilan!DW39 ->  | W37: =keterampilan!DX39 ->  | X37: =keterampilan!DY39 ->  | Y37: =keterampilan!DZ39 ->  | Z37: =keterampilan!EA39 ->  | AA37: =keterampilan!EB39 ->  | AB37: =keterampilan!EC39 ->  | AC37: =keterampilan!DL39 -> 0 | AD37: =keterampilan!DN39 -> 0
B38: 24 | C38: =dataumum!C32 -> 0093189091 | D38: =dataumum!D32 -> WINDI PUJIA SAFITRI | E38: =pengetahuan!DU40 ->  | F38: =pengetahuan!DV40 ->  | G38: =pengetahuan!DW40 ->  | H38: =pengetahuan!DX40 ->  | I38: =pengetahuan!DY40 ->  | J38: =pengetahuan!DZ40 ->  | K38: =pengetahuan!EA40 ->  | L38: =pengetahuan!EB40 ->  | M38: =pengetahuan!EC40 ->  | N38: =pengetahuan!ED40 ->  | O38: =pengetahuan!DL40 ->  | P38: =pengetahuan!DM40 -> 0 | Q38: =pengetahuan!DN40 -> 0 | R38: =pengetahuan!DO40 -> 0 | S38: =keterampilan!DT40 ->  | T38: =keterampilan!DU40 ->  | U38: =keterampilan!DV40 ->  | V38: =keterampilan!DW40 ->  | W38: =keterampilan!DX40 ->  | X38: =keterampilan!DY40 ->  | Y38: =keterampilan!DZ40 ->  | Z38: =keterampilan!EA40 ->  | AA38: =keterampilan!EB40 ->  | AB38: =keterampilan!EC40 ->  | AC38: =keterampilan!DL40 -> 0 | AD38: =keterampilan!DN40 -> 0
B39: 25 | C39: =dataumum!C33 -> 0096749734 | D39: =dataumum!D33 -> WULAN RESPIANI | E39: =pengetahuan!DU41 ->  | F39: =pengetahuan!DV41 ->  | G39: =pengetahuan!DW41 ->  | H39: =pengetahuan!DX41 ->  | I39: =pengetahuan!DY41 ->  | J39: =pengetahuan!DZ41 ->  | K39: =pengetahuan!EA41 ->  | L39: =pengetahuan!EB41 ->  | M39: =pengetahuan!EC41 ->  | N39: =pengetahuan!ED41 ->  | O39: =pengetahuan!DL41 ->  | P39: =pengetahuan!DM41 -> 0 | Q39: =pengetahuan!DN41 -> 0 | R39: =pengetahuan!DO41 -> 0 | S39: =keterampilan!DT41 ->  | T39: =keterampilan!DU41 ->  | U39: =keterampilan!DV41 ->  | V39: =keterampilan!DW41 ->  | W39: =keterampilan!DX41 ->  | X39: =keterampilan!DY41 ->  | Y39: =keterampilan!DZ41 ->  | Z39: =keterampilan!EA41 ->  | AA39: =keterampilan!EB41 ->  | AB39: =keterampilan!EC41 ->  | AC39: =keterampilan!DL41 -> 0 | AD39: =keterampilan!DN41 -> 0
B40: 26 | C40: =dataumum!C34 -> 0099314795 | D40: =dataumum!D34 -> YESI DESTRIYANI | E40: =pengetahuan!DU42 ->  | F40: =pengetahuan!DV42 ->  | G40: =pengetahuan!DW42 ->  | H40: =pengetahuan!DX42 ->  | I40: =pengetahuan!DY42 ->  | J40: =pengetahuan!DZ42 ->  | K40: =pengetahuan!EA42 ->  | L40: =pengetahuan!EB42 ->  | M40: =pengetahuan!EC42 ->  | N40: =pengetahuan!ED42 ->  | O40: =pengetahuan!DL42 ->  | P40: =pengetahuan!DM42 -> 0 | Q40: =pengetahuan!DN42 -> 0 | R40: =pengetahuan!DO42 -> 0 | S40: =keterampilan!DT42 ->  | T40: =keterampilan!DU42 ->  | U40: =keterampilan!DV42 ->  | V40: =keterampilan!DW42 ->  | W40: =keterampilan!DX42 ->  | X40: =keterampilan!DY42 ->  | Y40: =keterampilan!DZ42 ->  | Z40: =keterampilan!EA42 ->  | AA40: =keterampilan!EB42 ->  | AB40: =keterampilan!EC42 ->  | AC40: =keterampilan!DL42 -> 0 | AD40: =keterampilan!DN42 -> 0
B41: 27 | C41: =dataumum!C35 -> 0 | D41: =dataumum!D35 -> 0 | E41: =pengetahuan!DU43 ->  | F41: =pengetahuan!DV43 ->  | G41: =pengetahuan!DW43 ->  | H41: =pengetahuan!DX43 ->  | I41: =pengetahuan!DY43 ->  | J41: =pengetahuan!DZ43 ->  | K41: =pengetahuan!EA43 ->  | L41: =pengetahuan!EB43 ->  | M41: =pengetahuan!EC43 ->  | N41: =pengetahuan!ED43 ->  | O41: =pengetahuan!DL43 ->  | P41: =pengetahuan!DM43 -> 0 | Q41: =pengetahuan!DN43 -> 0 | R41: =pengetahuan!DO43 -> 0 | S41: =keterampilan!DT43 ->  | T41: =keterampilan!DU43 ->  | U41: =keterampilan!DV43 ->  | V41: =keterampilan!DW43 ->  | W41: =keterampilan!DX43 ->  | X41: =keterampilan!DY43 ->  | Y41: =keterampilan!DZ43 ->  | Z41: =keterampilan!EA43 ->  | AA41: =keterampilan!EB43 ->  | AB41: =keterampilan!EC43 ->  | AC41: =keterampilan!DL43 -> 0 | AD41: =keterampilan!DN43 -> 0
B42: 28 | C42: =dataumum!C36 -> 0 | D42: =dataumum!D36 -> 0 | E42: =pengetahuan!DU44 ->  | F42: =pengetahuan!DV44 ->  | G42: =pengetahuan!DW44 ->  | H42: =pengetahuan!DX44 ->  | I42: =pengetahuan!DY44 ->  | J42: =pengetahuan!DZ44 ->  | K42: =pengetahuan!EA44 ->  | L42: =pengetahuan!EB44 ->  | M42: =pengetahuan!EC44 ->  | N42: =pengetahuan!ED44 ->  | O42: =pengetahuan!DL44 ->  | P42: =pengetahuan!DM44 -> 0 | Q42: =pengetahuan!DN44 -> 0 | R42: =pengetahuan!DO44 -> 0 | S42: =keterampilan!DT44 ->  | T42: =keterampilan!DU44 ->  | U42: =keterampilan!DV44 ->  | V42: =keterampilan!DW44 ->  | W42: =keterampilan!DX44 ->  | X42: =keterampilan!DY44 ->  | Y42: =keterampilan!DZ44 ->  | Z42: =keterampilan!EA44 ->  | AA42: =keterampilan!EB44 ->  | AB42: =keterampilan!EC44 ->  | AC42: =keterampilan!DL44 -> 0 | AD42: =keterampilan!DN44 -> 0
B43: 29 | C43: =dataumum!C37 -> 0 | D43: =dataumum!D37 -> 0 | E43: =pengetahuan!DU45 ->  | F43: =pengetahuan!DV45 ->  | G43: =pengetahuan!DW45 ->  | H43: =pengetahuan!DX45 ->  | I43: =pengetahuan!DY45 ->  | J43: =pengetahuan!DZ45 ->  | K43: =pengetahuan!EA45 ->  | L43: =pengetahuan!EB45 ->  | M43: =pengetahuan!EC45 ->  | N43: =pengetahuan!ED45 ->  | O43: =pengetahuan!DL45 ->  | P43: =pengetahuan!DM45 -> 0 | Q43: =pengetahuan!DN45 -> 0 | R43: =pengetahuan!DO45 -> 0 | S43: =keterampilan!DT45 ->  | T43: =keterampilan!DU45 ->  | U43: =keterampilan!DV45 ->  | V43: =keterampilan!DW45 ->  | W43: =keterampilan!DX45 ->  | X43: =keterampilan!DY45 ->  | Y43: =keterampilan!DZ45 ->  | Z43: =keterampilan!EA45 ->  | AA43: =keterampilan!EB45 ->  | AB43: =keterampilan!EC45 ->  | AC43: =keterampilan!DL45 -> 0 | AD43: =keterampilan!DN45 -> 0
B44: 30 | C44: =dataumum!C38 -> 0 | D44: =dataumum!D38 -> 0 | E44: =pengetahuan!DU46 ->  | F44: =pengetahuan!DV46 ->  | G44: =pengetahuan!DW46 ->  | H44: =pengetahuan!DX46 ->  | I44: =pengetahuan!DY46 ->  | J44: =pengetahuan!DZ46 ->  | K44: =pengetahuan!EA46 ->  | L44: =pengetahuan!EB46 ->  | M44: =pengetahuan!EC46 ->  | N44: =pengetahuan!ED46 ->  | O44: =pengetahuan!DL46 ->  | P44: =pengetahuan!DM46 -> 0 | Q44: =pengetahuan!DN46 -> 0 | R44: =pengetahuan!DO46 -> 0 | S44: =keterampilan!DT46 ->  | T44: =keterampilan!DU46 ->  | U44: =keterampilan!DV46 ->  | V44: =keterampilan!DW46 ->  | W44: =keterampilan!DX46 ->  | X44: =keterampilan!DY46 ->  | Y44: =keterampilan!DZ46 ->  | Z44: =keterampilan!EA46 ->  | AA44: =keterampilan!EB46 ->  | AB44: =keterampilan!EC46 ->  | AC44: =keterampilan!DL46 -> 0 | AD44: =keterampilan!DN46 -> 0
B45: 31 | C45: =dataumum!C39 -> 0 | D45: =dataumum!D39 -> 0 | E45: =pengetahuan!DU47 ->  | F45: =pengetahuan!DV47 ->  | G45: =pengetahuan!DW47 ->  | H45: =pengetahuan!DX47 ->  | I45: =pengetahuan!DY47 ->  | J45: =pengetahuan!DZ47 ->  | K45: =pengetahuan!EA47 ->  | L45: =pengetahuan!EB47 ->  | M45: =pengetahuan!EC47 ->  | N45: =pengetahuan!ED47 ->  | O45: =pengetahuan!DL47 ->  | P45: =pengetahuan!DM47 -> 0 | Q45: =pengetahuan!DN47 -> 0 | R45: =pengetahuan!DO47 -> 0 | S45: =keterampilan!DT47 ->  | T45: =keterampilan!DU47 ->  | U45: =keterampilan!DV47 ->  | V45: =keterampilan!DW47 ->  | W45: =keterampilan!DX47 ->  | X45: =keterampilan!DY47 ->  | Y45: =keterampilan!DZ47 ->  | Z45: =keterampilan!EA47 ->  | AA45: =keterampilan!EB47 ->  | AB45: =keterampilan!EC47 ->  | AC45: =keterampilan!DL47 -> 0 | AD45: =keterampilan!DN47 -> 0
B46: 32 | C46: =dataumum!C40 -> 0 | D46: =dataumum!D40 -> 0 | E46: =pengetahuan!DU48 ->  | F46: =pengetahuan!DV48 ->  | G46: =pengetahuan!DW48 ->  | H46: =pengetahuan!DX48 ->  | I46: =pengetahuan!DY48 ->  | J46: =pengetahuan!DZ48 ->  | K46: =pengetahuan!EA48 ->  | L46: =pengetahuan!EB48 ->  | M46: =pengetahuan!EC48 ->  | N46: =pengetahuan!ED48 ->  | O46: =pengetahuan!DL48 ->  | P46: =pengetahuan!DM48 -> 0 | Q46: =pengetahuan!DN48 -> 0 | R46: =pengetahuan!DO48 -> 0 | S46: =keterampilan!DT48 ->  | T46: =keterampilan!DU48 ->  | U46: =keterampilan!DV48 ->  | V46: =keterampilan!DW48 ->  | W46: =keterampilan!DX48 ->  | X46: =keterampilan!DY48 ->  | Y46: =keterampilan!DZ48 ->  | Z46: =keterampilan!EA48 ->  | AA46: =keterampilan!EB48 ->  | AB46: =keterampilan!EC48 ->  | AC46: =keterampilan!DL48 -> 0 | AD46: =keterampilan!DN48 -> 0
B47: 33 | C47: =dataumum!C41 -> 0 | D47: =dataumum!D41 -> 0 | E47: =pengetahuan!DU49 ->  | F47: =pengetahuan!DV49 ->  | G47: =pengetahuan!DW49 ->  | H47: =pengetahuan!DX49 ->  | I47: =pengetahuan!DY49 ->  | J47: =pengetahuan!DZ49 ->  | K47: =pengetahuan!EA49 ->  | L47: =pengetahuan!EB49 ->  | M47: =pengetahuan!EC49 ->  | N47: =pengetahuan!ED49 ->  | O47: =pengetahuan!DL49 ->  | P47: =pengetahuan!DM49 -> 0 | Q47: =pengetahuan!DN49 -> 0 | R47: =pengetahuan!DO49 -> 0 | S47: =keterampilan!DT49 ->  | T47: =keterampilan!DU49 ->  | U47: =keterampilan!DV49 ->  | V47: =keterampilan!DW49 ->  | W47: =keterampilan!DX49 ->  | X47: =keterampilan!DY49 ->  | Y47: =keterampilan!DZ49 ->  | Z47: =keterampilan!EA49 ->  | AA47: =keterampilan!EB49 ->  | AB47: =keterampilan!EC49 ->  | AC47: =keterampilan!DL49 -> 0 | AD47: =keterampilan!DN49 -> 0
B48: 34 | C48: =dataumum!C42 -> 0 | D48: =dataumum!D42 -> 0 | E48: =pengetahuan!DU50 ->  | F48: =pengetahuan!DV50 ->  | G48: =pengetahuan!DW50 ->  | H48: =pengetahuan!DX50 ->  | I48: =pengetahuan!DY50 ->  | J48: =pengetahuan!DZ50 ->  | K48: =pengetahuan!EA50 ->  | L48: =pengetahuan!EB50 ->  | M48: =pengetahuan!EC50 ->  | N48: =pengetahuan!ED50 ->  | O48: =pengetahuan!DL50 ->  | P48: =pengetahuan!DM50 -> 0 | Q48: =pengetahuan!DN50 -> 0 | R48: =pengetahuan!DO50 -> 0 | S48: =keterampilan!DT50 ->  | T48: =keterampilan!DU50 ->  | U48: =keterampilan!DV50 ->  | V48: =keterampilan!DW50 ->  | W48: =keterampilan!DX50 ->  | X48: =keterampilan!DY50 ->  | Y48: =keterampilan!DZ50 ->  | Z48: =keterampilan!EA50 ->  | AA48: =keterampilan!EB50 ->  | AB48: =keterampilan!EC50 ->  | AC48: =keterampilan!DL50 -> 0 | AD48: =keterampilan!DN50 -> 0
B49: 35 | C49: =dataumum!C43 -> 0 | D49: =dataumum!D43 -> 0 | E49: =pengetahuan!DU51 ->  | F49: =pengetahuan!DV51 ->  | G49: =pengetahuan!DW51 ->  | H49: =pengetahuan!DX51 ->  | I49: =pengetahuan!DY51 ->  | J49: =pengetahuan!DZ51 ->  | K49: =pengetahuan!EA51 ->  | L49: =pengetahuan!EB51 ->  | M49: =pengetahuan!EC51 ->  | N49: =pengetahuan!ED51 ->  | O49: =pengetahuan!DL51 ->  | P49: =pengetahuan!DM51 -> 0 | Q49: =pengetahuan!DN51 -> 0 | R49: =pengetahuan!DO51 -> 0 | S49: =keterampilan!DT51 ->  | T49: =keterampilan!DU51 ->  | U49: =keterampilan!DV51 ->  | V49: =keterampilan!DW51 ->  | W49: =keterampilan!DX51 ->  | X49: =keterampilan!DY51 ->  | Y49: =keterampilan!DZ51 ->  | Z49: =keterampilan!EA51 ->  | AA49: =keterampilan!EB51 ->  | AB49: =keterampilan!EC51 ->  | AC49: =keterampilan!DL51 -> 0 | AD49: =keterampilan!DN51 -> 0
B50: 36 | C50: =dataumum!C44 -> 0 | D50: =dataumum!D44 -> 0 | E50: =pengetahuan!DU52 ->  | F50: =pengetahuan!DV52 ->  | G50: =pengetahuan!DW52 ->  | H50: =pengetahuan!DX52 ->  | I50: =pengetahuan!DY52 ->  | J50: =pengetahuan!DZ52 ->  | K50: =pengetahuan!EA52 ->  | L50: =pengetahuan!EB52 ->  | M50: =pengetahuan!EC52 ->  | N50: =pengetahuan!ED52 ->  | O50: =pengetahuan!DL52 ->  | P50: =pengetahuan!DM52 -> 0 | Q50: =pengetahuan!DN52 -> 0 | R50: =pengetahuan!DO52 -> 0 | S50: =keterampilan!DT52 ->  | T50: =keterampilan!DU52 ->  | U50: =keterampilan!DV52 ->  | V50: =keterampilan!DW52 ->  | W50: =keterampilan!DX52 ->  | X50: =keterampilan!DY52 ->  | Y50: =keterampilan!DZ52 ->  | Z50: =keterampilan!EA52 ->  | AA50: =keterampilan!EB52 ->  | AB50: =keterampilan!EC52 ->  | AC50: =keterampilan!DL52 -> 0 | AD50: =keterampilan!DN52 -> 0
B51: 37 | C51: =dataumum!C45 -> 0 | D51: =dataumum!D45 -> 0 | E51: =pengetahuan!DU53 ->  | F51: =pengetahuan!DV53 ->  | G51: =pengetahuan!DW53 ->  | H51: =pengetahuan!DX53 ->  | I51: =pengetahuan!DY53 ->  | J51: =pengetahuan!DZ53 ->  | K51: =pengetahuan!EA53 ->  | L51: =pengetahuan!EB53 ->  | M51: =pengetahuan!EC53 ->  | N51: =pengetahuan!ED53 ->  | O51: =pengetahuan!DL53 ->  | P51: =pengetahuan!DM53 -> 0 | Q51: =pengetahuan!DN53 -> 0 | R51: =pengetahuan!DO53 -> 0 | S51: =keterampilan!DT53 ->  | T51: =keterampilan!DU53 ->  | U51: =keterampilan!DV53 ->  | V51: =keterampilan!DW53 ->  | W51: =keterampilan!DX53 ->  | X51: =keterampilan!DY53 ->  | Y51: =keterampilan!DZ53 ->  | Z51: =keterampilan!EA53 ->  | AA51: =keterampilan!EB53 ->  | AB51: =keterampilan!EC53 ->  | AC51: =keterampilan!DL53 -> 0 | AD51: =keterampilan!DN53 -> 0
B52: 38 | C52: =dataumum!C46 -> 0 | D52: =dataumum!D46 -> 0 | E52: =pengetahuan!DU54 ->  | F52: =pengetahuan!DV54 ->  | G52: =pengetahuan!DW54 ->  | H52: =pengetahuan!DX54 ->  | I52: =pengetahuan!DY54 ->  | J52: =pengetahuan!DZ54 ->  | K52: =pengetahuan!EA54 ->  | L52: =pengetahuan!EB54 ->  | M52: =pengetahuan!EC54 ->  | N52: =pengetahuan!ED54 ->  | O52: =pengetahuan!DL54 ->  | P52: =pengetahuan!DM54 -> 0 | Q52: =pengetahuan!DN54 -> 0 | R52: =pengetahuan!DO54 -> 0 | S52: =keterampilan!DT54 ->  | T52: =keterampilan!DU54 ->  | U52: =keterampilan!DV54 ->  | V52: =keterampilan!DW54 ->  | W52: =keterampilan!DX54 ->  | X52: =keterampilan!DY54 ->  | Y52: =keterampilan!DZ54 ->  | Z52: =keterampilan!EA54 ->  | AA52: =keterampilan!EB54 ->  | AB52: =keterampilan!EC54 ->  | AC52: =keterampilan!DL54 -> 0 | AD52: =keterampilan!DN54 -> 0
B53: 39 | C53: =dataumum!C47 -> 0 | D53: =dataumum!D47 -> 0 | E53: =pengetahuan!DU55 ->  | F53: =pengetahuan!DV55 ->  | G53: =pengetahuan!DW55 ->  | H53: =pengetahuan!DX55 ->  | I53: =pengetahuan!DY55 ->  | J53: =pengetahuan!DZ55 ->  | K53: =pengetahuan!EA55 ->  | L53: =pengetahuan!EB55 ->  | M53: =pengetahuan!EC55 ->  | N53: =pengetahuan!ED55 ->  | O53: =pengetahuan!DL55 ->  | P53: =pengetahuan!DM55 -> 0 | Q53: =pengetahuan!DN55 -> 0 | R53: =pengetahuan!DO55 -> 0 | S53: =keterampilan!DT55 ->  | T53: =keterampilan!DU55 ->  | U53: =keterampilan!DV55 ->  | V53: =keterampilan!DW55 ->  | W53: =keterampilan!DX55 ->  | X53: =keterampilan!DY55 ->  | Y53: =keterampilan!DZ55 ->  | Z53: =keterampilan!EA55 ->  | AA53: =keterampilan!EB55 ->  | AB53: =keterampilan!EC55 ->  | AC53: =keterampilan!DL55 -> 0 | AD53: =keterampilan!DN55 -> 0
B54: 40 | C54: =dataumum!C48 -> 0 | D54: =dataumum!D48 -> 0 | E54: =pengetahuan!DU56 ->  | F54: =pengetahuan!DV56 ->  | G54: =pengetahuan!DW56 ->  | H54: =pengetahuan!DX56 ->  | I54: =pengetahuan!DY56 ->  | J54: =pengetahuan!DZ56 ->  | K54: =pengetahuan!EA56 ->  | L54: =pengetahuan!EB56 ->  | M54: =pengetahuan!EC56 ->  | N54: =pengetahuan!ED56 ->  | O54: =pengetahuan!DL56 ->  | P54: =pengetahuan!DM56 -> 0 | Q54: =pengetahuan!DN56 -> 0 | R54: =pengetahuan!DO56 -> 0 | S54: =keterampilan!DT56 ->  | T54: =keterampilan!DU56 ->  | U54: =keterampilan!DV56 ->  | V54: =keterampilan!DW56 ->  | W54: =keterampilan!DX56 ->  | X54: =keterampilan!DY56 ->  | Y54: =keterampilan!DZ56 ->  | Z54: =keterampilan!EA56 ->  | AA54: =keterampilan!EB56 ->  | AB54: =keterampilan!EC56 ->  | AC54: =keterampilan!DL56 -> 0 | AD54: =keterampilan!DN56 -> 0
AD55: =dataumum!G19 -> X-D
D56: Mengetahui, | Y56: Tasikmalaya, | AA56: =TODAY() -> 2026-01-07
D57: Kepala MAN 4 Tasikmalaya | Y57: =CONCATENATE("Guru"," ",dataumum!G8) -> Guru Kimia
D61: Enjang, S.Ag, M.Pd.I | Y61: =dataumum!G6 -> Arief Pribadi, S.Si
D62: NIP. 197406152005031006 | Y62: =CONCATENATE("NIP."," ",dataumum!G7) -> NIP. 198603112020121005

Sheet rapor (hidden)
B2: NO | C2: NISN | D2: NAMA SISWA | E2: KELAS | F2: NILAI PENGETAHUAN | H2: RATA-RATA | I2: STATUS NILAI | J2: NILAI KETERAMPILAN | L2: RATA-RATA | M2: STATUS NILAI
F3: S1 | G3: S2 | J3: S1 | K3: S2
B4: 1 | C4: =dataumum!C9 -> 0095527100 | D4: =dataumum!D9 -> AHMAD JAMIL MUNAWAR | E4: =pengetahuan!#REF! ->  | F4: =pengetahuan!DN17 -> 0 | G4: =rekap!Q15 -> 0 | H4: =IFERROR(AVERAGE(F4:G4),0) -> 0 | I4: =IF(R4<0,"TURUN",IF(R4=0,"TETAP","NAIK")) -> TETAP | J4: =pengetahuan!#REF! ->  | K4: =rekap!AC15 -> 0 | L4: =IFERROR(AVERAGE(J4:K4),0) -> 0 | M4: =IF(S4<0,"TURUN",IF(V4=0,"TETAP","NAIK")) -> TETAP | R4: =G4-F4 -> 0 | S4: =IFERROR(K4-J4,0) -> 0
B5: 2 | C5: =dataumum!C10 -> 0108689880 | D5: =dataumum!D10 -> AKBAR NUGRAHA | E5: =pengetahuan!#REF! ->  | F5: =pengetahuan!DN18 -> 0 | G5: =rekap!Q16 -> 0 | H5: =IFERROR(AVERAGE(F5:G5),0) -> 0 | I5: =IF(R5<0,"TURUN",IF(R5=0,"TETAP","NAIK")) -> TETAP | J5: =pengetahuan!#REF! ->  | K5: =rekap!AC16 -> 0 | L5: =IFERROR(AVERAGE(J5:K5),0) -> 0 | M5: =IF(S5<0,"TURUN",IF(V5=0,"TETAP","NAIK")) -> TETAP | R5: 0 | S5: 0
B6: 3 | C6: =dataumum!C11 -> 0101457073 | D6: =dataumum!D11 -> ALSA NAPILA ABALIA | E6: =pengetahuan!#REF! ->  | F6: =pengetahuan!DN19 -> 0 | G6: =rekap!Q17 -> 0 | H6: 0 | I6: TETAP | J6: =pengetahuan!#REF! ->  | K6: =rekap!AC17 -> 0 | L6: 0 | M6: TETAP | R6: 0 | S6: 0
B7: 4 | C7: =dataumum!C12 -> 3098669460 | D7: =dataumum!D12 -> ALWAN FAJRUL HAKIM | E7: =pengetahuan!#REF! ->  | F7: =pengetahuan!DN20 -> 0 | G7: =rekap!Q18 -> 0 | H7: 0 | I7: TETAP | J7: =pengetahuan!#REF! ->  | K7: =rekap!AC18 -> 0 | L7: 0 | M7: TETAP | R7: 0 | S7: 0
B8: 5 | C8: =dataumum!C13 -> 0097476054 | D8: =dataumum!D13 -> ANDIKA | E8: =pengetahuan!#REF! ->  | F8: =pengetahuan!DN21 -> 0 | G8: =rekap!Q19 -> 0 | H8: 0 | I8: TETAP | J8: =pengetahuan!#REF! ->  | K8: =rekap!AC19 -> 0 | L8: 0 | M8: TETAP | R8: 0 | S8: 0
B9: 6 | C9: =dataumum!C14 -> 0107479079 | D9: =dataumum!D14 -> CHINTIA NUR AZIZAH | E9: =pengetahuan!#REF! ->  | F9: =pengetahuan!DN22 -> 0 | G9: =rekap!Q20 -> 0 | H9: 0 | I9: TETAP | J9: =pengetahuan!#REF! ->  | K9: =rekap!AC20 -> 0 | L9: 0 | M9: TETAP | R9: 0 | S9: 0
B10: 7 | C10: =dataumum!C15 -> 0095178395 | D10: =dataumum!D15 -> DEDE AULIA | E10: =pengetahuan!#REF! ->  | F10: =pengetahuan!DN23 -> 0 | G10: =rekap!Q21 -> 0 | H10: 0 | I10: TETAP | J10: =pengetahuan!#REF! ->  | K10: =rekap!AC21 -> 0 | L10: 0 | M10: TETAP | R10: 0 | S10: 0
B11: 8 | C11: =dataumum!C16 -> 0097071532 | D11: =dataumum!D16 -> DIRLI PIRMANSAH REZA | E11: =pengetahuan!#REF! ->  | F11: =pengetahuan!DN24 -> 0 | G11: =rekap!Q22 -> 0 | H11: 0 | I11: TETAP | J11: =pengetahuan!#REF! ->  | K11: =rekap!AC22 -> 0 | L11: 0 | M11: TETAP | R11: 0 | S11: 0
B12: 9 | C12: =dataumum!C17 -> 0085525399 | D12: =dataumum!D17 -> EKSEL | E12: =pengetahuan!#REF! ->  | F12: =pengetahuan!DN25 -> 0 | G12: =rekap!Q23 -> 0 | H12: 0 | I12: TETAP | J12: =pengetahuan!#REF! ->  | K12: =rekap!AC23 -> 0 | L12: 0 | M12: TETAP | R12: 0 | S12: 0
B13: 10 | C13: =dataumum!C18 -> 0099271082 | D13: =dataumum!D18 -> FADLAN APANDI | E13: =pengetahuan!#REF! ->  | F13: =pengetahuan!DN26 -> 0 | G13: =rekap!Q24 -> 0 | H13: 0 | I13: TETAP | J13: =pengetahuan!#REF! ->  | K13: =rekap!AC24 -> 0 | L13: 0 | M13: TETAP | R13: 0 | S13: 0
B14: 11 | C14: =dataumum!C19 -> 3109814391 | D14: =dataumum!D19 -> HAYA MADIHATUL ISMAH | E14: =pengetahuan!#REF! ->  | F14: =pengetahuan!DN27 -> 0 | G14: =rekap!Q25 -> 0 | H14: 0 | I14: TETAP | J14: =pengetahuan!#REF! ->  | K14: =rekap!AC25 -> 0 | L14: 0 | M14: TETAP | R14: 0 | S14: 0
B15: 12 | C15: =dataumum!C20 -> 3094762585 | D15: =dataumum!D20 -> HIKAYATUL JABAL | E15: =pengetahuan!#REF! ->  | F15: =pengetahuan!DN28 -> 0 | G15: =rekap!Q26 -> 0 | H15: 0 | I15: TETAP | J15: =pengetahuan!#REF! ->  | K15: =rekap!AC26 -> 0 | L15: 0 | M15: TETAP | R15: 0 | S15: 0
B16: 13 | C16: =dataumum!C21 -> 0105251526 | D16: =dataumum!D21 -> IHSAN NURSALAM | E16: =pengetahuan!#REF! ->  | F16: =pengetahuan!DN29 -> 0 | G16: =rekap!Q27 -> 0 | H16: 0 | I16: TETAP | J16: =pengetahuan!#REF! ->  | K16: =rekap!AC27 -> 0 | L16: 0 | M16: TETAP | R16: 0 | S16: 0
B17: 14 | C17: =dataumum!C22 -> 3095547483 | D17: =dataumum!D22 -> IZAD NOOR JAMAN | E17: =pengetahuan!#REF! ->  | F17: =pengetahuan!DN30 -> 0 | G17: =rekap!Q28 -> 0 | H17: 0 | I17: TETAP | J17: =pengetahuan!#REF! ->  | K17: =rekap!AC28 -> 0 | L17: 0 | M17: TETAP | R17: 0 | S17: 0
B18: 15 | C18: =dataumum!C23 -> 0093659815 | D18: =dataumum!D23 -> JIHAN NURROHMAH SEPTIRA | E18: =pengetahuan!#REF! ->  | F18: =pengetahuan!DN31 -> 0 | G18: =rekap!Q29 -> 0 | H18: 0 | I18: TETAP | J18: =pengetahuan!#REF! ->  | K18: =rekap!AC29 -> 0 | L18: 0 | M18: TETAP | R18: 0 | S18: 0
B19: 16 | C19: =dataumum!C24 -> 3090540244 | D19: =dataumum!D24 -> KAKA SEPTIAN | E19: =pengetahuan!#REF! ->  | F19: =pengetahuan!DN32 -> 0 | G19: =rekap!Q30 -> 0 | H19: 0 | I19: TETAP | J19: =pengetahuan!#REF! ->  | K19: =rekap!AC30 -> 0 | L19: 0 | M19: TETAP | R19: 0 | S19: 0
B20: 17 | C20: =dataumum!C25 -> 0088283383 | D20: =dataumum!D25 -> LUTPI | E20: =pengetahuan!#REF! ->  | F20: =pengetahuan!DN33 -> 0 | G20: =rekap!Q31 -> 0 | H20: 0 | I20: TETAP | J20: =pengetahuan!#REF! ->  | K20: =rekap!AC31 -> 0 | L20: 0 | M20: TETAP | R20: 0 | S20: 0
B21: 18 | C21: =dataumum!C26 -> 3096008382 | D21: =dataumum!D26 -> M SUGIH MIWAHA | E21: =pengetahuan!#REF! ->  | F21: =pengetahuan!DN34 -> 0 | G21: =rekap!Q32 -> 0 | H21: 0 | I21: TETAP | J21: =pengetahuan!#REF! ->  | K21: =rekap!AC32 -> 0 | L21: 0 | M21: TETAP | R21: 0 | S21: 0
B22: 19 | C22: =dataumum!C27 -> 0093656626 | D22: =dataumum!D27 -> MUHLIS | E22: =pengetahuan!#REF! ->  | F22: =pengetahuan!DN35 -> 0 | G22: =rekap!Q33 -> 0 | H22: 0 | I22: TETAP | J22: =pengetahuan!#REF! ->  | K22: =rekap!AC33 -> 0 | L22: 0 | M22: TETAP | R22: 0 | S22: 0
B23: 20 | C23: =dataumum!C28 -> 0097902846 | D23: =dataumum!D28 -> NURAFIFAH FAUZIAH | E23: =pengetahuan!#REF! ->  | F23: =pengetahuan!DN36 -> 0 | G23: =rekap!Q34 -> 0 | H23: 0 | I23: TETAP | J23: =pengetahuan!#REF! ->  | K23: =rekap!AC34 -> 0 | L23: 0 | M23: TETAP | R23: 0 | S23: 0
B24: 21 | C24: =dataumum!C29 -> 0088756415 | D24: =dataumum!D29 -> REPAN | E24: =pengetahuan!#REF! ->  | F24: =pengetahuan!DN37 -> 0 | G24: =rekap!Q35 -> 0 | H24: =IFERROR(AVERAGE(F24:G24),0) -> 0 | I24: =IF(R24<0,"TURUN",IF(R24=0,"TETAP","NAIK")) -> TETAP | J24: =pengetahuan!#REF! ->  | K24: =rekap!AC35 -> 0 | L24: =IFERROR(AVERAGE(J24:K24),0) -> 0 | M24: =IF(S24<0,"TURUN",IF(V24=0,"TETAP","NAIK")) -> TETAP
B25: 22 | C25: =dataumum!C30 -> 0095868392 | D25: =dataumum!D30 -> REZA NURUL WILDAN | E25: =pengetahuan!#REF! ->  | F25: =pengetahuan!DN38 -> 0 | G25: =rekap!Q36 -> 0 | H25: =IFERROR(AVERAGE(F25:G25),0) -> 0 | I25: =IF(R25<0,"TURUN",IF(R25=0,"TETAP","NAIK")) -> TETAP | J25: =pengetahuan!#REF! ->  | K25: =rekap!AC36 -> 0 | L25: =IFERROR(AVERAGE(J25:K25),0) -> 0 | M25: =IF(S25<0,"TURUN",IF(V25=0,"TETAP","NAIK")) -> TETAP
B26: 23 | C26: =dataumum!C31 -> 3095334952 | D26: =dataumum!D31 -> SYIFA NURJANAH | E26: =pengetahuan!#REF! ->  | F26: =pengetahuan!DN39 -> 0 | G26: =rekap!Q37 -> 0 | H26: 0 | I26: TETAP | J26: =pengetahuan!#REF! ->  | K26: =rekap!AC37 -> 0 | L26: 0 | M26: TETAP
B27: 24 | C27: =dataumum!C32 -> 0093189091 | D27: =dataumum!D32 -> WINDI PUJIA SAFITRI | E27: =pengetahuan!#REF! ->  | F27: =pengetahuan!DN40 -> 0 | G27: =rekap!Q38 -> 0 | H27: 0 | I27: TETAP | J27: =pengetahuan!#REF! ->  | K27: =rekap!AC38 -> 0 | L27: 0 | M27: TETAP
B28: 25 | C28: =dataumum!C33 -> 0096749734 | D28: =dataumum!D33 -> WULAN RESPIANI | E28: =pengetahuan!#REF! ->  | F28: =pengetahuan!DN41 -> 0 | G28: =rekap!Q39 -> 0 | H28: 0 | I28: TETAP | J28: =pengetahuan!#REF! ->  | K28: =rekap!AC39 -> 0 | L28: 0 | M28: TETAP
B29: 26 | C29: =dataumum!C34 -> 0099314795 | D29: =dataumum!D34 -> YESI DESTRIYANI | E29: =pengetahuan!#REF! ->  | F29: =pengetahuan!DN42 -> 0 | G29: =rekap!Q40 -> 0 | H29: 0 | I29: TETAP | J29: =pengetahuan!#REF! ->  | K29: =rekap!AC40 -> 0 | L29: 0 | M29: TETAP
B30: 27 | C30: =dataumum!C35 -> 0 | D30: =dataumum!D35 -> 0 | E30: =pengetahuan!#REF! ->  | F30: =pengetahuan!DN43 -> 0 | G30: =rekap!Q41 -> 0 | H30: 0 | I30: TETAP | J30: =pengetahuan!#REF! ->  | K30: =rekap!AC41 -> 0 | L30: 0 | M30: TETAP
B31: 28 | C31: =dataumum!C36 -> 0 | D31: =dataumum!D36 -> 0 | E31: =pengetahuan!#REF! ->  | F31: =pengetahuan!DN44 -> 0 | G31: =rekap!Q42 -> 0 | H31: 0 | I31: TETAP | J31: =pengetahuan!#REF! ->  | K31: =rekap!AC42 -> 0 | L31: 0 | M31: TETAP
B32: 29 | C32: =dataumum!C37 -> 0 | D32: =dataumum!D37 -> 0 | E32: =pengetahuan!#REF! ->  | F32: =pengetahuan!DN45 -> 0 | G32: =rekap!Q43 -> 0 | H32: 0 | I32: TETAP | J32: =pengetahuan!#REF! ->  | K32: =rekap!AC43 -> 0 | L32: 0 | M32: TETAP | R32: =G32-F32 -> 0 | S32: =IFERROR(K32-J32,0) -> 0
B33: 30 | C33: =dataumum!C38 -> 0 | D33: =dataumum!D38 -> 0 | E33: =pengetahuan!#REF! ->  | F33: =pengetahuan!DN46 -> 0 | G33: =rekap!Q44 -> 0 | H33: 0 | I33: TETAP | J33: =pengetahuan!#REF! ->  | K33: =rekap!AC44 -> 0 | L33: 0 | M33: TETAP | R33: 0 | S33: 0
B34: 31 | C34: =dataumum!C39 -> 0 | D34: =dataumum!D39 -> 0 | E34: =pengetahuan!#REF! ->  | F34: =pengetahuan!DN47 -> 0 | G34: =rekap!Q45 -> 0 | H34: 0 | I34: TETAP | J34: =pengetahuan!#REF! ->  | K34: =rekap!AC45 -> 0 | L34: 0 | M34: TETAP | R34: 0 | S34: 0
B35: 32 | C35: =dataumum!C40 -> 0 | D35: =dataumum!D40 -> 0 | E35: =pengetahuan!#REF! ->  | F35: =pengetahuan!DN48 -> 0 | G35: =rekap!Q46 -> 0 | H35: 0 | I35: TETAP | J35: =pengetahuan!#REF! ->  | K35: =rekap!AC46 -> 0 | L35: 0 | M35: TETAP | R35: 0 | S35: 0
B36: 33 | C36: =dataumum!C41 -> 0 | D36: =dataumum!D41 -> 0 | E36: =pengetahuan!#REF! ->  | F36: =pengetahuan!DN49 -> 0 | G36: =rekap!Q47 -> 0 | H36: 0 | I36: TETAP | J36: =pengetahuan!#REF! ->  | K36: =rekap!AC47 -> 0 | L36: 0 | M36: TETAP | R36: 0 | S36: 0
B37: 34 | C37: =dataumum!C42 -> 0 | D37: =dataumum!D42 -> 0 | E37: =pengetahuan!#REF! ->  | F37: =pengetahuan!DN50 -> 0 | G37: =rekap!Q48 -> 0 | H37: 0 | I37: TETAP | J37: =pengetahuan!#REF! ->  | K37: =rekap!AC48 -> 0 | L37: 0 | M37: TETAP | R37: 0 | S37: 0
B38: 35 | C38: =dataumum!C43 -> 0 | D38: =dataumum!D43 -> 0 | E38: =pengetahuan!#REF! ->  | F38: =pengetahuan!DN51 -> 0 | G38: =rekap!Q49 -> 0 | H38: 0 | I38: TETAP | J38: =pengetahuan!#REF! ->  | K38: =rekap!AC49 -> 0 | L38: 0 | M38: TETAP | R38: 0 | S38: 0
B39: 36 | C39: =dataumum!C44 -> 0 | D39: =dataumum!D44 -> 0 | E39: =pengetahuan!#REF! ->  | F39: =pengetahuan!DN52 -> 0 | G39: =rekap!Q50 -> 0 | H39: 0 | I39: TETAP | J39: =pengetahuan!#REF! ->  | K39: =rekap!AC50 -> 0 | L39: 0 | M39: TETAP | R39: 0 | S39: 0
B40: 37 | C40: =dataumum!C45 -> 0 | D40: =dataumum!D45 -> 0 | E40: =pengetahuan!#REF! ->  | F40: =pengetahuan!DN53 -> 0 | G40: =rekap!Q51 -> 0 | H40: 0 | I40: TETAP | J40: =pengetahuan!#REF! ->  | K40: =rekap!AC51 -> 0 | L40: 0 | M40: TETAP | R40: 0 | S40: 0
B41: 38 | C41: =dataumum!C46 -> 0 | D41: =dataumum!D46 -> 0 | E41: =pengetahuan!#REF! ->  | F41: =pengetahuan!DN54 -> 0 | G41: =rekap!Q52 -> 0 | H41: 0 | I41: TETAP | J41: =pengetahuan!#REF! ->  | K41: =rekap!AC52 -> 0 | L41: 0 | M41: TETAP | R41: 0 | S41: 0
B42: 39 | C42: =dataumum!C47 -> 0 | D42: =dataumum!D47 -> 0 | E42: =pengetahuan!#REF! ->  | F42: =pengetahuan!DN55 -> 0 | G42: =rekap!Q53 -> 0 | H42: 0 | I42: TETAP | J42: =pengetahuan!#REF! ->  | K42: =rekap!AC53 -> 0 | L42: 0 | M42: TETAP | R42: 0 | S42: 0
B43: 40 | C43: =dataumum!C48 -> 0 | D43: =dataumum!D48 -> 0 | E43: =pengetahuan!#REF! ->  | F43: =pengetahuan!DN56 -> 0 | G43: =rekap!Q54 -> 0 | H43: 0 | I43: TETAP | J43: =pengetahuan!#REF! ->  | K43: =rekap!AC54 -> 0 | L43: 0 | M43: TETAP | R43: 0 | S43: 0

Sheet daftarhadir (hidden)
B1: DAFTAR HADIR PESERTA DIDIK
B2: MAN 4 TASIKMALAYA
B3: =CONCATENATE("Tahun Pelajaran"," ",dataumum!G10) -> Tahun Pelajaran 2025/2026
B5: =CONCATENATE(dataumum!F11," ",":"," ",dataumum!G11) -> Kelas : X-D | AA5: =CONCATENATE(dataumum!F9," ",":"," ",dataumum!G9) -> Semester : 2 (Genap)
B6: No | C6: NISN | D6: NAMA | E6: Tanggal
D8: Pert. Ke- | E8: 1 | F8: 2 | G8: 3 | H8: 4 | I8: 5 | J8: 6 | K8: 7 | L8: 8 | M8: 9 | N8: 10 | O8: 11 | P8: 12 | Q8: 13 | R8: 14 | S8: 15 | T8: 16 | U8: 17 | V8: 18 | W8: 19 | X8: 20 | Y8: 21 | Z8: 22 | AA8: 23 | AB8: 24 | AC8: 25 | AD8: 26 | AE8: 27 | AF8: 28 | AG8: 29 | AH8: 30
B9: 1 | C9: =dataumum!C9 -> 0095527100 | D9: =dataumum!D9 -> AHMAD JAMIL MUNAWAR
B10: 2 | C10: =dataumum!C10 -> 0108689880 | D10: =dataumum!D10 -> AKBAR NUGRAHA
B11: 3 | C11: =dataumum!C11 -> 0101457073 | D11: =dataumum!D11 -> ALSA NAPILA ABALIA
B12: 4 | C12: =dataumum!C12 -> 3098669460 | D12: =dataumum!D12 -> ALWAN FAJRUL HAKIM
B13: 5 | C13: =dataumum!C13 -> 0097476054 | D13: =dataumum!D13 -> ANDIKA
B14: 6 | C14: =dataumum!C14 -> 0107479079 | D14: =dataumum!D14 -> CHINTIA NUR AZIZAH
B15: 7 | C15: =dataumum!C15 -> 0095178395 | D15: =dataumum!D15 -> DEDE AULIA
B16: 8 | C16: =dataumum!C16 -> 0097071532 | D16: =dataumum!D16 -> DIRLI PIRMANSAH REZA
B17: 9 | C17: =dataumum!C17 -> 0085525399 | D17: =dataumum!D17 -> EKSEL
B18: 10 | C18: =dataumum!C18 -> 0099271082 | D18: =dataumum!D18 -> FADLAN APANDI
B19: 11 | C19: =dataumum!C19 -> 3109814391 | D19: =dataumum!D19 -> HAYA MADIHATUL ISMAH
B20: 12 | C20: =dataumum!C20 -> 3094762585 | D20: =dataumum!D20 -> HIKAYATUL JABAL
B21: 13 | C21: =dataumum!C21 -> 0105251526 | D21: =dataumum!D21 -> IHSAN NURSALAM
B22: 14 | C22: =dataumum!C22 -> 3095547483 | D22: =dataumum!D22 -> IZAD NOOR JAMAN
B23: 15 | C23: =dataumum!C23 -> 0093659815 | D23: =dataumum!D23 -> JIHAN NURROHMAH SEPTIRA
B24: 16 | C24: =dataumum!C24 -> 3090540244 | D24: =dataumum!D24 -> KAKA SEPTIAN
B25: 17 | C25: =dataumum!C25 -> 0088283383 | D25: =dataumum!D25 -> LUTPI
B26: 18 | C26: =dataumum!C26 -> 3096008382 | D26: =dataumum!D26 -> M SUGIH MIWAHA
B27: 19 | C27: =dataumum!C27 -> 0093656626 | D27: =dataumum!D27 -> MUHLIS
B28: 20 | C28: =dataumum!C28 -> 0097902846 | D28: =dataumum!D28 -> NURAFIFAH FAUZIAH
B29: 21 | C29: =dataumum!C29 -> 0088756415 | D29: =dataumum!D29 -> REPAN
B30: 22 | C30: =dataumum!C30 -> 0095868392 | D30: =dataumum!D30 -> REZA NURUL WILDAN
B31: 23 | C31: =dataumum!C31 -> 3095334952 | D31: =dataumum!D31 -> SYIFA NURJANAH
B32: 24 | C32: =dataumum!C32 -> 0093189091 | D32: =dataumum!D32 -> WINDI PUJIA SAFITRI
B33: 25 | C33: =dataumum!C33 -> 0096749734 | D33: =dataumum!D33 -> WULAN RESPIANI
B34: 26 | C34: =dataumum!C34 -> 0099314795 | D34: =dataumum!D34 -> YESI DESTRIYANI
B35: 27 | C35: =dataumum!C35 -> 0 | D35: =dataumum!D35 -> 0
B36: 28 | C36: =dataumum!C36 -> 0 | D36: =dataumum!D36 -> 0
B37: 29 | C37: =dataumum!C37 -> 0 | D37: =dataumum!D37 -> 0
B38: 30 | C38: =dataumum!C38 -> 0 | D38: =dataumum!D38 -> 0
B39: 31 | C39: =dataumum!C39 -> 0 | D39: =dataumum!D39 -> 0
B40: 32 | C40: =dataumum!C40 -> 0 | D40: =dataumum!D40 -> 0
B41: 33 | C41: =dataumum!C41 -> 0 | D41: =dataumum!D41 -> 0
B42: 34 | C42: =dataumum!C42 -> 0 | D42: =dataumum!D42 -> 0
B43: 35 | C43: =dataumum!C43 -> 0 | D43: =dataumum!D43 -> 0
B44: 36 | C44: =dataumum!C44 -> 0 | D44: =dataumum!D44 -> 0
B45: 37 | C45: =dataumum!C45 -> 0 | D45: =dataumum!D45 -> 0
B46: 38 | C46: =dataumum!C46 -> 0 | D46: =dataumum!D46 -> 0
B47: 39 | C47: =dataumum!C47 -> 0 | D47: =dataumum!D47 -> 0
B48: 40 | C48: =dataumum!C48 -> 0 | D48: =dataumum!D48 -> 0
AH49: =dataumum!G19 -> X-D
D50: Mengetahui, | W50: Tasikmalaya, …....................... 2023
D51: Kepala MAN 4 Tasikmalaya | W51: Guru Mata Pelajaran,
D55: Enjang, S.Ag, M.Pd.I | W55: _______________________________
D56: NIP. 197406152005011006 | W56: NIP.

Sheet blankonilai (hidden)
B1: KEMENTERIAN AGAMA REPUBLIK INDONESIA
B2: KANTOR KEMENTERIAN AGAMA KABUPATEN TASIKMALAYA
B3: MADRASAH ALIYAH NEGERI 4 TASIKMALAYA
B4: Jl. Sindanghurip Desa Cikalong Kec. Cikalong 46195
B5: Website : www.mancikalong.sch.id e-mail : mancikalong@gmail.com
B7: DAFTAR NILAI PENGETAHUAN DAN KETERAMPILAN
C8: MATA PELAJARAN | D8: : | E8: =dataumum!G8 -> Kimia
C9: KELAS / SEMESTER | D9: : | E9: =CONCATENATE(dataumum!G11," ","/"," ",dataumum!G9) -> X-D / 2 (Genap)
C10: DESKRIPSI KD | D10: :
B13: NO | C13: NAMA SISWA | D13: PENILAIAN PENGETAHUAN/KD | L13: PENILAIAN KETERAMPILAN/KD | T13: NILAI | U13: RATA-RATA
D14: 1 | E14: 2 | F14: 3 | G14: 4 | H14: 5 | I14: 6 | J14: 7 | K14: 8 | L14: 1 | M14: 2 | N14: 3 | O14: 4 | P14: 5 | Q14: 6 | R14: 7 | S14: 8 | T14: PAT
B15: =daftarhadir!B9 -> 1 | C15: =daftarhadir!D9 -> AHMAD JAMIL MUNAWAR | D15: 1 | E15: 1 | F15: 1 | G15: 1 | H15: 1 | I15: 1 | J15: 1 | K15: 1 | L15: 1 | M15: 1 | N15: 1 | O15: 1 | P15: 1 | Q15: 1 | R15: 1 | S15: 1
B16: =daftarhadir!B10 -> 2 | C16: =daftarhadir!D10 -> AKBAR NUGRAHA | D16: 1 | E16: 1 | F16: 1 | G16: 1 | H16: 1 | I16: 1 | J16: 1 | K16: 1 | L16: 1 | M16: 1 | N16: 1 | O16: 1 | P16: 1 | Q16: 1 | R16: 1 | S16: 1
B17: =daftarhadir!B11 -> 3 | C17: =daftarhadir!D11 -> ALSA NAPILA ABALIA | D17: 1 | E17: 1 | F17: 1 | G17: 1 | H17: 1 | I17: 1 | J17: 1 | K17: 1 | L17: 1 | M17: 1 | N17: 1 | O17: 1 | P17: 1 | Q17: 1 | R17: 1 | S17: 1
B18: =daftarhadir!B12 -> 4 | C18: =daftarhadir!D12 -> ALWAN FAJRUL HAKIM | D18: 1 | E18: 1 | F18: 1 | G18: 1 | H18: 1 | I18: 1 | J18: 1 | K18: 1 | L18: 1 | M18: 1 | N18: 1 | O18: 1 | P18: 1 | Q18: 1 | R18: 1 | S18: 1
B19: =daftarhadir!B13 -> 5 | C19: =daftarhadir!D13 -> ANDIKA | D19: 1 | E19: 1 | F19: 1 | G19: 1 | H19: 1 | I19: 1 | J19: 1 | K19: 1 | L19: 1 | M19: 1 | N19: 1 | O19: 1 | P19: 1 | Q19: 1 | R19: 1 | S19: 1
B20: =daftarhadir!B14 -> 6 | C20: =daftarhadir!D14 -> CHINTIA NUR AZIZAH | D20: 1 | E20: 1 | F20: 1 | G20: 1 | H20: 1 | I20: 1 | J20: 1 | K20: 1 | L20: 1 | M20: 1 | N20: 1 | O20: 1 | P20: 1 | Q20: 1 | R20: 1 | S20: 1
B21: =daftarhadir!B15 -> 7 | C21: =daftarhadir!D15 -> DEDE AULIA | D21: 1 | E21: 1 | F21: 1 | G21: 1 | H21: 1 | I21: 1 | J21: 1 | K21: 1 | L21: 1 | M21: 1 | N21: 1 | O21: 1 | P21: 1 | Q21: 1 | R21: 1 | S21: 1
B22: =daftarhadir!B16 -> 8 | C22: =daftarhadir!D16 -> DIRLI PIRMANSAH REZA | D22: 1 | E22: 1 | F22: 1 | G22: 1 | H22: 1 | I22: 1 | J22: 1 | K22: 1 | L22: 1 | M22: 1 | N22: 1 | O22: 1 | P22: 1 | Q22: 1 | R22: 1 | S22: 1
B23: =daftarhadir!B17 -> 9 | C23: =daftarhadir!D17 -> EKSEL | D23: 1 | E23: 1 | F23: 1 | G23: 1 | H23: 1 | I23: 1 | J23: 1 | K23: 1 | L23: 1 | M23: 1 | N23: 1 | O23: 1 | P23: 1 | Q23: 1 | R23: 1 | S23: 1
B24: =daftarhadir!B18 -> 10 | C24: =daftarhadir!D18 -> FADLAN APANDI | D24: 1 | E24: 1 | F24: 1 | G24: 1 | H24: 1 | I24: 1 | J24: 1 | K24: 1 | L24: 1 | M24: 1 | N24: 1 | O24: 1 | P24: 1 | Q24: 1 | R24: 1 | S24: 1
B25: =daftarhadir!B19 -> 11 | C25: =daftarhadir!D19 -> HAYA MADIHATUL ISMAH | D25: 1 | E25: 1 | F25: 1 | G25: 1 | H25: 1 | I25: 1 | J25: 1 | K25: 1 | L25: 1 | M25: 1 | N25: 1 | O25: 1 | P25: 1 | Q25: 1 | R25: 1 | S25: 1
B26: =daftarhadir!B20 -> 12 | C26: =daftarhadir!D20 -> HIKAYATUL JABAL | D26: 1 | E26: 1 | F26: 1 | G26: 1 | H26: 1 | I26: 1 | J26: 1 | K26: 1 | L26: 1 | M26: 1 | N26: 1 | O26: 1 | P26: 1 | Q26: 1 | R26: 1 | S26: 1
B27: =daftarhadir!B21 -> 13 | C27: =daftarhadir!D21 -> IHSAN NURSALAM | D27: 1 | E27: 1 | F27: 1 | G27: 1 | H27: 1 | I27: 1 | J27: 1 | K27: 1 | L27: 1 | M27: 1 | N27: 1 | O27: 1 | P27: 1 | Q27: 1 | R27: 1 | S27: 1
B28: =daftarhadir!B22 -> 14 | C28: =daftarhadir!D22 -> IZAD NOOR JAMAN | D28: 1 | E28: 1 | F28: 1 | G28: 1 | H28: 1 | I28: 1 | J28: 1 | K28: 1 | L28: 1 | M28: 1 | N28: 1 | O28: 1 | P28: 1 | Q28: 1 | R28: 1 | S28: 1
B29: =daftarhadir!B23 -> 15 | C29: =daftarhadir!D23 -> JIHAN NURROHMAH SEPTIRA | D29: 1 | E29: 1 | F29: 1 | G29: 1 | H29: 1 | I29: 1 | J29: 1 | K29: 1 | L29: 1 | M29: 1 | N29: 1 | O29: 1 | P29: 1 | Q29: 1 | R29: 1 | S29: 1
B30: =daftarhadir!B24 -> 16 | C30: =daftarhadir!D24 -> KAKA SEPTIAN | D30: 1 | E30: 1 | F30: 1 | G30: 1 | H30: 1 | I30: 1 | J30: 1 | K30: 1 | L30: 1 | M30: 1 | N30: 1 | O30: 1 | P30: 1 | Q30: 1 | R30: 1 | S30: 1
B31: =daftarhadir!B25 -> 17 | C31: =daftarhadir!D25 -> LUTPI | D31: 1 | E31: 1 | F31: 1 | G31: 1 | H31: 1 | I31: 1 | J31: 1 | K31: 1 | L31: 1 | M31: 1 | N31: 1 | O31: 1 | P31: 1 | Q31: 1 | R31: 1 | S31: 1
B32: =daftarhadir!B26 -> 18 | C32: =daftarhadir!D26 -> M SUGIH MIWAHA | D32: 1 | E32: 1 | F32: 1 | G32: 1 | H32: 1 | I32: 1 | J32: 1 | K32: 1 | L32: 1 | M32: 1 | N32: 1 | O32: 1 | P32: 1 | Q32: 1 | R32: 1 | S32: 1
B33: =daftarhadir!B27 -> 19 | C33: =daftarhadir!D27 -> MUHLIS | D33: 1 | E33: 1 | F33: 1 | G33: 1 | H33: 1 | I33: 1 | J33: 1 | K33: 1 | L33: 1 | M33: 1 | N33: 1 | O33: 1 | P33: 1 | Q33: 1 | R33: 1 | S33: 1
B34: =daftarhadir!B28 -> 20 | C34: =daftarhadir!D28 -> NURAFIFAH FAUZIAH | D34: 1 | E34: 1 | F34: 1 | G34: 1 | H34: 1 | I34: 1 | J34: 1 | K34: 1 | L34: 1 | M34: 1 | N34: 1 | O34: 1 | P34: 1 | Q34: 1 | R34: 1 | S34: 1
B35: =daftarhadir!B29 -> 21 | C35: =daftarhadir!D29 -> REPAN | D35: 1 | E35: 1 | F35: 1 | G35: 1 | H35: 1 | I35: 1 | J35: 1 | K35: 1 | L35: 1 | M35: 1 | N35: 1 | O35: 1 | P35: 1 | Q35: 1 | R35: 1 | S35: 1
B36: =daftarhadir!B30 -> 22 | C36: =daftarhadir!D30 -> REZA NURUL WILDAN | D36: 1 | E36: 1 | F36: 1 | G36: 1 | H36: 1 | I36: 1 | J36: 1 | K36: 1 | L36: 1 | M36: 1 | N36: 1 | O36: 1 | P36: 1 | Q36: 1 | R36: 1 | S36: 1
B37: =daftarhadir!B31 -> 23 | C37: =daftarhadir!D31 -> SYIFA NURJANAH | D37: 1 | E37: 1 | F37: 1 | G37: 1 | H37: 1 | I37: 1 | J37: 1 | K37: 1 | L37: 1 | M37: 1 | N37: 1 | O37: 1 | P37: 1 | Q37: 1 | R37: 1 | S37: 1
B38: =daftarhadir!B32 -> 24 | C38: =daftarhadir!D32 -> WINDI PUJIA SAFITRI | D38: 1 | E38: 1 | F38: 1 | G38: 1 | H38: 1 | I38: 1 | J38: 1 | K38: 1 | L38: 1 | M38: 1 | N38: 1 | O38: 1 | P38: 1 | Q38: 1 | R38: 1 | S38: 1
B39: =daftarhadir!B33 -> 25 | C39: =daftarhadir!D33 -> WULAN RESPIANI | D39: 1 | E39: 1 | F39: 1 | G39: 1 | H39: 1 | I39: 1 | J39: 1 | K39: 1 | L39: 1 | M39: 1 | N39: 1 | O39: 1 | P39: 1 | Q39: 1 | R39: 1 | S39: 1
B40: =daftarhadir!B34 -> 26 | C40: =daftarhadir!D34 -> YESI DESTRIYANI | D40: 1 | E40: 1 | F40: 1 | G40: 1 | H40: 1 | I40: 1 | J40: 1 | K40: 1 | L40: 1 | M40: 1 | N40: 1 | O40: 1 | P40: 1 | Q40: 1 | R40: 1 | S40: 1
B41: =daftarhadir!B35 -> 27 | C41: =daftarhadir!D35 -> 0 | D41: 1 | E41: 1 | F41: 1 | G41: 1 | H41: 1 | I41: 1 | J41: 1 | K41: 1 | L41: 1 | M41: 1 | N41: 1 | O41: 1 | P41: 1 | Q41: 1 | R41: 1 | S41: 1
B42: =daftarhadir!B36 -> 28 | C42: =daftarhadir!D36 -> 0 | D42: 1 | E42: 1 | F42: 1 | G42: 1 | H42: 1 | I42: 1 | J42: 1 | K42: 1 | L42: 1 | M42: 1 | N42: 1 | O42: 1 | P42: 1 | Q42: 1 | R42: 1 | S42: 1
B43: =daftarhadir!B37 -> 29 | C43: =daftarhadir!D37 -> 0 | D43: 1 | E43: 1 | F43: 1 | G43: 1 | H43: 1 | I43: 1 | J43: 1 | K43: 1 | L43: 1 | M43: 1 | N43: 1 | O43: 1 | P43: 1 | Q43: 1 | R43: 1 | S43: 1
B44: =daftarhadir!B38 -> 30 | C44: =daftarhadir!D38 -> 0 | D44: 1 | E44: 1 | F44: 1 | G44: 1 | H44: 1 | I44: 1 | J44: 1 | K44: 1 | L44: 1 | M44: 1 | N44: 1 | O44: 1 | P44: 1 | Q44: 1 | R44: 1 | S44: 1
B45: =daftarhadir!B39 -> 31 | C45: =daftarhadir!D39 -> 0 | D45: 1 | E45: 1 | F45: 1 | G45: 1 | H45: 1 | I45: 1 | J45: 1 | K45: 1 | L45: 1 | M45: 1 | N45: 1 | O45: 1 | P45: 1 | Q45: 1 | R45: 1 | S45: 1
B46: =daftarhadir!B40 -> 32 | C46: =daftarhadir!D40 -> 0 | D46: 1 | E46: 1 | F46: 1 | G46: 1 | H46: 1 | I46: 1 | J46: 1 | K46: 1 | L46: 1 | M46: 1 | N46: 1 | O46: 1 | P46: 1 | Q46: 1 | R46: 1 | S46: 1
B47: =daftarhadir!B41 -> 33 | C47: =daftarhadir!D41 -> 0 | D47: 1 | E47: 1 | F47: 1 | G47: 1 | H47: 1 | I47: 1 | J47: 1 | K47: 1 | L47: 1 | M47: 1 | N47: 1 | O47: 1 | P47: 1 | Q47: 1 | R47: 1 | S47: 1
B48: =daftarhadir!B42 -> 34 | C48: =daftarhadir!D42 -> 0 | D48: 1 | E48: 1 | F48: 1 | G48: 1 | H48: 1 | I48: 1 | J48: 1 | K48: 1 | L48: 1 | M48: 1 | N48: 1 | O48: 1 | P48: 1 | Q48: 1 | R48: 1 | S48: 1
B49: =daftarhadir!B43 -> 35 | C49: =daftarhadir!D43 -> 0 | D49: 1 | E49: 1 | F49: 1 | G49: 1 | H49: 1 | I49: 1 | J49: 1 | K49: 1 | L49: 1 | M49: 1 | N49: 1 | O49: 1 | P49: 1 | Q49: 1 | R49: 1 | S49: 1
B50: =daftarhadir!B44 -> 36 | C50: =daftarhadir!D44 -> 0 | D50: 1 | E50: 1 | F50: 1 | G50: 1 | H50: 1 | I50: 1 | J50: 1 | K50: 1 | L50: 1 | M50: 1 | N50: 1 | O50: 1 | P50: 1 | Q50: 1 | R50: 1 | S50: 1
B51: =daftarhadir!B45 -> 37 | C51: =daftarhadir!D45 -> 0 | D51: 1 | E51: 1 | F51: 1 | G51: 1 | H51: 1 | I51: 1 | J51: 1 | K51: 1 | L51: 1 | M51: 1 | N51: 1 | O51: 1 | P51: 1 | Q51: 1 | R51: 1 | S51: 1
B52: =daftarhadir!B46 -> 38 | C52: =daftarhadir!D46 -> 0 | D52: 1 | E52: 1 | F52: 1 | G52: 1 | H52: 1 | I52: 1 | J52: 1 | K52: 1 | L52: 1 | M52: 1 | N52: 1 | O52: 1 | P52: 1 | Q52: 1 | R52: 1 | S52: 1
B53: =daftarhadir!B47 -> 39 | C53: =daftarhadir!D47 -> 0 | D53: 1 | E53: 1 | F53: 1 | G53: 1 | H53: 1 | I53: 1 | J53: 1 | K53: 1 | L53: 1 | M53: 1 | N53: 1 | O53: 1 | P53: 1 | Q53: 1 | R53: 1 | S53: 1
B54: =daftarhadir!B48 -> 40 | C54: =daftarhadir!D48 -> 0 | D54: 1 | E54: 1 | F54: 1 | G54: 1 | H54: 1 | I54: 1 | J54: 1 | K54: 1 | L54: 1 | M54: 1 | N54: 1 | O54: 1 | P54: 1 | Q54: 1 | R54: 1 | S54: 1
U55: =dataumum!G19 -> X-D
C56: =daftarhadir!D50 -> Mengetahui, | P56: =daftarhadir!W50 -> Tasikmalaya, …....................... 2023
C57: =daftarhadir!D51 -> Kepala MAN 4 Tasikmalaya | P57: =daftarhadir!W51 -> Guru Mata Pelajaran,
C61: =daftarhadir!D55 -> Enjang, S.Ag, M.Pd.I | P61: =daftarhadir!W55 -> _______________________________
C62: =daftarhadir!D56 -> NIP. 197406152005011006 | P62: =daftarhadir!W56 -> NIP.
